Workbook

Sheet TitlePage
K3: National Child and Maternal Health Intelligence Network
C6: Reviewing children and young people's use of secondary care: Information Tool
C8: This tool provides information on emergency hospital admissions for children with common childhood illnesses, such as respiratory and gastric conditions. It also examines how long children spend in hospital and presents similar information for a subset of children who have complex conditions. Each of these can be viewed against a range of comparators, and trend information is also shown.
C20: The source of all data is the Hospital Episode Statistics (HES), Health and Social Care Information Centre.
C21: Further information on using this tool is available with the online user guidance: | M21: atlas.chimat.org.uk/IAS/IST/illhelp
C22: If you have any questions or comments about the information tool please contact us: | M22: information@chimat.org.uk
C25: Date | G25: Version | H25: Change/Comment
C26: 2015-05-01 | G26: 1 | H26: Initial version.
C28: © Crown copyright 2015 You may re-use this information (excluding logos) free of charge in any format or medium, under the terms of the Open Government Licence v3.0. To view this licence, visit OGL or email psi@nationalarchives.gsi.gov.uk. Where we have identified any third party copyright information you will need to obtain permission from the copyright holders concerned.
C30: Published March 2015 PHE publications gateway number: 2014812

Sheet TitlePage-print
K3: National Child and Maternal Health Intelligence Network
C6: Reviewing children and young people's use of secondary care: Information Summary
C7: =Selections_data_CCG!G3 -> NHS Airedale, Wharfedale and Craven
C9: This summary document provides information on emergency hospital admissions for children with common childhood conditions, such as respiratory and gastric conditions. It also examines how long children spend in hospital and presents similar information for a subset of children who have complex conditions.
C14: The source of all data is the Hospital Episode Statistics (HES), Health and Social Care Information Centre.
C15: Further information on using this tool is available with the online user guidance: | M15: atlas.chimat.org.uk/IAS/IST/help
C16: If you have any questions or comments about the information tool please contact us: | M16: information@chimat.org.uk

Sheet Metadata-admissions
K3: National Child and Maternal Health Intelligence Network
C6: Reviewing children and young people's use of secondary care
C9: The data used within this information tool is derived from the Hospital Episode Statistics (HES) database.
C12: Emergency admissions for common childhood conditions
C14: Definition | G14: Emergency admission rate per 100,000 population for children aged 14 days to 15 years inclusive registered at a GP practice within the CCG for one of the national 'top 12' conditions
L16: find out more about the top 12 conditions
C17: Time Period | G17: =Settings!$B$1&" for most recent data" -> 2013/14 for most recent data
C19: Numerator definition | G19: Admissions (first finished consultant episodes) with a primary diagnosis code of one of the top 12 conditions, and method of admission starts with '2'
C22: Numerator source | G22: Source: Hospital Episode Statistics (HES) Copyright © 2013, Re‐used with the permission of The Health and Social Care Information Centre. All rights reserved.
C25: Denominator definition | G25: Population aged 0-15 years
C27: Denominator source | G27: Office for National Statistics (ONS)
C29: Notes on comparators | G29: England average relates to the aggregated values for all English CCGs
G30: Your area team relates to the aggregated values for all CCGs in the relevant area team
G31: Your region relates to the aggregated values for all CCGs in the relevant region
G32: 25% best performing relates to the aggregated values for the 'best' (ie having the lowest admission rate) 52 CCGs (of 211). When looking at trend charts, the 'best' CCGs are established for each individual year, rather than historical data for the 'best' CCGs in the current year.
G35: 5% best performing relates to the aggregated values for the 'best' (ie having the lowest admission rate) 10 CCGs (of 211). When looking at trend charts, the 'best' CCGs are established for each individual year, rather than historical data for the 'best' CCGs in the current year.
G38: 4 similar CCGs relates to aggreated values for the 4 CCGs that are considered 'most similar'.

Sheet Metadata-LOS
K3: National Child and Maternal Health Intelligence Network
C6: Reviewing children and young people's use of secondary care
C9: The data used within this information tool is derived from the Hospital Episode Statistics (HES) database.
C12: Length of stay following admission to hospital for any condition
C14: Definition | G14: i) Total bed days per 100,000 population following admission of a child aged 14 days to 15 years
G15: ii) Average length of stay in days following admission of a child aged 14 days to 15 years
C17: Time Period | G17: =Settings!$B$1&" for most recent data" -> 2013/14 for most recent data
C19: Numerator definition | G19: i) and ii) Total length of stay (first finished consultant episodes) with method of admission coded 11,12,13,21,22,23,24 or 28. Records with a primary diagnosis of F00-F99 are excluded.
C22: Numerator source | G22: Source: Hospital Episode Statistics (HES) Copyright © 2013, Re‐used with the permission of The Health and Social Care Information Centre. All rights reserved.
C25: Denominator definition | G25: i) Population aged 0-15 years
G26: ii) Discharges with method of admission starting with '1' or '2'. Records with a primary diagnosis of F00-F99 are excluded.
C29: Denominator source | G29: i) Office for National Statistics (ONS)
G30: ii) Hospital Episode Statistics (HES) Copyright © 2013, Re‐used with the permission of The Health and Social Care Information Centre. All rights reserved.
C33: Notes on comparators | G33: England average relates to the aggregated values for all English CCGs
G34: Your area team relates to the aggregated values for all CCGs in the relevant area team
G35: Your region relates to the aggregated values for all CCGs in the relevant region
G36: 25% best performing relates to the aggregated values for the 'best' (ie having the lowest bed day rate or average length of stay) 52 CCGs (of 211). When looking at trend charts, the 'best' CCGs are established for each individual year, rather than historical data for the 'best' CCGs in the current year.
G39: 5% best performing relates to the aggregated values for the 'best' (ie having the lowest bed day rate or average length of stay) 10 CCGs (of 211). When looking at trend charts, the 'best' CCGs are established for each individual year, rather than historical data for the 'best' CCGs in the current year.
G42: 4 similar CCGs relates to aggreated values for the 4 CCGs that are considered 'most similar'.

Sheet Metadata-CC
K3: National Child and Maternal Health Intelligence Network
C6: Reviewing children and young people's use of secondary care
C9: The data used within this information tool is derived from the Hospital Episode Statistics (HES) database.
C12: Length of stay following admission to hospital for children with one or more complex condition(s)
C14: Definition | G14: i) Total bed days per 100,000 population following admission of a child with a complex condition aged 14 days to 15 years
G16: ii) Average length of stay in days following admission of a child with a complex condition aged 14 days to 15 years
C19: Time Period | G19: =Settings!$B$1&" for most recent data" -> 2013/14 for most recent data
C21: Numerator definition | G21: i) and ii) Total length of stay (first finished consultant episodes) with method of admission starting with '1' or '2'. Records with a primary diagnosis of F00-F99 are excluded. Records are further filtered by considering the following codes in any diagnosis position (including primary):
H24: a) Any complex condition: One or more of congenital malformations: Q00-Q99, diseases of the nervous system: G00-G99 or metabolic conditions: E70-E90 b) Congenital malformations: Q00-Q99 c) Diseases of the nervous system: G00-G99 d) Metabolic conditions: E70-E90
C25: Numerator source | G25: Source: Hospital Episode Statistics (HES) Copyright © 2013, Re‐used with the permission of The Health and Social Care Information Centre. All rights reserved.
C28: Denominator definition | G28: i) Population aged 0-15 years
G29: ii) Discharges with method of admission coded 11,12,13,21,22,23,24 or 28. Records with a primary diagnosis of F00-F99 are excluded. Records further filtered by complex condition as detailed in numerator definition.
C33: Denominator source | G33: i) Office for National Statistics (ONS)
G34: ii) Hospital Episode Statistics (HES) Copyright © 2013, Re‐used with the permission of The Health and Social Care Information Centre. All rights reserved.
C37: Notes on comparators | G37: England average relates to the aggregated values for all English CCGs
G38: Your area team relates to the aggregated values for all CCGs in the relevant area team
G39: Your region relates to the aggregated values for all CCGs in the relevant region
G40: 25% best performing relates to the aggregated values for the 'best' (ie having the lowest bed day rate or average length of stay) 52 CCGs (of 211). When looking at trend charts, the 'best' CCGs are established for each individual year, rather than historical data for the 'best' CCGs in the current year.
G43: 5% best performing relates to the aggregated values for the 'best' (ie having the lowest bed day rate or average length of stay) 10 CCGs (of 211). When looking at trend charts, the 'best' CCGs are established for each individual year, rather than historical data for the 'best' CCGs in the current year.
G46: 4 similar CCGs relates to aggreated values for the 4 CCGs that are considered 'most similar'.

Sheet MainPage
K3: National Child and Maternal Health Intelligence Network
C6: Reviewing children and young people's use of secondary care
C9: Please select your clinical commissioning group (CCG)
N11: (requires Internet access; warning window may be shown first)
D23: Metadata | H23: Metadata | L23: Metadata
D24: More about common conditions

Sheet ChartAdmissionsCurrent
C2: 14 | D2: 14 | E2: 10 | F2: 10 | G2: 10 | H2: 10 | J2: 8 | K2: 8 | L2: 5 | M2: 9 | N2: 9 | O2: 9 | P2: 9 | Q2: 9 | R2: 9 | S2: 9 | T2: 9
O3: National Child and Maternal Health Intelligence Network
C6: Reviewing children and young people's use of secondary care
C8: ="Comparison with "&HLOOKUP(Settings!B5,Selections_data_CCG!1:4,4,FALSE) -> Comparison with the region
C9: ="Emergency admissions for common conditions in children aged between 14 days and 15 years | "&Settings!B1 -> Emergency admissions for common conditions in children aged between 14 days and 15 years | 2013/14
C12: Change comparator
E17: Admissions
C18: =Selections_data_CCG!G3 &" (number)" -> NHS Airedale, Wharfedale and Craven (number) | E18: =IF(VLOOKUP(Selections_data_CCG!G2,'CurrentData-all children'!A:R,7,FALSE)=0,"Suppressed",VLOOKUP(Selections_data_CCG!G2,'CurrentData-all children'!A:R,7,FALSE)) -> 2064
C19: =Selections_data_CCG!G3 &" (rate per 100,000)" -> NHS Airedale, Wharfedale and Craven (rate per 100,000) | E19: =VLOOKUP(Selections_data_CCG!G2,'CurrentData-all children'!$A:R,13,FALSE) -> 7077.07289
C20: - Lower limit | E20: =VLOOKUP(Selections_data_CCG!G2,'CurrentData-all children'!$A:R,14,FALSE) -> 6775.018015
C21: - Upper limit | E21: =VLOOKUP(Selections_data_CCG!G2,'CurrentData-all children'!$A:R,15,FALSE) -> 7389.125408
C22: =Settings!D5 -> North | E22: =IF(Settings!B5="4SIMILAR",VLOOKUP(Selections_data_CCG!G2,'CurrentData-4SIMILAR-allchildre'!$A:R,13,FALSE),VLOOKUP(Settings!C5,'CurrentData-all children'!$A:R,13,FALSE)) -> 5510.027757
C23: - Lower limit | E23: =IF(Settings!B5="4SIMILAR",VLOOKUP(Selections_data_CCG!G2,'CurrentData-4SIMILAR-allchildre'!$A:R,14,FALSE),VLOOKUP(Settings!C5,'CurrentData-all children'!$A:R,14,FALSE)) -> 5482.872674
C24: - Upper limit | E24: =IF(Settings!B5="4SIMILAR", VLOOKUP(Selections_data_CCG!G2,'CurrentData-4SIMILAR-allchildre'!$A:R,15,FALSE), VLOOKUP(Settings!C5,'CurrentData-all children'!$A:R,15,FALSE)) -> 5537.284003
C25: Significance* | E25: =IF(E18="Suppressed","",IF(MIN(E23:E24)>MAX(E20:E21),"Better",IF(MIN(E20:E21)>MAX(E23:E24),"Worse","Same"))) -> Worse
C26: Rank (of 221 CCGs) 1 indicates 'best' | E26: =IF(E18="Suppressed","",VLOOKUP(Selections_data_CCG!G2,'CurrentData-all children'!A:V,3,FALSE)) -> 202
C27: =IF(Settings!B5="4SIMILAR", "* When compared to the average of the four 'most similar' CCGs.", "* When compared to " & Settings!D5) -> * When compared to North
C28: =IF(Settings!B5="4SIMILAR", "More information on four most similar CCGs","") -> 
C30: Source: Hospital Episode Statistics

Sheet ChartAdmissionsHist
C2: 14 | D2: 14 | E2: 10 | F2: 10 | G2: 10 | H2: 10 | J2: 8 | K2: 8 | L2: 5 | M2: 9 | N2: 9 | O2: 9 | P2: 9 | Q2: 9 | R2: 9 | S2: 9 | T2: 9
O3: National Child and Maternal Health Intelligence Network
C6: Reviewing children and young people's use of secondary care
C8: ="Comparison with "&HLOOKUP(Settings!B5,Selections_data_CCG!1:4,4,FALSE) -> Comparison with the region
C9: Emergency admissions for common conditions in children aged between 14 days and 15 years
C12: Change comparator
C17: =Selections_data_CCG!G3 -> NHS Airedale, Wharfedale and Craven | E17: Admissions per 100,000 population
C18: =yearlytrends!B7 -> 2010/11 | E18: =IF(OR(yearlytrends!C7="Suppressed",yearlytrends!C7=""),#N/A, yearlytrends!C7) -> 6733.18592
C19: =yearlytrends!B8 -> 2011/12 | E19: =IF(OR(yearlytrends!C8="Suppressed",yearlytrends!C8=""),#N/A, yearlytrends!C8) -> 5334.333019
C20: =yearlytrends!B9 -> 2012/13 | E20: =IF(OR(yearlytrends!C9="Suppressed",yearlytrends!C9=""),#N/A, yearlytrends!C9) -> 4064.73311
C21: =yearlytrends!B10 -> 2013/14 | E21: =IF(OR(yearlytrends!C10="Suppressed",yearlytrends!C10=""),#N/A, yearlytrends!C10) -> 7077.07289
C23: =Settings!D5 -> North | E23: Admissions per 100,000 population
C24: =yearlytrends!B7 -> 2010/11 | E24: =SUMIFS(yearlytrends!7:7,yearlytrends!4:4,Settings!B5,yearlytrends!5:5, "Admission rate") -> 5906.40155
C25: =yearlytrends!B8 -> 2011/12 | E25: =SUMIFS(yearlytrends!8:8,yearlytrends!4:4,Settings!B5,yearlytrends!5:5, "Admission rate") -> 5458.803722
C26: =yearlytrends!B9 -> 2012/13 | E26: =SUMIFS(yearlytrends!9:9,yearlytrends!4:4,Settings!B5,yearlytrends!5:5, "Admission rate") -> 5922.156642
C27: =yearlytrends!B10 -> 2013/14 | E27: =SUMIFS(yearlytrends!10:10,yearlytrends!4:4,Settings!B5,yearlytrends!5:5, "Admission rate") -> 5510.027757
C30: Source: Hospital Episode Statistics

Sheet ChartLOSCurrent
C2: 14 | D2: 14 | E2: 10 | F2: 10 | G2: 10 | H2: 10 | J2: 8 | K2: 8 | L2: 5 | M2: 9 | N2: 9 | O2: 9 | P2: 9 | Q2: 9 | R2: 9 | S2: 9 | T2: 9
O3: National Child and Maternal Health Intelligence Network
C6: Reviewing children and young people's use of secondary care
C8: ="Comparison with "&HLOOKUP(Settings!B5,Selections_data_CCG!1:4,4,FALSE) -> Comparison with the region
C9: ="Length of stay following admission in children aged between 14 days and 15 years for any condition | "&Settings!B1 -> Length of stay following admission in children aged between 14 days and 15 years for any condition | 2013/14
C12: Change comparator
E17: Bed days | G17: Average length of stay (days)
C18: =Selections_data_CCG!G3 &" (number)" -> NHS Airedale, Wharfedale and Craven (number) | E18: =IF(VLOOKUP(Selections_data_CCG!G2,'CurrentData-all children'!$A:R,8,FALSE)=0,"Suppressed",VLOOKUP(Selections_data_CCG!G2,'CurrentData-all children'!$A:R,8,FALSE)) -> 4912 | G18: =VLOOKUP(Selections_data_CCG!G2,'CurrentData-all children'!$A:R,10,FALSE) -> 1.48533414
C19: =Selections_data_CCG!G3 &" (rate per 100,000)" -> NHS Airedale, Wharfedale and Craven (rate per 100,000) | E19: =VLOOKUP(Selections_data_CCG!G2,'CurrentData-all children'!$A:R,16,FALSE) -> 16842.33626
C20: - Lower limit | E20: =VLOOKUP(Selections_data_CCG!G2,'CurrentData-all children'!A:R,17,FALSE) -> 16374.59109
C21: - Upper limit | E21: =VLOOKUP(Selections_data_CCG!G2,'CurrentData-all children'!A:R,18,FALSE) -> 17320.05325
C22: =Settings!D5 -> North | E22: =IF(Settings!B5="4SIMILAR",VLOOKUP(Selections_data_CCG!G2,'CurrentData-4SIMILAR-allchildre'!$A:R,16,FALSE),VLOOKUP(Settings!C5,'CurrentData-all children'!$A:R,16,FALSE)) -> 14706.8643 | G22: =IF(Settings!B5="4SIMILAR",VLOOKUP(Selections_data_CCG!G2,'CurrentData-4SIMILAR-allchildre'!$A:R,10,FALSE),VLOOKUP(Settings!C5,'CurrentData-all children'!$A:R,10,FALSE)) -> 1.437047856
C23: - Lower limit | E23: =IF(Settings!B5="4SIMILAR",VLOOKUP(Selections_data_CCG!G2,'CurrentData-4SIMILAR-allchildre'!$A:R,17,FALSE),VLOOKUP(Settings!C5,'CurrentData-all children'!$A:R,17,FALSE)) -> 14662.47896
C24: - Upper limit | E24: =IF(Settings!B5="4SIMILAR",VLOOKUP(Selections_data_CCG!G2,'CurrentData-4SIMILAR-allchildre'!$A:R,18,FALSE),VLOOKUP(Settings!C5,'CurrentData-all children'!$A:R,18,FALSE)) -> 14751.35077
C25: Significance* | E25: =IF(E18="Suppressed","",IF(MIN(E23:E24)>MAX(E20:E21),"Better",IF(MIN(E20:E21)>MAX(E23:E24),"Worse","Same"))) -> Worse | G25: =IF(G18>1.1*G22,"Higher",IF(G18<0.9*G22,"Lower","About the same"))&"**" -> About the same**
C26: Rank (of 221 CCGs) 1 indicates 'best' | E26: =IF(E18="Suppressed", "",VLOOKUP(Selections_data_CCG!G2,'CurrentData-all children'!A:V,4,FALSE)) -> 195 | G26: =VLOOKUP(Selections_data_CCG!G2,'CurrentData-all children'!A:V,5,FALSE) -> 113
C27: =IF(Settings!B5="4SIMILAR", "* When compared to the average of the four 'most similar' CCGs.", "* When compared to " & Settings!D5) -> * When compared to North
C28: ** Not statistically tested
C29: =IF(Settings!B5="4SIMILAR", "More information on four most similar CCGs","") -> 
C30: Source: Hospital Episode Statistics

Sheet ChartLOSHist
C2: 14 | D2: 14 | E2: 10 | F2: 10 | G2: 10 | H2: 10 | J2: 8 | K2: 8 | L2: 5 | M2: 9 | N2: 9 | O2: 9 | P2: 9 | Q2: 9 | R2: 9 | S2: 9 | T2: 9
O3: National Child and Maternal Health Intelligence Network
C6: Reviewing children and young people's use of secondary care
C8: ="Comparison with "&HLOOKUP(Settings!B5,Selections_data_CCG!1:4,4,FALSE) -> Comparison with the region
C9: ="Length of stay following admission in children aged between 14 days and 15 years for any condition" -> Length of stay following admission in children aged between 14 days and 15 years for any condition
C12: Change comparator
C17: =Selections_data_CCG!G3 -> NHS Airedale, Wharfedale and Craven | E17: Bed days per 100,000 population | G17: Average length of stay in days
C18: =yearlytrends!B7 -> 2010/11 | E18: =IF(OR(yearlytrends!D7="Suppressed",yearlytrends!D7=""),#N/A, yearlytrends!D7) -> 17631.26451 | G18: =IF(OR(yearlytrends!E7="Suppressed",yearlytrends!E7=""),#N/A, yearlytrends!E7) -> 1.548552473
C19: =yearlytrends!B8 -> 2011/12 | E19: =IF(OR(yearlytrends!D8="Suppressed",yearlytrends!D8=""),#N/A, yearlytrends!D8) -> 15941.0919 | G19: =IF(OR(yearlytrends!E8="Suppressed",yearlytrends!E8=""),#N/A, yearlytrends!E8) -> 1.702166728
C20: =yearlytrends!B9 -> 2012/13 | E20: =IF(OR(yearlytrends!D9="Suppressed",yearlytrends!D9=""),#N/A, yearlytrends!D9) -> 14972.79861 | G20: =IF(OR(yearlytrends!E9="Suppressed",yearlytrends!E9=""),#N/A, yearlytrends!E9) -> 2.019480519
C21: =yearlytrends!B10 -> 2013/14 | E21: =IF(OR(yearlytrends!D10="Suppressed",yearlytrends!D10=""),#N/A, yearlytrends!D10) -> 16842.33626 | G21: =IF(OR(yearlytrends!E10="Suppressed",yearlytrends!E10=""),#N/A, yearlytrends!E10) -> 1.48533414
C23: =Settings!D5 -> North | E23: Bed days per 100,000 population | G23: Average length of stay in days
C24: =yearlytrends!B7 -> 2010/11 | E24: =SUMIFS(yearlytrends!7:7,yearlytrends!4:4,Settings!B5,yearlytrends!5:5, "Bed day rate") -> 16757.6824 | G24: =SUMIFS(yearlytrends!7:7,yearlytrends!4:4,Settings!B5,yearlytrends!5:5, "Average Length of Stay") -> 1.522398665
C25: =yearlytrends!B8 -> 2011/12 | E25: =SUMIFS(yearlytrends!8:8,yearlytrends!4:4,Settings!B5,yearlytrends!5:5, "Bed day rate") -> 15492.31334 | G25: =SUMIFS(yearlytrends!8:8,yearlytrends!4:4,Settings!B5,yearlytrends!5:5, "Average Length of Stay") -> 1.492753524
C26: =yearlytrends!B9 -> 2012/13 | E26: =SUMIFS(yearlytrends!9:9,yearlytrends!4:4,Settings!B5,yearlytrends!5:5, "Bed day rate") -> 15834.838 | G26: =SUMIFS(yearlytrends!9:9,yearlytrends!4:4,Settings!B5,yearlytrends!5:5, "Average Length of Stay") -> 1.49034799
C27: =yearlytrends!B10 -> 2013/14 | E27: =SUMIFS(yearlytrends!10:10,yearlytrends!4:4,Settings!B5,yearlytrends!5:5, "Bed day rate") -> 14706.8643 | G27: =SUMIFS(yearlytrends!10:10,yearlytrends!4:4,Settings!B5,yearlytrends!5:5, "Average Length of Stay") -> 1.437047856
C30: Source: Hospital Episode Statistics

Sheet ChartCCCurrent
C2: 14 | D2: 14 | E2: 10 | F2: 10 | G2: 10 | H2: 10 | J2: 8 | K2: 8 | L2: 5 | M2: 9 | N2: 9 | O2: 9 | P2: 9 | Q2: 9 | R2: 9 | S2: 9 | T2: 9
O3: National Child and Maternal Health Intelligence Network
C6: ="Reviewing use of secondary care: children and young people with "&LOWER(VLOOKUP(Settings!J15,Settings!G15:H18,2,FALSE)) -> Reviewing use of secondary care: children and young people with metabolic diseases
C8: ="Comparison with "&HLOOKUP(Settings!B5,Selections_data_CCG!1:4,4,FALSE) -> Comparison with the region
C9: ="Length of stay following admission in children aged between 14 days and 15 years | "&Settings!B1 -> Length of stay following admission in children aged between 14 days and 15 years | 2013/14
C12: Change comparator
C14: Change condition
C16: =Selections_data_CCG!G3 -> NHS Airedale, Wharfedale and Craven
E18: Bed days | G18: Average length of stay (days)
C19: =Selections_data_CCG!G3 &" (number)" -> NHS Airedale, Wharfedale and Craven (number) | E19: =IF(VLOOKUP(Selections_data_CCG!G2,'CurrentData-complex conditions'!$A:R,8,FALSE)=0,"Suppressed",VLOOKUP(Selections_data_CCG!G2,'CurrentData-complex conditions'!$A:R,8,FALSE)) -> 727 | G19: =VLOOKUP(Selections_data_CCG!G2,'CurrentData-complex conditions'!$A:R,10,FALSE) -> 3.867021277
C20: =Selections_data_CCG!G3 &" (rate per 100,000)" -> NHS Airedale, Wharfedale and Craven (rate per 100,000) | E20: =VLOOKUP(Selections_data_CCG!G2,'CurrentData-complex conditions'!$A:R,16,FALSE) -> 2492.748058
C21: - Lower limit | E21: =VLOOKUP(Selections_data_CCG!G2,'CurrentData-complex conditions'!A:R,17,FALSE) -> 2314.814645
C22: - Upper limit | E22: =VLOOKUP(Selections_data_CCG!G2,'CurrentData-complex conditions'!A:R,18,FALSE) -> 2680.729109
C23: =Settings!D5 -> North | E23: =IF(Settings!B5="4SIMILAR",VLOOKUP(Selections_data_CCG!G2,'CurrentData-4SIMILAR-CC'!$A:R,16,FALSE),VLOOKUP(Settings!C5,'CurrentData-complex conditions'!$A:R,16,FALSE)) -> 1290.679921 | G23: =IF(Settings!B5="4SIMILAR",VLOOKUP(Selections_data_CCG!G2,'CurrentData-4SIMILAR-CC'!$A:R,10,FALSE),VLOOKUP(Settings!C5,'CurrentData-complex conditions'!$A:R,10,FALSE)) -> 5.050286964
C24: - Lower limit | E24: =IF(Settings!B5="4SIMILAR",VLOOKUP(Selections_data_CCG!G2,'CurrentData-4SIMILAR-CC'!$A:R,17,FALSE),VLOOKUP(Settings!C5,'CurrentData-complex conditions'!$A:R,17,FALSE)) -> 1277.554344
C25: - Upper limit | E25: =IF(Settings!B5="4SIMILAR",VLOOKUP(Selections_data_CCG!G2,'CurrentData-4SIMILAR-CC'!$A:R,18,FALSE),VLOOKUP(Settings!C5,'CurrentData-complex conditions'!$A:R,18,FALSE)) -> 1303.906753
C26: Significance* | E26: =IF(E19="Suppressed","",IF(MIN(E24:E25)>MAX(E21:E22),"Better",IF(MIN(E21:E22)>MAX(E24:E25),"Worse","Same"))) -> Worse | G26: =IF(G19>1.1*G23,"Higher",IF(G19<0.9*G23,"Lower","About the same"))&"**" -> Lower**
C27: Rank (of 221 CCGs) 1 indicates 'best' | E27: =IF(E19="Suppressed", "",VLOOKUP(Selections_data_CCG!G2,'CurrentData-complex conditions'!A:V,4,FALSE)) -> 203 | G27: =VLOOKUP(Selections_data_CCG!G2,'CurrentData-complex conditions'!A:V,5,FALSE) -> 66
C29: =IF(Settings!B5="4SIMILAR", "* When compared to the average of the four 'most similar' CCGs.", "* When compared to " & Settings!D5) -> * When compared to North
C30: ** Not statistically tested
C31: =IF(Settings!B5="4SIMILAR", "More information on four most similar CCGs","") -> 
C32: Source: Hospital Episode Statistics

Sheet ChartCCHist
C2: 14 | D2: 14 | E2: 10 | F2: 10 | G2: 10 | H2: 10 | J2: 8 | K2: 8 | L2: 5 | M2: 9 | N2: 9 | O2: 9 | P2: 9 | Q2: 9 | R2: 9 | S2: 9 | T2: 9
O3: National Child and Maternal Health Intelligence Network
C6: ="Reviewing use of secondary care: children and young people with "&LOWER(VLOOKUP(Settings!J15,Settings!G15:H18,2,FALSE)) -> Reviewing use of secondary care: children and young people with metabolic diseases
C8: ="Comparison with "&HLOOKUP(Settings!B5,Selections_data_CCG!1:4,4,FALSE) -> Comparison with the region
C9: ="Length of stay following admission in children aged between 14 days and 15 years" -> Length of stay following admission in children aged between 14 days and 15 years
C12: Change comparator
C14: Change condition
C18: =Selections_data_CCG!G3 -> NHS Airedale, Wharfedale and Craven | E18: Bed days per 100,000 population | G18: Average length of stay in days
C19: ='yearlytrends-CC'!B7 -> 2010/11 | E19: =IF(OR('yearlytrends-CC'!D7="Suppressed",'yearlytrends-CC'!D7=""),#N/A, 'yearlytrends-CC'!D7) -> 2774.30608 | G19: =IF(OR('yearlytrends-CC'!E7="Suppressed",'yearlytrends-CC'!E7=""),#N/A, 'yearlytrends-CC'!E7) -> 5.611111111
C20: ='yearlytrends-CC'!B8 -> 2011/12 | E20: =IF(OR('yearlytrends-CC'!D8="Suppressed",'yearlytrends-CC'!D8=""),#N/A, 'yearlytrends-CC'!D8) -> 3528.707723 | G20: =IF(OR('yearlytrends-CC'!E8="Suppressed",'yearlytrends-CC'!E8=""),#N/A, 'yearlytrends-CC'!E8) -> 4.642533937
C21: ='yearlytrends-CC'!B9 -> 2012/13 | E21: =IF(OR('yearlytrends-CC'!D9="Suppressed",'yearlytrends-CC'!D9=""),#N/A, 'yearlytrends-CC'!D9) -> 2224.942743 | G21: =IF(OR('yearlytrends-CC'!E9="Suppressed",'yearlytrends-CC'!E9=""),#N/A, 'yearlytrends-CC'!E9) -> 4.174193548
C22: ='yearlytrends-CC'!B10 -> 2013/14 | E22: =IF(OR('yearlytrends-CC'!D10="Suppressed",'yearlytrends-CC'!D10=""),#N/A, 'yearlytrends-CC'!D10) -> 2492.748058 | G22: =IF(OR('yearlytrends-CC'!E10="Suppressed",'yearlytrends-CC'!E10=""),#N/A, 'yearlytrends-CC'!E10) -> 3.867021277
C24: =Settings!D5 -> North | E24: Bed days per 100,000 population | G24: Average length of stay in days
C25: ='yearlytrends-CC'!B7 -> 2010/11 | E25: =SUMIFS('yearlytrends-CC'!7:7,'yearlytrends-CC'!4:4,Settings!B5,'yearlytrends-CC'!5:5, "Bed day rate") -> 1325.573227 | G25: =SUMIFS('yearlytrends-CC'!7:7,'yearlytrends-CC'!4:4,Settings!B5,'yearlytrends-CC'!5:5, "Average Length of Stay") -> 4.689300673
C26: ='yearlytrends-CC'!B8 -> 2011/12 | E26: =SUMIFS('yearlytrends-CC'!8:8,'yearlytrends-CC'!4:4,Settings!B5,'yearlytrends-CC'!5:5, "Bed day rate") -> 1309.420375 | G26: =SUMIFS('yearlytrends-CC'!8:8,'yearlytrends-CC'!4:4,Settings!B5,'yearlytrends-CC'!5:5, "Average Length of Stay") -> 5.090946786
C27: ='yearlytrends-CC'!B9 -> 2012/13 | E27: =SUMIFS('yearlytrends-CC'!9:9,'yearlytrends-CC'!4:4,Settings!B5,'yearlytrends-CC'!5:5, "Bed day rate") -> 1363.695506 | G27: =SUMIFS('yearlytrends-CC'!9:9,'yearlytrends-CC'!4:4,Settings!B5,'yearlytrends-CC'!5:5, "Average Length of Stay") -> 4.959139234
C28: ='yearlytrends-CC'!B10 -> 2013/14 | E28: =SUMIFS('yearlytrends-CC'!10:10,'yearlytrends-CC'!4:4,Settings!B5,'yearlytrends-CC'!5:5, "Bed day rate") -> 1290.679921 | G28: =SUMIFS('yearlytrends-CC'!10:10,'yearlytrends-CC'!4:4,Settings!B5,'yearlytrends-CC'!5:5, "Average Length of Stay") -> 5.050286964
C31: Source: Hospital Episode Statistics

Sheet ClosestCCGs
J3: National Child and Maternal Health Intelligence Network
C6: Reviewing children and young people's use of secondary care
C8: Four most similar CCGs
C10: =Selections_data_CCG!G3 -> NHS Airedale, Wharfedale and Craven
E12: CCG code | F12: CCG name
C13: Most similar | E13: =HLOOKUP(Selections_data_CCG!G2,'Closest CCG (codes)'!3:8,3,FALSE) -> 02T | F13: =VLOOKUP(E13, 'CurrentData-all children'!A:B,2,FALSE) -> NHS Calderdale
C14: 2nd most similar | E14: =HLOOKUP(Selections_data_CCG!G2,'Closest CCG (codes)'!3:8,4,FALSE) -> 10A | F14: =VLOOKUP(E14, 'CurrentData-all children'!A:B,2,FALSE) -> NHS South Kent Coast
C15: 3rd most similar | E15: =HLOOKUP(Selections_data_CCG!G2,'Closest CCG (codes)'!3:8,5,FALSE) -> 05D | F15: =VLOOKUP(E15, 'CurrentData-all children'!A:B,2,FALSE) -> NHS East Staffordshire
C16: 4th most similar | E16: =HLOOKUP(Selections_data_CCG!G2,'Closest CCG (codes)'!3:8,6,FALSE) -> 09C | F16: =VLOOKUP(E16, 'CurrentData-all children'!A:B,2,FALSE) -> NHS Ashford
C18: List taken from NHS RightCare Commissioning for Value, for more information:
C19: www.rightcare.nhs.uk/index.php/commissioning-for-value/

Sheet Common conditions
J3: National Child and Maternal Health Intelligence Network
C6: Reviewing children and young people's use of secondary care
C8: Common conditions
C10: The 12 national most common reasons for emergency admissions of children aged 14 days to 15 years in 2013/14 were:
C12: Reason
C13: J00-J06: Acute upper respiratory infections
C14: B25-B34: Other viral diseases
C15: J20-J22: Other acute lower respiratory infections
C16: R50-R69: General symptoms and signs
C17: A00-A09: Intestinal infectious diseases
C18: R10-R19: Symptoms and signs involving the digestive system and abdomen
C19: S00-S09: Injuries to the head
C20: J40-J47: Chronic lower respiratory diseases
C21: R00-R09: Symptoms and signs involving the circulatory and respiratory systems
C22: S50-S59: Injuries to the elbow and forearm
C23: T36-T50: Poisoning by drugs, medicaments and biological substances
C24: K55-K63: Other diseases of intestines

Sheet CurrentData-all children
K3: Child and Maternal Health Intelligence Network
A6: Reviewing children and young people's use of secondary care | S6: **** Chart and system specific columns, please ensure your interpretation of these fields is correct before use
A8: Source: Hospital Episode Statistics (HES) Copyright © 2013, Re‐used with the permission of The Health and Social Care Information Centre. All rights reserved.
A9: ="Data are for "&Settings!B1&", and relate to emergency admissions for "& LOWER(Settings!B2) &" ; ICD10: "&Settings!B4 -> Data are for 2013/14, and relate to emergency admissions for ; ICD10: E10
J10: Average LOS | M10: Admissions per 100,000 pop. | P10: Bed days per 100,000 pop. | W10: Comparator admission rate | Y10: Comparator bed day rate | AA10: Comparator av LOS
A11: Code | B11: Name | C11: Admission rate rank | D11: Bed days rate rank | E11: Average LOS rank | F11: Population 0-15 years | G11: Count of admissions | H11: Spell duration | I11: Spell denom (discharges) | J11: Value | M11: value | N11: Lower 95% confidence level | O11: Upper 95% confidence level | P11: value | Q11: Lower 95% confidence level | R11: Upper 95% confidence level | S11: Admission data ordered | T11: Bed days data ordered | U11: LOS data ordered | V11: Selected area admission rate | W11: =Settings!D5 -> North | X11: Selected area bed day rate | Y11: =Settings!D5 -> North | Z11: Selected area av LOS | AA11: =Settings!D5 -> North | AB11: Top25%admissions | AC11: Top25%beddays | AD11: Top25%LOS
A12: 02N | B12: NHS Airedale, Wharfedale and Craven | C12: =IF(G12=0,"",COUNTIF(G$12:G$222,"<>0")-(RANK(M12,$M$12:$M$222)+COUNTIF($M$12:M12,M12)-2)) -> 202 | D12: =IF(H12=0,"",COUNTIF(P$12:P$222,"<>Suppressed")-(RANK(P12,$P$12:$P$222)+COUNTIF($P$12:P12,P12)-2)) -> 195 | E12: =IF(J12="Suppressed","",COUNTIF(J$12:J$222,"<>Suppressed")-(RANK(J12,$J$12:$J$222)+COUNTIF($J$12:J12,J12)-2)) -> 113 | F12: =VLOOKUP(A12,population!C:O,Settings!$B$3,FALSE) -> 29164.6 | G12: =VLOOKUP(A12,CCG_data_TRACCS!A:N,4,FALSE) -> 2064 | H12: =VLOOKUP(A12,CCG_data_TRACCS!A:N,5,FALSE) -> 4912 | I12: =VLOOKUP(A12,CCG_data_TRACCS!A:N,6,FALSE) -> 3307 | J12: =IF(OR(I12=0,H12=0),"Suppressed",H12/I12) -> 1.48533414 | M12: =IF(G12=0,"Suppressed",G12/$F12*100000) -> 7077.07289 | N12: =IF(G12=0,0,IF(G12<389,CHIINV(0.5+95/200,2*G12)/2,G12*(1-1/(9*G12)-NORMSINV(0.5+95/200)/3/SQRT(G12))^3))/F12*100000 -> 6775.018015 | O12: =IF(G12=0,0,IF(G12<389,CHIINV(0.5-95/200,2*G12+2)/2,(G12+1)*(1-1/(9*(G12+1))+NORMSINV(0.5+95/200)/3/SQRT(G12+1))^3)/F12*100000) -> 7389.125408 | P12: =IF(H12=0,"Suppressed",H12/$F12*100000) -> 16842.33626 | Q12: =IF(H12=0,0,IF(H12<389,CHIINV(0.5+95/200,2*H12)/2,H12*(1-1/(9*H12)-NORMSINV(0.5+95/200)/3/SQRT(H12))^3))/F12*100000 -> 16374.59109 | R12: =IF(H12=0,0,IF(H12<389,CHIINV(0.5-95/200,2*H12+2)/2,(H12+1)*(1-1/(9*(H12+1))+NORMSINV(0.5+95/200)/3/SQRT(H12+1))^3)/F12*100000) -> 17320.05325 | S12: =VLOOKUP(ROW(S12)-11,C:R,11,FALSE) -> 1955.023416 | T12: =VLOOKUP(ROW(T12)-11,D:R,13,FALSE) -> 7579.929469 | U12: =VLOOKUP(ROW(U12)-11,E:R,6,FALSE) -> 0.9883317565 | V12: =VLOOKUP(Selections_data_CCG!$G$2,'CurrentData-all children'!A:R,13,FALSE) -> 7077.07289 | W12: =IF(Settings!$B$5="4SIMILAR", VLOOKUP(Selections_data_CCG!$G$2,'CurrentData-4SIMILAR-allchildre'!A:R,13,FALSE), VLOOKUP(Settings!$C$5,'CurrentData-all children'!A:R,13,FALSE)) -> 5510.027757 | X12: =VLOOKUP(Selections_data_CCG!$G$2,'CurrentData-all children'!A:R,16,FALSE) -> 16842.33626 | Y12: =IF(Settings!$B$5="4SIMILAR", VLOOKUP(Selections_data_CCG!$G$2,'CurrentData-4SIMILAR-allchildre'!A:R,16,FALSE), VLOOKUP(Settings!$C$5,'CurrentData-all children'!A:R,16,FALSE)) -> 14706.8643 | Z12: =VLOOKUP(Selections_data_CCG!$G$2,'CurrentData-all children'!A:R,10,FALSE) -> 1.48533414 | AA12: =IF(Settings!$B$5="4SIMILAR", VLOOKUP(Selections_data_CCG!$G$2,'CurrentData-4SIMILAR-allchildre'!A:R,10,FALSE), VLOOKUP(Settings!$C$5,'CurrentData-all children'!A:R,10,FALSE)) -> 1.437047856 | AB12: =IF(IF(G12=0,"",COUNTIF(G$12:G$222,"<>0")-(RANK(M12,$M$12:$M$222)+COUNTIF($M$12:M12,M12)-2))<=INT(0.05*COUNTIF(G$12:G$222,"<>0")),"TOP5", IF(IF(G12=0,"",COUNTIF(G$12:G$222,"<>0")-(RANK(M12,$M$12:$M$222)+COUNTIF($M$12:M12,M12)-2))<=INT(0.25*COUNTIF(G$12:G$222,"<>0")),"TOP25", "")) ->  | AC12: =IF(IF(H12=0,"",COUNTIF(H$12:H$222,"<>0")-(RANK(P12,$P$12:$P$222)+COUNTIF($P$12:P12,P12)-2))<=INT(0.05*COUNTIF(H$12:H$222,"<>0")),"TOP5", IF(IF(H12=0,"",COUNTIF(H$12:H$222,"<>0")-(RANK(P12,$P$12:$P$222)+COUNTIF($P$12:P12,P12)-2))<=INT(0.25*COUNTIF(H$12:H$222,"<>0")),"TOP25", "")) ->  | AD12: =IF(IF(J12="Suppressed","",COUNTIF(J$12:J$222,"<>Suppressed")-(RANK(J12,$J$12:$J$222)+COUNTIF(J$12:$J12,J12)-2))<=INT(0.05*COUNTIF(J$12:J$222,"<>Suppressed")),"TOP5", IF(IF(J12="Suppressed","",COUNTIF(J$12:J$222,"<>Suppressed")-(RANK(J12,$J$12:$J$222)+COUNTIF(J$12:$J12,J12)-2))<=INT(0.25*COUNTIF(J$12:J$222,"<>suppressed")),"TOP25", "")) -> 
A13: 09C | B13: NHS Ashford | C13: =IF(G13=0,"",COUNTIF(G$12:G$222,"<>0")-(RANK(M13,$M$12:$M$222)+COUNTIF($M$12:M13,M13)-2)) -> 31 | D13: =IF(H13=0,"",COUNTIF(P$12:P$222,"<>Suppressed")-(RANK(P13,$P$12:$P$222)+COUNTIF($P$12:P13,P13)-2)) -> 31 | E13: =IF(J13="Suppressed","",COUNTIF(J$12:J$222,"<>Suppressed")-(RANK(J13,$J$12:$J$222)+COUNTIF($J$12:J13,J13)-2)) -> 154 | F13: =VLOOKUP(A13,population!C:O,Settings!$B$3,FALSE) -> 24853 | G13: =VLOOKUP(A13,CCG_data_TRACCS!A:N,4,FALSE) -> 682 | H13: =VLOOKUP(A13,CCG_data_TRACCS!A:N,5,FALSE) -> 2557 | I13: =VLOOKUP(A13,CCG_data_TRACCS!A:N,6,FALSE) -> 1458 | J13: =IF(OR(I13=0,H13=0),"Suppressed",H13/I13) -> 1.753772291 | M13: =IF(G13=0,"Suppressed",G13/$F13*100000) -> 2744.135517 | N13: 2542.020213 | O13: 2958.046232 | P13: =IF(H13=0,"Suppressed",H13/$F13*100000) -> 10288.49636 | Q13: 9893.538518 | R13: 10695.17754 | S13: 2049.992077 | T13: 7847.755868 | U13: 0.9898167006 | V13: =VLOOKUP(Selections_data_CCG!$G$2,'CurrentData-all children'!A:R,13,FALSE) -> 7077.07289 | W13: =IF(Settings!$B$5="4SIMILAR", VLOOKUP(Selections_data_CCG!$G$2,'CurrentData-4SIMILAR-allchildre'!A:R,13,FALSE), VLOOKUP(Settings!$C$5,'CurrentData-all children'!A:R,13,FALSE)) -> 5510.027757 | X13: =VLOOKUP(Selections_data_CCG!$G$2,'CurrentData-all children'!A:R,16,FALSE) -> 16842.33626 | Y13: =IF(Settings!$B$5="4SIMILAR", VLOOKUP(Selections_data_CCG!$G$2,'CurrentData-4SIMILAR-allchildre'!A:R,16,FALSE), VLOOKUP(Settings!$C$5,'CurrentData-all children'!A:R,16,FALSE)) -> 14706.8643 | Z13: =VLOOKUP(Selections_data_CCG!$G$2,'CurrentData-all children'!A:R,10,FALSE) -> 1.48533414 | AA13: =IF(Settings!$B$5="4SIMILAR", VLOOKUP(Selections_data_CCG!$G$2,'CurrentData-4SIMILAR-allchildre'!A:R,10,FALSE), VLOOKUP(Settings!$C$5,'CurrentData-all children'!A:R,10,FALSE)) -> 1.437047856 | AB13: =IF(IF(G13=0,"",COUNTIF(G$12:G$222,"<>0")-(RANK(M13,$M$12:$M$222)+COUNTIF($M$12:M13,M13)-2))<=INT(0.05*COUNTIF(G$12:G$222,"<>0")),"TOP5", IF(IF(G13=0,"",COUNTIF(G$12:G$222,"<>0")-(RANK(M13,$M$12:$M$222)+COUNTIF($M$12:M13,M13)-2))<=INT(0.25*COUNTIF(G$12:G$222,"<>0")),"TOP25", "")) -> TOP25 | AC13: =IF(IF(H13=0,"",COUNTIF(H$12:H$222,"<>0")-(RANK(P13,$P$12:$P$222)+COUNTIF($P$12:P13,P13)-2))<=INT(0.05*COUNTIF(H$12:H$222,"<>0")),"TOP5", IF(IF(H13=0,"",COUNTIF(H$12:H$222,"<>0")-(RANK(P13,$P$12:$P$222)+COUNTIF($P$12:P13,P13)-2))<=INT(0.25*COUNTIF(H$12:H$222,"<>0")),"TOP25", "")) -> TOP25 | AD13: =IF(IF(J13="Suppressed","",COUNTIF(J$12:J$222,"<>Suppressed")-(RANK(J13,$J$12:$J$222)+COUNTIF(J$12:$J13,J13)-2))<=INT(0.05*COUNTIF(J$12:J$222,"<>Suppressed")),"TOP5", IF(IF(J13="Suppressed","",COUNTIF(J$12:J$222,"<>Suppressed")-(RANK(J13,$J$12:$J$222)+COUNTIF(J$12:$J13,J13)-2))<=INT(0.25*COUNTIF(J$12:J$222,"<>suppressed")),"TOP25", "")) -> 
A14: 10Y | B14: NHS Aylesbury Vale | C14: =IF(G14=0,"",COUNTIF(G$12:G$222,"<>0")-(RANK(M14,$M$12:$M$222)+COUNTIF($M$12:M14,M14)-2)) -> 78 | D14: =IF(H14=0,"",COUNTIF(P$12:P$222,"<>Suppressed")-(RANK(P14,$P$12:$P$222)+COUNTIF($P$12:P14,P14)-2)) -> 72 | E14: =IF(J14="Suppressed","",COUNTIF(J$12:J$222,"<>Suppressed")-(RANK(J14,$J$12:$J$222)+COUNTIF($J$12:J14,J14)-2)) -> 138 | F14: =VLOOKUP(A14,population!C:O,Settings!$B$3,FALSE) -> 39247.4 | G14: =VLOOKUP(A14,CCG_data_TRACCS!A:N,4,FALSE) -> 1461 | H14: =VLOOKUP(A14,CCG_data_TRACCS!A:N,5,FALSE) -> 4447 | I14: =VLOOKUP(A14,CCG_data_TRACCS!A:N,6,FALSE) -> 2726 | J14: 1.631327953 | M14: 3722.539582 | N14: 3534.082304 | O14: 3918.436327 | P14: 11330.68687 | Q14: 11000.08574 | R14: 11668.69984 | S14: 2128.952579 | T14: 7952.725954 | U14: 1.028276072 | V14: =VLOOKUP(Selections_data_CCG!$G$2,'CurrentData-all children'!A:R,13,FALSE) -> 7077.07289 | W14: =IF(Settings!$B$5="4SIMILAR", VLOOKUP(Selections_data_CCG!$G$2,'CurrentData-4SIMILAR-allchildre'!A:R,13,FALSE), VLOOKUP(Settings!$C$5,'CurrentData-all children'!A:R,13,FALSE)) -> 5510.027757 | X14: =VLOOKUP(Selections_data_CCG!$G$2,'CurrentData-all children'!A:R,16,FALSE) -> 16842.33626 | Y14: =IF(Settings!$B$5="4SIMILAR", VLOOKUP(Selections_data_CCG!$G$2,'CurrentData-4SIMILAR-allchildre'!A:R,16,FALSE), VLOOKUP(Settings!$C$5,'CurrentData-all children'!A:R,16,FALSE)) -> 14706.8643 | Z14: =VLOOKUP(Selections_data_CCG!$G$2,'CurrentData-all children'!A:R,10,FALSE) -> 1.48533414 | AA14: =IF(Settings!$B$5="4SIMILAR", VLOOKUP(Selections_data_CCG!$G$2,'CurrentData-4SIMILAR-allchildre'!A:R,10,FALSE), VLOOKUP(Settings!$C$5,'CurrentData-all children'!A:R,10,FALSE)) -> 1.437047856 | AB14: =IF(IF(G14=0,"",COUNTIF(G$12:G$222,"<>0")-(RANK(M14,$M$12:$M$222)+COUNTIF($M$12:M14,M14)-2))<=INT(0.05*COUNTIF(G$12:G$222,"<>0")),"TOP5", IF(IF(G14=0,"",COUNTIF(G$12:G$222,"<>0")-(RANK(M14,$M$12:$M$222)+COUNTIF($M$12:M14,M14)-2))<=INT(0.25*COUNTIF(G$12:G$222,"<>0")),"TOP25", "")) ->  | AC14: =IF(IF(H14=0,"",COUNTIF(H$12:H$222,"<>0")-(RANK(P14,$P$12:$P$222)+COUNTIF($P$12:P14,P14)-2))<=INT(0.05*COUNTIF(H$12:H$222,"<>0")),"TOP5", IF(IF(H14=0,"",COUNTIF(H$12:H$222,"<>0")-(RANK(P14,$P$12:$P$222)+COUNTIF($P$12:P14,P14)-2))<=INT(0.25*COUNTIF(H$12:H$222,"<>0")),"TOP25", "")) ->  | AD14: =IF(IF(J14="Suppressed","",COUNTIF(J$12:J$222,"<>Suppressed")-(RANK(J14,$J$12:$J$222)+COUNTIF(J$12:$J14,J14)-2))<=INT(0.05*COUNTIF(J$12:J$222,"<>Suppressed")),"TOP5", IF(IF(J14="Suppressed","",COUNTIF(J$12:J$222,"<>Suppressed")-(RANK(J14,$J$12:$J$222)+COUNTIF(J$12:$J14,J14)-2))<=INT(0.25*COUNTIF(J$12:J$222,"<>suppressed")),"TOP25", "")) -> 
A15: 07L | B15: NHS Barking and Dagenham | C15: =IF(G15=0,"",COUNTIF(G$12:G$222,"<>0")-(RANK(M15,$M$12:$M$222)+COUNTIF($M$12:M15,M15)-2)) -> 10 | D15: =IF(H15=0,"",COUNTIF(P$12:P$222,"<>Suppressed")-(RANK(P15,$P$12:$P$222)+COUNTIF($P$12:P15,P15)-2)) -> 87 | E15: =IF(J15="Suppressed","",COUNTIF(J$12:J$222,"<>Suppressed")-(RANK(J15,$J$12:$J$222)+COUNTIF($J$12:J15,J15)-2)) -> 190 | F15: =VLOOKUP(A15,population!C:O,Settings!$B$3,FALSE) -> 51323.6 | G15: =VLOOKUP(A15,CCG_data_TRACCS!A:N,4,FALSE) -> 1205 | H15: =VLOOKUP(A15,CCG_data_TRACCS!A:N,5,FALSE) -> 6061 | I15: =VLOOKUP(A15,CCG_data_TRACCS!A:N,6,FALSE) -> 2838 | J15: 2.135658915 | M15: 2347.847774 | N15: 2217.138185 | O15: 2484.251347 | P15: 11809.38204 | Q15: 11513.92576 | R15: 12110.50211 | S15: 2132.650509 | T15: 8402.50399 | U15: 1.046934461 | V15: =VLOOKUP(Selections_data_CCG!$G$2,'CurrentData-all children'!A:R,13,FALSE) -> 7077.07289 | W15: =IF(Settings!$B$5="4SIMILAR", VLOOKUP(Selections_data_CCG!$G$2,'CurrentData-4SIMILAR-allchildre'!A:R,13,FALSE), VLOOKUP(Settings!$C$5,'CurrentData-all children'!A:R,13,FALSE)) -> 5510.027757 | X15: =VLOOKUP(Selections_data_CCG!$G$2,'CurrentData-all children'!A:R,16,FALSE) -> 16842.33626 | Y15: =IF(Settings!$B$5="4SIMILAR", VLOOKUP(Selections_data_CCG!$G$2,'CurrentData-4SIMILAR-allchildre'!A:R,16,FALSE), VLOOKUP(Settings!$C$5,'CurrentData-all children'!A:R,16,FALSE)) -> 14706.8643 | Z15: =VLOOKUP(Selections_data_CCG!$G$2,'CurrentData-all children'!A:R,10,FALSE) -> 1.48533414 | AA15: =IF(Settings!$B$5="4SIMILAR", VLOOKUP(Selections_data_CCG!$G$2,'CurrentData-4SIMILAR-allchildre'!A:R,10,FALSE), VLOOKUP(Settings!$C$5,'CurrentData-all children'!A:R,10,FALSE)) -> 1.437047856 | AB15: =IF(IF(G15=0,"",COUNTIF(G$12:G$222,"<>0")-(RANK(M15,$M$12:$M$222)+COUNTIF($M$12:M15,M15)-2))<=INT(0.05*COUNTIF(G$12:G$222,"<>0")),"TOP5", IF(IF(G15=0,"",COUNTIF(G$12:G$222,"<>0")-(RANK(M15,$M$12:$M$222)+COUNTIF($M$12:M15,M15)-2))<=INT(0.25*COUNTIF(G$12:G$222,"<>0")),"TOP25", "")) -> TOP5 | AC15: =IF(IF(H15=0,"",COUNTIF(H$12:H$222,"<>0")-(RANK(P15,$P$12:$P$222)+COUNTIF($P$12:P15,P15)-2))<=INT(0.05*COUNTIF(H$12:H$222,"<>0")),"TOP5", IF(IF(H15=0,"",COUNTIF(H$12:H$222,"<>0")-(RANK(P15,$P$12:$P$222)+COUNTIF($P$12:P15,P15)-2))<=INT(0.25*COUNTIF(H$12:H$222,"<>0")),"TOP25", "")) ->  | AD15: =IF(IF(J15="Suppressed","",COUNTIF(J$12:J$222,"<>Suppressed")-(RANK(J15,$J$12:$J$222)+COUNTIF(J$12:$J15,J15)-2))<=INT(0.05*COUNTIF(J$12:J$222,"<>Suppressed")),"TOP5", IF(IF(J15="Suppressed","",COUNTIF(J$12:J$222,"<>Suppressed")-(RANK(J15,$J$12:$J$222)+COUNTIF(J$12:$J15,J15)-2))<=INT(0.25*COUNTIF(J$12:J$222,"<>suppressed")),"TOP25", "")) -> 
A16: 07M | B16: NHS Barnet | C16: =IF(G16=0,"",COUNTIF(G$12:G$222,"<>0")-(RANK(M16,$M$12:$M$222)+COUNTIF($M$12:M16,M16)-2)) -> 24 | D16: =IF(H16=0,"",COUNTIF(P$12:P$222,"<>Suppressed")-(RANK(P16,$P$12:$P$222)+COUNTIF($P$12:P16,P16)-2)) -> 9 | E16: =IF(J16="Suppressed","",COUNTIF(J$12:J$222,"<>Suppressed")-(RANK(J16,$J$12:$J$222)+COUNTIF($J$12:J16,J16)-2)) -> 123 | F16: =VLOOKUP(A16,population!C:O,Settings!$B$3,FALSE) -> 78392.2 | G16: =VLOOKUP(A16,CCG_data_TRACCS!A:N,4,FALSE) -> 2067 | H16: =VLOOKUP(A16,CCG_data_TRACCS!A:N,5,FALSE) -> 6873 | I16: =VLOOKUP(A16,CCG_data_TRACCS!A:N,6,FALSE) -> 4498 | J16: 1.52801245 | M16: 2636.741921 | N16: 2524.284576 | O16: 2752.918714 | P16: 8767.453905 | Q16: 8561.38881 | R16: 8977.226123 | S16: 2194.2407 | T16: 8414.823407 | U16: 1.063273994 | V16: =VLOOKUP(Selections_data_CCG!$G$2,'CurrentData-all children'!A:R,13,FALSE) -> 7077.07289 | W16: =IF(Settings!$B$5="4SIMILAR", VLOOKUP(Selections_data_CCG!$G$2,'CurrentData-4SIMILAR-allchildre'!A:R,13,FALSE), VLOOKUP(Settings!$C$5,'CurrentData-all children'!A:R,13,FALSE)) -> 5510.027757 | X16: =VLOOKUP(Selections_data_CCG!$G$2,'CurrentData-all children'!A:R,16,FALSE) -> 16842.33626 | Y16: =IF(Settings!$B$5="4SIMILAR", VLOOKUP(Selections_data_CCG!$G$2,'CurrentData-4SIMILAR-allchildre'!A:R,16,FALSE), VLOOKUP(Settings!$C$5,'CurrentData-all children'!A:R,16,FALSE)) -> 14706.8643 | Z16: =VLOOKUP(Selections_data_CCG!$G$2,'CurrentData-all children'!A:R,10,FALSE) -> 1.48533414 | AA16: =IF(Settings!$B$5="4SIMILAR", VLOOKUP(Selections_data_CCG!$G$2,'CurrentData-4SIMILAR-allchildre'!A:R,10,FALSE), VLOOKUP(Settings!$C$5,'CurrentData-all children'!A:R,10,FALSE)) -> 1.437047856 | AB16: =IF(IF(G16=0,"",COUNTIF(G$12:G$222,"<>0")-(RANK(M16,$M$12:$M$222)+COUNTIF($M$12:M16,M16)-2))<=INT(0.05*COUNTIF(G$12:G$222,"<>0")),"TOP5", IF(IF(G16=0,"",COUNTIF(G$12:G$222,"<>0")-(RANK(M16,$M$12:$M$222)+COUNTIF($M$12:M16,M16)-2))<=INT(0.25*COUNTIF(G$12:G$222,"<>0")),"TOP25", "")) -> TOP25 | AC16: =IF(IF(H16=0,"",COUNTIF(H$12:H$222,"<>0")-(RANK(P16,$P$12:$P$222)+COUNTIF($P$12:P16,P16)-2))<=INT(0.05*COUNTIF(H$12:H$222,"<>0")),"TOP5", IF(IF(H16=0,"",COUNTIF(H$12:H$222,"<>0")-(RANK(P16,$P$12:$P$222)+COUNTIF($P$12:P16,P16)-2))<=INT(0.25*COUNTIF(H$12:H$222,"<>0")),"TOP25", "")) -> TOP5 | AD16: =IF(IF(J16="Suppressed","",COUNTIF(J$12:J$222,"<>Suppressed")-(RANK(J16,$J$12:$J$222)+COUNTIF(J$12:$J16,J16)-2))<=INT(0.05*COUNTIF(J$12:J$222,"<>Suppressed")),"TOP5", IF(IF(J16="Suppressed","",COUNTIF(J$12:J$222,"<>Suppressed")-(RANK(J16,$J$12:$J$222)+COUNTIF(J$12:$J16,J16)-2))<=INT(0.25*COUNTIF(J$12:J$222,"<>suppressed")),"TOP25", "")) -> 
A17: 02P | B17: NHS Barnsley | C17: =IF(G17=0,"",COUNTIF(G$12:G$222,"<>0")-(RANK(M17,$M$12:$M$222)+COUNTIF($M$12:M17,M17)-2)) -> 171 | D17: =IF(H17=0,"",COUNTIF(P$12:P$222,"<>Suppressed")-(RANK(P17,$P$12:$P$222)+COUNTIF($P$12:P17,P17)-2)) -> 128 | E17: =IF(J17="Suppressed","",COUNTIF(J$12:J$222,"<>Suppressed")-(RANK(J17,$J$12:$J$222)+COUNTIF($J$12:J17,J17)-2)) -> 18 | F17: =VLOOKUP(A17,population!C:O,Settings!$B$3,FALSE) -> 45730 | G17: =VLOOKUP(A17,CCG_data_TRACCS!A:N,4,FALSE) -> 2702 | H17: =VLOOKUP(A17,CCG_data_TRACCS!A:N,5,FALSE) -> 5932 | I17: =VLOOKUP(A17,CCG_data_TRACCS!A:N,6,FALSE) -> 5116 | J17: 1.159499609 | M17: 5908.593921 | N17: 5687.884758 | O17: 6135.673256 | P17: 12971.79095 | Q17: 12643.76507 | R17: 13306.17369 | S17: 2242.284587 | T17: 8515.459698 | U17: 1.06479676 | V17: =VLOOKUP(Selections_data_CCG!$G$2,'CurrentData-all children'!A:R,13,FALSE) -> 7077.07289 | W17: =IF(Settings!$B$5="4SIMILAR", VLOOKUP(Selections_data_CCG!$G$2,'CurrentData-4SIMILAR-allchildre'!A:R,13,FALSE), VLOOKUP(Settings!$C$5,'CurrentData-all children'!A:R,13,FALSE)) -> 5510.027757 | X17: =VLOOKUP(Selections_data_CCG!$G$2,'CurrentData-all children'!A:R,16,FALSE) -> 16842.33626 | Y17: =IF(Settings!$B$5="4SIMILAR", VLOOKUP(Selections_data_CCG!$G$2,'CurrentData-4SIMILAR-allchildre'!A:R,16,FALSE), VLOOKUP(Settings!$C$5,'CurrentData-all children'!A:R,16,FALSE)) -> 14706.8643 | Z17: =VLOOKUP(Selections_data_CCG!$G$2,'CurrentData-all children'!A:R,10,FALSE) -> 1.48533414 | AA17: =IF(Settings!$B$5="4SIMILAR", VLOOKUP(Selections_data_CCG!$G$2,'CurrentData-4SIMILAR-allchildre'!A:R,10,FALSE), VLOOKUP(Settings!$C$5,'CurrentData-all children'!A:R,10,FALSE)) -> 1.437047856 | AB17: =IF(IF(G17=0,"",COUNTIF(G$12:G$222,"<>0")-(RANK(M17,$M$12:$M$222)+COUNTIF($M$12:M17,M17)-2))<=INT(0.05*COUNTIF(G$12:G$222,"<>0")),"TOP5", IF(IF(G17=0,"",COUNTIF(G$12:G$222,"<>0")-(RANK(M17,$M$12:$M$222)+COUNTIF($M$12:M17,M17)-2))<=INT(0.25*COUNTIF(G$12:G$222,"<>0")),"TOP25", "")) ->  | AC17: =IF(IF(H17=0,"",COUNTIF(H$12:H$222,"<>0")-(RANK(P17,$P$12:$P$222)+COUNTIF($P$12:P17,P17)-2))<=INT(0.05*COUNTIF(H$12:H$222,"<>0")),"TOP5", IF(IF(H17=0,"",COUNTIF(H$12:H$222,"<>0")-(RANK(P17,$P$12:$P$222)+COUNTIF($P$12:P17,P17)-2))<=INT(0.25*COUNTIF(H$12:H$222,"<>0")),"TOP25", "")) ->  | AD17: =IF(IF(J17="Suppressed","",COUNTIF(J$12:J$222,"<>Suppressed")-(RANK(J17,$J$12:$J$222)+COUNTIF(J$12:$J17,J17)-2))<=INT(0.05*COUNTIF(J$12:J$222,"<>Suppressed")),"TOP5", IF(IF(J17="Suppressed","",COUNTIF(J$12:J$222,"<>Suppressed")-(RANK(J17,$J$12:$J$222)+COUNTIF(J$12:$J17,J17)-2))<=INT(0.25*COUNTIF(J$12:J$222,"<>suppressed")),"TOP25", "")) -> TOP25
A18: 99E | B18: NHS Basildon and Brentwood | C18: =IF(G18=0,"",COUNTIF(G$12:G$222,"<>0")-(RANK(M18,$M$12:$M$222)+COUNTIF($M$12:M18,M18)-2)) -> 3 | D18: =IF(H18=0,"",COUNTIF(P$12:P$222,"<>Suppressed")-(RANK(P18,$P$12:$P$222)+COUNTIF($P$12:P18,P18)-2)) -> 24 | E18: =IF(J18="Suppressed","",COUNTIF(J$12:J$222,"<>Suppressed")-(RANK(J18,$J$12:$J$222)+COUNTIF($J$12:J18,J18)-2)) -> 175 | F18: =VLOOKUP(A18,population!C:O,Settings!$B$3,FALSE) -> 51011 | G18: =VLOOKUP(A18,CCG_data_TRACCS!A:N,4,FALSE) -> 1086 | H18: =VLOOKUP(A18,CCG_data_TRACCS!A:N,5,FALSE) -> 5003 | I18: =VLOOKUP(A18,CCG_data_TRACCS!A:N,6,FALSE) -> 2551 | J18: 1.96119169 | M18: 2128.952579 | N18: 2004.199387 | O18: 2259.437564 | P18: 9807.688538 | Q18: 9537.780859 | R18: 10083.29718 | S18: 2274.244805 | T18: 8609.985539 | U18: 1.074424472 | V18: =VLOOKUP(Selections_data_CCG!$G$2,'CurrentData-all children'!A:R,13,FALSE) -> 7077.07289 | W18: =IF(Settings!$B$5="4SIMILAR", VLOOKUP(Selections_data_CCG!$G$2,'CurrentData-4SIMILAR-allchildre'!A:R,13,FALSE), VLOOKUP(Settings!$C$5,'CurrentData-all children'!A:R,13,FALSE)) -> 5510.027757 | X18: =VLOOKUP(Selections_data_CCG!$G$2,'CurrentData-all children'!A:R,16,FALSE) -> 16842.33626 | Y18: =IF(Settings!$B$5="4SIMILAR", VLOOKUP(Selections_data_CCG!$G$2,'CurrentData-4SIMILAR-allchildre'!A:R,16,FALSE), VLOOKUP(Settings!$C$5,'CurrentData-all children'!A:R,16,FALSE)) -> 14706.8643 | Z18: =VLOOKUP(Selections_data_CCG!$G$2,'CurrentData-all children'!A:R,10,FALSE) -> 1.48533414 | AA18: =IF(Settings!$B$5="4SIMILAR", VLOOKUP(Selections_data_CCG!$G$2,'CurrentData-4SIMILAR-allchildre'!A:R,10,FALSE), VLOOKUP(Settings!$C$5,'CurrentData-all children'!A:R,10,FALSE)) -> 1.437047856 | AB18: =IF(IF(G18=0,"",COUNTIF(G$12:G$222,"<>0")-(RANK(M18,$M$12:$M$222)+COUNTIF($M$12:M18,M18)-2))<=INT(0.05*COUNTIF(G$12:G$222,"<>0")),"TOP5", IF(IF(G18=0,"",COUNTIF(G$12:G$222,"<>0")-(RANK(M18,$M$12:$M$222)+COUNTIF($M$12:M18,M18)-2))<=INT(0.25*COUNTIF(G$12:G$222,"<>0")),"TOP25", "")) -> TOP5 | AC18: =IF(IF(H18=0,"",COUNTIF(H$12:H$222,"<>0")-(RANK(P18,$P$12:$P$222)+COUNTIF($P$12:P18,P18)-2))<=INT(0.05*COUNTIF(H$12:H$222,"<>0")),"TOP5", IF(IF(H18=0,"",COUNTIF(H$12:H$222,"<>0")-(RANK(P18,$P$12:$P$222)+COUNTIF($P$12:P18,P18)-2))<=INT(0.25*COUNTIF(H$12:H$222,"<>0")),"TOP25", "")) -> TOP25 | AD18: =IF(IF(J18="Suppressed","",COUNTIF(J$12:J$222,"<>Suppressed")-(RANK(J18,$J$12:$J$222)+COUNTIF(J$12:$J18,J18)-2))<=INT(0.05*COUNTIF(J$12:J$222,"<>Suppressed")),"TOP5", IF(IF(J18="Suppressed","",COUNTIF(J$12:J$222,"<>Suppressed")-(RANK(J18,$J$12:$J$222)+COUNTIF(J$12:$J18,J18)-2))<=INT(0.25*COUNTIF(J$12:J$222,"<>suppressed")),"TOP25", "")) -> 
A19: 02Q | B19: NHS Bassetlaw | C19: =IF(G19=0,"",COUNTIF(G$12:G$222,"<>0")-(RANK(M19,$M$12:$M$222)+COUNTIF($M$12:M19,M19)-2)) -> 177 | D19: =IF(H19=0,"",COUNTIF(P$12:P$222,"<>Suppressed")-(RANK(P19,$P$12:$P$222)+COUNTIF($P$12:P19,P19)-2)) -> 93 | E19: =IF(J19="Suppressed","",COUNTIF(J$12:J$222,"<>Suppressed")-(RANK(J19,$J$12:$J$222)+COUNTIF($J$12:J19,J19)-2)) -> 9 | F19: =VLOOKUP(A19,population!C:O,Settings!$B$3,FALSE) -> 19466.4 | G19: =VLOOKUP(A19,CCG_data_TRACCS!A:N,4,FALSE) -> 1174 | H19: =VLOOKUP(A19,CCG_data_TRACCS!A:N,5,FALSE) -> 2321 | I19: =VLOOKUP(A19,CCG_data_TRACCS!A:N,6,FALSE) -> 2127 | J19: 1.091208275 | M19: 6030.904533 | N19: 5690.811092 | O19: 6386.012172 | P19: 11923.10854 | Q19: 11442.9255 | R19: 12418.26381 | S19: 2306.011359 | T19: 8630.4865 | U19: 1.081627082 | V19: =VLOOKUP(Selections_data_CCG!$G$2,'CurrentData-all children'!A:R,13,FALSE) -> 7077.07289 | W19: =IF(Settings!$B$5="4SIMILAR", VLOOKUP(Selections_data_CCG!$G$2,'CurrentData-4SIMILAR-allchildre'!A:R,13,FALSE), VLOOKUP(Settings!$C$5,'CurrentData-all children'!A:R,13,FALSE)) -> 5510.027757 | X19: =VLOOKUP(Selections_data_CCG!$G$2,'CurrentData-all children'!A:R,16,FALSE) -> 16842.33626 | Y19: =IF(Settings!$B$5="4SIMILAR", VLOOKUP(Selections_data_CCG!$G$2,'CurrentData-4SIMILAR-allchildre'!A:R,16,FALSE), VLOOKUP(Settings!$C$5,'CurrentData-all children'!A:R,16,FALSE)) -> 14706.8643 | Z19: =VLOOKUP(Selections_data_CCG!$G$2,'CurrentData-all children'!A:R,10,FALSE) -> 1.48533414 | AA19: =IF(Settings!$B$5="4SIMILAR", VLOOKUP(Selections_data_CCG!$G$2,'CurrentData-4SIMILAR-allchildre'!A:R,10,FALSE), VLOOKUP(Settings!$C$5,'CurrentData-all children'!A:R,10,FALSE)) -> 1.437047856 | AB19: =IF(IF(G19=0,"",COUNTIF(G$12:G$222,"<>0")-(RANK(M19,$M$12:$M$222)+COUNTIF($M$12:M19,M19)-2))<=INT(0.05*COUNTIF(G$12:G$222,"<>0")),"TOP5", IF(IF(G19=0,"",COUNTIF(G$12:G$222,"<>0")-(RANK(M19,$M$12:$M$222)+COUNTIF($M$12:M19,M19)-2))<=INT(0.25*COUNTIF(G$12:G$222,"<>0")),"TOP25", "")) ->  | AC19: =IF(IF(H19=0,"",COUNTIF(H$12:H$222,"<>0")-(RANK(P19,$P$12:$P$222)+COUNTIF($P$12:P19,P19)-2))<=INT(0.05*COUNTIF(H$12:H$222,"<>0")),"TOP5", IF(IF(H19=0,"",COUNTIF(H$12:H$222,"<>0")-(RANK(P19,$P$12:$P$222)+COUNTIF($P$12:P19,P19)-2))<=INT(0.25*COUNTIF(H$12:H$222,"<>0")),"TOP25", "")) ->  | AD19: =IF(IF(J19="Suppressed","",COUNTIF(J$12:J$222,"<>Suppressed")-(RANK(J19,$J$12:$J$222)+COUNTIF(J$12:$J19,J19)-2))<=INT(0.05*COUNTIF(J$12:J$222,"<>Suppressed")),"TOP5", IF(IF(J19="Suppressed","",COUNTIF(J$12:J$222,"<>Suppressed")-(RANK(J19,$J$12:$J$222)+COUNTIF(J$12:$J19,J19)-2))<=INT(0.25*COUNTIF(J$12:J$222,"<>suppressed")),"TOP25", "")) -> TOP5
A20: 11E | B20: NHS Bath and North East Somerset | C20: =IF(G20=0,"",COUNTIF(G$12:G$222,"<>0")-(RANK(M20,$M$12:$M$222)+COUNTIF($M$12:M20,M20)-2)) -> 83 | D20: =IF(H20=0,"",COUNTIF(P$12:P$222,"<>Suppressed")-(RANK(P20,$P$12:$P$222)+COUNTIF($P$12:P20,P20)-2)) -> 15 | E20: =IF(J20="Suppressed","",COUNTIF(J$12:J$222,"<>Suppressed")-(RANK(J20,$J$12:$J$222)+COUNTIF($J$12:J20,J20)-2)) -> 49 | F20: =VLOOKUP(A20,population!C:O,Settings!$B$3,FALSE) -> 32432.8 | G20: =VLOOKUP(A20,CCG_data_TRACCS!A:N,4,FALSE) -> 1255 | H20: =VLOOKUP(A20,CCG_data_TRACCS!A:N,5,FALSE) -> 3034 | I20: =VLOOKUP(A20,CCG_data_TRACCS!A:N,6,FALSE) -> 2386 | J20: 1.271584241 | M20: 3869.539479 | N20: 3658.388571 | O20: 4089.699159 | P20: 9354.727313 | Q20: 9024.7888 | R20: 9693.644474 | S20: 2338.305933 | T20: 8767.453905 | U20: 1.091208275 | V20: =VLOOKUP(Selections_data_CCG!$G$2,'CurrentData-all children'!A:R,13,FALSE) -> 7077.07289 | W20: =IF(Settings!$B$5="4SIMILAR", VLOOKUP(Selections_data_CCG!$G$2,'CurrentData-4SIMILAR-allchildre'!A:R,13,FALSE), VLOOKUP(Settings!$C$5,'CurrentData-all children'!A:R,13,FALSE)) -> 5510.027757 | X20: =VLOOKUP(Selections_data_CCG!$G$2,'CurrentData-all children'!A:R,16,FALSE) -> 16842.33626 | Y20: =IF(Settings!$B$5="4SIMILAR", VLOOKUP(Selections_data_CCG!$G$2,'CurrentData-4SIMILAR-allchildre'!A:R,16,FALSE), VLOOKUP(Settings!$C$5,'CurrentData-all children'!A:R,16,FALSE)) -> 14706.8643 | Z20: =VLOOKUP(Selections_data_CCG!$G$2,'CurrentData-all children'!A:R,10,FALSE) -> 1.48533414 | AA20: =IF(Settings!$B$5="4SIMILAR", VLOOKUP(Selections_data_CCG!$G$2,'CurrentData-4SIMILAR-allchildre'!A:R,10,FALSE), VLOOKUP(Settings!$C$5,'CurrentData-all children'!A:R,10,FALSE)) -> 1.437047856 | AB20: =IF(IF(G20=0,"",COUNTIF(G$12:G$222,"<>0")-(RANK(M20,$M$12:$M$222)+COUNTIF($M$12:M20,M20)-2))<=INT(0.05*COUNTIF(G$12:G$222,"<>0")),"TOP5", IF(IF(G20=0,"",COUNTIF(G$12:G$222,"<>0")-(RANK(M20,$M$12:$M$222)+COUNTIF($M$12:M20,M20)-2))<=INT(0.25*COUNTIF(G$12:G$222,"<>0")),"TOP25", "")) ->  | AC20: =IF(IF(H20=0,"",COUNTIF(H$12:H$222,"<>0")-(RANK(P20,$P$12:$P$222)+COUNTIF($P$12:P20,P20)-2))<=INT(0.05*COUNTIF(H$12:H$222,"<>0")),"TOP5", IF(IF(H20=0,"",COUNTIF(H$12:H$222,"<>0")-(RANK(P20,$P$12:$P$222)+COUNTIF($P$12:P20,P20)-2))<=INT(0.25*COUNTIF(H$12:H$222,"<>0")),"TOP25", "")) -> TOP25 | AD20: =IF(IF(J20="Suppressed","",COUNTIF(J$12:J$222,"<>Suppressed")-(RANK(J20,$J$12:$J$222)+COUNTIF(J$12:$J20,J20)-2))<=INT(0.05*COUNTIF(J$12:J$222,"<>Suppressed")),"TOP5", IF(IF(J20="Suppressed","",COUNTIF(J$12:J$222,"<>Suppressed")-(RANK(J20,$J$12:$J$222)+COUNTIF(J$12:$J20,J20)-2))<=INT(0.25*COUNTIF(J$12:J$222,"<>suppressed")),"TOP25", "")) -> TOP25
A21: 06F | B21: NHS Bedfordshire | C21: =IF(G21=0,"",COUNTIF(G$12:G$222,"<>0")-(RANK(M21,$M$12:$M$222)+COUNTIF($M$12:M21,M21)-2)) -> 74 | D21: =IF(H21=0,"",COUNTIF(P$12:P$222,"<>Suppressed")-(RANK(P21,$P$12:$P$222)+COUNTIF($P$12:P21,P21)-2)) -> 32 | E21: =IF(J21="Suppressed","",COUNTIF(J$12:J$222,"<>Suppressed")-(RANK(J21,$J$12:$J$222)+COUNTIF($J$12:J21,J21)-2)) -> 116 | F21: =VLOOKUP(A21,population!C:O,Settings!$B$3,FALSE) -> 85818.8 | G21: =VLOOKUP(A21,CCG_data_TRACCS!A:N,4,FALSE) -> 3108 | H21: =VLOOKUP(A21,CCG_data_TRACCS!A:N,5,FALSE) -> 8888 | I21: =VLOOKUP(A21,CCG_data_TRACCS!A:N,6,FALSE) -> 5949 | J21: 1.494032611 | M21: 3621.584082 | N21: 3495.36819 | O21: 3751.192955 | P21: 10356.70506 | Q21: 10142.49892 | R21: 10574.29585 | S21: 2347.847774 | T21: 8805.809843 | U21: 1.093805885 | V21: =VLOOKUP(Selections_data_CCG!$G$2,'CurrentData-all children'!A:R,13,FALSE) -> 7077.07289 | W21: =IF(Settings!$B$5="4SIMILAR", VLOOKUP(Selections_data_CCG!$G$2,'CurrentData-4SIMILAR-allchildre'!A:R,13,FALSE), VLOOKUP(Settings!$C$5,'CurrentData-all children'!A:R,13,FALSE)) -> 5510.027757 | X21: =VLOOKUP(Selections_data_CCG!$G$2,'CurrentData-all children'!A:R,16,FALSE) -> 16842.33626 | Y21: =IF(Settings!$B$5="4SIMILAR", VLOOKUP(Selections_data_CCG!$G$2,'CurrentData-4SIMILAR-allchildre'!A:R,16,FALSE), VLOOKUP(Settings!$C$5,'CurrentData-all children'!A:R,16,FALSE)) -> 14706.8643 | Z21: =VLOOKUP(Selections_data_CCG!$G$2,'CurrentData-all children'!A:R,10,FALSE) -> 1.48533414 | AA21: =IF(Settings!$B$5="4SIMILAR", VLOOKUP(Selections_data_CCG!$G$2,'CurrentData-4SIMILAR-allchildre'!A:R,10,FALSE), VLOOKUP(Settings!$C$5,'CurrentData-all children'!A:R,10,FALSE)) -> 1.437047856 | AB21: =IF(IF(G21=0,"",COUNTIF(G$12:G$222,"<>0")-(RANK(M21,$M$12:$M$222)+COUNTIF($M$12:M21,M21)-2))<=INT(0.05*COUNTIF(G$12:G$222,"<>0")),"TOP5", IF(IF(G21=0,"",COUNTIF(G$12:G$222,"<>0")-(RANK(M21,$M$12:$M$222)+COUNTIF($M$12:M21,M21)-2))<=INT(0.25*COUNTIF(G$12:G$222,"<>0")),"TOP25", "")) ->  | AC21: =IF(IF(H21=0,"",COUNTIF(H$12:H$222,"<>0")-(RANK(P21,$P$12:$P$222)+COUNTIF($P$12:P21,P21)-2))<=INT(0.05*COUNTIF(H$12:H$222,"<>0")),"TOP5", IF(IF(H21=0,"",COUNTIF(H$12:H$222,"<>0")-(RANK(P21,$P$12:$P$222)+COUNTIF($P$12:P21,P21)-2))<=INT(0.25*COUNTIF(H$12:H$222,"<>0")),"TOP25", "")) -> TOP25 | AD21: =IF(IF(J21="Suppressed","",COUNTIF(J$12:J$222,"<>Suppressed")-(RANK(J21,$J$12:$J$222)+COUNTIF(J$12:$J21,J21)-2))<=INT(0.05*COUNTIF(J$12:J$222,"<>Suppressed")),"TOP5", IF(IF(J21="Suppressed","",COUNTIF(J$12:J$222,"<>Suppressed")-(RANK(J21,$J$12:$J$222)+COUNTIF(J$12:$J21,J21)-2))<=INT(0.25*COUNTIF(J$12:J$222,"<>suppressed")),"TOP25", "")) -> 
A22: 07N | B22: NHS Bexley | C22: =IF(G22=0,"",COUNTIF(G$12:G$222,"<>0")-(RANK(M22,$M$12:$M$222)+COUNTIF($M$12:M22,M22)-2)) -> 90 | D22: =IF(H22=0,"",COUNTIF(P$12:P$222,"<>Suppressed")-(RANK(P22,$P$12:$P$222)+COUNTIF($P$12:P22,P22)-2)) -> 52 | E22: =IF(J22="Suppressed","",COUNTIF(J$12:J$222,"<>Suppressed")-(RANK(J22,$J$12:$J$222)+COUNTIF($J$12:J22,J22)-2)) -> 103 | F22: =VLOOKUP(A22,population!C:O,Settings!$B$3,FALSE) -> 45866.4 | G22: =VLOOKUP(A22,CCG_data_TRACCS!A:N,4,FALSE) -> 1821 | H22: =VLOOKUP(A22,CCG_data_TRACCS!A:N,5,FALSE) -> 5027 | I22: =VLOOKUP(A22,CCG_data_TRACCS!A:N,6,FALSE) -> 3473 | J22: 1.447451771 | M22: 3970.226571 | N22: 3789.948366 | O22: 4156.864885 | P22: 10960.09279 | Q22: 10659.18683 | R22: 11267.33909 | S22: 2378.575942 | T22: 9196.353646 | U22: 1.106304648 | V22: =VLOOKUP(Selections_data_CCG!$G$2,'CurrentData-all children'!A:R,13,FALSE) -> 7077.07289 | W22: =IF(Settings!$B$5="4SIMILAR", VLOOKUP(Selections_data_CCG!$G$2,'CurrentData-4SIMILAR-allchildre'!A:R,13,FALSE), VLOOKUP(Settings!$C$5,'CurrentData-all children'!A:R,13,FALSE)) -> 5510.027757 | X22: =VLOOKUP(Selections_data_CCG!$G$2,'CurrentData-all children'!A:R,16,FALSE) -> 16842.33626 | Y22: =IF(Settings!$B$5="4SIMILAR", VLOOKUP(Selections_data_CCG!$G$2,'CurrentData-4SIMILAR-allchildre'!A:R,16,FALSE), VLOOKUP(Settings!$C$5,'CurrentData-all children'!A:R,16,FALSE)) -> 14706.8643 | Z22: =VLOOKUP(Selections_data_CCG!$G$2,'CurrentData-all children'!A:R,10,FALSE) -> 1.48533414 | AA22: =IF(Settings!$B$5="4SIMILAR", VLOOKUP(Selections_data_CCG!$G$2,'CurrentData-4SIMILAR-allchildre'!A:R,10,FALSE), VLOOKUP(Settings!$C$5,'CurrentData-all children'!A:R,10,FALSE)) -> 1.437047856 | AB22: =IF(IF(G22=0,"",COUNTIF(G$12:G$222,"<>0")-(RANK(M22,$M$12:$M$222)+COUNTIF($M$12:M22,M22)-2))<=INT(0.05*COUNTIF(G$12:G$222,"<>0")),"TOP5", IF(IF(G22=0,"",COUNTIF(G$12:G$222,"<>0")-(RANK(M22,$M$12:$M$222)+COUNTIF($M$12:M22,M22)-2))<=INT(0.25*COUNTIF(G$12:G$222,"<>0")),"TOP25", "")) ->  | AC22: =IF(IF(H22=0,"",COUNTIF(H$12:H$222,"<>0")-(RANK(P22,$P$12:$P$222)+COUNTIF($P$12:P22,P22)-2))<=INT(0.05*COUNTIF(H$12:H$222,"<>0")),"TOP5", IF(IF(H22=0,"",COUNTIF(H$12:H$222,"<>0")-(RANK(P22,$P$12:$P$222)+COUNTIF($P$12:P22,P22)-2))<=INT(0.25*COUNTIF(H$12:H$222,"<>0")),"TOP25", "")) -> TOP25 | AD22: =IF(IF(J22="Suppressed","",COUNTIF(J$12:J$222,"<>Suppressed")-(RANK(J22,$J$12:$J$222)+COUNTIF(J$12:$J22,J22)-2))<=INT(0.05*COUNTIF(J$12:J$222,"<>Suppressed")),"TOP5", IF(IF(J22="Suppressed","",COUNTIF(J$12:J$222,"<>Suppressed")-(RANK(J22,$J$12:$J$222)+COUNTIF(J$12:$J22,J22)-2))<=INT(0.25*COUNTIF(J$12:J$222,"<>suppressed")),"TOP25", "")) -> 
A23: 13P | B23: NHS Birmingham CrossCity | C23: =IF(G23=0,"",COUNTIF(G$12:G$222,"<>0")-(RANK(M23,$M$12:$M$222)+COUNTIF($M$12:M23,M23)-2)) -> 134 | D23: =IF(H23=0,"",COUNTIF(P$12:P$222,"<>Suppressed")-(RANK(P23,$P$12:$P$222)+COUNTIF($P$12:P23,P23)-2)) -> 149 | E23: =IF(J23="Suppressed","",COUNTIF(J$12:J$222,"<>Suppressed")-(RANK(J23,$J$12:$J$222)+COUNTIF($J$12:J23,J23)-2)) -> 118 | F23: =VLOOKUP(A23,population!C:O,Settings!$B$3,FALSE) -> 157647 | G23: =VLOOKUP(A23,CCG_data_TRACCS!A:N,4,FALSE) -> 7832 | H23: =VLOOKUP(A23,CCG_data_TRACCS!A:N,5,FALSE) -> 21813 | I23: =VLOOKUP(A23,CCG_data_TRACCS!A:N,6,FALSE) -> 14394 | J23: 1.515423093 | M23: 4968.061555 | N23: 4858.636616 | O23: 5079.329443 | P23: 13836.60964 | Q23: 13653.59108 | R23: 14021.46835 | S23: 2401.611835 | T23: 9203.763219 | U23: 1.116475859 | V23: =VLOOKUP(Selections_data_CCG!$G$2,'CurrentData-all children'!A:R,13,FALSE) -> 7077.07289 | W23: =IF(Settings!$B$5="4SIMILAR", VLOOKUP(Selections_data_CCG!$G$2,'CurrentData-4SIMILAR-allchildre'!A:R,13,FALSE), VLOOKUP(Settings!$C$5,'CurrentData-all children'!A:R,13,FALSE)) -> 5510.027757 | X23: =VLOOKUP(Selections_data_CCG!$G$2,'CurrentData-all children'!A:R,16,FALSE) -> 16842.33626 | Y23: =IF(Settings!$B$5="4SIMILAR", VLOOKUP(Selections_data_CCG!$G$2,'CurrentData-4SIMILAR-allchildre'!A:R,16,FALSE), VLOOKUP(Settings!$C$5,'CurrentData-all children'!A:R,16,FALSE)) -> 14706.8643 | Z23: =VLOOKUP(Selections_data_CCG!$G$2,'CurrentData-all children'!A:R,10,FALSE) -> 1.48533414 | AA23: =IF(Settings!$B$5="4SIMILAR", VLOOKUP(Selections_data_CCG!$G$2,'CurrentData-4SIMILAR-allchildre'!A:R,10,FALSE), VLOOKUP(Settings!$C$5,'CurrentData-all children'!A:R,10,FALSE)) -> 1.437047856 | AB23: =IF(IF(G23=0,"",COUNTIF(G$12:G$222,"<>0")-(RANK(M23,$M$12:$M$222)+COUNTIF($M$12:M23,M23)-2))<=INT(0.05*COUNTIF(G$12:G$222,"<>0")),"TOP5", IF(IF(G23=0,"",COUNTIF(G$12:G$222,"<>0")-(RANK(M23,$M$12:$M$222)+COUNTIF($M$12:M23,M23)-2))<=INT(0.25*COUNTIF(G$12:G$222,"<>0")),"TOP25", "")) ->  | AC23: =IF(IF(H23=0,"",COUNTIF(H$12:H$222,"<>0")-(RANK(P23,$P$12:$P$222)+COUNTIF($P$12:P23,P23)-2))<=INT(0.05*COUNTIF(H$12:H$222,"<>0")),"TOP5", IF(IF(H23=0,"",COUNTIF(H$12:H$222,"<>0")-(RANK(P23,$P$12:$P$222)+COUNTIF($P$12:P23,P23)-2))<=INT(0.25*COUNTIF(H$12:H$222,"<>0")),"TOP25", "")) ->  | AD23: =IF(IF(J23="Suppressed","",COUNTIF(J$12:J$222,"<>Suppressed")-(RANK(J23,$J$12:$J$222)+COUNTIF(J$12:$J23,J23)-2))<=INT(0.05*COUNTIF(J$12:J$222,"<>Suppressed")),"TOP5", IF(IF(J23="Suppressed","",COUNTIF(J$12:J$222,"<>Suppressed")-(RANK(J23,$J$12:$J$222)+COUNTIF(J$12:$J23,J23)-2))<=INT(0.25*COUNTIF(J$12:J$222,"<>suppressed")),"TOP25", "")) -> 
A24: 04X | B24: NHS Birmingham South and Central | C24: =IF(G24=0,"",COUNTIF(G$12:G$222,"<>0")-(RANK(M24,$M$12:$M$222)+COUNTIF($M$12:M24,M24)-2)) -> 109 | D24: =IF(H24=0,"",COUNTIF(P$12:P$222,"<>Suppressed")-(RANK(P24,$P$12:$P$222)+COUNTIF($P$12:P24,P24)-2)) -> 185 | E24: =IF(J24="Suppressed","",COUNTIF(J$12:J$222,"<>Suppressed")-(RANK(J24,$J$12:$J$222)+COUNTIF($J$12:J24,J24)-2)) -> 180 | F24: =VLOOKUP(A24,population!C:O,Settings!$B$3,FALSE) -> 51972.8 | G24: =VLOOKUP(A24,CCG_data_TRACCS!A:N,4,FALSE) -> 2272 | H24: =VLOOKUP(A24,CCG_data_TRACCS!A:N,5,FALSE) -> 8595 | I24: =VLOOKUP(A24,CCG_data_TRACCS!A:N,6,FALSE) -> 4281 | J24: 2.007708479 | M24: 4371.517409 | N24: 4193.593049 | O24: 4555.050032 | P24: 16537.49654 | Q24: 16189.70325 | R24: 16890.879 | S24: 2402.358007 | T24: 9271.838918 | U24: 1.129267905 | V24: =VLOOKUP(Selections_data_CCG!$G$2,'CurrentData-all children'!A:R,13,FALSE) -> 7077.07289 | W24: =IF(Settings!$B$5="4SIMILAR", VLOOKUP(Selections_data_CCG!$G$2,'CurrentData-4SIMILAR-allchildre'!A:R,13,FALSE), VLOOKUP(Settings!$C$5,'CurrentData-all children'!A:R,13,FALSE)) -> 5510.027757 | X24: =VLOOKUP(Selections_data_CCG!$G$2,'CurrentData-all children'!A:R,16,FALSE) -> 16842.33626 | Y24: =IF(Settings!$B$5="4SIMILAR", VLOOKUP(Selections_data_CCG!$G$2,'CurrentData-4SIMILAR-allchildre'!A:R,16,FALSE), VLOOKUP(Settings!$C$5,'CurrentData-all children'!A:R,16,FALSE)) -> 14706.8643 | Z24: =VLOOKUP(Selections_data_CCG!$G$2,'CurrentData-all children'!A:R,10,FALSE) -> 1.48533414 | AA24: =IF(Settings!$B$5="4SIMILAR", VLOOKUP(Selections_data_CCG!$G$2,'CurrentData-4SIMILAR-allchildre'!A:R,10,FALSE), VLOOKUP(Settings!$C$5,'CurrentData-all children'!A:R,10,FALSE)) -> 1.437047856 | AB24: =IF(IF(G24=0,"",COUNTIF(G$12:G$222,"<>0")-(RANK(M24,$M$12:$M$222)+COUNTIF($M$12:M24,M24)-2))<=INT(0.05*COUNTIF(G$12:G$222,"<>0")),"TOP5", IF(IF(G24=0,"",COUNTIF(G$12:G$222,"<>0")-(RANK(M24,$M$12:$M$222)+COUNTIF($M$12:M24,M24)-2))<=INT(0.25*COUNTIF(G$12:G$222,"<>0")),"TOP25", "")) ->  | AC24: =IF(IF(H24=0,"",COUNTIF(H$12:H$222,"<>0")-(RANK(P24,$P$12:$P$222)+COUNTIF($P$12:P24,P24)-2))<=INT(0.05*COUNTIF(H$12:H$222,"<>0")),"TOP5", IF(IF(H24=0,"",COUNTIF(H$12:H$222,"<>0")-(RANK(P24,$P$12:$P$222)+COUNTIF($P$12:P24,P24)-2))<=INT(0.25*COUNTIF(H$12:H$222,"<>0")),"TOP25", "")) ->  | AD24: =IF(IF(J24="Suppressed","",COUNTIF(J$12:J$222,"<>Suppressed")-(RANK(J24,$J$12:$J$222)+COUNTIF(J$12:$J24,J24)-2))<=INT(0.05*COUNTIF(J$12:J$222,"<>Suppressed")),"TOP5", IF(IF(J24="Suppressed","",COUNTIF(J$12:J$222,"<>Suppressed")-(RANK(J24,$J$12:$J$222)+COUNTIF(J$12:$J24,J24)-2))<=INT(0.25*COUNTIF(J$12:J$222,"<>suppressed")),"TOP25", "")) -> 
A25: 00Q | B25: NHS Blackburn with Darwen | C25: =IF(G25=0,"",COUNTIF(G$12:G$222,"<>0")-(RANK(M25,$M$12:$M$222)+COUNTIF($M$12:M25,M25)-2)) -> 210 | D25: =IF(H25=0,"",COUNTIF(P$12:P$222,"<>Suppressed")-(RANK(P25,$P$12:$P$222)+COUNTIF($P$12:P25,P25)-2)) -> 184 | E25: =IF(J25="Suppressed","",COUNTIF(J$12:J$222,"<>Suppressed")-(RANK(J25,$J$12:$J$222)+COUNTIF($J$12:J25,J25)-2)) -> 32 | F25: =VLOOKUP(A25,population!C:O,Settings!$B$3,FALSE) -> 37203.2 | G25: =VLOOKUP(A25,CCG_data_TRACCS!A:N,4,FALSE) -> 2973 | H25: =VLOOKUP(A25,CCG_data_TRACCS!A:N,5,FALSE) -> 6089 | I25: =VLOOKUP(A25,CCG_data_TRACCS!A:N,6,FALSE) -> 4964 | J25: 1.226631749 | M25: 7991.248065 | N25: 7706.548138 | O25: 8283.775832 | P25: 16366.87167 | Q25: 15958.32925 | R25: 16783.22747 | S25: 2416.399653 | T25: 9314.856853 | U25: 1.133384933 | V25: =VLOOKUP(Selections_data_CCG!$G$2,'CurrentData-all children'!A:R,13,FALSE) -> 7077.07289 | W25: =IF(Settings!$B$5="4SIMILAR", VLOOKUP(Selections_data_CCG!$G$2,'CurrentData-4SIMILAR-allchildre'!A:R,13,FALSE), VLOOKUP(Settings!$C$5,'CurrentData-all children'!A:R,13,FALSE)) -> 5510.027757 | X25: =VLOOKUP(Selections_data_CCG!$G$2,'CurrentData-all children'!A:R,16,FALSE) -> 16842.33626 | Y25: =IF(Settings!$B$5="4SIMILAR", VLOOKUP(Selections_data_CCG!$G$2,'CurrentData-4SIMILAR-allchildre'!A:R,16,FALSE), VLOOKUP(Settings!$C$5,'CurrentData-all children'!A:R,16,FALSE)) -> 14706.8643 | Z25: =VLOOKUP(Selections_data_CCG!$G$2,'CurrentData-all children'!A:R,10,FALSE) -> 1.48533414 | AA25: =IF(Settings!$B$5="4SIMILAR", VLOOKUP(Selections_data_CCG!$G$2,'CurrentData-4SIMILAR-allchildre'!A:R,10,FALSE), VLOOKUP(Settings!$C$5,'CurrentData-all children'!A:R,10,FALSE)) -> 1.437047856 | AB25: =IF(IF(G25=0,"",COUNTIF(G$12:G$222,"<>0")-(RANK(M25,$M$12:$M$222)+COUNTIF($M$12:M25,M25)-2))<=INT(0.05*COUNTIF(G$12:G$222,"<>0")),"TOP5", IF(IF(G25=0,"",COUNTIF(G$12:G$222,"<>0")-(RANK(M25,$M$12:$M$222)+COUNTIF($M$12:M25,M25)-2))<=INT(0.25*COUNTIF(G$12:G$222,"<>0")),"TOP25", "")) ->  | AC25: =IF(IF(H25=0,"",COUNTIF(H$12:H$222,"<>0")-(RANK(P25,$P$12:$P$222)+COUNTIF($P$12:P25,P25)-2))<=INT(0.05*COUNTIF(H$12:H$222,"<>0")),"TOP5", IF(IF(H25=0,"",COUNTIF(H$12:H$222,"<>0")-(RANK(P25,$P$12:$P$222)+COUNTIF($P$12:P25,P25)-2))<=INT(0.25*COUNTIF(H$12:H$222,"<>0")),"TOP25", "")) ->  | AD25: =IF(IF(J25="Suppressed","",COUNTIF(J$12:J$222,"<>Suppressed")-(RANK(J25,$J$12:$J$222)+COUNTIF(J$12:$J25,J25)-2))<=INT(0.05*COUNTIF(J$12:J$222,"<>Suppressed")),"TOP5", IF(IF(J25="Suppressed","",COUNTIF(J$12:J$222,"<>Suppressed")-(RANK(J25,$J$12:$J$222)+COUNTIF(J$12:$J25,J25)-2))<=INT(0.25*COUNTIF(J$12:J$222,"<>suppressed")),"TOP25", "")) -> TOP25
A26: 00R | B26: NHS Blackpool | C26: =IF(G26=0,"",COUNTIF(G$12:G$222,"<>0")-(RANK(M26,$M$12:$M$222)+COUNTIF($M$12:M26,M26)-2)) -> 191 | D26: =IF(H26=0,"",COUNTIF(P$12:P$222,"<>Suppressed")-(RANK(P26,$P$12:$P$222)+COUNTIF($P$12:P26,P26)-2)) -> 159 | E26: =IF(J26="Suppressed","",COUNTIF(J$12:J$222,"<>Suppressed")-(RANK(J26,$J$12:$J$222)+COUNTIF($J$12:J26,J26)-2)) -> 43 | F26: =VLOOKUP(A26,population!C:O,Settings!$B$3,FALSE) -> 28834 | G26: =VLOOKUP(A26,CCG_data_TRACCS!A:N,4,FALSE) -> 1875 | H26: =VLOOKUP(A26,CCG_data_TRACCS!A:N,5,FALSE) -> 4140 | I26: =VLOOKUP(A26,CCG_data_TRACCS!A:N,6,FALSE) -> 3282 | J26: 1.26142596 | M26: 6502.739821 | N26: 6211.700718 | O26: 6803.89484 | P26: 14358.04952 | Q26: 13923.97839 | R26: 14802.21112 | S26: 2430.703174 | T26: 9354.727313 | U26: 1.13791423 | V26: =VLOOKUP(Selections_data_CCG!$G$2,'CurrentData-all children'!A:R,13,FALSE) -> 7077.07289 | W26: =IF(Settings!$B$5="4SIMILAR", VLOOKUP(Selections_data_CCG!$G$2,'CurrentData-4SIMILAR-allchildre'!A:R,13,FALSE), VLOOKUP(Settings!$C$5,'CurrentData-all children'!A:R,13,FALSE)) -> 5510.027757 | X26: =VLOOKUP(Selections_data_CCG!$G$2,'CurrentData-all children'!A:R,16,FALSE) -> 16842.33626 | Y26: =IF(Settings!$B$5="4SIMILAR", VLOOKUP(Selections_data_CCG!$G$2,'CurrentData-4SIMILAR-allchildre'!A:R,16,FALSE), VLOOKUP(Settings!$C$5,'CurrentData-all children'!A:R,16,FALSE)) -> 14706.8643 | Z26: =VLOOKUP(Selections_data_CCG!$G$2,'CurrentData-all children'!A:R,10,FALSE) -> 1.48533414 | AA26: =IF(Settings!$B$5="4SIMILAR", VLOOKUP(Selections_data_CCG!$G$2,'CurrentData-4SIMILAR-allchildre'!A:R,10,FALSE), VLOOKUP(Settings!$C$5,'CurrentData-all children'!A:R,10,FALSE)) -> 1.437047856 | AB26: =IF(IF(G26=0,"",COUNTIF(G$12:G$222,"<>0")-(RANK(M26,$M$12:$M$222)+COUNTIF($M$12:M26,M26)-2))<=INT(0.05*COUNTIF(G$12:G$222,"<>0")),"TOP5", IF(IF(G26=0,"",COUNTIF(G$12:G$222,"<>0")-(RANK(M26,$M$12:$M$222)+COUNTIF($M$12:M26,M26)-2))<=INT(0.25*COUNTIF(G$12:G$222,"<>0")),"TOP25", "")) ->  | AC26: =IF(IF(H26=0,"",COUNTIF(H$12:H$222,"<>0")-(RANK(P26,$P$12:$P$222)+COUNTIF($P$12:P26,P26)-2))<=INT(0.05*COUNTIF(H$12:H$222,"<>0")),"TOP5", IF(IF(H26=0,"",COUNTIF(H$12:H$222,"<>0")-(RANK(P26,$P$12:$P$222)+COUNTIF($P$12:P26,P26)-2))<=INT(0.25*COUNTIF(H$12:H$222,"<>0")),"TOP25", "")) ->  | AD26: =IF(IF(J26="Suppressed","",COUNTIF(J$12:J$222,"<>Suppressed")-(RANK(J26,$J$12:$J$222)+COUNTIF(J$12:$J26,J26)-2))<=INT(0.05*COUNTIF(J$12:J$222,"<>Suppressed")),"TOP5", IF(IF(J26="Suppressed","",COUNTIF(J$12:J$222,"<>Suppressed")-(RANK(J26,$J$12:$J$222)+COUNTIF(J$12:$J26,J26)-2))<=INT(0.25*COUNTIF(J$12:J$222,"<>suppressed")),"TOP25", "")) -> TOP25
A27: 00T | B27: NHS Bolton | C27: =IF(G27=0,"",COUNTIF(G$12:G$222,"<>0")-(RANK(M27,$M$12:$M$222)+COUNTIF($M$12:M27,M27)-2)) -> 188 | D27: =IF(H27=0,"",COUNTIF(P$12:P$222,"<>Suppressed")-(RANK(P27,$P$12:$P$222)+COUNTIF($P$12:P27,P27)-2)) -> 179 | E27: =IF(J27="Suppressed","",COUNTIF(J$12:J$222,"<>Suppressed")-(RANK(J27,$J$12:$J$222)+COUNTIF($J$12:J27,J27)-2)) -> 77 | F27: =VLOOKUP(A27,population!C:O,Settings!$B$3,FALSE) -> 59968.8 | G27: =VLOOKUP(A27,CCG_data_TRACCS!A:N,4,FALSE) -> 3843 | H27: =VLOOKUP(A27,CCG_data_TRACCS!A:N,5,FALSE) -> 9529 | I27: =VLOOKUP(A27,CCG_data_TRACCS!A:N,6,FALSE) -> 6943 | J27: 1.372461472 | M27: 6408.332333 | N27: 6207.307288 | O27: 6614.209998 | P27: 15889.92943 | Q27: 15572.47057 | R27: 16212.23134 | S27: 2452.977768 | T27: 9457.146207 | U27: 1.140008309 | V27: =VLOOKUP(Selections_data_CCG!$G$2,'CurrentData-all children'!A:R,13,FALSE) -> 7077.07289 | W27: =IF(Settings!$B$5="4SIMILAR", VLOOKUP(Selections_data_CCG!$G$2,'CurrentData-4SIMILAR-allchildre'!A:R,13,FALSE), VLOOKUP(Settings!$C$5,'CurrentData-all children'!A:R,13,FALSE)) -> 5510.027757 | X27: =VLOOKUP(Selections_data_CCG!$G$2,'CurrentData-all children'!A:R,16,FALSE) -> 16842.33626 | Y27: =IF(Settings!$B$5="4SIMILAR", VLOOKUP(Selections_data_CCG!$G$2,'CurrentData-4SIMILAR-allchildre'!A:R,16,FALSE), VLOOKUP(Settings!$C$5,'CurrentData-all children'!A:R,16,FALSE)) -> 14706.8643 | Z27: =VLOOKUP(Selections_data_CCG!$G$2,'CurrentData-all children'!A:R,10,FALSE) -> 1.48533414 | AA27: =IF(Settings!$B$5="4SIMILAR", VLOOKUP(Selections_data_CCG!$G$2,'CurrentData-4SIMILAR-allchildre'!A:R,10,FALSE), VLOOKUP(Settings!$C$5,'CurrentData-all children'!A:R,10,FALSE)) -> 1.437047856 | AB27: =IF(IF(G27=0,"",COUNTIF(G$12:G$222,"<>0")-(RANK(M27,$M$12:$M$222)+COUNTIF($M$12:M27,M27)-2))<=INT(0.05*COUNTIF(G$12:G$222,"<>0")),"TOP5", IF(IF(G27=0,"",COUNTIF(G$12:G$222,"<>0")-(RANK(M27,$M$12:$M$222)+COUNTIF($M$12:M27,M27)-2))<=INT(0.25*COUNTIF(G$12:G$222,"<>0")),"TOP25", "")) ->  | AC27: =IF(IF(H27=0,"",COUNTIF(H$12:H$222,"<>0")-(RANK(P27,$P$12:$P$222)+COUNTIF($P$12:P27,P27)-2))<=INT(0.05*COUNTIF(H$12:H$222,"<>0")),"TOP5", IF(IF(H27=0,"",COUNTIF(H$12:H$222,"<>0")-(RANK(P27,$P$12:$P$222)+COUNTIF($P$12:P27,P27)-2))<=INT(0.25*COUNTIF(H$12:H$222,"<>0")),"TOP25", "")) ->  | AD27: =IF(IF(J27="Suppressed","",COUNTIF(J$12:J$222,"<>Suppressed")-(RANK(J27,$J$12:$J$222)+COUNTIF(J$12:$J27,J27)-2))<=INT(0.05*COUNTIF(J$12:J$222,"<>Suppressed")),"TOP5", IF(IF(J27="Suppressed","",COUNTIF(J$12:J$222,"<>Suppressed")-(RANK(J27,$J$12:$J$222)+COUNTIF(J$12:$J27,J27)-2))<=INT(0.25*COUNTIF(J$12:J$222,"<>suppressed")),"TOP25", "")) -> 
A28: 10G | B28: NHS Bracknell and Ascot | C28: =IF(G28=0,"",COUNTIF(G$12:G$222,"<>0")-(RANK(M28,$M$12:$M$222)+COUNTIF($M$12:M28,M28)-2)) -> 32 | D28: =IF(H28=0,"",COUNTIF(P$12:P$222,"<>Suppressed")-(RANK(P28,$P$12:$P$222)+COUNTIF($P$12:P28,P28)-2)) -> 4 | E28: =IF(J28="Suppressed","",COUNTIF(J$12:J$222,"<>Suppressed")-(RANK(J28,$J$12:$J$222)+COUNTIF($J$12:J28,J28)-2)) -> 127 | F28: =VLOOKUP(A28,population!C:O,Settings!$B$3,FALSE) -> 27444.2 | G28: =VLOOKUP(A28,CCG_data_TRACCS!A:N,4,FALSE) -> 755 | H28: =VLOOKUP(A28,CCG_data_TRACCS!A:N,5,FALSE) -> 2306 | I28: =VLOOKUP(A28,CCG_data_TRACCS!A:N,6,FALSE) -> 1499 | J28: 1.538358906 | M28: 2751.036649 | N28: 2558.275586 | O28: 2954.47277 | P28: 8402.50399 | Q28: 8063.019782 | R28: 8752.608367 | S28: 2491.637066 | T28: 9510.55747 | U28: 1.148945716 | V28: =VLOOKUP(Selections_data_CCG!$G$2,'CurrentData-all children'!A:R,13,FALSE) -> 7077.07289 | W28: =IF(Settings!$B$5="4SIMILAR", VLOOKUP(Selections_data_CCG!$G$2,'CurrentData-4SIMILAR-allchildre'!A:R,13,FALSE), VLOOKUP(Settings!$C$5,'CurrentData-all children'!A:R,13,FALSE)) -> 5510.027757 | X28: =VLOOKUP(Selections_data_CCG!$G$2,'CurrentData-all children'!A:R,16,FALSE) -> 16842.33626 | Y28: =IF(Settings!$B$5="4SIMILAR", VLOOKUP(Selections_data_CCG!$G$2,'CurrentData-4SIMILAR-allchildre'!A:R,16,FALSE), VLOOKUP(Settings!$C$5,'CurrentData-all children'!A:R,16,FALSE)) -> 14706.8643 | Z28: =VLOOKUP(Selections_data_CCG!$G$2,'CurrentData-all children'!A:R,10,FALSE) -> 1.48533414 | AA28: =IF(Settings!$B$5="4SIMILAR", VLOOKUP(Selections_data_CCG!$G$2,'CurrentData-4SIMILAR-allchildre'!A:R,10,FALSE), VLOOKUP(Settings!$C$5,'CurrentData-all children'!A:R,10,FALSE)) -> 1.437047856 | AB28: =IF(IF(G28=0,"",COUNTIF(G$12:G$222,"<>0")-(RANK(M28,$M$12:$M$222)+COUNTIF($M$12:M28,M28)-2))<=INT(0.05*COUNTIF(G$12:G$222,"<>0")),"TOP5", IF(IF(G28=0,"",COUNTIF(G$12:G$222,"<>0")-(RANK(M28,$M$12:$M$222)+COUNTIF($M$12:M28,M28)-2))<=INT(0.25*COUNTIF(G$12:G$222,"<>0")),"TOP25", "")) -> TOP25 | AC28: =IF(IF(H28=0,"",COUNTIF(H$12:H$222,"<>0")-(RANK(P28,$P$12:$P$222)+COUNTIF($P$12:P28,P28)-2))<=INT(0.05*COUNTIF(H$12:H$222,"<>0")),"TOP5", IF(IF(H28=0,"",COUNTIF(H$12:H$222,"<>0")-(RANK(P28,$P$12:$P$222)+COUNTIF($P$12:P28,P28)-2))<=INT(0.25*COUNTIF(H$12:H$222,"<>0")),"TOP25", "")) -> TOP5 | AD28: =IF(IF(J28="Suppressed","",COUNTIF(J$12:J$222,"<>Suppressed")-(RANK(J28,$J$12:$J$222)+COUNTIF(J$12:$J28,J28)-2))<=INT(0.05*COUNTIF(J$12:J$222,"<>Suppressed")),"TOP5", IF(IF(J28="Suppressed","",COUNTIF(J$12:J$222,"<>Suppressed")-(RANK(J28,$J$12:$J$222)+COUNTIF(J$12:$J28,J28)-2))<=INT(0.25*COUNTIF(J$12:J$222,"<>suppressed")),"TOP25", "")) -> 
A29: 02W | B29: NHS Bradford City | C29: =IF(G29=0,"",COUNTIF(G$12:G$222,"<>0")-(RANK(M29,$M$12:$M$222)+COUNTIF($M$12:M29,M29)-2)) -> 76 | D29: =IF(H29=0,"",COUNTIF(P$12:P$222,"<>Suppressed")-(RANK(P29,$P$12:$P$222)+COUNTIF($P$12:P29,P29)-2)) -> 210 | E29: =IF(J29="Suppressed","",COUNTIF(J$12:J$222,"<>Suppressed")-(RANK(J29,$J$12:$J$222)+COUNTIF($J$12:J29,J29)-2)) -> 205 | F29: =VLOOKUP(A29,population!C:O,Settings!$B$3,FALSE) -> 33144.6 | G29: =VLOOKUP(A29,CCG_data_TRACCS!A:N,4,FALSE) -> 1210 | H29: =VLOOKUP(A29,CCG_data_TRACCS!A:N,5,FALSE) -> 6797 | I29: =VLOOKUP(A29,CCG_data_TRACCS!A:N,6,FALSE) -> 2885 | J29: 2.355979203 | M29: 3650.670094 | N29: 3447.844042 | O29: 3862.312968 | P29: 20507.11126 | Q29: 20022.4529 | R29: 21000.53776 | S29: 2507.601251 | T29: 9604.703417 | U29: 1.159499609 | V29: =VLOOKUP(Selections_data_CCG!$G$2,'CurrentData-all children'!A:R,13,FALSE) -> 7077.07289 | W29: =IF(Settings!$B$5="4SIMILAR", VLOOKUP(Selections_data_CCG!$G$2,'CurrentData-4SIMILAR-allchildre'!A:R,13,FALSE), VLOOKUP(Settings!$C$5,'CurrentData-all children'!A:R,13,FALSE)) -> 5510.027757 | X29: =VLOOKUP(Selections_data_CCG!$G$2,'CurrentData-all children'!A:R,16,FALSE) -> 16842.33626 | Y29: =IF(Settings!$B$5="4SIMILAR", VLOOKUP(Selections_data_CCG!$G$2,'CurrentData-4SIMILAR-allchildre'!A:R,16,FALSE), VLOOKUP(Settings!$C$5,'CurrentData-all children'!A:R,16,FALSE)) -> 14706.8643 | Z29: =VLOOKUP(Selections_data_CCG!$G$2,'CurrentData-all children'!A:R,10,FALSE) -> 1.48533414 | AA29: =IF(Settings!$B$5="4SIMILAR", VLOOKUP(Selections_data_CCG!$G$2,'CurrentData-4SIMILAR-allchildre'!A:R,10,FALSE), VLOOKUP(Settings!$C$5,'CurrentData-all children'!A:R,10,FALSE)) -> 1.437047856 | AB29: =IF(IF(G29=0,"",COUNTIF(G$12:G$222,"<>0")-(RANK(M29,$M$12:$M$222)+COUNTIF($M$12:M29,M29)-2))<=INT(0.05*COUNTIF(G$12:G$222,"<>0")),"TOP5", IF(IF(G29=0,"",COUNTIF(G$12:G$222,"<>0")-(RANK(M29,$M$12:$M$222)+COUNTIF($M$12:M29,M29)-2))<=INT(0.25*COUNTIF(G$12:G$222,"<>0")),"TOP25", "")) ->  | AC29: =IF(IF(H29=0,"",COUNTIF(H$12:H$222,"<>0")-(RANK(P29,$P$12:$P$222)+COUNTIF($P$12:P29,P29)-2))<=INT(0.05*COUNTIF(H$12:H$222,"<>0")),"TOP5", IF(IF(H29=0,"",COUNTIF(H$12:H$222,"<>0")-(RANK(P29,$P$12:$P$222)+COUNTIF($P$12:P29,P29)-2))<=INT(0.25*COUNTIF(H$12:H$222,"<>0")),"TOP25", "")) ->  | AD29: =IF(IF(J29="Suppressed","",COUNTIF(J$12:J$222,"<>Suppressed")-(RANK(J29,$J$12:$J$222)+COUNTIF(J$12:$J29,J29)-2))<=INT(0.05*COUNTIF(J$12:J$222,"<>Suppressed")),"TOP5", IF(IF(J29="Suppressed","",COUNTIF(J$12:J$222,"<>Suppressed")-(RANK(J29,$J$12:$J$222)+COUNTIF(J$12:$J29,J29)-2))<=INT(0.25*COUNTIF(J$12:J$222,"<>suppressed")),"TOP25", "")) -> 
A30: 02R | B30: NHS Bradford Districts | C30: =IF(G30=0,"",COUNTIF(G$12:G$222,"<>0")-(RANK(M30,$M$12:$M$222)+COUNTIF($M$12:M30,M30)-2)) -> 77 | D30: =IF(H30=0,"",COUNTIF(P$12:P$222,"<>Suppressed")-(RANK(P30,$P$12:$P$222)+COUNTIF($P$12:P30,P30)-2)) -> 175 | E30: =IF(J30="Suppressed","",COUNTIF(J$12:J$222,"<>Suppressed")-(RANK(J30,$J$12:$J$222)+COUNTIF($J$12:J30,J30)-2)) -> 166 | F30: =VLOOKUP(A30,population!C:O,Settings!$B$3,FALSE) -> 71978.4 | G30: =VLOOKUP(A30,CCG_data_TRACCS!A:N,4,FALSE) -> 2666 | H30: =VLOOKUP(A30,CCG_data_TRACCS!A:N,5,FALSE) -> 11166 | I30: =VLOOKUP(A30,CCG_data_TRACCS!A:N,6,FALSE) -> 5908 | J30: 1.889979689 | M30: 3703.888944 | N30: 3564.612016 | O30: 3847.213206 | P30: 15512.98723 | Q30: 15226.56882 | R30: 15803.43957 | S30: 2536.732616 | T30: 9661.775116 | U30: 1.161268781 | V30: =VLOOKUP(Selections_data_CCG!$G$2,'CurrentData-all children'!A:R,13,FALSE) -> 7077.07289 | W30: =IF(Settings!$B$5="4SIMILAR", VLOOKUP(Selections_data_CCG!$G$2,'CurrentData-4SIMILAR-allchildre'!A:R,13,FALSE), VLOOKUP(Settings!$C$5,'CurrentData-all children'!A:R,13,FALSE)) -> 5510.027757 | X30: =VLOOKUP(Selections_data_CCG!$G$2,'CurrentData-all children'!A:R,16,FALSE) -> 16842.33626 | Y30: =IF(Settings!$B$5="4SIMILAR", VLOOKUP(Selections_data_CCG!$G$2,'CurrentData-4SIMILAR-allchildre'!A:R,16,FALSE), VLOOKUP(Settings!$C$5,'CurrentData-all children'!A:R,16,FALSE)) -> 14706.8643 | Z30: =VLOOKUP(Selections_data_CCG!$G$2,'CurrentData-all children'!A:R,10,FALSE) -> 1.48533414 | AA30: =IF(Settings!$B$5="4SIMILAR", VLOOKUP(Selections_data_CCG!$G$2,'CurrentData-4SIMILAR-allchildre'!A:R,10,FALSE), VLOOKUP(Settings!$C$5,'CurrentData-all children'!A:R,10,FALSE)) -> 1.437047856 | AB30: =IF(IF(G30=0,"",COUNTIF(G$12:G$222,"<>0")-(RANK(M30,$M$12:$M$222)+COUNTIF($M$12:M30,M30)-2))<=INT(0.05*COUNTIF(G$12:G$222,"<>0")),"TOP5", IF(IF(G30=0,"",COUNTIF(G$12:G$222,"<>0")-(RANK(M30,$M$12:$M$222)+COUNTIF($M$12:M30,M30)-2))<=INT(0.25*COUNTIF(G$12:G$222,"<>0")),"TOP25", "")) ->  | AC30: =IF(IF(H30=0,"",COUNTIF(H$12:H$222,"<>0")-(RANK(P30,$P$12:$P$222)+COUNTIF($P$12:P30,P30)-2))<=INT(0.05*COUNTIF(H$12:H$222,"<>0")),"TOP5", IF(IF(H30=0,"",COUNTIF(H$12:H$222,"<>0")-(RANK(P30,$P$12:$P$222)+COUNTIF($P$12:P30,P30)-2))<=INT(0.25*COUNTIF(H$12:H$222,"<>0")),"TOP25", "")) ->  | AD30: =IF(IF(J30="Suppressed","",COUNTIF(J$12:J$222,"<>Suppressed")-(RANK(J30,$J$12:$J$222)+COUNTIF(J$12:$J30,J30)-2))<=INT(0.05*COUNTIF(J$12:J$222,"<>Suppressed")),"TOP5", IF(IF(J30="Suppressed","",COUNTIF(J$12:J$222,"<>Suppressed")-(RANK(J30,$J$12:$J$222)+COUNTIF(J$12:$J30,J30)-2))<=INT(0.25*COUNTIF(J$12:J$222,"<>suppressed")),"TOP25", "")) -> 
A31: 07P | B31: NHS Brent | C31: =IF(G31=0,"",COUNTIF(G$12:G$222,"<>0")-(RANK(M31,$M$12:$M$222)+COUNTIF($M$12:M31,M31)-2)) -> 53 | D31: =IF(H31=0,"",COUNTIF(P$12:P$222,"<>Suppressed")-(RANK(P31,$P$12:$P$222)+COUNTIF($P$12:P31,P31)-2)) -> 92 | E31: =IF(J31="Suppressed","",COUNTIF(J$12:J$222,"<>Suppressed")-(RANK(J31,$J$12:$J$222)+COUNTIF($J$12:J31,J31)-2)) -> 168 | F31: =VLOOKUP(A31,population!C:O,Settings!$B$3,FALSE) -> 67988.6 | G31: =VLOOKUP(A31,CCG_data_TRACCS!A:N,4,FALSE) -> 2136 | H31: =VLOOKUP(A31,CCG_data_TRACCS!A:N,5,FALSE) -> 8100 | I31: =VLOOKUP(A31,CCG_data_TRACCS!A:N,6,FALSE) -> 4285 | J31: 1.890315053 | M31: 3141.703168 | N31: 3009.867939 | O31: 3277.826483 | P31: 11913.76201 | Q31: 11655.70717 | R31: 12176.08988 | S31: 2588.105727 | T31: 9721.813485 | U31: 1.163328632 | V31: =VLOOKUP(Selections_data_CCG!$G$2,'CurrentData-all children'!A:R,13,FALSE) -> 7077.07289 | W31: =IF(Settings!$B$5="4SIMILAR", VLOOKUP(Selections_data_CCG!$G$2,'CurrentData-4SIMILAR-allchildre'!A:R,13,FALSE), VLOOKUP(Settings!$C$5,'CurrentData-all children'!A:R,13,FALSE)) -> 5510.027757 | X31: =VLOOKUP(Selections_data_CCG!$G$2,'CurrentData-all children'!A:R,16,FALSE) -> 16842.33626 | Y31: =IF(Settings!$B$5="4SIMILAR", VLOOKUP(Selections_data_CCG!$G$2,'CurrentData-4SIMILAR-allchildre'!A:R,16,FALSE), VLOOKUP(Settings!$C$5,'CurrentData-all children'!A:R,16,FALSE)) -> 14706.8643 | Z31: =VLOOKUP(Selections_data_CCG!$G$2,'CurrentData-all children'!A:R,10,FALSE) -> 1.48533414 | AA31: =IF(Settings!$B$5="4SIMILAR", VLOOKUP(Selections_data_CCG!$G$2,'CurrentData-4SIMILAR-allchildre'!A:R,10,FALSE), VLOOKUP(Settings!$C$5,'CurrentData-all children'!A:R,10,FALSE)) -> 1.437047856 | AB31: =IF(IF(G31=0,"",COUNTIF(G$12:G$222,"<>0")-(RANK(M31,$M$12:$M$222)+COUNTIF($M$12:M31,M31)-2))<=INT(0.05*COUNTIF(G$12:G$222,"<>0")),"TOP5", IF(IF(G31=0,"",COUNTIF(G$12:G$222,"<>0")-(RANK(M31,$M$12:$M$222)+COUNTIF($M$12:M31,M31)-2))<=INT(0.25*COUNTIF(G$12:G$222,"<>0")),"TOP25", "")) ->  | AC31: =IF(IF(H31=0,"",COUNTIF(H$12:H$222,"<>0")-(RANK(P31,$P$12:$P$222)+COUNTIF($P$12:P31,P31)-2))<=INT(0.05*COUNTIF(H$12:H$222,"<>0")),"TOP5", IF(IF(H31=0,"",COUNTIF(H$12:H$222,"<>0")-(RANK(P31,$P$12:$P$222)+COUNTIF($P$12:P31,P31)-2))<=INT(0.25*COUNTIF(H$12:H$222,"<>0")),"TOP25", "")) ->  | AD31: =IF(IF(J31="Suppressed","",COUNTIF(J$12:J$222,"<>Suppressed")-(RANK(J31,$J$12:$J$222)+COUNTIF(J$12:$J31,J31)-2))<=INT(0.05*COUNTIF(J$12:J$222,"<>Suppressed")),"TOP5", IF(IF(J31="Suppressed","",COUNTIF(J$12:J$222,"<>Suppressed")-(RANK(J31,$J$12:$J$222)+COUNTIF(J$12:$J31,J31)-2))<=INT(0.25*COUNTIF(J$12:J$222,"<>suppressed")),"TOP25", "")) -> 
A32: 09D | B32: NHS Brighton and Hove | C32: =IF(G32=0,"",COUNTIF(G$12:G$222,"<>0")-(RANK(M32,$M$12:$M$222)+COUNTIF($M$12:M32,M32)-2)) -> 81 | D32: =IF(H32=0,"",COUNTIF(P$12:P$222,"<>Suppressed")-(RANK(P32,$P$12:$P$222)+COUNTIF($P$12:P32,P32)-2)) -> 90 | E32: =IF(J32="Suppressed","",COUNTIF(J$12:J$222,"<>Suppressed")-(RANK(J32,$J$12:$J$222)+COUNTIF($J$12:J32,J32)-2)) -> 140 | F32: =VLOOKUP(A32,population!C:O,Settings!$B$3,FALSE) -> 47262 | G32: =VLOOKUP(A32,CCG_data_TRACCS!A:N,4,FALSE) -> 1803 | H32: =VLOOKUP(A32,CCG_data_TRACCS!A:N,5,FALSE) -> 5620 | I32: =VLOOKUP(A32,CCG_data_TRACCS!A:N,6,FALSE) -> 3415 | J32: 1.64568082 | M32: 3814.904151 | N32: 3640.826221 | O32: 3995.154622 | P32: 11891.15992 | Q32: 11582.28021 | R32: 12206.19116 | S32: 2591.5167 | T32: 9787.527594 | U32: 1.164030261 | V32: =VLOOKUP(Selections_data_CCG!$G$2,'CurrentData-all children'!A:R,13,FALSE) -> 7077.07289 | W32: =IF(Settings!$B$5="4SIMILAR", VLOOKUP(Selections_data_CCG!$G$2,'CurrentData-4SIMILAR-allchildre'!A:R,13,FALSE), VLOOKUP(Settings!$C$5,'CurrentData-all children'!A:R,13,FALSE)) -> 5510.027757 | X32: =VLOOKUP(Selections_data_CCG!$G$2,'CurrentData-all children'!A:R,16,FALSE) -> 16842.33626 | Y32: =IF(Settings!$B$5="4SIMILAR", VLOOKUP(Selections_data_CCG!$G$2,'CurrentData-4SIMILAR-allchildre'!A:R,16,FALSE), VLOOKUP(Settings!$C$5,'CurrentData-all children'!A:R,16,FALSE)) -> 14706.8643 | Z32: =VLOOKUP(Selections_data_CCG!$G$2,'CurrentData-all children'!A:R,10,FALSE) -> 1.48533414 | AA32: =IF(Settings!$B$5="4SIMILAR", VLOOKUP(Selections_data_CCG!$G$2,'CurrentData-4SIMILAR-allchildre'!A:R,10,FALSE), VLOOKUP(Settings!$C$5,'CurrentData-all children'!A:R,10,FALSE)) -> 1.437047856 | AB32: =IF(IF(G32=0,"",COUNTIF(G$12:G$222,"<>0")-(RANK(M32,$M$12:$M$222)+COUNTIF($M$12:M32,M32)-2))<=INT(0.05*COUNTIF(G$12:G$222,"<>0")),"TOP5", IF(IF(G32=0,"",COUNTIF(G$12:G$222,"<>0")-(RANK(M32,$M$12:$M$222)+COUNTIF($M$12:M32,M32)-2))<=INT(0.25*COUNTIF(G$12:G$222,"<>0")),"TOP25", "")) ->  | AC32: =IF(IF(H32=0,"",COUNTIF(H$12:H$222,"<>0")-(RANK(P32,$P$12:$P$222)+COUNTIF($P$12:P32,P32)-2))<=INT(0.05*COUNTIF(H$12:H$222,"<>0")),"TOP5", IF(IF(H32=0,"",COUNTIF(H$12:H$222,"<>0")-(RANK(P32,$P$12:$P$222)+COUNTIF($P$12:P32,P32)-2))<=INT(0.25*COUNTIF(H$12:H$222,"<>0")),"TOP25", "")) ->  | AD32: =IF(IF(J32="Suppressed","",COUNTIF(J$12:J$222,"<>Suppressed")-(RANK(J32,$J$12:$J$222)+COUNTIF(J$12:$J32,J32)-2))<=INT(0.05*COUNTIF(J$12:J$222,"<>Suppressed")),"TOP5", IF(IF(J32="Suppressed","",COUNTIF(J$12:J$222,"<>Suppressed")-(RANK(J32,$J$12:$J$222)+COUNTIF(J$12:$J32,J32)-2))<=INT(0.25*COUNTIF(J$12:J$222,"<>suppressed")),"TOP25", "")) -> 
A33: 11H | B33: NHS Bristol | C33: =IF(G33=0,"",COUNTIF(G$12:G$222,"<>0")-(RANK(M33,$M$12:$M$222)+COUNTIF($M$12:M33,M33)-2)) -> 47 | D33: =IF(H33=0,"",COUNTIF(P$12:P$222,"<>Suppressed")-(RANK(P33,$P$12:$P$222)+COUNTIF($P$12:P33,P33)-2)) -> 94 | E33: =IF(J33="Suppressed","",COUNTIF(J$12:J$222,"<>Suppressed")-(RANK(J33,$J$12:$J$222)+COUNTIF($J$12:J33,J33)-2)) -> 184 | F33: =VLOOKUP(A33,population!C:O,Settings!$B$3,FALSE) -> 85343.6 | G33: =VLOOKUP(A33,CCG_data_TRACCS!A:N,4,FALSE) -> 2596 | H33: =VLOOKUP(A33,CCG_data_TRACCS!A:N,5,FALSE) -> 10217 | I33: =VLOOKUP(A33,CCG_data_TRACCS!A:N,6,FALSE) -> 5005 | J33: 2.041358641 | M33: 3041.821531 | N33: 2925.923147 | O33: 3161.133711 | P33: 11971.60654 | Q33: 11740.58412 | R33: 12206.03166 | S33: 2613.018431 | T33: 9796.171501 | U33: 1.172913647 | V33: =VLOOKUP(Selections_data_CCG!$G$2,'CurrentData-all children'!A:R,13,FALSE) -> 7077.07289 | W33: =IF(Settings!$B$5="4SIMILAR", VLOOKUP(Selections_data_CCG!$G$2,'CurrentData-4SIMILAR-allchildre'!A:R,13,FALSE), VLOOKUP(Settings!$C$5,'CurrentData-all children'!A:R,13,FALSE)) -> 5510.027757 | X33: =VLOOKUP(Selections_data_CCG!$G$2,'CurrentData-all children'!A:R,16,FALSE) -> 16842.33626 | Y33: =IF(Settings!$B$5="4SIMILAR", VLOOKUP(Selections_data_CCG!$G$2,'CurrentData-4SIMILAR-allchildre'!A:R,16,FALSE), VLOOKUP(Settings!$C$5,'CurrentData-all children'!A:R,16,FALSE)) -> 14706.8643 | Z33: =VLOOKUP(Selections_data_CCG!$G$2,'CurrentData-all children'!A:R,10,FALSE) -> 1.48533414 | AA33: =IF(Settings!$B$5="4SIMILAR", VLOOKUP(Selections_data_CCG!$G$2,'CurrentData-4SIMILAR-allchildre'!A:R,10,FALSE), VLOOKUP(Settings!$C$5,'CurrentData-all children'!A:R,10,FALSE)) -> 1.437047856 | AB33: =IF(IF(G33=0,"",COUNTIF(G$12:G$222,"<>0")-(RANK(M33,$M$12:$M$222)+COUNTIF($M$12:M33,M33)-2))<=INT(0.05*COUNTIF(G$12:G$222,"<>0")),"TOP5", IF(IF(G33=0,"",COUNTIF(G$12:G$222,"<>0")-(RANK(M33,$M$12:$M$222)+COUNTIF($M$12:M33,M33)-2))<=INT(0.25*COUNTIF(G$12:G$222,"<>0")),"TOP25", "")) -> TOP25 | AC33: =IF(IF(H33=0,"",COUNTIF(H$12:H$222,"<>0")-(RANK(P33,$P$12:$P$222)+COUNTIF($P$12:P33,P33)-2))<=INT(0.05*COUNTIF(H$12:H$222,"<>0")),"TOP5", IF(IF(H33=0,"",COUNTIF(H$12:H$222,"<>0")-(RANK(P33,$P$12:$P$222)+COUNTIF($P$12:P33,P33)-2))<=INT(0.25*COUNTIF(H$12:H$222,"<>0")),"TOP25", "")) ->  | AD33: =IF(IF(J33="Suppressed","",COUNTIF(J$12:J$222,"<>Suppressed")-(RANK(J33,$J$12:$J$222)+COUNTIF(J$12:$J33,J33)-2))<=INT(0.05*COUNTIF(J$12:J$222,"<>Suppressed")),"TOP5", IF(IF(J33="Suppressed","",COUNTIF(J$12:J$222,"<>Suppressed")-(RANK(J33,$J$12:$J$222)+COUNTIF(J$12:$J33,J33)-2))<=INT(0.25*COUNTIF(J$12:J$222,"<>suppressed")),"TOP25", "")) -> 
A34: 07Q | B34: NHS Bromley | C34: =IF(G34=0,"",COUNTIF(G$12:G$222,"<>0")-(RANK(M34,$M$12:$M$222)+COUNTIF($M$12:M34,M34)-2)) -> 1 | D34: =IF(H34=0,"",COUNTIF(P$12:P$222,"<>Suppressed")-(RANK(P34,$P$12:$P$222)+COUNTIF($P$12:P34,P34)-2)) -> 18 | E34: =IF(J34="Suppressed","",COUNTIF(J$12:J$222,"<>Suppressed")-(RANK(J34,$J$12:$J$222)+COUNTIF($J$12:J34,J34)-2)) -> 188 | F34: =VLOOKUP(A34,population!C:O,Settings!$B$3,FALSE) -> 63375.2 | G34: =VLOOKUP(A34,CCG_data_TRACCS!A:N,4,FALSE) -> 1239 | H34: =VLOOKUP(A34,CCG_data_TRACCS!A:N,5,FALSE) -> 6087 | I34: =VLOOKUP(A34,CCG_data_TRACCS!A:N,6,FALSE) -> 2912 | J34: 2.090315934 | M34: 1955.023416 | N34: 1847.665807 | O34: 2066.991619 | P34: 9604.703417 | Q34: 9364.916034 | R34: 9849.077503 | S34: 2619.797712 | T34: 9801.273618 | U34: 1.175414678 | V34: =VLOOKUP(Selections_data_CCG!$G$2,'CurrentData-all children'!A:R,13,FALSE) -> 7077.07289 | W34: =IF(Settings!$B$5="4SIMILAR", VLOOKUP(Selections_data_CCG!$G$2,'CurrentData-4SIMILAR-allchildre'!A:R,13,FALSE), VLOOKUP(Settings!$C$5,'CurrentData-all children'!A:R,13,FALSE)) -> 5510.027757 | X34: =VLOOKUP(Selections_data_CCG!$G$2,'CurrentData-all children'!A:R,16,FALSE) -> 16842.33626 | Y34: =IF(Settings!$B$5="4SIMILAR", VLOOKUP(Selections_data_CCG!$G$2,'CurrentData-4SIMILAR-allchildre'!A:R,16,FALSE), VLOOKUP(Settings!$C$5,'CurrentData-all children'!A:R,16,FALSE)) -> 14706.8643 | Z34: =VLOOKUP(Selections_data_CCG!$G$2,'CurrentData-all children'!A:R,10,FALSE) -> 1.48533414 | AA34: =IF(Settings!$B$5="4SIMILAR", VLOOKUP(Selections_data_CCG!$G$2,'CurrentData-4SIMILAR-allchildre'!A:R,10,FALSE), VLOOKUP(Settings!$C$5,'CurrentData-all children'!A:R,10,FALSE)) -> 1.437047856 | AB34: =IF(IF(G34=0,"",COUNTIF(G$12:G$222,"<>0")-(RANK(M34,$M$12:$M$222)+COUNTIF($M$12:M34,M34)-2))<=INT(0.05*COUNTIF(G$12:G$222,"<>0")),"TOP5", IF(IF(G34=0,"",COUNTIF(G$12:G$222,"<>0")-(RANK(M34,$M$12:$M$222)+COUNTIF($M$12:M34,M34)-2))<=INT(0.25*COUNTIF(G$12:G$222,"<>0")),"TOP25", "")) -> TOP5 | AC34: =IF(IF(H34=0,"",COUNTIF(H$12:H$222,"<>0")-(RANK(P34,$P$12:$P$222)+COUNTIF($P$12:P34,P34)-2))<=INT(0.05*COUNTIF(H$12:H$222,"<>0")),"TOP5", IF(IF(H34=0,"",COUNTIF(H$12:H$222,"<>0")-(RANK(P34,$P$12:$P$222)+COUNTIF($P$12:P34,P34)-2))<=INT(0.25*COUNTIF(H$12:H$222,"<>0")),"TOP25", "")) -> TOP25 | AD34: =IF(IF(J34="Suppressed","",COUNTIF(J$12:J$222,"<>Suppressed")-(RANK(J34,$J$12:$J$222)+COUNTIF(J$12:$J34,J34)-2))<=INT(0.05*COUNTIF(J$12:J$222,"<>Suppressed")),"TOP5", IF(IF(J34="Suppressed","",COUNTIF(J$12:J$222,"<>Suppressed")-(RANK(J34,$J$12:$J$222)+COUNTIF(J$12:$J34,J34)-2))<=INT(0.25*COUNTIF(J$12:J$222,"<>suppressed")),"TOP25", "")) -> 
A35: 00V | B35: NHS Bury | C35: =IF(G35=0,"",COUNTIF(G$12:G$222,"<>0")-(RANK(M35,$M$12:$M$222)+COUNTIF($M$12:M35,M35)-2)) -> 186 | D35: =IF(H35=0,"",COUNTIF(P$12:P$222,"<>Suppressed")-(RANK(P35,$P$12:$P$222)+COUNTIF($P$12:P35,P35)-2)) -> 146 | E35: =IF(J35="Suppressed","",COUNTIF(J$12:J$222,"<>Suppressed")-(RANK(J35,$J$12:$J$222)+COUNTIF($J$12:J35,J35)-2)) -> 31 | F35: =VLOOKUP(A35,population!C:O,Settings!$B$3,FALSE) -> 36224.8 | G35: =VLOOKUP(A35,CCG_data_TRACCS!A:N,4,FALSE) -> 2274 | H35: =VLOOKUP(A35,CCG_data_TRACCS!A:N,5,FALSE) -> 4956 | I35: =VLOOKUP(A35,CCG_data_TRACCS!A:N,6,FALSE) -> 4053 | J35: 1.222797927 | M35: 6277.46737 | N35: 6022.080499 | O35: 6540.900559 | P35: 13681.23496 | Q35: 13302.95853 | R35: 14067.53954 | S35: 2636.741921 | T35: 9807.688538 | U35: 1.175843083 | V35: =VLOOKUP(Selections_data_CCG!$G$2,'CurrentData-all children'!A:R,13,FALSE) -> 7077.07289 | W35: =IF(Settings!$B$5="4SIMILAR", VLOOKUP(Selections_data_CCG!$G$2,'CurrentData-4SIMILAR-allchildre'!A:R,13,FALSE), VLOOKUP(Settings!$C$5,'CurrentData-all children'!A:R,13,FALSE)) -> 5510.027757 | X35: =VLOOKUP(Selections_data_CCG!$G$2,'CurrentData-all children'!A:R,16,FALSE) -> 16842.33626 | Y35: =IF(Settings!$B$5="4SIMILAR", VLOOKUP(Selections_data_CCG!$G$2,'CurrentData-4SIMILAR-allchildre'!A:R,16,FALSE), VLOOKUP(Settings!$C$5,'CurrentData-all children'!A:R,16,FALSE)) -> 14706.8643 | Z35: =VLOOKUP(Selections_data_CCG!$G$2,'CurrentData-all children'!A:R,10,FALSE) -> 1.48533414 | AA35: =IF(Settings!$B$5="4SIMILAR", VLOOKUP(Selections_data_CCG!$G$2,'CurrentData-4SIMILAR-allchildre'!A:R,10,FALSE), VLOOKUP(Settings!$C$5,'CurrentData-all children'!A:R,10,FALSE)) -> 1.437047856 | AB35: =IF(IF(G35=0,"",COUNTIF(G$12:G$222,"<>0")-(RANK(M35,$M$12:$M$222)+COUNTIF($M$12:M35,M35)-2))<=INT(0.05*COUNTIF(G$12:G$222,"<>0")),"TOP5", IF(IF(G35=0,"",COUNTIF(G$12:G$222,"<>0")-(RANK(M35,$M$12:$M$222)+COUNTIF($M$12:M35,M35)-2))<=INT(0.25*COUNTIF(G$12:G$222,"<>0")),"TOP25", "")) ->  | AC35: =IF(IF(H35=0,"",COUNTIF(H$12:H$222,"<>0")-(RANK(P35,$P$12:$P$222)+COUNTIF($P$12:P35,P35)-2))<=INT(0.05*COUNTIF(H$12:H$222,"<>0")),"TOP5", IF(IF(H35=0,"",COUNTIF(H$12:H$222,"<>0")-(RANK(P35,$P$12:$P$222)+COUNTIF($P$12:P35,P35)-2))<=INT(0.25*COUNTIF(H$12:H$222,"<>0")),"TOP25", "")) ->  | AD35: =IF(IF(J35="Suppressed","",COUNTIF(J$12:J$222,"<>Suppressed")-(RANK(J35,$J$12:$J$222)+COUNTIF(J$12:$J35,J35)-2))<=INT(0.05*COUNTIF(J$12:J$222,"<>Suppressed")),"TOP5", IF(IF(J35="Suppressed","",COUNTIF(J$12:J$222,"<>Suppressed")-(RANK(J35,$J$12:$J$222)+COUNTIF(J$12:$J35,J35)-2))<=INT(0.25*COUNTIF(J$12:J$222,"<>suppressed")),"TOP25", "")) -> TOP25
A36: 02T | B36: NHS Calderdale | C36: =IF(G36=0,"",COUNTIF(G$12:G$222,"<>0")-(RANK(M36,$M$12:$M$222)+COUNTIF($M$12:M36,M36)-2)) -> 181 | D36: =IF(H36=0,"",COUNTIF(P$12:P$222,"<>Suppressed")-(RANK(P36,$P$12:$P$222)+COUNTIF($P$12:P36,P36)-2)) -> 135 | E36: =IF(J36="Suppressed","",COUNTIF(J$12:J$222,"<>Suppressed")-(RANK(J36,$J$12:$J$222)+COUNTIF($J$12:J36,J36)-2)) -> 37 | F36: =VLOOKUP(A36,population!C:O,Settings!$B$3,FALSE) -> 41611.4 | G36: =VLOOKUP(A36,CCG_data_TRACCS!A:N,4,FALSE) -> 2556 | H36: =VLOOKUP(A36,CCG_data_TRACCS!A:N,5,FALSE) -> 5505 | I36: =VLOOKUP(A36,CCG_data_TRACCS!A:N,6,FALSE) -> 4428 | J36: 1.243224932 | M36: 6142.547475 | N36: 5906.699872 | O36: 6385.39702 | P36: 13229.54767 | Q36: 12882.35525 | R36: 13583.72731 | S36: 2641.383049 | T36: 9817.057609 | U36: 1.179602129 | V36: =VLOOKUP(Selections_data_CCG!$G$2,'CurrentData-all children'!A:R,13,FALSE) -> 7077.07289 | W36: =IF(Settings!$B$5="4SIMILAR", VLOOKUP(Selections_data_CCG!$G$2,'CurrentData-4SIMILAR-allchildre'!A:R,13,FALSE), VLOOKUP(Settings!$C$5,'CurrentData-all children'!A:R,13,FALSE)) -> 5510.027757 | X36: =VLOOKUP(Selections_data_CCG!$G$2,'CurrentData-all children'!A:R,16,FALSE) -> 16842.33626 | Y36: =IF(Settings!$B$5="4SIMILAR", VLOOKUP(Selections_data_CCG!$G$2,'CurrentData-4SIMILAR-allchildre'!A:R,16,FALSE), VLOOKUP(Settings!$C$5,'CurrentData-all children'!A:R,16,FALSE)) -> 14706.8643 | Z36: =VLOOKUP(Selections_data_CCG!$G$2,'CurrentData-all children'!A:R,10,FALSE) -> 1.48533414 | AA36: =IF(Settings!$B$5="4SIMILAR", VLOOKUP(Selections_data_CCG!$G$2,'CurrentData-4SIMILAR-allchildre'!A:R,10,FALSE), VLOOKUP(Settings!$C$5,'CurrentData-all children'!A:R,10,FALSE)) -> 1.437047856 | AB36: =IF(IF(G36=0,"",COUNTIF(G$12:G$222,"<>0")-(RANK(M36,$M$12:$M$222)+COUNTIF($M$12:M36,M36)-2))<=INT(0.05*COUNTIF(G$12:G$222,"<>0")),"TOP5", IF(IF(G36=0,"",COUNTIF(G$12:G$222,"<>0")-(RANK(M36,$M$12:$M$222)+COUNTIF($M$12:M36,M36)-2))<=INT(0.25*COUNTIF(G$12:G$222,"<>0")),"TOP25", "")) ->  | AC36: =IF(IF(H36=0,"",COUNTIF(H$12:H$222,"<>0")-(RANK(P36,$P$12:$P$222)+COUNTIF($P$12:P36,P36)-2))<=INT(0.05*COUNTIF(H$12:H$222,"<>0")),"TOP5", IF(IF(H36=0,"",COUNTIF(H$12:H$222,"<>0")-(RANK(P36,$P$12:$P$222)+COUNTIF($P$12:P36,P36)-2))<=INT(0.25*COUNTIF(H$12:H$222,"<>0")),"TOP25", "")) ->  | AD36: =IF(IF(J36="Suppressed","",COUNTIF(J$12:J$222,"<>Suppressed")-(RANK(J36,$J$12:$J$222)+COUNTIF(J$12:$J36,J36)-2))<=INT(0.05*COUNTIF(J$12:J$222,"<>Suppressed")),"TOP5", IF(IF(J36="Suppressed","",COUNTIF(J$12:J$222,"<>Suppressed")-(RANK(J36,$J$12:$J$222)+COUNTIF(J$12:$J36,J36)-2))<=INT(0.25*COUNTIF(J$12:J$222,"<>suppressed")),"TOP25", "")) -> TOP25
A37: 06H | B37: NHS Cambridgeshire and Peterborough | C37: =IF(G37=0,"",COUNTIF(G$12:G$222,"<>0")-(RANK(M37,$M$12:$M$222)+COUNTIF($M$12:M37,M37)-2)) -> 94 | D37: =IF(H37=0,"",COUNTIF(P$12:P$222,"<>Suppressed")-(RANK(P37,$P$12:$P$222)+COUNTIF($P$12:P37,P37)-2)) -> 65 | E37: =IF(J37="Suppressed","",COUNTIF(J$12:J$222,"<>Suppressed")-(RANK(J37,$J$12:$J$222)+COUNTIF($J$12:J37,J37)-2)) -> 85 | F37: =VLOOKUP(A37,population!C:O,Settings!$B$3,FALSE) -> 161977.2 | G37: =VLOOKUP(A37,CCG_data_TRACCS!A:N,4,FALSE) -> 6633 | H37: =VLOOKUP(A37,CCG_data_TRACCS!A:N,5,FALSE) -> 18094 | I37: =VLOOKUP(A37,CCG_data_TRACCS!A:N,6,FALSE) -> 13034 | J37: 1.388215437 | M37: 4095.020781 | N37: 3997.058388 | O37: 4194.777442 | P37: 11170.70798 | Q37: 11008.52826 | R37: 11334.67904 | S37: 2646.520389 | T37: 9887.355965 | U37: 1.194623027 | V37: =VLOOKUP(Selections_data_CCG!$G$2,'CurrentData-all children'!A:R,13,FALSE) -> 7077.07289 | W37: =IF(Settings!$B$5="4SIMILAR", VLOOKUP(Selections_data_CCG!$G$2,'CurrentData-4SIMILAR-allchildre'!A:R,13,FALSE), VLOOKUP(Settings!$C$5,'CurrentData-all children'!A:R,13,FALSE)) -> 5510.027757 | X37: =VLOOKUP(Selections_data_CCG!$G$2,'CurrentData-all children'!A:R,16,FALSE) -> 16842.33626 | Y37: =IF(Settings!$B$5="4SIMILAR", VLOOKUP(Selections_data_CCG!$G$2,'CurrentData-4SIMILAR-allchildre'!A:R,16,FALSE), VLOOKUP(Settings!$C$5,'CurrentData-all children'!A:R,16,FALSE)) -> 14706.8643 | Z37: =VLOOKUP(Selections_data_CCG!$G$2,'CurrentData-all children'!A:R,10,FALSE) -> 1.48533414 | AA37: =IF(Settings!$B$5="4SIMILAR", VLOOKUP(Selections_data_CCG!$G$2,'CurrentData-4SIMILAR-allchildre'!A:R,10,FALSE), VLOOKUP(Settings!$C$5,'CurrentData-all children'!A:R,10,FALSE)) -> 1.437047856 | AB37: =IF(IF(G37=0,"",COUNTIF(G$12:G$222,"<>0")-(RANK(M37,$M$12:$M$222)+COUNTIF($M$12:M37,M37)-2))<=INT(0.05*COUNTIF(G$12:G$222,"<>0")),"TOP5", IF(IF(G37=0,"",COUNTIF(G$12:G$222,"<>0")-(RANK(M37,$M$12:$M$222)+COUNTIF($M$12:M37,M37)-2))<=INT(0.25*COUNTIF(G$12:G$222,"<>0")),"TOP25", "")) ->  | AC37: =IF(IF(H37=0,"",COUNTIF(H$12:H$222,"<>0")-(RANK(P37,$P$12:$P$222)+COUNTIF($P$12:P37,P37)-2))<=INT(0.05*COUNTIF(H$12:H$222,"<>0")),"TOP5", IF(IF(H37=0,"",COUNTIF(H$12:H$222,"<>0")-(RANK(P37,$P$12:$P$222)+COUNTIF($P$12:P37,P37)-2))<=INT(0.25*COUNTIF(H$12:H$222,"<>0")),"TOP25", "")) ->  | AD37: =IF(IF(J37="Suppressed","",COUNTIF(J$12:J$222,"<>Suppressed")-(RANK(J37,$J$12:$J$222)+COUNTIF(J$12:$J37,J37)-2))<=INT(0.05*COUNTIF(J$12:J$222,"<>Suppressed")),"TOP5", IF(IF(J37="Suppressed","",COUNTIF(J$12:J$222,"<>Suppressed")-(RANK(J37,$J$12:$J$222)+COUNTIF(J$12:$J37,J37)-2))<=INT(0.25*COUNTIF(J$12:J$222,"<>suppressed")),"TOP25", "")) -> 
A38: 07R | B38: NHS Camden | C38: =IF(G38=0,"",COUNTIF(G$12:G$222,"<>0")-(RANK(M38,$M$12:$M$222)+COUNTIF($M$12:M38,M38)-2)) -> 35 | D38: =IF(H38=0,"",COUNTIF(P$12:P$222,"<>Suppressed")-(RANK(P38,$P$12:$P$222)+COUNTIF($P$12:P38,P38)-2)) -> 83 | E38: =IF(J38="Suppressed","",COUNTIF(J$12:J$222,"<>Suppressed")-(RANK(J38,$J$12:$J$222)+COUNTIF($J$12:J38,J38)-2)) -> 167 | F38: =VLOOKUP(A38,population!C:O,Settings!$B$3,FALSE) -> 36846.8 | G38: =VLOOKUP(A38,CCG_data_TRACCS!A:N,4,FALSE) -> 1027 | H38: =VLOOKUP(A38,CCG_data_TRACCS!A:N,5,FALSE) -> 4262 | I38: =VLOOKUP(A38,CCG_data_TRACCS!A:N,6,FALSE) -> 2255 | J38: 1.890022173 | M38: 2787.216258 | N38: 2619.335425 | O38: 2963.034484 | P38: 11566.81177 | Q38: 11222.12851 | R38: 11919.39061 | S38: 2654.021282 | T38: 9937.646812 | U38: 1.204880817 | V38: =VLOOKUP(Selections_data_CCG!$G$2,'CurrentData-all children'!A:R,13,FALSE) -> 7077.07289 | W38: =IF(Settings!$B$5="4SIMILAR", VLOOKUP(Selections_data_CCG!$G$2,'CurrentData-4SIMILAR-allchildre'!A:R,13,FALSE), VLOOKUP(Settings!$C$5,'CurrentData-all children'!A:R,13,FALSE)) -> 5510.027757 | X38: =VLOOKUP(Selections_data_CCG!$G$2,'CurrentData-all children'!A:R,16,FALSE) -> 16842.33626 | Y38: =IF(Settings!$B$5="4SIMILAR", VLOOKUP(Selections_data_CCG!$G$2,'CurrentData-4SIMILAR-allchildre'!A:R,16,FALSE), VLOOKUP(Settings!$C$5,'CurrentData-all children'!A:R,16,FALSE)) -> 14706.8643 | Z38: =VLOOKUP(Selections_data_CCG!$G$2,'CurrentData-all children'!A:R,10,FALSE) -> 1.48533414 | AA38: =IF(Settings!$B$5="4SIMILAR", VLOOKUP(Selections_data_CCG!$G$2,'CurrentData-4SIMILAR-allchildre'!A:R,10,FALSE), VLOOKUP(Settings!$C$5,'CurrentData-all children'!A:R,10,FALSE)) -> 1.437047856 | AB38: =IF(IF(G38=0,"",COUNTIF(G$12:G$222,"<>0")-(RANK(M38,$M$12:$M$222)+COUNTIF($M$12:M38,M38)-2))<=INT(0.05*COUNTIF(G$12:G$222,"<>0")),"TOP5", IF(IF(G38=0,"",COUNTIF(G$12:G$222,"<>0")-(RANK(M38,$M$12:$M$222)+COUNTIF($M$12:M38,M38)-2))<=INT(0.25*COUNTIF(G$12:G$222,"<>0")),"TOP25", "")) -> TOP25 | AC38: =IF(IF(H38=0,"",COUNTIF(H$12:H$222,"<>0")-(RANK(P38,$P$12:$P$222)+COUNTIF($P$12:P38,P38)-2))<=INT(0.05*COUNTIF(H$12:H$222,"<>0")),"TOP5", IF(IF(H38=0,"",COUNTIF(H$12:H$222,"<>0")-(RANK(P38,$P$12:$P$222)+COUNTIF($P$12:P38,P38)-2))<=INT(0.25*COUNTIF(H$12:H$222,"<>0")),"TOP25", "")) ->  | AD38: =IF(IF(J38="Suppressed","",COUNTIF(J$12:J$222,"<>Suppressed")-(RANK(J38,$J$12:$J$222)+COUNTIF(J$12:$J38,J38)-2))<=INT(0.05*COUNTIF(J$12:J$222,"<>Suppressed")),"TOP5", IF(IF(J38="Suppressed","",COUNTIF(J$12:J$222,"<>Suppressed")-(RANK(J38,$J$12:$J$222)+COUNTIF(J$12:$J38,J38)-2))<=INT(0.25*COUNTIF(J$12:J$222,"<>suppressed")),"TOP25", "")) -> 
A39: 04Y | B39: NHS Cannock Chase | C39: =IF(G39=0,"",COUNTIF(G$12:G$222,"<>0")-(RANK(M39,$M$12:$M$222)+COUNTIF($M$12:M39,M39)-2)) -> 206 | D39: =IF(H39=0,"",COUNTIF(P$12:P$222,"<>Suppressed")-(RANK(P39,$P$12:$P$222)+COUNTIF($P$12:P39,P39)-2)) -> 169 | E39: =IF(J39="Suppressed","",COUNTIF(J$12:J$222,"<>Suppressed")-(RANK(J39,$J$12:$J$222)+COUNTIF($J$12:J39,J39)-2)) -> 24 | F39: =VLOOKUP(A39,population!C:O,Settings!$B$3,FALSE) -> 23302.8 | G39: =VLOOKUP(A39,CCG_data_TRACCS!A:N,4,FALSE) -> 1740 | H39: =VLOOKUP(A39,CCG_data_TRACCS!A:N,5,FALSE) -> 3417 | I39: =VLOOKUP(A39,CCG_data_TRACCS!A:N,6,FALSE) -> 2906 | J39: 1.175843083 | M39: 7466.913847 | N39: 7120.149805 | O39: 7826.1986 | P39: 14663.47392 | Q39: 14175.89256 | R39: 15163.54738 | S39: 2722.8098 | T39: 10060.86974 | U39: 1.207128447 | V39: =VLOOKUP(Selections_data_CCG!$G$2,'CurrentData-all children'!A:R,13,FALSE) -> 7077.07289 | W39: =IF(Settings!$B$5="4SIMILAR", VLOOKUP(Selections_data_CCG!$G$2,'CurrentData-4SIMILAR-allchildre'!A:R,13,FALSE), VLOOKUP(Settings!$C$5,'CurrentData-all children'!A:R,13,FALSE)) -> 5510.027757 | X39: =VLOOKUP(Selections_data_CCG!$G$2,'CurrentData-all children'!A:R,16,FALSE) -> 16842.33626 | Y39: =IF(Settings!$B$5="4SIMILAR", VLOOKUP(Selections_data_CCG!$G$2,'CurrentData-4SIMILAR-allchildre'!A:R,16,FALSE), VLOOKUP(Settings!$C$5,'CurrentData-all children'!A:R,16,FALSE)) -> 14706.8643 | Z39: =VLOOKUP(Selections_data_CCG!$G$2,'CurrentData-all children'!A:R,10,FALSE) -> 1.48533414 | AA39: =IF(Settings!$B$5="4SIMILAR", VLOOKUP(Selections_data_CCG!$G$2,'CurrentData-4SIMILAR-allchildre'!A:R,10,FALSE), VLOOKUP(Settings!$C$5,'CurrentData-all children'!A:R,10,FALSE)) -> 1.437047856 | AB39: =IF(IF(G39=0,"",COUNTIF(G$12:G$222,"<>0")-(RANK(M39,$M$12:$M$222)+COUNTIF($M$12:M39,M39)-2))<=INT(0.05*COUNTIF(G$12:G$222,"<>0")),"TOP5", IF(IF(G39=0,"",COUNTIF(G$12:G$222,"<>0")-(RANK(M39,$M$12:$M$222)+COUNTIF($M$12:M39,M39)-2))<=INT(0.25*COUNTIF(G$12:G$222,"<>0")),"TOP25", "")) ->  | AC39: =IF(IF(H39=0,"",COUNTIF(H$12:H$222,"<>0")-(RANK(P39,$P$12:$P$222)+COUNTIF($P$12:P39,P39)-2))<=INT(0.05*COUNTIF(H$12:H$222,"<>0")),"TOP5", IF(IF(H39=0,"",COUNTIF(H$12:H$222,"<>0")-(RANK(P39,$P$12:$P$222)+COUNTIF($P$12:P39,P39)-2))<=INT(0.25*COUNTIF(H$12:H$222,"<>0")),"TOP25", "")) ->  | AD39: =IF(IF(J39="Suppressed","",COUNTIF(J$12:J$222,"<>Suppressed")-(RANK(J39,$J$12:$J$222)+COUNTIF(J$12:$J39,J39)-2))<=INT(0.05*COUNTIF(J$12:J$222,"<>Suppressed")),"TOP5", IF(IF(J39="Suppressed","",COUNTIF(J$12:J$222,"<>Suppressed")-(RANK(J39,$J$12:$J$222)+COUNTIF(J$12:$J39,J39)-2))<=INT(0.25*COUNTIF(J$12:J$222,"<>suppressed")),"TOP25", "")) -> TOP25
A40: 09E | B40: NHS Canterbury and Coastal | C40: =IF(G40=0,"",COUNTIF(G$12:G$222,"<>0")-(RANK(M40,$M$12:$M$222)+COUNTIF($M$12:M40,M40)-2)) -> 17 | D40: =IF(H40=0,"",COUNTIF(P$12:P$222,"<>Suppressed")-(RANK(P40,$P$12:$P$222)+COUNTIF($P$12:P40,P40)-2)) -> 11 | E40: =IF(J40="Suppressed","",COUNTIF(J$12:J$222,"<>Suppressed")-(RANK(J40,$J$12:$J$222)+COUNTIF($J$12:J40,J40)-2)) -> 147 | F40: =VLOOKUP(A40,population!C:O,Settings!$B$3,FALSE) -> 34796.4 | G40: =VLOOKUP(A40,CCG_data_TRACCS!A:N,4,FALSE) -> 867 | H40: =VLOOKUP(A40,CCG_data_TRACCS!A:N,5,FALSE) -> 3200 | I40: =VLOOKUP(A40,CCG_data_TRACCS!A:N,6,FALSE) -> 1902 | J40: 1.682439537 | M40: 2491.637066 | N40: 2328.520996 | O40: 2663.165899 | P40: 9196.353646 | Q40: 8880.451955 | R40: 9520.622763 | S40: 2729.08695 | T40: 10074.45915 | U40: 1.209927284 | V40: =VLOOKUP(Selections_data_CCG!$G$2,'CurrentData-all children'!A:R,13,FALSE) -> 7077.07289 | W40: =IF(Settings!$B$5="4SIMILAR", VLOOKUP(Selections_data_CCG!$G$2,'CurrentData-4SIMILAR-allchildre'!A:R,13,FALSE), VLOOKUP(Settings!$C$5,'CurrentData-all children'!A:R,13,FALSE)) -> 5510.027757 | X40: =VLOOKUP(Selections_data_CCG!$G$2,'CurrentData-all children'!A:R,16,FALSE) -> 16842.33626 | Y40: =IF(Settings!$B$5="4SIMILAR", VLOOKUP(Selections_data_CCG!$G$2,'CurrentData-4SIMILAR-allchildre'!A:R,16,FALSE), VLOOKUP(Settings!$C$5,'CurrentData-all children'!A:R,16,FALSE)) -> 14706.8643 | Z40: =VLOOKUP(Selections_data_CCG!$G$2,'CurrentData-all children'!A:R,10,FALSE) -> 1.48533414 | AA40: =IF(Settings!$B$5="4SIMILAR", VLOOKUP(Selections_data_CCG!$G$2,'CurrentData-4SIMILAR-allchildre'!A:R,10,FALSE), VLOOKUP(Settings!$C$5,'CurrentData-all children'!A:R,10,FALSE)) -> 1.437047856 | AB40: =IF(IF(G40=0,"",COUNTIF(G$12:G$222,"<>0")-(RANK(M40,$M$12:$M$222)+COUNTIF($M$12:M40,M40)-2))<=INT(0.05*COUNTIF(G$12:G$222,"<>0")),"TOP5", IF(IF(G40=0,"",COUNTIF(G$12:G$222,"<>0")-(RANK(M40,$M$12:$M$222)+COUNTIF($M$12:M40,M40)-2))<=INT(0.25*COUNTIF(G$12:G$222,"<>0")),"TOP25", "")) -> TOP25 | AC40: =IF(IF(H40=0,"",COUNTIF(H$12:H$222,"<>0")-(RANK(P40,$P$12:$P$222)+COUNTIF($P$12:P40,P40)-2))<=INT(0.05*COUNTIF(H$12:H$222,"<>0")),"TOP5", IF(IF(H40=0,"",COUNTIF(H$12:H$222,"<>0")-(RANK(P40,$P$12:$P$222)+COUNTIF($P$12:P40,P40)-2))<=INT(0.25*COUNTIF(H$12:H$222,"<>0")),"TOP25", "")) -> TOP25 | AD40: =IF(IF(J40="Suppressed","",COUNTIF(J$12:J$222,"<>Suppressed")-(RANK(J40,$J$12:$J$222)+COUNTIF(J$12:$J40,J40)-2))<=INT(0.05*COUNTIF(J$12:J$222,"<>Suppressed")),"TOP5", IF(IF(J40="Suppressed","",COUNTIF(J$12:J$222,"<>Suppressed")-(RANK(J40,$J$12:$J$222)+COUNTIF(J$12:$J40,J40)-2))<=INT(0.25*COUNTIF(J$12:J$222,"<>suppressed")),"TOP25", "")) -> 
A41: 99F | B41: NHS Castle Point, Rayleigh and Rochford | C41: =IF(G41=0,"",COUNTIF(G$12:G$222,"<>0")-(RANK(M41,$M$12:$M$222)+COUNTIF($M$12:M41,M41)-2)) -> 2 | D41: =IF(H41=0,"",COUNTIF(P$12:P$222,"<>Suppressed")-(RANK(P41,$P$12:$P$222)+COUNTIF($P$12:P41,P41)-2)) -> 88 | E41: =IF(J41="Suppressed","",COUNTIF(J$12:J$222,"<>Suppressed")-(RANK(J41,$J$12:$J$222)+COUNTIF($J$12:J41,J41)-2)) -> 207 | F41: =VLOOKUP(A41,population!C:O,Settings!$B$3,FALSE) -> 30292.8 | G41: =VLOOKUP(A41,CCG_data_TRACCS!A:N,4,FALSE) -> 621 | H41: =VLOOKUP(A41,CCG_data_TRACCS!A:N,5,FALSE) -> 3587 | I41: =VLOOKUP(A41,CCG_data_TRACCS!A:N,6,FALSE) -> 1509 | J41: 2.377070908 | M41: 2049.992077 | N41: 1891.90573 | O41: 2217.761524 | P41: 11841.09755 | Q41: 11456.73039 | R41: 12235.07298 | S41: 2739.184161 | T41: 10197.16238 | U41: 1.215728716 | V41: =VLOOKUP(Selections_data_CCG!$G$2,'CurrentData-all children'!A:R,13,FALSE) -> 7077.07289 | W41: =IF(Settings!$B$5="4SIMILAR", VLOOKUP(Selections_data_CCG!$G$2,'CurrentData-4SIMILAR-allchildre'!A:R,13,FALSE), VLOOKUP(Settings!$C$5,'CurrentData-all children'!A:R,13,FALSE)) -> 5510.027757 | X41: =VLOOKUP(Selections_data_CCG!$G$2,'CurrentData-all children'!A:R,16,FALSE) -> 16842.33626 | Y41: =IF(Settings!$B$5="4SIMILAR", VLOOKUP(Selections_data_CCG!$G$2,'CurrentData-4SIMILAR-allchildre'!A:R,16,FALSE), VLOOKUP(Settings!$C$5,'CurrentData-all children'!A:R,16,FALSE)) -> 14706.8643 | Z41: =VLOOKUP(Selections_data_CCG!$G$2,'CurrentData-all children'!A:R,10,FALSE) -> 1.48533414 | AA41: =IF(Settings!$B$5="4SIMILAR", VLOOKUP(Selections_data_CCG!$G$2,'CurrentData-4SIMILAR-allchildre'!A:R,10,FALSE), VLOOKUP(Settings!$C$5,'CurrentData-all children'!A:R,10,FALSE)) -> 1.437047856 | AB41: =IF(IF(G41=0,"",COUNTIF(G$12:G$222,"<>0")-(RANK(M41,$M$12:$M$222)+COUNTIF($M$12:M41,M41)-2))<=INT(0.05*COUNTIF(G$12:G$222,"<>0")),"TOP5", IF(IF(G41=0,"",COUNTIF(G$12:G$222,"<>0")-(RANK(M41,$M$12:$M$222)+COUNTIF($M$12:M41,M41)-2))<=INT(0.25*COUNTIF(G$12:G$222,"<>0")),"TOP25", "")) -> TOP5 | AC41: =IF(IF(H41=0,"",COUNTIF(H$12:H$222,"<>0")-(RANK(P41,$P$12:$P$222)+COUNTIF($P$12:P41,P41)-2))<=INT(0.05*COUNTIF(H$12:H$222,"<>0")),"TOP5", IF(IF(H41=0,"",COUNTIF(H$12:H$222,"<>0")-(RANK(P41,$P$12:$P$222)+COUNTIF($P$12:P41,P41)-2))<=INT(0.25*COUNTIF(H$12:H$222,"<>0")),"TOP25", "")) ->  | AD41: =IF(IF(J41="Suppressed","",COUNTIF(J$12:J$222,"<>Suppressed")-(RANK(J41,$J$12:$J$222)+COUNTIF(J$12:$J41,J41)-2))<=INT(0.05*COUNTIF(J$12:J$222,"<>Suppressed")),"TOP5", IF(IF(J41="Suppressed","",COUNTIF(J$12:J$222,"<>Suppressed")-(RANK(J41,$J$12:$J$222)+COUNTIF(J$12:$J41,J41)-2))<=INT(0.25*COUNTIF(J$12:J$222,"<>suppressed")),"TOP25", "")) -> 
A42: 09A | B42: NHS Central London (Westminster) | C42: =IF(G42=0,"",COUNTIF(G$12:G$222,"<>0")-(RANK(M42,$M$12:$M$222)+COUNTIF($M$12:M42,M42)-2)) -> 5 | D42: =IF(H42=0,"",COUNTIF(P$12:P$222,"<>Suppressed")-(RANK(P42,$P$12:$P$222)+COUNTIF($P$12:P42,P42)-2)) -> 208 | E42: =IF(J42="Suppressed","",COUNTIF(J$12:J$222,"<>Suppressed")-(RANK(J42,$J$12:$J$222)+COUNTIF($J$12:J42,J42)-2)) -> 211 | F42: =VLOOKUP(A42,population!C:O,Settings!$B$3,FALSE) -> 25794.8 | G42: =VLOOKUP(A42,CCG_data_TRACCS!A:N,4,FALSE) -> 566 | H42: =VLOOKUP(A42,CCG_data_TRACCS!A:N,5,FALSE) -> 5101 | I42: =VLOOKUP(A42,CCG_data_TRACCS!A:N,6,FALSE) -> 1506 | J42: 3.387118194 | M42: 2194.2407 | N42: 2017.168303 | O42: 2382.691799 | P42: 19775.30355 | Q42: 19236.30414 | R42: 20325.5765 | S42: 2744.135517 | T42: 10288.49636 | U42: 1.222797927 | V42: =VLOOKUP(Selections_data_CCG!$G$2,'CurrentData-all children'!A:R,13,FALSE) -> 7077.07289 | W42: =IF(Settings!$B$5="4SIMILAR", VLOOKUP(Selections_data_CCG!$G$2,'CurrentData-4SIMILAR-allchildre'!A:R,13,FALSE), VLOOKUP(Settings!$C$5,'CurrentData-all children'!A:R,13,FALSE)) -> 5510.027757 | X42: =VLOOKUP(Selections_data_CCG!$G$2,'CurrentData-all children'!A:R,16,FALSE) -> 16842.33626 | Y42: =IF(Settings!$B$5="4SIMILAR", VLOOKUP(Selections_data_CCG!$G$2,'CurrentData-4SIMILAR-allchildre'!A:R,16,FALSE), VLOOKUP(Settings!$C$5,'CurrentData-all children'!A:R,16,FALSE)) -> 14706.8643 | Z42: =VLOOKUP(Selections_data_CCG!$G$2,'CurrentData-all children'!A:R,10,FALSE) -> 1.48533414 | AA42: =IF(Settings!$B$5="4SIMILAR", VLOOKUP(Selections_data_CCG!$G$2,'CurrentData-4SIMILAR-allchildre'!A:R,10,FALSE), VLOOKUP(Settings!$C$5,'CurrentData-all children'!A:R,10,FALSE)) -> 1.437047856 | AB42: =IF(IF(G42=0,"",COUNTIF(G$12:G$222,"<>0")-(RANK(M42,$M$12:$M$222)+COUNTIF($M$12:M42,M42)-2))<=INT(0.05*COUNTIF(G$12:G$222,"<>0")),"TOP5", IF(IF(G42=0,"",COUNTIF(G$12:G$222,"<>0")-(RANK(M42,$M$12:$M$222)+COUNTIF($M$12:M42,M42)-2))<=INT(0.25*COUNTIF(G$12:G$222,"<>0")),"TOP25", "")) -> TOP5 | AC42: =IF(IF(H42=0,"",COUNTIF(H$12:H$222,"<>0")-(RANK(P42,$P$12:$P$222)+COUNTIF($P$12:P42,P42)-2))<=INT(0.05*COUNTIF(H$12:H$222,"<>0")),"TOP5", IF(IF(H42=0,"",COUNTIF(H$12:H$222,"<>0")-(RANK(P42,$P$12:$P$222)+COUNTIF($P$12:P42,P42)-2))<=INT(0.25*COUNTIF(H$12:H$222,"<>0")),"TOP25", "")) ->  | AD42: =IF(IF(J42="Suppressed","",COUNTIF(J$12:J$222,"<>Suppressed")-(RANK(J42,$J$12:$J$222)+COUNTIF(J$12:$J42,J42)-2))<=INT(0.05*COUNTIF(J$12:J$222,"<>Suppressed")),"TOP5", IF(IF(J42="Suppressed","",COUNTIF(J$12:J$222,"<>Suppressed")-(RANK(J42,$J$12:$J$222)+COUNTIF(J$12:$J42,J42)-2))<=INT(0.25*COUNTIF(J$12:J$222,"<>suppressed")),"TOP25", "")) -> 
A43: 00W | B43: NHS Central Manchester | C43: =IF(G43=0,"",COUNTIF(G$12:G$222,"<>0")-(RANK(M43,$M$12:$M$222)+COUNTIF($M$12:M43,M43)-2)) -> 192 | D43: =IF(H43=0,"",COUNTIF(P$12:P$222,"<>Suppressed")-(RANK(P43,$P$12:$P$222)+COUNTIF($P$12:P43,P43)-2)) -> 211 | E43: =IF(J43="Suppressed","",COUNTIF(J$12:J$222,"<>Suppressed")-(RANK(J43,$J$12:$J$222)+COUNTIF($J$12:J43,J43)-2)) -> 182 | F43: =VLOOKUP(A43,population!C:O,Settings!$B$3,FALSE) -> 41434.8 | G43: =VLOOKUP(A43,CCG_data_TRACCS!A:N,4,FALSE) -> 2705 | H43: =VLOOKUP(A43,CCG_data_TRACCS!A:N,5,FALSE) -> 9463 | I43: =VLOOKUP(A43,CCG_data_TRACCS!A:N,6,FALSE) -> 4669 | J43: 2.026772328 | M43: 6528.328844 | N43: 6284.604138 | O43: 6779.08404 | P43: 22838.29052 | Q43: 22380.43256 | R43: 23303.15794 | S43: 2751.036649 | T43: 10356.70506 | U43: 1.226631749 | V43: =VLOOKUP(Selections_data_CCG!$G$2,'CurrentData-all children'!A:R,13,FALSE) -> 7077.07289 | W43: =IF(Settings!$B$5="4SIMILAR", VLOOKUP(Selections_data_CCG!$G$2,'CurrentData-4SIMILAR-allchildre'!A:R,13,FALSE), VLOOKUP(Settings!$C$5,'CurrentData-all children'!A:R,13,FALSE)) -> 5510.027757 | X43: =VLOOKUP(Selections_data_CCG!$G$2,'CurrentData-all children'!A:R,16,FALSE) -> 16842.33626 | Y43: =IF(Settings!$B$5="4SIMILAR", VLOOKUP(Selections_data_CCG!$G$2,'CurrentData-4SIMILAR-allchildre'!A:R,16,FALSE), VLOOKUP(Settings!$C$5,'CurrentData-all children'!A:R,16,FALSE)) -> 14706.8643 | Z43: =VLOOKUP(Selections_data_CCG!$G$2,'CurrentData-all children'!A:R,10,FALSE) -> 1.48533414 | AA43: =IF(Settings!$B$5="4SIMILAR", VLOOKUP(Selections_data_CCG!$G$2,'CurrentData-4SIMILAR-allchildre'!A:R,10,FALSE), VLOOKUP(Settings!$C$5,'CurrentData-all children'!A:R,10,FALSE)) -> 1.437047856 | AB43: =IF(IF(G43=0,"",COUNTIF(G$12:G$222,"<>0")-(RANK(M43,$M$12:$M$222)+COUNTIF($M$12:M43,M43)-2))<=INT(0.05*COUNTIF(G$12:G$222,"<>0")),"TOP5", IF(IF(G43=0,"",COUNTIF(G$12:G$222,"<>0")-(RANK(M43,$M$12:$M$222)+COUNTIF($M$12:M43,M43)-2))<=INT(0.25*COUNTIF(G$12:G$222,"<>0")),"TOP25", "")) ->  | AC43: =IF(IF(H43=0,"",COUNTIF(H$12:H$222,"<>0")-(RANK(P43,$P$12:$P$222)+COUNTIF($P$12:P43,P43)-2))<=INT(0.05*COUNTIF(H$12:H$222,"<>0")),"TOP5", IF(IF(H43=0,"",COUNTIF(H$12:H$222,"<>0")-(RANK(P43,$P$12:$P$222)+COUNTIF($P$12:P43,P43)-2))<=INT(0.25*COUNTIF(H$12:H$222,"<>0")),"TOP25", "")) ->  | AD43: =IF(IF(J43="Suppressed","",COUNTIF(J$12:J$222,"<>Suppressed")-(RANK(J43,$J$12:$J$222)+COUNTIF(J$12:$J43,J43)-2))<=INT(0.05*COUNTIF(J$12:J$222,"<>Suppressed")),"TOP5", IF(IF(J43="Suppressed","",COUNTIF(J$12:J$222,"<>Suppressed")-(RANK(J43,$J$12:$J$222)+COUNTIF(J$12:$J43,J43)-2))<=INT(0.25*COUNTIF(J$12:J$222,"<>suppressed")),"TOP25", "")) -> 
A44: 10H | B44: NHS Chiltern | C44: =IF(G44=0,"",COUNTIF(G$12:G$222,"<>0")-(RANK(M44,$M$12:$M$222)+COUNTIF($M$12:M44,M44)-2)) -> 114 | D44: =IF(H44=0,"",COUNTIF(P$12:P$222,"<>Suppressed")-(RANK(P44,$P$12:$P$222)+COUNTIF($P$12:P44,P44)-2)) -> 38 | E44: =IF(J44="Suppressed","",COUNTIF(J$12:J$222,"<>Suppressed")-(RANK(J44,$J$12:$J$222)+COUNTIF($J$12:J44,J44)-2)) -> 56 | F44: =VLOOKUP(A44,population!C:O,Settings!$B$3,FALSE) -> 64048.6 | G44: =VLOOKUP(A44,CCG_data_TRACCS!A:N,4,FALSE) -> 2848 | H44: =VLOOKUP(A44,CCG_data_TRACCS!A:N,5,FALSE) -> 6857 | I44: =VLOOKUP(A44,CCG_data_TRACCS!A:N,6,FALSE) -> 5316 | J44: 1.289879609 | M44: 4446.623345 | N44: 4284.798306 | O44: 4612.99586 | P44: 10705.93268 | Q44: 10454.01505 | R44: 10962.38767 | S44: 2764.900662 | T44: 10374.21688 | U44: =VLOOKUP(33,E:R,6,FALSE) -> 1.229381443 | V44: =VLOOKUP(Selections_data_CCG!$G$2,'CurrentData-all children'!A:R,13,FALSE) -> 7077.07289 | W44: =IF(Settings!$B$5="4SIMILAR", VLOOKUP(Selections_data_CCG!$G$2,'CurrentData-4SIMILAR-allchildre'!A:R,13,FALSE), VLOOKUP(Settings!$C$5,'CurrentData-all children'!A:R,13,FALSE)) -> 5510.027757 | X44: =VLOOKUP(Selections_data_CCG!$G$2,'CurrentData-all children'!A:R,16,FALSE) -> 16842.33626 | Y44: =IF(Settings!$B$5="4SIMILAR", VLOOKUP(Selections_data_CCG!$G$2,'CurrentData-4SIMILAR-allchildre'!A:R,16,FALSE), VLOOKUP(Settings!$C$5,'CurrentData-all children'!A:R,16,FALSE)) -> 14706.8643 | Z44: =VLOOKUP(Selections_data_CCG!$G$2,'CurrentData-all children'!A:R,10,FALSE) -> 1.48533414 | AA44: =IF(Settings!$B$5="4SIMILAR", VLOOKUP(Selections_data_CCG!$G$2,'CurrentData-4SIMILAR-allchildre'!A:R,10,FALSE), VLOOKUP(Settings!$C$5,'CurrentData-all children'!A:R,10,FALSE)) -> 1.437047856 | AB44: =IF(IF(G44=0,"",COUNTIF(G$12:G$222,"<>0")-(RANK(M44,$M$12:$M$222)+COUNTIF($M$12:M44,M44)-2))<=INT(0.05*COUNTIF(G$12:G$222,"<>0")),"TOP5", IF(IF(G44=0,"",COUNTIF(G$12:G$222,"<>0")-(RANK(M44,$M$12:$M$222)+COUNTIF($M$12:M44,M44)-2))<=INT(0.25*COUNTIF(G$12:G$222,"<>0")),"TOP25", "")) ->  | AC44: =IF(IF(H44=0,"",COUNTIF(H$12:H$222,"<>0")-(RANK(P44,$P$12:$P$222)+COUNTIF($P$12:P44,P44)-2))<=INT(0.05*COUNTIF(H$12:H$222,"<>0")),"TOP5", IF(IF(H44=0,"",COUNTIF(H$12:H$222,"<>0")-(RANK(P44,$P$12:$P$222)+COUNTIF($P$12:P44,P44)-2))<=INT(0.25*COUNTIF(H$12:H$222,"<>0")),"TOP25", "")) -> TOP25 | AD44: =IF(IF(J44="Suppressed","",COUNTIF(J$12:J$222,"<>Suppressed")-(RANK(J44,$J$12:$J$222)+COUNTIF(J$12:$J44,J44)-2))<=INT(0.05*COUNTIF(J$12:J$222,"<>Suppressed")),"TOP5", IF(IF(J44="Suppressed","",COUNTIF(J$12:J$222,"<>Suppressed")-(RANK(J44,$J$12:$J$222)+COUNTIF(J$12:$J44,J44)-2))<=INT(0.25*COUNTIF(J$12:J$222,"<>suppressed")),"TOP25", "")) -> 
A45: 00X | B45: NHS Chorley and South Ribble | C45: =IF(G45=0,"",COUNTIF(G$12:G$222,"<>0")-(RANK(M45,$M$12:$M$222)+COUNTIF($M$12:M45,M45)-2)) -> 142 | D45: =IF(H45=0,"",COUNTIF(P$12:P$222,"<>Suppressed")-(RANK(P45,$P$12:$P$222)+COUNTIF($P$12:P45,P45)-2)) -> 161 | E45: =IF(J45="Suppressed","",COUNTIF(J$12:J$222,"<>Suppressed")-(RANK(J45,$J$12:$J$222)+COUNTIF($J$12:J45,J45)-2)) -> 108 | F45: =VLOOKUP(A45,population!C:O,Settings!$B$3,FALSE) -> 31191.4 | G45: =VLOOKUP(A45,CCG_data_TRACCS!A:N,4,FALSE) -> 1631 | H45: =VLOOKUP(A45,CCG_data_TRACCS!A:N,5,FALSE) -> 4501 | I45: =VLOOKUP(A45,CCG_data_TRACCS!A:N,6,FALSE) -> 3088 | J45: 1.45757772 | M45: 5229.005431 | N45: 4978.28429 | O45: 5489.083125 | P45: 14430.25962 | Q45: 14011.73553 | R45: 14858.10957 | S45: 2784.675765 | T45: 10598.09475 | U45: =VLOOKUP(ROW(U45)-11,E:R,6,FALSE) -> 1.234018692 | V45: =VLOOKUP(Selections_data_CCG!$G$2,'CurrentData-all children'!A:R,13,FALSE) -> 7077.07289 | W45: =IF(Settings!$B$5="4SIMILAR", VLOOKUP(Selections_data_CCG!$G$2,'CurrentData-4SIMILAR-allchildre'!A:R,13,FALSE), VLOOKUP(Settings!$C$5,'CurrentData-all children'!A:R,13,FALSE)) -> 5510.027757 | X45: =VLOOKUP(Selections_data_CCG!$G$2,'CurrentData-all children'!A:R,16,FALSE) -> 16842.33626 | Y45: =IF(Settings!$B$5="4SIMILAR", VLOOKUP(Selections_data_CCG!$G$2,'CurrentData-4SIMILAR-allchildre'!A:R,16,FALSE), VLOOKUP(Settings!$C$5,'CurrentData-all children'!A:R,16,FALSE)) -> 14706.8643 | Z45: =VLOOKUP(Selections_data_CCG!$G$2,'CurrentData-all children'!A:R,10,FALSE) -> 1.48533414 | AA45: =IF(Settings!$B$5="4SIMILAR", VLOOKUP(Selections_data_CCG!$G$2,'CurrentData-4SIMILAR-allchildre'!A:R,10,FALSE), VLOOKUP(Settings!$C$5,'CurrentData-all children'!A:R,10,FALSE)) -> 1.437047856 | AB45: =IF(IF(G45=0,"",COUNTIF(G$12:G$222,"<>0")-(RANK(M45,$M$12:$M$222)+COUNTIF($M$12:M45,M45)-2))<=INT(0.05*COUNTIF(G$12:G$222,"<>0")),"TOP5", IF(IF(G45=0,"",COUNTIF(G$12:G$222,"<>0")-(RANK(M45,$M$12:$M$222)+COUNTIF($M$12:M45,M45)-2))<=INT(0.25*COUNTIF(G$12:G$222,"<>0")),"TOP25", "")) ->  | AC45: =IF(IF(H45=0,"",COUNTIF(H$12:H$222,"<>0")-(RANK(P45,$P$12:$P$222)+COUNTIF($P$12:P45,P45)-2))<=INT(0.05*COUNTIF(H$12:H$222,"<>0")),"TOP5", IF(IF(H45=0,"",COUNTIF(H$12:H$222,"<>0")-(RANK(P45,$P$12:$P$222)+COUNTIF($P$12:P45,P45)-2))<=INT(0.25*COUNTIF(H$12:H$222,"<>0")),"TOP25", "")) ->  | AD45: =IF(IF(J45="Suppressed","",COUNTIF(J$12:J$222,"<>Suppressed")-(RANK(J45,$J$12:$J$222)+COUNTIF(J$12:$J45,J45)-2))<=INT(0.05*COUNTIF(J$12:J$222,"<>Suppressed")),"TOP5", IF(IF(J45="Suppressed","",COUNTIF(J$12:J$222,"<>Suppressed")-(RANK(J45,$J$12:$J$222)+COUNTIF(J$12:$J45,J45)-2))<=INT(0.25*COUNTIF(J$12:J$222,"<>suppressed")),"TOP25", "")) -> 
A46: 07T | B46: NHS City and Hackney | C46: =IF(G46=0,"",COUNTIF(G$12:G$222,"<>0")-(RANK(M46,$M$12:$M$222)+COUNTIF($M$12:M46,M46)-2)) -> 68 | D46: =IF(H46=0,"",COUNTIF(P$12:P$222,"<>Suppressed")-(RANK(P46,$P$12:$P$222)+COUNTIF($P$12:P46,P46)-2)) -> 84 | E46: =IF(J46="Suppressed","",COUNTIF(J$12:J$222,"<>Suppressed")-(RANK(J46,$J$12:$J$222)+COUNTIF($J$12:J46,J46)-2)) -> 144 | F46: =VLOOKUP(A46,population!C:O,Settings!$B$3,FALSE) -> 57197.4 | G46: =VLOOKUP(A46,CCG_data_TRACCS!A:N,4,FALSE) -> 1987 | H46: =VLOOKUP(A46,CCG_data_TRACCS!A:N,5,FALSE) -> 6646 | I46: =VLOOKUP(A46,CCG_data_TRACCS!A:N,6,FALSE) -> 4018 | J46: 1.654056745 | M46: 3473.93413 | N46: 3322.849806 | O46: 3630.116907 | P46: 11619.40927 | Q46: 11341.71642 | R46: 11902.18329 | S46: 2787.216258 | T46: 10599.21244 | U46: 1.234115139 | V46: =VLOOKUP(Selections_data_CCG!$G$2,'CurrentData-all children'!A:R,13,FALSE) -> 7077.07289 | W46: =IF(Settings!$B$5="4SIMILAR", VLOOKUP(Selections_data_CCG!$G$2,'CurrentData-4SIMILAR-allchildre'!A:R,13,FALSE), VLOOKUP(Settings!$C$5,'CurrentData-all children'!A:R,13,FALSE)) -> 5510.027757 | X46: =VLOOKUP(Selections_data_CCG!$G$2,'CurrentData-all children'!A:R,16,FALSE) -> 16842.33626 | Y46: =IF(Settings!$B$5="4SIMILAR", VLOOKUP(Selections_data_CCG!$G$2,'CurrentData-4SIMILAR-allchildre'!A:R,16,FALSE), VLOOKUP(Settings!$C$5,'CurrentData-all children'!A:R,16,FALSE)) -> 14706.8643 | Z46: =VLOOKUP(Selections_data_CCG!$G$2,'CurrentData-all children'!A:R,10,FALSE) -> 1.48533414 | AA46: =IF(Settings!$B$5="4SIMILAR", VLOOKUP(Selections_data_CCG!$G$2,'CurrentData-4SIMILAR-allchildre'!A:R,10,FALSE), VLOOKUP(Settings!$C$5,'CurrentData-all children'!A:R,10,FALSE)) -> 1.437047856 | AB46: =IF(IF(G46=0,"",COUNTIF(G$12:G$222,"<>0")-(RANK(M46,$M$12:$M$222)+COUNTIF($M$12:M46,M46)-2))<=INT(0.05*COUNTIF(G$12:G$222,"<>0")),"TOP5", IF(IF(G46=0,"",COUNTIF(G$12:G$222,"<>0")-(RANK(M46,$M$12:$M$222)+COUNTIF($M$12:M46,M46)-2))<=INT(0.25*COUNTIF(G$12:G$222,"<>0")),"TOP25", "")) ->  | AC46: =IF(IF(H46=0,"",COUNTIF(H$12:H$222,"<>0")-(RANK(P46,$P$12:$P$222)+COUNTIF($P$12:P46,P46)-2))<=INT(0.05*COUNTIF(H$12:H$222,"<>0")),"TOP5", IF(IF(H46=0,"",COUNTIF(H$12:H$222,"<>0")-(RANK(P46,$P$12:$P$222)+COUNTIF($P$12:P46,P46)-2))<=INT(0.25*COUNTIF(H$12:H$222,"<>0")),"TOP25", "")) ->  | AD46: =IF(IF(J46="Suppressed","",COUNTIF(J$12:J$222,"<>Suppressed")-(RANK(J46,$J$12:$J$222)+COUNTIF(J$12:$J46,J46)-2))<=INT(0.05*COUNTIF(J$12:J$222,"<>Suppressed")),"TOP5", IF(IF(J46="Suppressed","",COUNTIF(J$12:J$222,"<>Suppressed")-(RANK(J46,$J$12:$J$222)+COUNTIF(J$12:$J46,J46)-2))<=INT(0.25*COUNTIF(J$12:J$222,"<>suppressed")),"TOP25", "")) -> 
A47: 09G | B47: NHS Coastal West Sussex | C47: =IF(G47=0,"",COUNTIF(G$12:G$222,"<>0")-(RANK(M47,$M$12:$M$222)+COUNTIF($M$12:M47,M47)-2)) -> 96 | D47: =IF(H47=0,"",COUNTIF(P$12:P$222,"<>Suppressed")-(RANK(P47,$P$12:$P$222)+COUNTIF($P$12:P47,P47)-2)) -> 107 | E47: =IF(J47="Suppressed","",COUNTIF(J$12:J$222,"<>Suppressed")-(RANK(J47,$J$12:$J$222)+COUNTIF($J$12:J47,J47)-2)) -> 120 | F47: =VLOOKUP(A47,population!C:O,Settings!$B$3,FALSE) -> 79898 | G47: =VLOOKUP(A47,CCG_data_TRACCS!A:N,4,FALSE) -> 3300 | H47: =VLOOKUP(A47,CCG_data_TRACCS!A:N,5,FALSE) -> 9892 | I47: =VLOOKUP(A47,CCG_data_TRACCS!A:N,6,FALSE) -> 6502 | J47: 1.521378038 | M47: 4130.266089 | N47: 3990.536045 | O47: 4273.639905 | P47: 12380.7855 | Q47: 12137.99291 | R47: 12627.2129 | S47: 2816.273889 | T47: 10640.70377 | U47: 1.239876193 | V47: =VLOOKUP(Selections_data_CCG!$G$2,'CurrentData-all children'!A:R,13,FALSE) -> 7077.07289 | W47: =IF(Settings!$B$5="4SIMILAR", VLOOKUP(Selections_data_CCG!$G$2,'CurrentData-4SIMILAR-allchildre'!A:R,13,FALSE), VLOOKUP(Settings!$C$5,'CurrentData-all children'!A:R,13,FALSE)) -> 5510.027757 | X47: =VLOOKUP(Selections_data_CCG!$G$2,'CurrentData-all children'!A:R,16,FALSE) -> 16842.33626 | Y47: =IF(Settings!$B$5="4SIMILAR", VLOOKUP(Selections_data_CCG!$G$2,'CurrentData-4SIMILAR-allchildre'!A:R,16,FALSE), VLOOKUP(Settings!$C$5,'CurrentData-all children'!A:R,16,FALSE)) -> 14706.8643 | Z47: =VLOOKUP(Selections_data_CCG!$G$2,'CurrentData-all children'!A:R,10,FALSE) -> 1.48533414 | AA47: =IF(Settings!$B$5="4SIMILAR", VLOOKUP(Selections_data_CCG!$G$2,'CurrentData-4SIMILAR-allchildre'!A:R,10,FALSE), VLOOKUP(Settings!$C$5,'CurrentData-all children'!A:R,10,FALSE)) -> 1.437047856 | AB47: =IF(IF(G47=0,"",COUNTIF(G$12:G$222,"<>0")-(RANK(M47,$M$12:$M$222)+COUNTIF($M$12:M47,M47)-2))<=INT(0.05*COUNTIF(G$12:G$222,"<>0")),"TOP5", IF(IF(G47=0,"",COUNTIF(G$12:G$222,"<>0")-(RANK(M47,$M$12:$M$222)+COUNTIF($M$12:M47,M47)-2))<=INT(0.25*COUNTIF(G$12:G$222,"<>0")),"TOP25", "")) ->  | AC47: =IF(IF(H47=0,"",COUNTIF(H$12:H$222,"<>0")-(RANK(P47,$P$12:$P$222)+COUNTIF($P$12:P47,P47)-2))<=INT(0.05*COUNTIF(H$12:H$222,"<>0")),"TOP5", IF(IF(H47=0,"",COUNTIF(H$12:H$222,"<>0")-(RANK(P47,$P$12:$P$222)+COUNTIF($P$12:P47,P47)-2))<=INT(0.25*COUNTIF(H$12:H$222,"<>0")),"TOP25", "")) ->  | AD47: =IF(IF(J47="Suppressed","",COUNTIF(J$12:J$222,"<>Suppressed")-(RANK(J47,$J$12:$J$222)+COUNTIF(J$12:$J47,J47)-2))<=INT(0.05*COUNTIF(J$12:J$222,"<>Suppressed")),"TOP5", IF(IF(J47="Suppressed","",COUNTIF(J$12:J$222,"<>Suppressed")-(RANK(J47,$J$12:$J$222)+COUNTIF(J$12:$J47,J47)-2))<=INT(0.25*COUNTIF(J$12:J$222,"<>suppressed")),"TOP25", "")) -> 
A48: 03V | B48: NHS Corby | C48: =IF(G48=0,"",COUNTIF(G$12:G$222,"<>0")-(RANK(M48,$M$12:$M$222)+COUNTIF($M$12:M48,M48)-2)) -> 130 | D48: =IF(H48=0,"",COUNTIF(P$12:P$222,"<>Suppressed")-(RANK(P48,$P$12:$P$222)+COUNTIF($P$12:P48,P48)-2)) -> 71 | E48: =IF(J48="Suppressed","",COUNTIF(J$12:J$222,"<>Suppressed")-(RANK(J48,$J$12:$J$222)+COUNTIF($J$12:J48,J48)-2)) -> 57 | F48: =VLOOKUP(A48,population!C:O,Settings!$B$3,FALSE) -> 14327.6 | G48: =VLOOKUP(A48,CCG_data_TRACCS!A:N,4,FALSE) -> 705 | H48: =VLOOKUP(A48,CCG_data_TRACCS!A:N,5,FALSE) -> 1617 | I48: =VLOOKUP(A48,CCG_data_TRACCS!A:N,6,FALSE) -> 1253 | J48: 1.290502793 | M48: 4920.57288 | N48: 4564.004168 | O48: 5297.597962 | P48: 11285.90971 | Q48: 10742.46233 | R48: 11849.72718 | S48: 2854.877589 | T48: 10695.22669 | U48: 1.243224932 | V48: =VLOOKUP(Selections_data_CCG!$G$2,'CurrentData-all children'!A:R,13,FALSE) -> 7077.07289 | W48: =IF(Settings!$B$5="4SIMILAR", VLOOKUP(Selections_data_CCG!$G$2,'CurrentData-4SIMILAR-allchildre'!A:R,13,FALSE), VLOOKUP(Settings!$C$5,'CurrentData-all children'!A:R,13,FALSE)) -> 5510.027757 | X48: =VLOOKUP(Selections_data_CCG!$G$2,'CurrentData-all children'!A:R,16,FALSE) -> 16842.33626 | Y48: =IF(Settings!$B$5="4SIMILAR", VLOOKUP(Selections_data_CCG!$G$2,'CurrentData-4SIMILAR-allchildre'!A:R,16,FALSE), VLOOKUP(Settings!$C$5,'CurrentData-all children'!A:R,16,FALSE)) -> 14706.8643 | Z48: =VLOOKUP(Selections_data_CCG!$G$2,'CurrentData-all children'!A:R,10,FALSE) -> 1.48533414 | AA48: =IF(Settings!$B$5="4SIMILAR", VLOOKUP(Selections_data_CCG!$G$2,'CurrentData-4SIMILAR-allchildre'!A:R,10,FALSE), VLOOKUP(Settings!$C$5,'CurrentData-all children'!A:R,10,FALSE)) -> 1.437047856 | AB48: =IF(IF(G48=0,"",COUNTIF(G$12:G$222,"<>0")-(RANK(M48,$M$12:$M$222)+COUNTIF($M$12:M48,M48)-2))<=INT(0.05*COUNTIF(G$12:G$222,"<>0")),"TOP5", IF(IF(G48=0,"",COUNTIF(G$12:G$222,"<>0")-(RANK(M48,$M$12:$M$222)+COUNTIF($M$12:M48,M48)-2))<=INT(0.25*COUNTIF(G$12:G$222,"<>0")),"TOP25", "")) ->  | AC48: =IF(IF(H48=0,"",COUNTIF(H$12:H$222,"<>0")-(RANK(P48,$P$12:$P$222)+COUNTIF($P$12:P48,P48)-2))<=INT(0.05*COUNTIF(H$12:H$222,"<>0")),"TOP5", IF(IF(H48=0,"",COUNTIF(H$12:H$222,"<>0")-(RANK(P48,$P$12:$P$222)+COUNTIF($P$12:P48,P48)-2))<=INT(0.25*COUNTIF(H$12:H$222,"<>0")),"TOP25", "")) ->  | AD48: =IF(IF(J48="Suppressed","",COUNTIF(J$12:J$222,"<>Suppressed")-(RANK(J48,$J$12:$J$222)+COUNTIF(J$12:$J48,J48)-2))<=INT(0.05*COUNTIF(J$12:J$222,"<>Suppressed")),"TOP5", IF(IF(J48="Suppressed","",COUNTIF(J$12:J$222,"<>Suppressed")-(RANK(J48,$J$12:$J$222)+COUNTIF(J$12:$J48,J48)-2))<=INT(0.25*COUNTIF(J$12:J$222,"<>suppressed")),"TOP25", "")) -> 
A49: 05A | B49: NHS Coventry and Rugby | C49: =IF(G49=0,"",COUNTIF(G$12:G$222,"<>0")-(RANK(M49,$M$12:$M$222)+COUNTIF($M$12:M49,M49)-2)) -> 111 | D49: =IF(H49=0,"",COUNTIF(P$12:P$222,"<>Suppressed")-(RANK(P49,$P$12:$P$222)+COUNTIF($P$12:P49,P49)-2)) -> 138 | E49: =IF(J49="Suppressed","",COUNTIF(J$12:J$222,"<>Suppressed")-(RANK(J49,$J$12:$J$222)+COUNTIF($J$12:J49,J49)-2)) -> 136 | F49: =VLOOKUP(A49,population!C:O,Settings!$B$3,FALSE) -> 90396.8 | G49: =VLOOKUP(A49,CCG_data_TRACCS!A:N,4,FALSE) -> 3980 | H49: =VLOOKUP(A49,CCG_data_TRACCS!A:N,5,FALSE) -> 12026 | I49: =VLOOKUP(A49,CCG_data_TRACCS!A:N,6,FALSE) -> 7414 | J49: 1.622066361 | M49: 4402.810719 | N49: 4267.07681 | O49: 4541.763532 | P49: 13303.56827 | Q49: 13066.84839 | R49: 13543.49979 | S49: 2864.231802 | T49: 10705.93268 | U49: 1.25259413 | V49: =VLOOKUP(Selections_data_CCG!$G$2,'CurrentData-all children'!A:R,13,FALSE) -> 7077.07289 | W49: =IF(Settings!$B$5="4SIMILAR", VLOOKUP(Selections_data_CCG!$G$2,'CurrentData-4SIMILAR-allchildre'!A:R,13,FALSE), VLOOKUP(Settings!$C$5,'CurrentData-all children'!A:R,13,FALSE)) -> 5510.027757 | X49: =VLOOKUP(Selections_data_CCG!$G$2,'CurrentData-all children'!A:R,16,FALSE) -> 16842.33626 | Y49: =IF(Settings!$B$5="4SIMILAR", VLOOKUP(Selections_data_CCG!$G$2,'CurrentData-4SIMILAR-allchildre'!A:R,16,FALSE), VLOOKUP(Settings!$C$5,'CurrentData-all children'!A:R,16,FALSE)) -> 14706.8643 | Z49: =VLOOKUP(Selections_data_CCG!$G$2,'CurrentData-all children'!A:R,10,FALSE) -> 1.48533414 | AA49: =IF(Settings!$B$5="4SIMILAR", VLOOKUP(Selections_data_CCG!$G$2,'CurrentData-4SIMILAR-allchildre'!A:R,10,FALSE), VLOOKUP(Settings!$C$5,'CurrentData-all children'!A:R,10,FALSE)) -> 1.437047856 | AB49: =IF(IF(G49=0,"",COUNTIF(G$12:G$222,"<>0")-(RANK(M49,$M$12:$M$222)+COUNTIF($M$12:M49,M49)-2))<=INT(0.05*COUNTIF(G$12:G$222,"<>0")),"TOP5", IF(IF(G49=0,"",COUNTIF(G$12:G$222,"<>0")-(RANK(M49,$M$12:$M$222)+COUNTIF($M$12:M49,M49)-2))<=INT(0.25*COUNTIF(G$12:G$222,"<>0")),"TOP25", "")) ->  | AC49: =IF(IF(H49=0,"",COUNTIF(H$12:H$222,"<>0")-(RANK(P49,$P$12:$P$222)+COUNTIF($P$12:P49,P49)-2))<=INT(0.05*COUNTIF(H$12:H$222,"<>0")),"TOP5", IF(IF(H49=0,"",COUNTIF(H$12:H$222,"<>0")-(RANK(P49,$P$12:$P$222)+COUNTIF($P$12:P49,P49)-2))<=INT(0.25*COUNTIF(H$12:H$222,"<>0")),"TOP25", "")) ->  | AD49: =IF(IF(J49="Suppressed","",COUNTIF(J$12:J$222,"<>Suppressed")-(RANK(J49,$J$12:$J$222)+COUNTIF(J$12:$J49,J49)-2))<=INT(0.05*COUNTIF(J$12:J$222,"<>Suppressed")),"TOP5", IF(IF(J49="Suppressed","",COUNTIF(J$12:J$222,"<>Suppressed")-(RANK(J49,$J$12:$J$222)+COUNTIF(J$12:$J49,J49)-2))<=INT(0.25*COUNTIF(J$12:J$222,"<>suppressed")),"TOP25", "")) -> 
A50: 09H | B50: NHS Crawley | C50: =IF(G50=0,"",COUNTIF(G$12:G$222,"<>0")-(RANK(M50,$M$12:$M$222)+COUNTIF($M$12:M50,M50)-2)) -> 93 | D50: =IF(H50=0,"",COUNTIF(P$12:P$222,"<>Suppressed")-(RANK(P50,$P$12:$P$222)+COUNTIF($P$12:P50,P50)-2)) -> 86 | E50: =IF(J50="Suppressed","",COUNTIF(J$12:J$222,"<>Suppressed")-(RANK(J50,$J$12:$J$222)+COUNTIF($J$12:J50,J50)-2)) -> 105 | F50: =VLOOKUP(A50,population!C:O,Settings!$B$3,FALSE) -> 25496.4 | G50: =VLOOKUP(A50,CCG_data_TRACCS!A:N,4,FALSE) -> 1033 | H50: =VLOOKUP(A50,CCG_data_TRACCS!A:N,5,FALSE) -> 2999 | I50: =VLOOKUP(A50,CCG_data_TRACCS!A:N,6,FALSE) -> 2067 | J50: 1.450895017 | M50: 4051.552376 | N50: 3808.216301 | O50: 4306.359042 | P50: 11762.44489 | Q50: 11345.19471 | R50: 12191.11681 | S50: 2875.490201 | T50: 10737.88546 | U50: 1.255597484 | V50: =VLOOKUP(Selections_data_CCG!$G$2,'CurrentData-all children'!A:R,13,FALSE) -> 7077.07289 | W50: =IF(Settings!$B$5="4SIMILAR", VLOOKUP(Selections_data_CCG!$G$2,'CurrentData-4SIMILAR-allchildre'!A:R,13,FALSE), VLOOKUP(Settings!$C$5,'CurrentData-all children'!A:R,13,FALSE)) -> 5510.027757 | X50: =VLOOKUP(Selections_data_CCG!$G$2,'CurrentData-all children'!A:R,16,FALSE) -> 16842.33626 | Y50: =IF(Settings!$B$5="4SIMILAR", VLOOKUP(Selections_data_CCG!$G$2,'CurrentData-4SIMILAR-allchildre'!A:R,16,FALSE), VLOOKUP(Settings!$C$5,'CurrentData-all children'!A:R,16,FALSE)) -> 14706.8643 | Z50: =VLOOKUP(Selections_data_CCG!$G$2,'CurrentData-all children'!A:R,10,FALSE) -> 1.48533414 | AA50: =IF(Settings!$B$5="4SIMILAR", VLOOKUP(Selections_data_CCG!$G$2,'CurrentData-4SIMILAR-allchildre'!A:R,10,FALSE), VLOOKUP(Settings!$C$5,'CurrentData-all children'!A:R,10,FALSE)) -> 1.437047856 | AB50: =IF(IF(G50=0,"",COUNTIF(G$12:G$222,"<>0")-(RANK(M50,$M$12:$M$222)+COUNTIF($M$12:M50,M50)-2))<=INT(0.05*COUNTIF(G$12:G$222,"<>0")),"TOP5", IF(IF(G50=0,"",COUNTIF(G$12:G$222,"<>0")-(RANK(M50,$M$12:$M$222)+COUNTIF($M$12:M50,M50)-2))<=INT(0.25*COUNTIF(G$12:G$222,"<>0")),"TOP25", "")) ->  | AC50: =IF(IF(H50=0,"",COUNTIF(H$12:H$222,"<>0")-(RANK(P50,$P$12:$P$222)+COUNTIF($P$12:P50,P50)-2))<=INT(0.05*COUNTIF(H$12:H$222,"<>0")),"TOP5", IF(IF(H50=0,"",COUNTIF(H$12:H$222,"<>0")-(RANK(P50,$P$12:$P$222)+COUNTIF($P$12:P50,P50)-2))<=INT(0.25*COUNTIF(H$12:H$222,"<>0")),"TOP25", "")) ->  | AD50: =IF(IF(J50="Suppressed","",COUNTIF(J$12:J$222,"<>Suppressed")-(RANK(J50,$J$12:$J$222)+COUNTIF(J$12:$J50,J50)-2))<=INT(0.05*COUNTIF(J$12:J$222,"<>Suppressed")),"TOP5", IF(IF(J50="Suppressed","",COUNTIF(J$12:J$222,"<>Suppressed")-(RANK(J50,$J$12:$J$222)+COUNTIF(J$12:$J50,J50)-2))<=INT(0.25*COUNTIF(J$12:J$222,"<>suppressed")),"TOP25", "")) -> 
A51: 07V | B51: NHS Croydon | C51: =IF(G51=0,"",COUNTIF(G$12:G$222,"<>0")-(RANK(M51,$M$12:$M$222)+COUNTIF($M$12:M51,M51)-2)) -> 75 | D51: =IF(H51=0,"",COUNTIF(P$12:P$222,"<>Suppressed")-(RANK(P51,$P$12:$P$222)+COUNTIF($P$12:P51,P51)-2)) -> 156 | E51: =IF(J51="Suppressed","",COUNTIF(J$12:J$222,"<>Suppressed")-(RANK(J51,$J$12:$J$222)+COUNTIF($J$12:J51,J51)-2)) -> 179 | F51: =VLOOKUP(A51,population!C:O,Settings!$B$3,FALSE) -> 79367.6 | G51: =VLOOKUP(A51,CCG_data_TRACCS!A:N,4,FALSE) -> 2876 | H51: =VLOOKUP(A51,CCG_data_TRACCS!A:N,5,FALSE) -> 11158 | I51: =VLOOKUP(A51,CCG_data_TRACCS!A:N,6,FALSE) -> 5600 | J51: 1.9925 | M51: 3623.644913 | N51: 3492.407988 | O51: 3758.551478 | P51: 14058.6335 | Q51: 13798.97442 | R51: 14321.95095 | S51: 2900.052013 | T51: 10745.77987 | U51: 1.255803157 | V51: =VLOOKUP(Selections_data_CCG!$G$2,'CurrentData-all children'!A:R,13,FALSE) -> 7077.07289 | W51: =IF(Settings!$B$5="4SIMILAR", VLOOKUP(Selections_data_CCG!$G$2,'CurrentData-4SIMILAR-allchildre'!A:R,13,FALSE), VLOOKUP(Settings!$C$5,'CurrentData-all children'!A:R,13,FALSE)) -> 5510.027757 | X51: =VLOOKUP(Selections_data_CCG!$G$2,'CurrentData-all children'!A:R,16,FALSE) -> 16842.33626 | Y51: =IF(Settings!$B$5="4SIMILAR", VLOOKUP(Selections_data_CCG!$G$2,'CurrentData-4SIMILAR-allchildre'!A:R,16,FALSE), VLOOKUP(Settings!$C$5,'CurrentData-all children'!A:R,16,FALSE)) -> 14706.8643 | Z51: =VLOOKUP(Selections_data_CCG!$G$2,'CurrentData-all children'!A:R,10,FALSE) -> 1.48533414 | AA51: =IF(Settings!$B$5="4SIMILAR", VLOOKUP(Selections_data_CCG!$G$2,'CurrentData-4SIMILAR-allchildre'!A:R,10,FALSE), VLOOKUP(Settings!$C$5,'CurrentData-all children'!A:R,10,FALSE)) -> 1.437047856 | AB51: =IF(IF(G51=0,"",COUNTIF(G$12:G$222,"<>0")-(RANK(M51,$M$12:$M$222)+COUNTIF($M$12:M51,M51)-2))<=INT(0.05*COUNTIF(G$12:G$222,"<>0")),"TOP5", IF(IF(G51=0,"",COUNTIF(G$12:G$222,"<>0")-(RANK(M51,$M$12:$M$222)+COUNTIF($M$12:M51,M51)-2))<=INT(0.25*COUNTIF(G$12:G$222,"<>0")),"TOP25", "")) ->  | AC51: =IF(IF(H51=0,"",COUNTIF(H$12:H$222,"<>0")-(RANK(P51,$P$12:$P$222)+COUNTIF($P$12:P51,P51)-2))<=INT(0.05*COUNTIF(H$12:H$222,"<>0")),"TOP5", IF(IF(H51=0,"",COUNTIF(H$12:H$222,"<>0")-(RANK(P51,$P$12:$P$222)+COUNTIF($P$12:P51,P51)-2))<=INT(0.25*COUNTIF(H$12:H$222,"<>0")),"TOP25", "")) ->  | AD51: =IF(IF(J51="Suppressed","",COUNTIF(J$12:J$222,"<>Suppressed")-(RANK(J51,$J$12:$J$222)+COUNTIF(J$12:$J51,J51)-2))<=INT(0.05*COUNTIF(J$12:J$222,"<>Suppressed")),"TOP5", IF(IF(J51="Suppressed","",COUNTIF(J$12:J$222,"<>Suppressed")-(RANK(J51,$J$12:$J$222)+COUNTIF(J$12:$J51,J51)-2))<=INT(0.25*COUNTIF(J$12:J$222,"<>suppressed")),"TOP25", "")) -> 
A52: 01H | B52: NHS Cumbria | C52: =IF(G52=0,"",COUNTIF(G$12:G$222,"<>0")-(RANK(M52,$M$12:$M$222)+COUNTIF($M$12:M52,M52)-2)) -> 178 | D52: =IF(H52=0,"",COUNTIF(P$12:P$222,"<>Suppressed")-(RANK(P52,$P$12:$P$222)+COUNTIF($P$12:P52,P52)-2)) -> 130 | E52: =IF(J52="Suppressed","",COUNTIF(J$12:J$222,"<>Suppressed")-(RANK(J52,$J$12:$J$222)+COUNTIF($J$12:J52,J52)-2)) -> 44 | F52: =VLOOKUP(A52,population!C:O,Settings!$B$3,FALSE) -> 84344.2 | G52: =VLOOKUP(A52,CCG_data_TRACCS!A:N,4,FALSE) -> 5091 | H52: =VLOOKUP(A52,CCG_data_TRACCS!A:N,5,FALSE) -> 11090 | I52: =VLOOKUP(A52,CCG_data_TRACCS!A:N,6,FALSE) -> 8766 | J52: 1.265115218 | M52: 6035.981134 | N52: 5871.302899 | O52: 6204.107145 | P52: 13148.50339 | Q52: 12904.91421 | R52: 13395.53513 | S52: 2947.769505 | T52: 10746.39723 | U52: 1.257648184 | V52: =VLOOKUP(Selections_data_CCG!$G$2,'CurrentData-all children'!A:R,13,FALSE) -> 7077.07289 | W52: =IF(Settings!$B$5="4SIMILAR", VLOOKUP(Selections_data_CCG!$G$2,'CurrentData-4SIMILAR-allchildre'!A:R,13,FALSE), VLOOKUP(Settings!$C$5,'CurrentData-all children'!A:R,13,FALSE)) -> 5510.027757 | X52: =VLOOKUP(Selections_data_CCG!$G$2,'CurrentData-all children'!A:R,16,FALSE) -> 16842.33626 | Y52: =IF(Settings!$B$5="4SIMILAR", VLOOKUP(Selections_data_CCG!$G$2,'CurrentData-4SIMILAR-allchildre'!A:R,16,FALSE), VLOOKUP(Settings!$C$5,'CurrentData-all children'!A:R,16,FALSE)) -> 14706.8643 | Z52: =VLOOKUP(Selections_data_CCG!$G$2,'CurrentData-all children'!A:R,10,FALSE) -> 1.48533414 | AA52: =IF(Settings!$B$5="4SIMILAR", VLOOKUP(Selections_data_CCG!$G$2,'CurrentData-4SIMILAR-allchildre'!A:R,10,FALSE), VLOOKUP(Settings!$C$5,'CurrentData-all children'!A:R,10,FALSE)) -> 1.437047856 | AB52: =IF(IF(G52=0,"",COUNTIF(G$12:G$222,"<>0")-(RANK(M52,$M$12:$M$222)+COUNTIF($M$12:M52,M52)-2))<=INT(0.05*COUNTIF(G$12:G$222,"<>0")),"TOP5", IF(IF(G52=0,"",COUNTIF(G$12:G$222,"<>0")-(RANK(M52,$M$12:$M$222)+COUNTIF($M$12:M52,M52)-2))<=INT(0.25*COUNTIF(G$12:G$222,"<>0")),"TOP25", "")) ->  | AC52: =IF(IF(H52=0,"",COUNTIF(H$12:H$222,"<>0")-(RANK(P52,$P$12:$P$222)+COUNTIF($P$12:P52,P52)-2))<=INT(0.05*COUNTIF(H$12:H$222,"<>0")),"TOP5", IF(IF(H52=0,"",COUNTIF(H$12:H$222,"<>0")-(RANK(P52,$P$12:$P$222)+COUNTIF($P$12:P52,P52)-2))<=INT(0.25*COUNTIF(H$12:H$222,"<>0")),"TOP25", "")) ->  | AD52: =IF(IF(J52="Suppressed","",COUNTIF(J$12:J$222,"<>Suppressed")-(RANK(J52,$J$12:$J$222)+COUNTIF(J$12:$J52,J52)-2))<=INT(0.05*COUNTIF(J$12:J$222,"<>Suppressed")),"TOP5", IF(IF(J52="Suppressed","",COUNTIF(J$12:J$222,"<>Suppressed")-(RANK(J52,$J$12:$J$222)+COUNTIF(J$12:$J52,J52)-2))<=INT(0.25*COUNTIF(J$12:J$222,"<>suppressed")),"TOP25", "")) -> TOP25
A53: 00C | B53: NHS Darlington | C53: =IF(G53=0,"",COUNTIF(G$12:G$222,"<>0")-(RANK(M53,$M$12:$M$222)+COUNTIF($M$12:M53,M53)-2)) -> 204 | D53: =IF(H53=0,"",COUNTIF(P$12:P$222,"<>Suppressed")-(RANK(P53,$P$12:$P$222)+COUNTIF($P$12:P53,P53)-2)) -> 199 | E53: =IF(J53="Suppressed","",COUNTIF(J$12:J$222,"<>Suppressed")-(RANK(J53,$J$12:$J$222)+COUNTIF($J$12:J53,J53)-2)) -> 63 | F53: =VLOOKUP(A53,population!C:O,Settings!$B$3,FALSE) -> 19549 | G53: =VLOOKUP(A53,CCG_data_TRACCS!A:N,4,FALSE) -> 1444 | H53: =VLOOKUP(A53,CCG_data_TRACCS!A:N,5,FALSE) -> 3400 | I53: =VLOOKUP(A53,CCG_data_TRACCS!A:N,6,FALSE) -> 2587 | J53: 1.314263626 | M53: 7386.567088 | N53: 7010.448471 | O53: 7777.622254 | P53: 17392.19397 | Q53: 16812.44694 | R53: 17986.83205 | S53: 2958.277731 | T53: 10752.68817 | U53: 1.257801073 | V53: =VLOOKUP(Selections_data_CCG!$G$2,'CurrentData-all children'!A:R,13,FALSE) -> 7077.07289 | W53: =IF(Settings!$B$5="4SIMILAR", VLOOKUP(Selections_data_CCG!$G$2,'CurrentData-4SIMILAR-allchildre'!A:R,13,FALSE), VLOOKUP(Settings!$C$5,'CurrentData-all children'!A:R,13,FALSE)) -> 5510.027757 | X53: =VLOOKUP(Selections_data_CCG!$G$2,'CurrentData-all children'!A:R,16,FALSE) -> 16842.33626 | Y53: =IF(Settings!$B$5="4SIMILAR", VLOOKUP(Selections_data_CCG!$G$2,'CurrentData-4SIMILAR-allchildre'!A:R,16,FALSE), VLOOKUP(Settings!$C$5,'CurrentData-all children'!A:R,16,FALSE)) -> 14706.8643 | Z53: =VLOOKUP(Selections_data_CCG!$G$2,'CurrentData-all children'!A:R,10,FALSE) -> 1.48533414 | AA53: =IF(Settings!$B$5="4SIMILAR", VLOOKUP(Selections_data_CCG!$G$2,'CurrentData-4SIMILAR-allchildre'!A:R,10,FALSE), VLOOKUP(Settings!$C$5,'CurrentData-all children'!A:R,10,FALSE)) -> 1.437047856 | AB53: =IF(IF(G53=0,"",COUNTIF(G$12:G$222,"<>0")-(RANK(M53,$M$12:$M$222)+COUNTIF($M$12:M53,M53)-2))<=INT(0.05*COUNTIF(G$12:G$222,"<>0")),"TOP5", IF(IF(G53=0,"",COUNTIF(G$12:G$222,"<>0")-(RANK(M53,$M$12:$M$222)+COUNTIF($M$12:M53,M53)-2))<=INT(0.25*COUNTIF(G$12:G$222,"<>0")),"TOP25", "")) ->  | AC53: =IF(IF(H53=0,"",COUNTIF(H$12:H$222,"<>0")-(RANK(P53,$P$12:$P$222)+COUNTIF($P$12:P53,P53)-2))<=INT(0.05*COUNTIF(H$12:H$222,"<>0")),"TOP5", IF(IF(H53=0,"",COUNTIF(H$12:H$222,"<>0")-(RANK(P53,$P$12:$P$222)+COUNTIF($P$12:P53,P53)-2))<=INT(0.25*COUNTIF(H$12:H$222,"<>0")),"TOP25", "")) ->  | AD53: =IF(IF(J53="Suppressed","",COUNTIF(J$12:J$222,"<>Suppressed")-(RANK(J53,$J$12:$J$222)+COUNTIF(J$12:$J53,J53)-2))<=INT(0.05*COUNTIF(J$12:J$222,"<>Suppressed")),"TOP5", IF(IF(J53="Suppressed","",COUNTIF(J$12:J$222,"<>Suppressed")-(RANK(J53,$J$12:$J$222)+COUNTIF(J$12:$J53,J53)-2))<=INT(0.25*COUNTIF(J$12:J$222,"<>suppressed")),"TOP25", "")) -> 
A54: 09J | B54: NHS Dartford, Gravesham and Swanley | C54: =IF(G54=0,"",COUNTIF(G$12:G$222,"<>0")-(RANK(M54,$M$12:$M$222)+COUNTIF($M$12:M54,M54)-2)) -> 165 | D54: =IF(H54=0,"",COUNTIF(P$12:P$222,"<>Suppressed")-(RANK(P54,$P$12:$P$222)+COUNTIF($P$12:P54,P54)-2)) -> 61 | E54: =IF(J54="Suppressed","",COUNTIF(J$12:J$222,"<>Suppressed")-(RANK(J54,$J$12:$J$222)+COUNTIF($J$12:J54,J54)-2)) -> 5 | F54: =VLOOKUP(A54,population!C:O,Settings!$B$3,FALSE) -> 49409 | G54: =VLOOKUP(A54,CCG_data_TRACCS!A:N,4,FALSE) -> 2846 | H54: =VLOOKUP(A54,CCG_data_TRACCS!A:N,5,FALSE) -> 5495 | I54: =VLOOKUP(A54,CCG_data_TRACCS!A:N,6,FALSE) -> 5168 | J54: 1.063273994 | M54: 5760.084195 | N54: 5550.385682 | O54: 5975.677587 | P54: 11121.45561 | Q54: 10829.32363 | R54: 11419.47211 | S54: 2963.173575 | T54: 10757.63383 | U54: 1.26142596 | V54: =VLOOKUP(Selections_data_CCG!$G$2,'CurrentData-all children'!A:R,13,FALSE) -> 7077.07289 | W54: =IF(Settings!$B$5="4SIMILAR", VLOOKUP(Selections_data_CCG!$G$2,'CurrentData-4SIMILAR-allchildre'!A:R,13,FALSE), VLOOKUP(Settings!$C$5,'CurrentData-all children'!A:R,13,FALSE)) -> 5510.027757 | X54: =VLOOKUP(Selections_data_CCG!$G$2,'CurrentData-all children'!A:R,16,FALSE) -> 16842.33626 | Y54: =IF(Settings!$B$5="4SIMILAR", VLOOKUP(Selections_data_CCG!$G$2,'CurrentData-4SIMILAR-allchildre'!A:R,16,FALSE), VLOOKUP(Settings!$C$5,'CurrentData-all children'!A:R,16,FALSE)) -> 14706.8643 | Z54: =VLOOKUP(Selections_data_CCG!$G$2,'CurrentData-all children'!A:R,10,FALSE) -> 1.48533414 | AA54: =IF(Settings!$B$5="4SIMILAR", VLOOKUP(Selections_data_CCG!$G$2,'CurrentData-4SIMILAR-allchildre'!A:R,10,FALSE), VLOOKUP(Settings!$C$5,'CurrentData-all children'!A:R,10,FALSE)) -> 1.437047856 | AB54: =IF(IF(G54=0,"",COUNTIF(G$12:G$222,"<>0")-(RANK(M54,$M$12:$M$222)+COUNTIF($M$12:M54,M54)-2))<=INT(0.05*COUNTIF(G$12:G$222,"<>0")),"TOP5", IF(IF(G54=0,"",COUNTIF(G$12:G$222,"<>0")-(RANK(M54,$M$12:$M$222)+COUNTIF($M$12:M54,M54)-2))<=INT(0.25*COUNTIF(G$12:G$222,"<>0")),"TOP25", "")) ->  | AC54: =IF(IF(H54=0,"",COUNTIF(H$12:H$222,"<>0")-(RANK(P54,$P$12:$P$222)+COUNTIF($P$12:P54,P54)-2))<=INT(0.05*COUNTIF(H$12:H$222,"<>0")),"TOP5", IF(IF(H54=0,"",COUNTIF(H$12:H$222,"<>0")-(RANK(P54,$P$12:$P$222)+COUNTIF($P$12:P54,P54)-2))<=INT(0.25*COUNTIF(H$12:H$222,"<>0")),"TOP25", "")) ->  | AD54: =IF(IF(J54="Suppressed","",COUNTIF(J$12:J$222,"<>Suppressed")-(RANK(J54,$J$12:$J$222)+COUNTIF(J$12:$J54,J54)-2))<=INT(0.05*COUNTIF(J$12:J$222,"<>Suppressed")),"TOP5", IF(IF(J54="Suppressed","",COUNTIF(J$12:J$222,"<>Suppressed")-(RANK(J54,$J$12:$J$222)+COUNTIF(J$12:$J54,J54)-2))<=INT(0.25*COUNTIF(J$12:J$222,"<>suppressed")),"TOP25", "")) -> TOP5
A55: 02X | B55: NHS Doncaster | C55: =IF(G55=0,"",COUNTIF(G$12:G$222,"<>0")-(RANK(M55,$M$12:$M$222)+COUNTIF($M$12:M55,M55)-2)) -> 195 | D55: =IF(H55=0,"",COUNTIF(P$12:P$222,"<>Suppressed")-(RANK(P55,$P$12:$P$222)+COUNTIF($P$12:P55,P55)-2)) -> 157 | E55: =IF(J55="Suppressed","",COUNTIF(J$12:J$222,"<>Suppressed")-(RANK(J55,$J$12:$J$222)+COUNTIF($J$12:J55,J55)-2)) -> 26 | F55: =VLOOKUP(A55,population!C:O,Settings!$B$3,FALSE) -> 57636.8 | G55: =VLOOKUP(A55,CCG_data_TRACCS!A:N,4,FALSE) -> 3861 | H55: =VLOOKUP(A55,CCG_data_TRACCS!A:N,5,FALSE) -> 8176 | I55: =VLOOKUP(A55,CCG_data_TRACCS!A:N,6,FALSE) -> 6844 | J55: 1.194623027 | M55: 6698.845182 | N55: 6489.193487 | O55: 6913.545773 | P55: 14185.38156 | Q55: 13879.54658 | R55: 14496.25693 | S55: 2968.954731 | T55: 10790.96518 | U55: 1.265115218 | V55: =VLOOKUP(Selections_data_CCG!$G$2,'CurrentData-all children'!A:R,13,FALSE) -> 7077.07289 | W55: =IF(Settings!$B$5="4SIMILAR", VLOOKUP(Selections_data_CCG!$G$2,'CurrentData-4SIMILAR-allchildre'!A:R,13,FALSE), VLOOKUP(Settings!$C$5,'CurrentData-all children'!A:R,13,FALSE)) -> 5510.027757 | X55: =VLOOKUP(Selections_data_CCG!$G$2,'CurrentData-all children'!A:R,16,FALSE) -> 16842.33626 | Y55: =IF(Settings!$B$5="4SIMILAR", VLOOKUP(Selections_data_CCG!$G$2,'CurrentData-4SIMILAR-allchildre'!A:R,16,FALSE), VLOOKUP(Settings!$C$5,'CurrentData-all children'!A:R,16,FALSE)) -> 14706.8643 | Z55: =VLOOKUP(Selections_data_CCG!$G$2,'CurrentData-all children'!A:R,10,FALSE) -> 1.48533414 | AA55: =IF(Settings!$B$5="4SIMILAR", VLOOKUP(Selections_data_CCG!$G$2,'CurrentData-4SIMILAR-allchildre'!A:R,10,FALSE), VLOOKUP(Settings!$C$5,'CurrentData-all children'!A:R,10,FALSE)) -> 1.437047856 | AB55: =IF(IF(G55=0,"",COUNTIF(G$12:G$222,"<>0")-(RANK(M55,$M$12:$M$222)+COUNTIF($M$12:M55,M55)-2))<=INT(0.05*COUNTIF(G$12:G$222,"<>0")),"TOP5", IF(IF(G55=0,"",COUNTIF(G$12:G$222,"<>0")-(RANK(M55,$M$12:$M$222)+COUNTIF($M$12:M55,M55)-2))<=INT(0.25*COUNTIF(G$12:G$222,"<>0")),"TOP25", "")) ->  | AC55: =IF(IF(H55=0,"",COUNTIF(H$12:H$222,"<>0")-(RANK(P55,$P$12:$P$222)+COUNTIF($P$12:P55,P55)-2))<=INT(0.05*COUNTIF(H$12:H$222,"<>0")),"TOP5", IF(IF(H55=0,"",COUNTIF(H$12:H$222,"<>0")-(RANK(P55,$P$12:$P$222)+COUNTIF($P$12:P55,P55)-2))<=INT(0.25*COUNTIF(H$12:H$222,"<>0")),"TOP25", "")) ->  | AD55: =IF(IF(J55="Suppressed","",COUNTIF(J$12:J$222,"<>Suppressed")-(RANK(J55,$J$12:$J$222)+COUNTIF(J$12:$J55,J55)-2))<=INT(0.05*COUNTIF(J$12:J$222,"<>Suppressed")),"TOP5", IF(IF(J55="Suppressed","",COUNTIF(J$12:J$222,"<>Suppressed")-(RANK(J55,$J$12:$J$222)+COUNTIF(J$12:$J55,J55)-2))<=INT(0.25*COUNTIF(J$12:J$222,"<>suppressed")),"TOP25", "")) -> TOP25
A56: 11J | B56: NHS Dorset | C56: =IF(G56=0,"",COUNTIF(G$12:G$222,"<>0")-(RANK(M56,$M$12:$M$222)+COUNTIF($M$12:M56,M56)-2)) -> 135 | D56: =IF(H56=0,"",COUNTIF(P$12:P$222,"<>Suppressed")-(RANK(P56,$P$12:$P$222)+COUNTIF($P$12:P56,P56)-2)) -> 115 | E56: =IF(J56="Suppressed","",COUNTIF(J$12:J$222,"<>Suppressed")-(RANK(J56,$J$12:$J$222)+COUNTIF($J$12:J56,J56)-2)) -> 69 | F56: =VLOOKUP(A56,population!C:O,Settings!$B$3,FALSE) -> 122206.4 | G56: =VLOOKUP(A56,CCG_data_TRACCS!A:N,4,FALSE) -> 6173 | H56: =VLOOKUP(A56,CCG_data_TRACCS!A:N,5,FALSE) -> 15215 | I56: =VLOOKUP(A56,CCG_data_TRACCS!A:N,6,FALSE) -> 11404 | J56: 1.334180989 | M56: 5051.290276 | N56: 4926.057731 | O56: 5178.901375 | P56: 12450.2481 | Q56: 12253.19511 | R56: 12649.67597 | S56: 2970.548678 | T56: 10813.90569 | U56: 1.266439523 | V56: =VLOOKUP(Selections_data_CCG!$G$2,'CurrentData-all children'!A:R,13,FALSE) -> 7077.07289 | W56: =IF(Settings!$B$5="4SIMILAR", VLOOKUP(Selections_data_CCG!$G$2,'CurrentData-4SIMILAR-allchildre'!A:R,13,FALSE), VLOOKUP(Settings!$C$5,'CurrentData-all children'!A:R,13,FALSE)) -> 5510.027757 | X56: =VLOOKUP(Selections_data_CCG!$G$2,'CurrentData-all children'!A:R,16,FALSE) -> 16842.33626 | Y56: =IF(Settings!$B$5="4SIMILAR", VLOOKUP(Selections_data_CCG!$G$2,'CurrentData-4SIMILAR-allchildre'!A:R,16,FALSE), VLOOKUP(Settings!$C$5,'CurrentData-all children'!A:R,16,FALSE)) -> 14706.8643 | Z56: =VLOOKUP(Selections_data_CCG!$G$2,'CurrentData-all children'!A:R,10,FALSE) -> 1.48533414 | AA56: =IF(Settings!$B$5="4SIMILAR", VLOOKUP(Selections_data_CCG!$G$2,'CurrentData-4SIMILAR-allchildre'!A:R,10,FALSE), VLOOKUP(Settings!$C$5,'CurrentData-all children'!A:R,10,FALSE)) -> 1.437047856 | AB56: =IF(IF(G56=0,"",COUNTIF(G$12:G$222,"<>0")-(RANK(M56,$M$12:$M$222)+COUNTIF($M$12:M56,M56)-2))<=INT(0.05*COUNTIF(G$12:G$222,"<>0")),"TOP5", IF(IF(G56=0,"",COUNTIF(G$12:G$222,"<>0")-(RANK(M56,$M$12:$M$222)+COUNTIF($M$12:M56,M56)-2))<=INT(0.25*COUNTIF(G$12:G$222,"<>0")),"TOP25", "")) ->  | AC56: =IF(IF(H56=0,"",COUNTIF(H$12:H$222,"<>0")-(RANK(P56,$P$12:$P$222)+COUNTIF($P$12:P56,P56)-2))<=INT(0.05*COUNTIF(H$12:H$222,"<>0")),"TOP5", IF(IF(H56=0,"",COUNTIF(H$12:H$222,"<>0")-(RANK(P56,$P$12:$P$222)+COUNTIF($P$12:P56,P56)-2))<=INT(0.25*COUNTIF(H$12:H$222,"<>0")),"TOP25", "")) ->  | AD56: =IF(IF(J56="Suppressed","",COUNTIF(J$12:J$222,"<>Suppressed")-(RANK(J56,$J$12:$J$222)+COUNTIF(J$12:$J56,J56)-2))<=INT(0.05*COUNTIF(J$12:J$222,"<>Suppressed")),"TOP5", IF(IF(J56="Suppressed","",COUNTIF(J$12:J$222,"<>Suppressed")-(RANK(J56,$J$12:$J$222)+COUNTIF(J$12:$J56,J56)-2))<=INT(0.25*COUNTIF(J$12:J$222,"<>suppressed")),"TOP25", "")) -> 
A57: 05C | B57: NHS Dudley | C57: =IF(G57=0,"",COUNTIF(G$12:G$222,"<>0")-(RANK(M57,$M$12:$M$222)+COUNTIF($M$12:M57,M57)-2)) -> 156 | D57: =IF(H57=0,"",COUNTIF(P$12:P$222,"<>Suppressed")-(RANK(P57,$P$12:$P$222)+COUNTIF($P$12:P57,P57)-2)) -> 171 | E57: =IF(J57="Suppressed","",COUNTIF(J$12:J$222,"<>Suppressed")-(RANK(J57,$J$12:$J$222)+COUNTIF($J$12:J57,J57)-2)) -> 110 | F57: =VLOOKUP(A57,population!C:O,Settings!$B$3,FALSE) -> 56455 | G57: =VLOOKUP(A57,CCG_data_TRACCS!A:N,4,FALSE) -> 3154 | H57: =VLOOKUP(A57,CCG_data_TRACCS!A:N,5,FALSE) -> 8394 | I57: =VLOOKUP(A57,CCG_data_TRACCS!A:N,6,FALSE) -> 5740 | J57: 1.462369338 | M57: 5586.750509 | N57: 5393.459185 | O57: 5785.199371 | P57: 14868.47932 | Q57: 14552.08458 | R57: 15190.01971 | S57: 2972.320268 | T57: 10873.33401 | U57: 1.268287389 | V57: =VLOOKUP(Selections_data_CCG!$G$2,'CurrentData-all children'!A:R,13,FALSE) -> 7077.07289 | W57: =IF(Settings!$B$5="4SIMILAR", VLOOKUP(Selections_data_CCG!$G$2,'CurrentData-4SIMILAR-allchildre'!A:R,13,FALSE), VLOOKUP(Settings!$C$5,'CurrentData-all children'!A:R,13,FALSE)) -> 5510.027757 | X57: =VLOOKUP(Selections_data_CCG!$G$2,'CurrentData-all children'!A:R,16,FALSE) -> 16842.33626 | Y57: =IF(Settings!$B$5="4SIMILAR", VLOOKUP(Selections_data_CCG!$G$2,'CurrentData-4SIMILAR-allchildre'!A:R,16,FALSE), VLOOKUP(Settings!$C$5,'CurrentData-all children'!A:R,16,FALSE)) -> 14706.8643 | Z57: =VLOOKUP(Selections_data_CCG!$G$2,'CurrentData-all children'!A:R,10,FALSE) -> 1.48533414 | AA57: =IF(Settings!$B$5="4SIMILAR", VLOOKUP(Selections_data_CCG!$G$2,'CurrentData-4SIMILAR-allchildre'!A:R,10,FALSE), VLOOKUP(Settings!$C$5,'CurrentData-all children'!A:R,10,FALSE)) -> 1.437047856 | AB57: =IF(IF(G57=0,"",COUNTIF(G$12:G$222,"<>0")-(RANK(M57,$M$12:$M$222)+COUNTIF($M$12:M57,M57)-2))<=INT(0.05*COUNTIF(G$12:G$222,"<>0")),"TOP5", IF(IF(G57=0,"",COUNTIF(G$12:G$222,"<>0")-(RANK(M57,$M$12:$M$222)+COUNTIF($M$12:M57,M57)-2))<=INT(0.25*COUNTIF(G$12:G$222,"<>0")),"TOP25", "")) ->  | AC57: =IF(IF(H57=0,"",COUNTIF(H$12:H$222,"<>0")-(RANK(P57,$P$12:$P$222)+COUNTIF($P$12:P57,P57)-2))<=INT(0.05*COUNTIF(H$12:H$222,"<>0")),"TOP5", IF(IF(H57=0,"",COUNTIF(H$12:H$222,"<>0")-(RANK(P57,$P$12:$P$222)+COUNTIF($P$12:P57,P57)-2))<=INT(0.25*COUNTIF(H$12:H$222,"<>0")),"TOP25", "")) ->  | AD57: =IF(IF(J57="Suppressed","",COUNTIF(J$12:J$222,"<>Suppressed")-(RANK(J57,$J$12:$J$222)+COUNTIF(J$12:$J57,J57)-2))<=INT(0.05*COUNTIF(J$12:J$222,"<>Suppressed")),"TOP5", IF(IF(J57="Suppressed","",COUNTIF(J$12:J$222,"<>Suppressed")-(RANK(J57,$J$12:$J$222)+COUNTIF(J$12:$J57,J57)-2))<=INT(0.25*COUNTIF(J$12:J$222,"<>suppressed")),"TOP25", "")) -> 
A58: 00D | B58: NHS Durham Dales, Easington and Sedgefield | C58: =IF(G58=0,"",COUNTIF(G$12:G$222,"<>0")-(RANK(M58,$M$12:$M$222)+COUNTIF($M$12:M58,M58)-2)) -> 180 | D58: =IF(H58=0,"",COUNTIF(P$12:P$222,"<>Suppressed")-(RANK(P58,$P$12:$P$222)+COUNTIF($P$12:P58,P58)-2)) -> 194 | E58: =IF(J58="Suppressed","",COUNTIF(J$12:J$222,"<>Suppressed")-(RANK(J58,$J$12:$J$222)+COUNTIF($J$12:J58,J58)-2)) -> 99 | F58: =VLOOKUP(A58,population!C:O,Settings!$B$3,FALSE) -> 50502.6 | G58: =VLOOKUP(A58,CCG_data_TRACCS!A:N,4,FALSE) -> 3083 | H58: =VLOOKUP(A58,CCG_data_TRACCS!A:N,5,FALSE) -> 8483 | I58: =VLOOKUP(A58,CCG_data_TRACCS!A:N,6,FALSE) -> 5971 | J58: 1.42070005 | M58: 6104.636197 | N58: 5891.03015 | O58: 6324.008058 | P58: 16797.155 | Q58: 16441.58891 | R58: 17158.47311 | S58: 3041.821531 | T58: 10909.04016 | U58: 1.270151709 | V58: =VLOOKUP(Selections_data_CCG!$G$2,'CurrentData-all children'!A:R,13,FALSE) -> 7077.07289 | W58: =IF(Settings!$B$5="4SIMILAR", VLOOKUP(Selections_data_CCG!$G$2,'CurrentData-4SIMILAR-allchildre'!A:R,13,FALSE), VLOOKUP(Settings!$C$5,'CurrentData-all children'!A:R,13,FALSE)) -> 5510.027757 | X58: =VLOOKUP(Selections_data_CCG!$G$2,'CurrentData-all children'!A:R,16,FALSE) -> 16842.33626 | Y58: =IF(Settings!$B$5="4SIMILAR", VLOOKUP(Selections_data_CCG!$G$2,'CurrentData-4SIMILAR-allchildre'!A:R,16,FALSE), VLOOKUP(Settings!$C$5,'CurrentData-all children'!A:R,16,FALSE)) -> 14706.8643 | Z58: =VLOOKUP(Selections_data_CCG!$G$2,'CurrentData-all children'!A:R,10,FALSE) -> 1.48533414 | AA58: =IF(Settings!$B$5="4SIMILAR", VLOOKUP(Selections_data_CCG!$G$2,'CurrentData-4SIMILAR-allchildre'!A:R,10,FALSE), VLOOKUP(Settings!$C$5,'CurrentData-all children'!A:R,10,FALSE)) -> 1.437047856 | AB58: =IF(IF(G58=0,"",COUNTIF(G$12:G$222,"<>0")-(RANK(M58,$M$12:$M$222)+COUNTIF($M$12:M58,M58)-2))<=INT(0.05*COUNTIF(G$12:G$222,"<>0")),"TOP5", IF(IF(G58=0,"",COUNTIF(G$12:G$222,"<>0")-(RANK(M58,$M$12:$M$222)+COUNTIF($M$12:M58,M58)-2))<=INT(0.25*COUNTIF(G$12:G$222,"<>0")),"TOP25", "")) ->  | AC58: =IF(IF(H58=0,"",COUNTIF(H$12:H$222,"<>0")-(RANK(P58,$P$12:$P$222)+COUNTIF($P$12:P58,P58)-2))<=INT(0.05*COUNTIF(H$12:H$222,"<>0")),"TOP5", IF(IF(H58=0,"",COUNTIF(H$12:H$222,"<>0")-(RANK(P58,$P$12:$P$222)+COUNTIF($P$12:P58,P58)-2))<=INT(0.25*COUNTIF(H$12:H$222,"<>0")),"TOP25", "")) ->  | AD58: =IF(IF(J58="Suppressed","",COUNTIF(J$12:J$222,"<>Suppressed")-(RANK(J58,$J$12:$J$222)+COUNTIF(J$12:$J58,J58)-2))<=INT(0.05*COUNTIF(J$12:J$222,"<>Suppressed")),"TOP5", IF(IF(J58="Suppressed","",COUNTIF(J$12:J$222,"<>Suppressed")-(RANK(J58,$J$12:$J$222)+COUNTIF(J$12:$J58,J58)-2))<=INT(0.25*COUNTIF(J$12:J$222,"<>suppressed")),"TOP25", "")) -> 
A59: 07W | B59: NHS Ealing | C59: =IF(G59=0,"",COUNTIF(G$12:G$222,"<>0")-(RANK(M59,$M$12:$M$222)+COUNTIF($M$12:M59,M59)-2)) -> 43 | D59: =IF(H59=0,"",COUNTIF(P$12:P$222,"<>Suppressed")-(RANK(P59,$P$12:$P$222)+COUNTIF($P$12:P59,P59)-2)) -> 106 | E59: =IF(J59="Suppressed","",COUNTIF(J$12:J$222,"<>Suppressed")-(RANK(J59,$J$12:$J$222)+COUNTIF($J$12:J59,J59)-2)) -> 177 | F59: =VLOOKUP(A59,population!C:O,Settings!$B$3,FALSE) -> 80893 | G59: =VLOOKUP(A59,CCG_data_TRACCS!A:N,4,FALSE) -> 2397 | H59: =VLOOKUP(A59,CCG_data_TRACCS!A:N,5,FALSE) -> 9994 | I59: =VLOOKUP(A59,CCG_data_TRACCS!A:N,6,FALSE) -> 5067 | J59: 1.972370239 | M59: 2963.173575 | N59: 2845.72473 | O59: 3084.224997 | P59: 12354.59187 | Q59: 12113.54644 | R59: 12599.22734 | S59: 3048.753441 | T59: 10911.67518 | U59: 1.271211744 | V59: =VLOOKUP(Selections_data_CCG!$G$2,'CurrentData-all children'!A:R,13,FALSE) -> 7077.07289 | W59: =IF(Settings!$B$5="4SIMILAR", VLOOKUP(Selections_data_CCG!$G$2,'CurrentData-4SIMILAR-allchildre'!A:R,13,FALSE), VLOOKUP(Settings!$C$5,'CurrentData-all children'!A:R,13,FALSE)) -> 5510.027757 | X59: =VLOOKUP(Selections_data_CCG!$G$2,'CurrentData-all children'!A:R,16,FALSE) -> 16842.33626 | Y59: =IF(Settings!$B$5="4SIMILAR", VLOOKUP(Selections_data_CCG!$G$2,'CurrentData-4SIMILAR-allchildre'!A:R,16,FALSE), VLOOKUP(Settings!$C$5,'CurrentData-all children'!A:R,16,FALSE)) -> 14706.8643 | Z59: =VLOOKUP(Selections_data_CCG!$G$2,'CurrentData-all children'!A:R,10,FALSE) -> 1.48533414 | AA59: =IF(Settings!$B$5="4SIMILAR", VLOOKUP(Selections_data_CCG!$G$2,'CurrentData-4SIMILAR-allchildre'!A:R,10,FALSE), VLOOKUP(Settings!$C$5,'CurrentData-all children'!A:R,10,FALSE)) -> 1.437047856 | AB59: =IF(IF(G59=0,"",COUNTIF(G$12:G$222,"<>0")-(RANK(M59,$M$12:$M$222)+COUNTIF($M$12:M59,M59)-2))<=INT(0.05*COUNTIF(G$12:G$222,"<>0")),"TOP5", IF(IF(G59=0,"",COUNTIF(G$12:G$222,"<>0")-(RANK(M59,$M$12:$M$222)+COUNTIF($M$12:M59,M59)-2))<=INT(0.25*COUNTIF(G$12:G$222,"<>0")),"TOP25", "")) -> TOP25 | AC59: =IF(IF(H59=0,"",COUNTIF(H$12:H$222,"<>0")-(RANK(P59,$P$12:$P$222)+COUNTIF($P$12:P59,P59)-2))<=INT(0.05*COUNTIF(H$12:H$222,"<>0")),"TOP5", IF(IF(H59=0,"",COUNTIF(H$12:H$222,"<>0")-(RANK(P59,$P$12:$P$222)+COUNTIF($P$12:P59,P59)-2))<=INT(0.25*COUNTIF(H$12:H$222,"<>0")),"TOP25", "")) ->  | AD59: =IF(IF(J59="Suppressed","",COUNTIF(J$12:J$222,"<>Suppressed")-(RANK(J59,$J$12:$J$222)+COUNTIF(J$12:$J59,J59)-2))<=INT(0.05*COUNTIF(J$12:J$222,"<>Suppressed")),"TOP5", IF(IF(J59="Suppressed","",COUNTIF(J$12:J$222,"<>Suppressed")-(RANK(J59,$J$12:$J$222)+COUNTIF(J$12:$J59,J59)-2))<=INT(0.25*COUNTIF(J$12:J$222,"<>suppressed")),"TOP25", "")) -> 
A60: 06K | B60: NHS East and North Hertfordshire | C60: =IF(G60=0,"",COUNTIF(G$12:G$222,"<>0")-(RANK(M60,$M$12:$M$222)+COUNTIF($M$12:M60,M60)-2)) -> 52 | D60: =IF(H60=0,"",COUNTIF(P$12:P$222,"<>Suppressed")-(RANK(P60,$P$12:$P$222)+COUNTIF($P$12:P60,P60)-2)) -> 12 | E60: =IF(J60="Suppressed","",COUNTIF(J$12:J$222,"<>Suppressed")-(RANK(J60,$J$12:$J$222)+COUNTIF($J$12:J60,J60)-2)) -> 70 | F60: =VLOOKUP(A60,population!C:O,Settings!$B$3,FALSE) -> 109650.8 | G60: =VLOOKUP(A60,CCG_data_TRACCS!A:N,4,FALSE) -> 3428 | H60: =VLOOKUP(A60,CCG_data_TRACCS!A:N,5,FALSE) -> 10092 | I60: =VLOOKUP(A60,CCG_data_TRACCS!A:N,6,FALSE) -> 7561 | J60: 1.334744081 | M60: 3126.28818 | N60: 3022.500176 | O60: 3232.730959 | P60: 9203.763219 | Q60: 9025.062092 | R60: 9385.11279 | S60: 3072.340833 | T60: 10937.79787 | U60: 1.271584241 | V60: =VLOOKUP(Selections_data_CCG!$G$2,'CurrentData-all children'!A:R,13,FALSE) -> 7077.07289 | W60: =IF(Settings!$B$5="4SIMILAR", VLOOKUP(Selections_data_CCG!$G$2,'CurrentData-4SIMILAR-allchildre'!A:R,13,FALSE), VLOOKUP(Settings!$C$5,'CurrentData-all children'!A:R,13,FALSE)) -> 5510.027757 | X60: =VLOOKUP(Selections_data_CCG!$G$2,'CurrentData-all children'!A:R,16,FALSE) -> 16842.33626 | Y60: =IF(Settings!$B$5="4SIMILAR", VLOOKUP(Selections_data_CCG!$G$2,'CurrentData-4SIMILAR-allchildre'!A:R,16,FALSE), VLOOKUP(Settings!$C$5,'CurrentData-all children'!A:R,16,FALSE)) -> 14706.8643 | Z60: =VLOOKUP(Selections_data_CCG!$G$2,'CurrentData-all children'!A:R,10,FALSE) -> 1.48533414 | AA60: =IF(Settings!$B$5="4SIMILAR", VLOOKUP(Selections_data_CCG!$G$2,'CurrentData-4SIMILAR-allchildre'!A:R,10,FALSE), VLOOKUP(Settings!$C$5,'CurrentData-all children'!A:R,10,FALSE)) -> 1.437047856 | AB60: =IF(IF(G60=0,"",COUNTIF(G$12:G$222,"<>0")-(RANK(M60,$M$12:$M$222)+COUNTIF($M$12:M60,M60)-2))<=INT(0.05*COUNTIF(G$12:G$222,"<>0")),"TOP5", IF(IF(G60=0,"",COUNTIF(G$12:G$222,"<>0")-(RANK(M60,$M$12:$M$222)+COUNTIF($M$12:M60,M60)-2))<=INT(0.25*COUNTIF(G$12:G$222,"<>0")),"TOP25", "")) -> TOP25 | AC60: =IF(IF(H60=0,"",COUNTIF(H$12:H$222,"<>0")-(RANK(P60,$P$12:$P$222)+COUNTIF($P$12:P60,P60)-2))<=INT(0.05*COUNTIF(H$12:H$222,"<>0")),"TOP5", IF(IF(H60=0,"",COUNTIF(H$12:H$222,"<>0")-(RANK(P60,$P$12:$P$222)+COUNTIF($P$12:P60,P60)-2))<=INT(0.25*COUNTIF(H$12:H$222,"<>0")),"TOP25", "")) -> TOP25 | AD60: =IF(IF(J60="Suppressed","",COUNTIF(J$12:J$222,"<>Suppressed")-(RANK(J60,$J$12:$J$222)+COUNTIF(J$12:$J60,J60)-2))<=INT(0.05*COUNTIF(J$12:J$222,"<>Suppressed")),"TOP5", IF(IF(J60="Suppressed","",COUNTIF(J$12:J$222,"<>Suppressed")-(RANK(J60,$J$12:$J$222)+COUNTIF(J$12:$J60,J60)-2))<=INT(0.25*COUNTIF(J$12:J$222,"<>suppressed")),"TOP25", "")) -> 
A61: 01A | B61: NHS East Lancashire | C61: =IF(G61=0,"",COUNTIF(G$12:G$222,"<>0")-(RANK(M61,$M$12:$M$222)+COUNTIF($M$12:M61,M61)-2)) -> 208 | D61: =IF(H61=0,"",COUNTIF(P$12:P$222,"<>Suppressed")-(RANK(P61,$P$12:$P$222)+COUNTIF($P$12:P61,P61)-2)) -> 200 | E61: =IF(J61="Suppressed","",COUNTIF(J$12:J$222,"<>Suppressed")-(RANK(J61,$J$12:$J$222)+COUNTIF($J$12:J61,J61)-2)) -> 62 | F61: =VLOOKUP(A61,population!C:O,Settings!$B$3,FALSE) -> 71057 | G61: =VLOOKUP(A61,CCG_data_TRACCS!A:N,4,FALSE) -> 5553 | H61: =VLOOKUP(A61,CCG_data_TRACCS!A:N,5,FALSE) -> 12383 | I61: =VLOOKUP(A61,CCG_data_TRACCS!A:N,6,FALSE) -> 9434 | J61: 1.31259275 | M61: 7814.852865 | N61: 7610.644624 | O61: 8023.152776 | P61: 17426.8545 | Q61: 17121.24894 | R61: 17736.54564 | S61: 3097.362932 | T61: 10951.78583 | U61: 1.273384447 | V61: =VLOOKUP(Selections_data_CCG!$G$2,'CurrentData-all children'!A:R,13,FALSE) -> 7077.07289 | W61: =IF(Settings!$B$5="4SIMILAR", VLOOKUP(Selections_data_CCG!$G$2,'CurrentData-4SIMILAR-allchildre'!A:R,13,FALSE), VLOOKUP(Settings!$C$5,'CurrentData-all children'!A:R,13,FALSE)) -> 5510.027757 | X61: =VLOOKUP(Selections_data_CCG!$G$2,'CurrentData-all children'!A:R,16,FALSE) -> 16842.33626 | Y61: =IF(Settings!$B$5="4SIMILAR", VLOOKUP(Selections_data_CCG!$G$2,'CurrentData-4SIMILAR-allchildre'!A:R,16,FALSE), VLOOKUP(Settings!$C$5,'CurrentData-all children'!A:R,16,FALSE)) -> 14706.8643 | Z61: =VLOOKUP(Selections_data_CCG!$G$2,'CurrentData-all children'!A:R,10,FALSE) -> 1.48533414 | AA61: =IF(Settings!$B$5="4SIMILAR", VLOOKUP(Selections_data_CCG!$G$2,'CurrentData-4SIMILAR-allchildre'!A:R,10,FALSE), VLOOKUP(Settings!$C$5,'CurrentData-all children'!A:R,10,FALSE)) -> 1.437047856 | AB61: =IF(IF(G61=0,"",COUNTIF(G$12:G$222,"<>0")-(RANK(M61,$M$12:$M$222)+COUNTIF($M$12:M61,M61)-2))<=INT(0.05*COUNTIF(G$12:G$222,"<>0")),"TOP5", IF(IF(G61=0,"",COUNTIF(G$12:G$222,"<>0")-(RANK(M61,$M$12:$M$222)+COUNTIF($M$12:M61,M61)-2))<=INT(0.25*COUNTIF(G$12:G$222,"<>0")),"TOP25", "")) ->  | AC61: =IF(IF(H61=0,"",COUNTIF(H$12:H$222,"<>0")-(RANK(P61,$P$12:$P$222)+COUNTIF($P$12:P61,P61)-2))<=INT(0.05*COUNTIF(H$12:H$222,"<>0")),"TOP5", IF(IF(H61=0,"",COUNTIF(H$12:H$222,"<>0")-(RANK(P61,$P$12:$P$222)+COUNTIF($P$12:P61,P61)-2))<=INT(0.25*COUNTIF(H$12:H$222,"<>0")),"TOP25", "")) ->  | AD61: =IF(IF(J61="Suppressed","",COUNTIF(J$12:J$222,"<>Suppressed")-(RANK(J61,$J$12:$J$222)+COUNTIF(J$12:$J61,J61)-2))<=INT(0.05*COUNTIF(J$12:J$222,"<>Suppressed")),"TOP5", IF(IF(J61="Suppressed","",COUNTIF(J$12:J$222,"<>Suppressed")-(RANK(J61,$J$12:$J$222)+COUNTIF(J$12:$J61,J61)-2))<=INT(0.25*COUNTIF(J$12:J$222,"<>suppressed")),"TOP25", "")) -> 
A62: 03W | B62: NHS East Leicestershire and Rutland | C62: =IF(G62=0,"",COUNTIF(G$12:G$222,"<>0")-(RANK(M62,$M$12:$M$222)+COUNTIF($M$12:M62,M62)-2)) -> 11 | D62: =IF(H62=0,"",COUNTIF(P$12:P$222,"<>Suppressed")-(RANK(P62,$P$12:$P$222)+COUNTIF($P$12:P62,P62)-2)) -> 63 | E62: =IF(J62="Suppressed","",COUNTIF(J$12:J$222,"<>Suppressed")-(RANK(J62,$J$12:$J$222)+COUNTIF($J$12:J62,J62)-2)) -> 202 | F62: =VLOOKUP(A62,population!C:O,Settings!$B$3,FALSE) -> 55705.6 | G62: =VLOOKUP(A62,CCG_data_TRACCS!A:N,4,FALSE) -> 1325 | H62: =VLOOKUP(A62,CCG_data_TRACCS!A:N,5,FALSE) -> 6212 | I62: =VLOOKUP(A62,CCG_data_TRACCS!A:N,6,FALSE) -> 2719 | J62: 2.284663479 | M62: 2378.575942 | N62: 2252.21093 | O62: 2510.18471 | P62: 11151.48208 | Q62: 10875.87626 | R62: 11432.30587 | S62: 3125.605912 | T62: 10955.03617 | U62: 1.275536261 | V62: =VLOOKUP(Selections_data_CCG!$G$2,'CurrentData-all children'!A:R,13,FALSE) -> 7077.07289 | W62: =IF(Settings!$B$5="4SIMILAR", VLOOKUP(Selections_data_CCG!$G$2,'CurrentData-4SIMILAR-allchildre'!A:R,13,FALSE), VLOOKUP(Settings!$C$5,'CurrentData-all children'!A:R,13,FALSE)) -> 5510.027757 | X62: =VLOOKUP(Selections_data_CCG!$G$2,'CurrentData-all children'!A:R,16,FALSE) -> 16842.33626 | Y62: =IF(Settings!$B$5="4SIMILAR", VLOOKUP(Selections_data_CCG!$G$2,'CurrentData-4SIMILAR-allchildre'!A:R,16,FALSE), VLOOKUP(Settings!$C$5,'CurrentData-all children'!A:R,16,FALSE)) -> 14706.8643 | Z62: =VLOOKUP(Selections_data_CCG!$G$2,'CurrentData-all children'!A:R,10,FALSE) -> 1.48533414 | AA62: =IF(Settings!$B$5="4SIMILAR", VLOOKUP(Selections_data_CCG!$G$2,'CurrentData-4SIMILAR-allchildre'!A:R,10,FALSE), VLOOKUP(Settings!$C$5,'CurrentData-all children'!A:R,10,FALSE)) -> 1.437047856 | AB62: =IF(IF(G62=0,"",COUNTIF(G$12:G$222,"<>0")-(RANK(M62,$M$12:$M$222)+COUNTIF($M$12:M62,M62)-2))<=INT(0.05*COUNTIF(G$12:G$222,"<>0")),"TOP5", IF(IF(G62=0,"",COUNTIF(G$12:G$222,"<>0")-(RANK(M62,$M$12:$M$222)+COUNTIF($M$12:M62,M62)-2))<=INT(0.25*COUNTIF(G$12:G$222,"<>0")),"TOP25", "")) -> TOP25 | AC62: =IF(IF(H62=0,"",COUNTIF(H$12:H$222,"<>0")-(RANK(P62,$P$12:$P$222)+COUNTIF($P$12:P62,P62)-2))<=INT(0.05*COUNTIF(H$12:H$222,"<>0")),"TOP5", IF(IF(H62=0,"",COUNTIF(H$12:H$222,"<>0")-(RANK(P62,$P$12:$P$222)+COUNTIF($P$12:P62,P62)-2))<=INT(0.25*COUNTIF(H$12:H$222,"<>0")),"TOP25", "")) ->  | AD62: =IF(IF(J62="Suppressed","",COUNTIF(J$12:J$222,"<>Suppressed")-(RANK(J62,$J$12:$J$222)+COUNTIF(J$12:$J62,J62)-2))<=INT(0.05*COUNTIF(J$12:J$222,"<>Suppressed")),"TOP5", IF(IF(J62="Suppressed","",COUNTIF(J$12:J$222,"<>Suppressed")-(RANK(J62,$J$12:$J$222)+COUNTIF(J$12:$J62,J62)-2))<=INT(0.25*COUNTIF(J$12:J$222,"<>suppressed")),"TOP25", "")) -> 
A63: 02Y | B63: NHS East Riding of Yorkshire | C63: =IF(G63=0,"",COUNTIF(G$12:G$222,"<>0")-(RANK(M63,$M$12:$M$222)+COUNTIF($M$12:M63,M63)-2)) -> 104 | D63: =IF(H63=0,"",COUNTIF(P$12:P$222,"<>Suppressed")-(RANK(P63,$P$12:$P$222)+COUNTIF($P$12:P63,P63)-2)) -> 20 | E63: =IF(J63="Suppressed","",COUNTIF(J$12:J$222,"<>Suppressed")-(RANK(J63,$J$12:$J$222)+COUNTIF($J$12:J63,J63)-2)) -> 53 | F63: =VLOOKUP(A63,population!C:O,Settings!$B$3,FALSE) -> 48931.2 | G63: =VLOOKUP(A63,CCG_data_TRACCS!A:N,4,FALSE) -> 2091 | H63: =VLOOKUP(A63,CCG_data_TRACCS!A:N,5,FALSE) -> 4757 | I63: =VLOOKUP(A63,CCG_data_TRACCS!A:N,6,FALSE) -> 3701 | J63: 1.28532829 | M63: 4273.347067 | N63: 4092.12602 | O63: 4460.526755 | P63: 9721.813485 | Q63: 9447.4869 | R63: 10002.08407 | S63: 3126.28818 | T63: 10960.09279 | U63: 1.284906915 | V63: =VLOOKUP(Selections_data_CCG!$G$2,'CurrentData-all children'!A:R,13,FALSE) -> 7077.07289 | W63: =IF(Settings!$B$5="4SIMILAR", VLOOKUP(Selections_data_CCG!$G$2,'CurrentData-4SIMILAR-allchildre'!A:R,13,FALSE), VLOOKUP(Settings!$C$5,'CurrentData-all children'!A:R,13,FALSE)) -> 5510.027757 | X63: =VLOOKUP(Selections_data_CCG!$G$2,'CurrentData-all children'!A:R,16,FALSE) -> 16842.33626 | Y63: =IF(Settings!$B$5="4SIMILAR", VLOOKUP(Selections_data_CCG!$G$2,'CurrentData-4SIMILAR-allchildre'!A:R,16,FALSE), VLOOKUP(Settings!$C$5,'CurrentData-all children'!A:R,16,FALSE)) -> 14706.8643 | Z63: =VLOOKUP(Selections_data_CCG!$G$2,'CurrentData-all children'!A:R,10,FALSE) -> 1.48533414 | AA63: =IF(Settings!$B$5="4SIMILAR", VLOOKUP(Selections_data_CCG!$G$2,'CurrentData-4SIMILAR-allchildre'!A:R,10,FALSE), VLOOKUP(Settings!$C$5,'CurrentData-all children'!A:R,10,FALSE)) -> 1.437047856 | AB63: =IF(IF(G63=0,"",COUNTIF(G$12:G$222,"<>0")-(RANK(M63,$M$12:$M$222)+COUNTIF($M$12:M63,M63)-2))<=INT(0.05*COUNTIF(G$12:G$222,"<>0")),"TOP5", IF(IF(G63=0,"",COUNTIF(G$12:G$222,"<>0")-(RANK(M63,$M$12:$M$222)+COUNTIF($M$12:M63,M63)-2))<=INT(0.25*COUNTIF(G$12:G$222,"<>0")),"TOP25", "")) ->  | AC63: =IF(IF(H63=0,"",COUNTIF(H$12:H$222,"<>0")-(RANK(P63,$P$12:$P$222)+COUNTIF($P$12:P63,P63)-2))<=INT(0.05*COUNTIF(H$12:H$222,"<>0")),"TOP5", IF(IF(H63=0,"",COUNTIF(H$12:H$222,"<>0")-(RANK(P63,$P$12:$P$222)+COUNTIF($P$12:P63,P63)-2))<=INT(0.25*COUNTIF(H$12:H$222,"<>0")),"TOP25", "")) -> TOP25 | AD63: =IF(IF(J63="Suppressed","",COUNTIF(J$12:J$222,"<>Suppressed")-(RANK(J63,$J$12:$J$222)+COUNTIF(J$12:$J63,J63)-2))<=INT(0.05*COUNTIF(J$12:J$222,"<>Suppressed")),"TOP5", IF(IF(J63="Suppressed","",COUNTIF(J$12:J$222,"<>Suppressed")-(RANK(J63,$J$12:$J$222)+COUNTIF(J$12:$J63,J63)-2))<=INT(0.25*COUNTIF(J$12:J$222,"<>suppressed")),"TOP25", "")) -> 
A64: 05D | B64: NHS East Staffordshire | C64: =IF(G64=0,"",COUNTIF(G$12:G$222,"<>0")-(RANK(M64,$M$12:$M$222)+COUNTIF($M$12:M64,M64)-2)) -> 119 | D64: =IF(H64=0,"",COUNTIF(P$12:P$222,"<>Suppressed")-(RANK(P64,$P$12:$P$222)+COUNTIF($P$12:P64,P64)-2)) -> 108 | E64: =IF(J64="Suppressed","",COUNTIF(J$12:J$222,"<>Suppressed")-(RANK(J64,$J$12:$J$222)+COUNTIF($J$12:J64,J64)-2)) -> 87 | F64: =VLOOKUP(A64,population!C:O,Settings!$B$3,FALSE) -> 25384.4 | G64: =VLOOKUP(A64,CCG_data_TRACCS!A:N,4,FALSE) -> 1172 | H64: =VLOOKUP(A64,CCG_data_TRACCS!A:N,5,FALSE) -> 3146 | I64: =VLOOKUP(A64,CCG_data_TRACCS!A:N,6,FALSE) -> 2263 | J64: 1.390190013 | M64: 4617.008872 | N64: 4356.428676 | O64: 4889.10302 | P64: 12393.43849 | Q64: 11964.10816 | R64: 12834.23929 | S64: 3141.703168 | T64: 10993.57912 | U64: 1.28532829 | V64: =VLOOKUP(Selections_data_CCG!$G$2,'CurrentData-all children'!A:R,13,FALSE) -> 7077.07289 | W64: =IF(Settings!$B$5="4SIMILAR", VLOOKUP(Selections_data_CCG!$G$2,'CurrentData-4SIMILAR-allchildre'!A:R,13,FALSE), VLOOKUP(Settings!$C$5,'CurrentData-all children'!A:R,13,FALSE)) -> 5510.027757 | X64: =VLOOKUP(Selections_data_CCG!$G$2,'CurrentData-all children'!A:R,16,FALSE) -> 16842.33626 | Y64: =IF(Settings!$B$5="4SIMILAR", VLOOKUP(Selections_data_CCG!$G$2,'CurrentData-4SIMILAR-allchildre'!A:R,16,FALSE), VLOOKUP(Settings!$C$5,'CurrentData-all children'!A:R,16,FALSE)) -> 14706.8643 | Z64: =VLOOKUP(Selections_data_CCG!$G$2,'CurrentData-all children'!A:R,10,FALSE) -> 1.48533414 | AA64: =IF(Settings!$B$5="4SIMILAR", VLOOKUP(Selections_data_CCG!$G$2,'CurrentData-4SIMILAR-allchildre'!A:R,10,FALSE), VLOOKUP(Settings!$C$5,'CurrentData-all children'!A:R,10,FALSE)) -> 1.437047856 | AB64: =IF(IF(G64=0,"",COUNTIF(G$12:G$222,"<>0")-(RANK(M64,$M$12:$M$222)+COUNTIF($M$12:M64,M64)-2))<=INT(0.05*COUNTIF(G$12:G$222,"<>0")),"TOP5", IF(IF(G64=0,"",COUNTIF(G$12:G$222,"<>0")-(RANK(M64,$M$12:$M$222)+COUNTIF($M$12:M64,M64)-2))<=INT(0.25*COUNTIF(G$12:G$222,"<>0")),"TOP25", "")) ->  | AC64: =IF(IF(H64=0,"",COUNTIF(H$12:H$222,"<>0")-(RANK(P64,$P$12:$P$222)+COUNTIF($P$12:P64,P64)-2))<=INT(0.05*COUNTIF(H$12:H$222,"<>0")),"TOP5", IF(IF(H64=0,"",COUNTIF(H$12:H$222,"<>0")-(RANK(P64,$P$12:$P$222)+COUNTIF($P$12:P64,P64)-2))<=INT(0.25*COUNTIF(H$12:H$222,"<>0")),"TOP25", "")) ->  | AD64: =IF(IF(J64="Suppressed","",COUNTIF(J$12:J$222,"<>Suppressed")-(RANK(J64,$J$12:$J$222)+COUNTIF(J$12:$J64,J64)-2))<=INT(0.05*COUNTIF(J$12:J$222,"<>Suppressed")),"TOP5", IF(IF(J64="Suppressed","",COUNTIF(J$12:J$222,"<>Suppressed")-(RANK(J64,$J$12:$J$222)+COUNTIF(J$12:$J64,J64)-2))<=INT(0.25*COUNTIF(J$12:J$222,"<>suppressed")),"TOP25", "")) -> 
A65: 09L | B65: NHS East Surrey | C65: =IF(G65=0,"",COUNTIF(G$12:G$222,"<>0")-(RANK(M65,$M$12:$M$222)+COUNTIF($M$12:M65,M65)-2)) -> 115 | D65: =IF(H65=0,"",COUNTIF(P$12:P$222,"<>Suppressed")-(RANK(P65,$P$12:$P$222)+COUNTIF($P$12:P65,P65)-2)) -> 99 | E65: =IF(J65="Suppressed","",COUNTIF(J$12:J$222,"<>Suppressed")-(RANK(J65,$J$12:$J$222)+COUNTIF($J$12:J65,J65)-2)) -> 82 | F65: =VLOOKUP(A65,population!C:O,Settings!$B$3,FALSE) -> 34044 | G65: =VLOOKUP(A65,CCG_data_TRACCS!A:N,4,FALSE) -> 1514 | H65: =VLOOKUP(A65,CCG_data_TRACCS!A:N,5,FALSE) -> 4146 | I65: =VLOOKUP(A65,CCG_data_TRACCS!A:N,6,FALSE) -> 2994 | J65: 1.384769539 | M65: 4447.185995 | N65: 4225.968193 | O65: 4676.979022 | P65: 12178.35742 | Q65: 11810.447 | R65: 12554.81405 | S65: 3163.317369 | T65: 11022.78963 | U65: 1.285747828 | V65: =VLOOKUP(Selections_data_CCG!$G$2,'CurrentData-all children'!A:R,13,FALSE) -> 7077.07289 | W65: =IF(Settings!$B$5="4SIMILAR", VLOOKUP(Selections_data_CCG!$G$2,'CurrentData-4SIMILAR-allchildre'!A:R,13,FALSE), VLOOKUP(Settings!$C$5,'CurrentData-all children'!A:R,13,FALSE)) -> 5510.027757 | X65: =VLOOKUP(Selections_data_CCG!$G$2,'CurrentData-all children'!A:R,16,FALSE) -> 16842.33626 | Y65: =IF(Settings!$B$5="4SIMILAR", VLOOKUP(Selections_data_CCG!$G$2,'CurrentData-4SIMILAR-allchildre'!A:R,16,FALSE), VLOOKUP(Settings!$C$5,'CurrentData-all children'!A:R,16,FALSE)) -> 14706.8643 | Z65: =VLOOKUP(Selections_data_CCG!$G$2,'CurrentData-all children'!A:R,10,FALSE) -> 1.48533414 | AA65: =IF(Settings!$B$5="4SIMILAR", VLOOKUP(Selections_data_CCG!$G$2,'CurrentData-4SIMILAR-allchildre'!A:R,10,FALSE), VLOOKUP(Settings!$C$5,'CurrentData-all children'!A:R,10,FALSE)) -> 1.437047856 | AB65: =IF(IF(G65=0,"",COUNTIF(G$12:G$222,"<>0")-(RANK(M65,$M$12:$M$222)+COUNTIF($M$12:M65,M65)-2))<=INT(0.05*COUNTIF(G$12:G$222,"<>0")),"TOP5", IF(IF(G65=0,"",COUNTIF(G$12:G$222,"<>0")-(RANK(M65,$M$12:$M$222)+COUNTIF($M$12:M65,M65)-2))<=INT(0.25*COUNTIF(G$12:G$222,"<>0")),"TOP25", "")) ->  | AC65: =IF(IF(H65=0,"",COUNTIF(H$12:H$222,"<>0")-(RANK(P65,$P$12:$P$222)+COUNTIF($P$12:P65,P65)-2))<=INT(0.05*COUNTIF(H$12:H$222,"<>0")),"TOP5", IF(IF(H65=0,"",COUNTIF(H$12:H$222,"<>0")-(RANK(P65,$P$12:$P$222)+COUNTIF($P$12:P65,P65)-2))<=INT(0.25*COUNTIF(H$12:H$222,"<>0")),"TOP25", "")) ->  | AD65: =IF(IF(J65="Suppressed","",COUNTIF(J$12:J$222,"<>Suppressed")-(RANK(J65,$J$12:$J$222)+COUNTIF(J$12:$J65,J65)-2))<=INT(0.05*COUNTIF(J$12:J$222,"<>Suppressed")),"TOP5", IF(IF(J65="Suppressed","",COUNTIF(J$12:J$222,"<>Suppressed")-(RANK(J65,$J$12:$J$222)+COUNTIF(J$12:$J65,J65)-2))<=INT(0.25*COUNTIF(J$12:J$222,"<>suppressed")),"TOP25", "")) -> 
A66: 09F | B66: NHS Eastbourne, Hailsham and Seaford | C66: =IF(G66=0,"",COUNTIF(G$12:G$222,"<>0")-(RANK(M66,$M$12:$M$222)+COUNTIF($M$12:M66,M66)-2)) -> 143 | D66: =IF(H66=0,"",COUNTIF(P$12:P$222,"<>Suppressed")-(RANK(P66,$P$12:$P$222)+COUNTIF($P$12:P66,P66)-2)) -> 78 | E66: =IF(J66="Suppressed","",COUNTIF(J$12:J$222,"<>Suppressed")-(RANK(J66,$J$12:$J$222)+COUNTIF($J$12:J66,J66)-2)) -> 19 | F66: =VLOOKUP(A66,population!C:O,Settings!$B$3,FALSE) -> 30349.6 | G66: =VLOOKUP(A66,CCG_data_TRACCS!A:N,4,FALSE) -> 1591 | H66: =VLOOKUP(A66,CCG_data_TRACCS!A:N,5,FALSE) -> 3478 | I66: =VLOOKUP(A66,CCG_data_TRACCS!A:N,6,FALSE) -> 2995 | J66: 1.161268781 | M66: 5242.24372 | N66: 4987.786535 | O66: 5506.317966 | P66: 11459.7886 | Q66: 11082.06284 | R66: 11847.10545 | S66: 3166.345161 | T66: 11026.76382 | U66: 1.28614098 | V66: =VLOOKUP(Selections_data_CCG!$G$2,'CurrentData-all children'!A:R,13,FALSE) -> 7077.07289 | W66: =IF(Settings!$B$5="4SIMILAR", VLOOKUP(Selections_data_CCG!$G$2,'CurrentData-4SIMILAR-allchildre'!A:R,13,FALSE), VLOOKUP(Settings!$C$5,'CurrentData-all children'!A:R,13,FALSE)) -> 5510.027757 | X66: =VLOOKUP(Selections_data_CCG!$G$2,'CurrentData-all children'!A:R,16,FALSE) -> 16842.33626 | Y66: =IF(Settings!$B$5="4SIMILAR", VLOOKUP(Selections_data_CCG!$G$2,'CurrentData-4SIMILAR-allchildre'!A:R,16,FALSE), VLOOKUP(Settings!$C$5,'CurrentData-all children'!A:R,16,FALSE)) -> 14706.8643 | Z66: =VLOOKUP(Selections_data_CCG!$G$2,'CurrentData-all children'!A:R,10,FALSE) -> 1.48533414 | AA66: =IF(Settings!$B$5="4SIMILAR", VLOOKUP(Selections_data_CCG!$G$2,'CurrentData-4SIMILAR-allchildre'!A:R,10,FALSE), VLOOKUP(Settings!$C$5,'CurrentData-all children'!A:R,10,FALSE)) -> 1.437047856 | AB66: =IF(IF(G66=0,"",COUNTIF(G$12:G$222,"<>0")-(RANK(M66,$M$12:$M$222)+COUNTIF($M$12:M66,M66)-2))<=INT(0.05*COUNTIF(G$12:G$222,"<>0")),"TOP5", IF(IF(G66=0,"",COUNTIF(G$12:G$222,"<>0")-(RANK(M66,$M$12:$M$222)+COUNTIF($M$12:M66,M66)-2))<=INT(0.25*COUNTIF(G$12:G$222,"<>0")),"TOP25", "")) ->  | AC66: =IF(IF(H66=0,"",COUNTIF(H$12:H$222,"<>0")-(RANK(P66,$P$12:$P$222)+COUNTIF($P$12:P66,P66)-2))<=INT(0.05*COUNTIF(H$12:H$222,"<>0")),"TOP5", IF(IF(H66=0,"",COUNTIF(H$12:H$222,"<>0")-(RANK(P66,$P$12:$P$222)+COUNTIF($P$12:P66,P66)-2))<=INT(0.25*COUNTIF(H$12:H$222,"<>0")),"TOP25", "")) ->  | AD66: =IF(IF(J66="Suppressed","",COUNTIF(J$12:J$222,"<>Suppressed")-(RANK(J66,$J$12:$J$222)+COUNTIF(J$12:$J66,J66)-2))<=INT(0.05*COUNTIF(J$12:J$222,"<>Suppressed")),"TOP5", IF(IF(J66="Suppressed","",COUNTIF(J$12:J$222,"<>Suppressed")-(RANK(J66,$J$12:$J$222)+COUNTIF(J$12:$J66,J66)-2))<=INT(0.25*COUNTIF(J$12:J$222,"<>suppressed")),"TOP25", "")) -> TOP25
A67: 01C | B67: NHS Eastern Cheshire | C67: =IF(G67=0,"",COUNTIF(G$12:G$222,"<>0")-(RANK(M67,$M$12:$M$222)+COUNTIF($M$12:M67,M67)-2)) -> 151 | D67: =IF(H67=0,"",COUNTIF(P$12:P$222,"<>Suppressed")-(RANK(P67,$P$12:$P$222)+COUNTIF($P$12:P67,P67)-2)) -> 148 | E67: =IF(J67="Suppressed","",COUNTIF(J$12:J$222,"<>Suppressed")-(RANK(J67,$J$12:$J$222)+COUNTIF($J$12:J67,J67)-2)) -> 78 | F67: =VLOOKUP(A67,population!C:O,Settings!$B$3,FALSE) -> 34359.4 | G67: =VLOOKUP(A67,CCG_data_TRACCS!A:N,4,FALSE) -> 1858 | H67: =VLOOKUP(A67,CCG_data_TRACCS!A:N,5,FALSE) -> 4712 | I67: =VLOOKUP(A67,CCG_data_TRACCS!A:N,6,FALSE) -> 3413 | J67: 1.380603575 | M67: 5407.544951 | N67: 5164.430742 | O67: 5659.148615 | P67: 13713.85996 | Q67: 13325.05698 | R67: 14111.12799 | S67: 3224.275629 | T67: 11033.07634 | U67: 1.289879609 | V67: =VLOOKUP(Selections_data_CCG!$G$2,'CurrentData-all children'!A:R,13,FALSE) -> 7077.07289 | W67: =IF(Settings!$B$5="4SIMILAR", VLOOKUP(Selections_data_CCG!$G$2,'CurrentData-4SIMILAR-allchildre'!A:R,13,FALSE), VLOOKUP(Settings!$C$5,'CurrentData-all children'!A:R,13,FALSE)) -> 5510.027757 | X67: =VLOOKUP(Selections_data_CCG!$G$2,'CurrentData-all children'!A:R,16,FALSE) -> 16842.33626 | Y67: =IF(Settings!$B$5="4SIMILAR", VLOOKUP(Selections_data_CCG!$G$2,'CurrentData-4SIMILAR-allchildre'!A:R,16,FALSE), VLOOKUP(Settings!$C$5,'CurrentData-all children'!A:R,16,FALSE)) -> 14706.8643 | Z67: =VLOOKUP(Selections_data_CCG!$G$2,'CurrentData-all children'!A:R,10,FALSE) -> 1.48533414 | AA67: =IF(Settings!$B$5="4SIMILAR", VLOOKUP(Selections_data_CCG!$G$2,'CurrentData-4SIMILAR-allchildre'!A:R,10,FALSE), VLOOKUP(Settings!$C$5,'CurrentData-all children'!A:R,10,FALSE)) -> 1.437047856 | AB67: =IF(IF(G67=0,"",COUNTIF(G$12:G$222,"<>0")-(RANK(M67,$M$12:$M$222)+COUNTIF($M$12:M67,M67)-2))<=INT(0.05*COUNTIF(G$12:G$222,"<>0")),"TOP5", IF(IF(G67=0,"",COUNTIF(G$12:G$222,"<>0")-(RANK(M67,$M$12:$M$222)+COUNTIF($M$12:M67,M67)-2))<=INT(0.25*COUNTIF(G$12:G$222,"<>0")),"TOP25", "")) ->  | AC67: =IF(IF(H67=0,"",COUNTIF(H$12:H$222,"<>0")-(RANK(P67,$P$12:$P$222)+COUNTIF($P$12:P67,P67)-2))<=INT(0.05*COUNTIF(H$12:H$222,"<>0")),"TOP5", IF(IF(H67=0,"",COUNTIF(H$12:H$222,"<>0")-(RANK(P67,$P$12:$P$222)+COUNTIF($P$12:P67,P67)-2))<=INT(0.25*COUNTIF(H$12:H$222,"<>0")),"TOP25", "")) ->  | AD67: =IF(IF(J67="Suppressed","",COUNTIF(J$12:J$222,"<>Suppressed")-(RANK(J67,$J$12:$J$222)+COUNTIF(J$12:$J67,J67)-2))<=INT(0.05*COUNTIF(J$12:J$222,"<>Suppressed")),"TOP5", IF(IF(J67="Suppressed","",COUNTIF(J$12:J$222,"<>Suppressed")-(RANK(J67,$J$12:$J$222)+COUNTIF(J$12:$J67,J67)-2))<=INT(0.25*COUNTIF(J$12:J$222,"<>suppressed")),"TOP25", "")) -> 
A68: 07X | B68: NHS Enfield | C68: =IF(G68=0,"",COUNTIF(G$12:G$222,"<>0")-(RANK(M68,$M$12:$M$222)+COUNTIF($M$12:M68,M68)-2)) -> 60 | D68: =IF(H68=0,"",COUNTIF(P$12:P$222,"<>Suppressed")-(RANK(P68,$P$12:$P$222)+COUNTIF($P$12:P68,P68)-2)) -> 45 | E68: =IF(J68="Suppressed","",COUNTIF(J$12:J$222,"<>Suppressed")-(RANK(J68,$J$12:$J$222)+COUNTIF($J$12:J68,J68)-2)) -> 133 | F68: =VLOOKUP(A68,population!C:O,Settings!$B$3,FALSE) -> 68116 | G68: =VLOOKUP(A68,CCG_data_TRACCS!A:N,4,FALSE) -> 2221 | H68: =VLOOKUP(A68,CCG_data_TRACCS!A:N,5,FALSE) -> 7366 | I68: =VLOOKUP(A68,CCG_data_TRACCS!A:N,6,FALSE) -> 4682 | J68: 1.573259291 | M68: 3260.614246 | N68: 3126.405329 | O68: 3399.102634 | P68: 10813.90569 | Q68: 10568.34556 | R68: 11063.73162 | S68: 3244.818757 | T68: 11069.57446 | U68: 1.290502793 | V68: =VLOOKUP(Selections_data_CCG!$G$2,'CurrentData-all children'!A:R,13,FALSE) -> 7077.07289 | W68: =IF(Settings!$B$5="4SIMILAR", VLOOKUP(Selections_data_CCG!$G$2,'CurrentData-4SIMILAR-allchildre'!A:R,13,FALSE), VLOOKUP(Settings!$C$5,'CurrentData-all children'!A:R,13,FALSE)) -> 5510.027757 | X68: =VLOOKUP(Selections_data_CCG!$G$2,'CurrentData-all children'!A:R,16,FALSE) -> 16842.33626 | Y68: =IF(Settings!$B$5="4SIMILAR", VLOOKUP(Selections_data_CCG!$G$2,'CurrentData-4SIMILAR-allchildre'!A:R,16,FALSE), VLOOKUP(Settings!$C$5,'CurrentData-all children'!A:R,16,FALSE)) -> 14706.8643 | Z68: =VLOOKUP(Selections_data_CCG!$G$2,'CurrentData-all children'!A:R,10,FALSE) -> 1.48533414 | AA68: =IF(Settings!$B$5="4SIMILAR", VLOOKUP(Selections_data_CCG!$G$2,'CurrentData-4SIMILAR-allchildre'!A:R,10,FALSE), VLOOKUP(Settings!$C$5,'CurrentData-all children'!A:R,10,FALSE)) -> 1.437047856 | AB68: =IF(IF(G68=0,"",COUNTIF(G$12:G$222,"<>0")-(RANK(M68,$M$12:$M$222)+COUNTIF($M$12:M68,M68)-2))<=INT(0.05*COUNTIF(G$12:G$222,"<>0")),"TOP5", IF(IF(G68=0,"",COUNTIF(G$12:G$222,"<>0")-(RANK(M68,$M$12:$M$222)+COUNTIF($M$12:M68,M68)-2))<=INT(0.25*COUNTIF(G$12:G$222,"<>0")),"TOP25", "")) ->  | AC68: =IF(IF(H68=0,"",COUNTIF(H$12:H$222,"<>0")-(RANK(P68,$P$12:$P$222)+COUNTIF($P$12:P68,P68)-2))<=INT(0.05*COUNTIF(H$12:H$222,"<>0")),"TOP5", IF(IF(H68=0,"",COUNTIF(H$12:H$222,"<>0")-(RANK(P68,$P$12:$P$222)+COUNTIF($P$12:P68,P68)-2))<=INT(0.25*COUNTIF(H$12:H$222,"<>0")),"TOP25", "")) -> TOP25 | AD68: =IF(IF(J68="Suppressed","",COUNTIF(J$12:J$222,"<>Suppressed")-(RANK(J68,$J$12:$J$222)+COUNTIF(J$12:$J68,J68)-2))<=INT(0.05*COUNTIF(J$12:J$222,"<>Suppressed")),"TOP5", IF(IF(J68="Suppressed","",COUNTIF(J$12:J$222,"<>Suppressed")-(RANK(J68,$J$12:$J$222)+COUNTIF(J$12:$J68,J68)-2))<=INT(0.25*COUNTIF(J$12:J$222,"<>suppressed")),"TOP25", "")) -> 
A69: 03X | B69: NHS Erewash | C69: =IF(G69=0,"",COUNTIF(G$12:G$222,"<>0")-(RANK(M69,$M$12:$M$222)+COUNTIF($M$12:M69,M69)-2)) -> 21 | D69: =IF(H69=0,"",COUNTIF(P$12:P$222,"<>Suppressed")-(RANK(P69,$P$12:$P$222)+COUNTIF($P$12:P69,P69)-2)) -> 174 | E69: =IF(J69="Suppressed","",COUNTIF(J$12:J$222,"<>Suppressed")-(RANK(J69,$J$12:$J$222)+COUNTIF($J$12:J69,J69)-2)) -> 210 | F69: =VLOOKUP(A69,population!C:O,Settings!$B$3,FALSE) -> 16592.6 | G69: =VLOOKUP(A69,CCG_data_TRACCS!A:N,4,FALSE) -> 430 | H69: =VLOOKUP(A69,CCG_data_TRACCS!A:N,5,FALSE) -> 2555 | I69: =VLOOKUP(A69,CCG_data_TRACCS!A:N,6,FALSE) -> 956 | J69: 2.672594142 | M69: 2591.5167 | N69: 2352.324431 | O69: 2848.434083 | P69: 15398.43063 | Q69: 14807.08205 | R69: 16007.33889 | S69: 3250.032835 | T69: 11075.46552 | U69: 1.291869354 | V69: =VLOOKUP(Selections_data_CCG!$G$2,'CurrentData-all children'!A:R,13,FALSE) -> 7077.07289 | W69: =IF(Settings!$B$5="4SIMILAR", VLOOKUP(Selections_data_CCG!$G$2,'CurrentData-4SIMILAR-allchildre'!A:R,13,FALSE), VLOOKUP(Settings!$C$5,'CurrentData-all children'!A:R,13,FALSE)) -> 5510.027757 | X69: =VLOOKUP(Selections_data_CCG!$G$2,'CurrentData-all children'!A:R,16,FALSE) -> 16842.33626 | Y69: =IF(Settings!$B$5="4SIMILAR", VLOOKUP(Selections_data_CCG!$G$2,'CurrentData-4SIMILAR-allchildre'!A:R,16,FALSE), VLOOKUP(Settings!$C$5,'CurrentData-all children'!A:R,16,FALSE)) -> 14706.8643 | Z69: =VLOOKUP(Selections_data_CCG!$G$2,'CurrentData-all children'!A:R,10,FALSE) -> 1.48533414 | AA69: =IF(Settings!$B$5="4SIMILAR", VLOOKUP(Selections_data_CCG!$G$2,'CurrentData-4SIMILAR-allchildre'!A:R,10,FALSE), VLOOKUP(Settings!$C$5,'CurrentData-all children'!A:R,10,FALSE)) -> 1.437047856 | AB69: =IF(IF(G69=0,"",COUNTIF(G$12:G$222,"<>0")-(RANK(M69,$M$12:$M$222)+COUNTIF($M$12:M69,M69)-2))<=INT(0.05*COUNTIF(G$12:G$222,"<>0")),"TOP5", IF(IF(G69=0,"",COUNTIF(G$12:G$222,"<>0")-(RANK(M69,$M$12:$M$222)+COUNTIF($M$12:M69,M69)-2))<=INT(0.25*COUNTIF(G$12:G$222,"<>0")),"TOP25", "")) -> TOP25 | AC69: =IF(IF(H69=0,"",COUNTIF(H$12:H$222,"<>0")-(RANK(P69,$P$12:$P$222)+COUNTIF($P$12:P69,P69)-2))<=INT(0.05*COUNTIF(H$12:H$222,"<>0")),"TOP5", IF(IF(H69=0,"",COUNTIF(H$12:H$222,"<>0")-(RANK(P69,$P$12:$P$222)+COUNTIF($P$12:P69,P69)-2))<=INT(0.25*COUNTIF(H$12:H$222,"<>0")),"TOP25", "")) ->  | AD69: =IF(IF(J69="Suppressed","",COUNTIF(J$12:J$222,"<>Suppressed")-(RANK(J69,$J$12:$J$222)+COUNTIF(J$12:$J69,J69)-2))<=INT(0.05*COUNTIF(J$12:J$222,"<>Suppressed")),"TOP5", IF(IF(J69="Suppressed","",COUNTIF(J$12:J$222,"<>Suppressed")-(RANK(J69,$J$12:$J$222)+COUNTIF(J$12:$J69,J69)-2))<=INT(0.25*COUNTIF(J$12:J$222,"<>suppressed")),"TOP25", "")) -> 
A70: 10K | B70: NHS Fareham and Gosport | C70: =IF(G70=0,"",COUNTIF(G$12:G$222,"<>0")-(RANK(M70,$M$12:$M$222)+COUNTIF($M$12:M70,M70)-2)) -> 121 | D70: =IF(H70=0,"",COUNTIF(P$12:P$222,"<>Suppressed")-(RANK(P70,$P$12:$P$222)+COUNTIF($P$12:P70,P70)-2)) -> 44 | E70: =IF(J70="Suppressed","",COUNTIF(J$12:J$222,"<>Suppressed")-(RANK(J70,$J$12:$J$222)+COUNTIF($J$12:J70,J70)-2)) -> 52 | F70: =VLOOKUP(A70,population!C:O,Settings!$B$3,FALSE) -> 35817 | G70: =VLOOKUP(A70,CCG_data_TRACCS!A:N,4,FALSE) -> 1663 | H70: =VLOOKUP(A70,CCG_data_TRACCS!A:N,5,FALSE) -> 3865 | I70: =VLOOKUP(A70,CCG_data_TRACCS!A:N,6,FALSE) -> 3008 | J70: 1.284906915 | M70: 4643.046598 | N70: 4422.5474 | O70: 4871.693346 | P70: 10790.96518 | Q70: 10453.4171 | R70: 11136.63794 | S70: 3255.769415 | T70: 11109.67645 | U70: 1.292959879 | V70: =VLOOKUP(Selections_data_CCG!$G$2,'CurrentData-all children'!A:R,13,FALSE) -> 7077.07289 | W70: =IF(Settings!$B$5="4SIMILAR", VLOOKUP(Selections_data_CCG!$G$2,'CurrentData-4SIMILAR-allchildre'!A:R,13,FALSE), VLOOKUP(Settings!$C$5,'CurrentData-all children'!A:R,13,FALSE)) -> 5510.027757 | X70: =VLOOKUP(Selections_data_CCG!$G$2,'CurrentData-all children'!A:R,16,FALSE) -> 16842.33626 | Y70: =IF(Settings!$B$5="4SIMILAR", VLOOKUP(Selections_data_CCG!$G$2,'CurrentData-4SIMILAR-allchildre'!A:R,16,FALSE), VLOOKUP(Settings!$C$5,'CurrentData-all children'!A:R,16,FALSE)) -> 14706.8643 | Z70: =VLOOKUP(Selections_data_CCG!$G$2,'CurrentData-all children'!A:R,10,FALSE) -> 1.48533414 | AA70: =IF(Settings!$B$5="4SIMILAR", VLOOKUP(Selections_data_CCG!$G$2,'CurrentData-4SIMILAR-allchildre'!A:R,10,FALSE), VLOOKUP(Settings!$C$5,'CurrentData-all children'!A:R,10,FALSE)) -> 1.437047856 | AB70: =IF(IF(G70=0,"",COUNTIF(G$12:G$222,"<>0")-(RANK(M70,$M$12:$M$222)+COUNTIF($M$12:M70,M70)-2))<=INT(0.05*COUNTIF(G$12:G$222,"<>0")),"TOP5", IF(IF(G70=0,"",COUNTIF(G$12:G$222,"<>0")-(RANK(M70,$M$12:$M$222)+COUNTIF($M$12:M70,M70)-2))<=INT(0.25*COUNTIF(G$12:G$222,"<>0")),"TOP25", "")) ->  | AC70: =IF(IF(H70=0,"",COUNTIF(H$12:H$222,"<>0")-(RANK(P70,$P$12:$P$222)+COUNTIF($P$12:P70,P70)-2))<=INT(0.05*COUNTIF(H$12:H$222,"<>0")),"TOP5", IF(IF(H70=0,"",COUNTIF(H$12:H$222,"<>0")-(RANK(P70,$P$12:$P$222)+COUNTIF($P$12:P70,P70)-2))<=INT(0.25*COUNTIF(H$12:H$222,"<>0")),"TOP25", "")) -> TOP25 | AD70: =IF(IF(J70="Suppressed","",COUNTIF(J$12:J$222,"<>Suppressed")-(RANK(J70,$J$12:$J$222)+COUNTIF(J$12:$J70,J70)-2))<=INT(0.05*COUNTIF(J$12:J$222,"<>Suppressed")),"TOP5", IF(IF(J70="Suppressed","",COUNTIF(J$12:J$222,"<>Suppressed")-(RANK(J70,$J$12:$J$222)+COUNTIF(J$12:$J70,J70)-2))<=INT(0.25*COUNTIF(J$12:J$222,"<>suppressed")),"TOP25", "")) -> TOP25
A71: 02M | B71: NHS Fylde and Wyre | C71: =IF(G71=0,"",COUNTIF(G$12:G$222,"<>0")-(RANK(M71,$M$12:$M$222)+COUNTIF($M$12:M71,M71)-2)) -> 138 | D71: =IF(H71=0,"",COUNTIF(P$12:P$222,"<>Suppressed")-(RANK(P71,$P$12:$P$222)+COUNTIF($P$12:P71,P71)-2)) -> 82 | E71: =IF(J71="Suppressed","",COUNTIF(J$12:J$222,"<>Suppressed")-(RANK(J71,$J$12:$J$222)+COUNTIF($J$12:J71,J71)-2)) -> 40 | F71: =VLOOKUP(A71,population!C:O,Settings!$B$3,FALSE) -> 23502.8 | G71: =VLOOKUP(A71,CCG_data_TRACCS!A:N,4,FALSE) -> 1218 | H71: =VLOOKUP(A71,CCG_data_TRACCS!A:N,5,FALSE) -> 2705 | I71: =VLOOKUP(A71,CCG_data_TRACCS!A:N,6,FALSE) -> 2154 | J71: 1.255803157 | M71: 5182.361251 | N71: 4895.370311 | O71: 5481.785641 | P71: 11509.26698 | Q71: 11079.58692 | R71: 11951.3416 | S71: 3260.614246 | T71: 11110.38108 | U71: 1.299331104 | V71: =VLOOKUP(Selections_data_CCG!$G$2,'CurrentData-all children'!A:R,13,FALSE) -> 7077.07289 | W71: =IF(Settings!$B$5="4SIMILAR", VLOOKUP(Selections_data_CCG!$G$2,'CurrentData-4SIMILAR-allchildre'!A:R,13,FALSE), VLOOKUP(Settings!$C$5,'CurrentData-all children'!A:R,13,FALSE)) -> 5510.027757 | X71: =VLOOKUP(Selections_data_CCG!$G$2,'CurrentData-all children'!A:R,16,FALSE) -> 16842.33626 | Y71: =IF(Settings!$B$5="4SIMILAR", VLOOKUP(Selections_data_CCG!$G$2,'CurrentData-4SIMILAR-allchildre'!A:R,16,FALSE), VLOOKUP(Settings!$C$5,'CurrentData-all children'!A:R,16,FALSE)) -> 14706.8643 | Z71: =VLOOKUP(Selections_data_CCG!$G$2,'CurrentData-all children'!A:R,10,FALSE) -> 1.48533414 | AA71: =IF(Settings!$B$5="4SIMILAR", VLOOKUP(Selections_data_CCG!$G$2,'CurrentData-4SIMILAR-allchildre'!A:R,10,FALSE), VLOOKUP(Settings!$C$5,'CurrentData-all children'!A:R,10,FALSE)) -> 1.437047856 | AB71: =IF(IF(G71=0,"",COUNTIF(G$12:G$222,"<>0")-(RANK(M71,$M$12:$M$222)+COUNTIF($M$12:M71,M71)-2))<=INT(0.05*COUNTIF(G$12:G$222,"<>0")),"TOP5", IF(IF(G71=0,"",COUNTIF(G$12:G$222,"<>0")-(RANK(M71,$M$12:$M$222)+COUNTIF($M$12:M71,M71)-2))<=INT(0.25*COUNTIF(G$12:G$222,"<>0")),"TOP25", "")) ->  | AC71: =IF(IF(H71=0,"",COUNTIF(H$12:H$222,"<>0")-(RANK(P71,$P$12:$P$222)+COUNTIF($P$12:P71,P71)-2))<=INT(0.05*COUNTIF(H$12:H$222,"<>0")),"TOP5", IF(IF(H71=0,"",COUNTIF(H$12:H$222,"<>0")-(RANK(P71,$P$12:$P$222)+COUNTIF($P$12:P71,P71)-2))<=INT(0.25*COUNTIF(H$12:H$222,"<>0")),"TOP25", "")) ->  | AD71: =IF(IF(J71="Suppressed","",COUNTIF(J$12:J$222,"<>Suppressed")-(RANK(J71,$J$12:$J$222)+COUNTIF(J$12:$J71,J71)-2))<=INT(0.05*COUNTIF(J$12:J$222,"<>Suppressed")),"TOP5", IF(IF(J71="Suppressed","",COUNTIF(J$12:J$222,"<>Suppressed")-(RANK(J71,$J$12:$J$222)+COUNTIF(J$12:$J71,J71)-2))<=INT(0.25*COUNTIF(J$12:J$222,"<>suppressed")),"TOP25", "")) -> TOP25
A72: 00F | B72: NHS Gateshead | C72: =IF(G72=0,"",COUNTIF(G$12:G$222,"<>0")-(RANK(M72,$M$12:$M$222)+COUNTIF($M$12:M72,M72)-2)) -> 154 | D72: =IF(H72=0,"",COUNTIF(P$12:P$222,"<>Suppressed")-(RANK(P72,$P$12:$P$222)+COUNTIF($P$12:P72,P72)-2)) -> 75 | E72: =IF(J72="Suppressed","",COUNTIF(J$12:J$222,"<>Suppressed")-(RANK(J72,$J$12:$J$222)+COUNTIF($J$12:J72,J72)-2)) -> 8 | F72: =VLOOKUP(A72,population!C:O,Settings!$B$3,FALSE) -> 34729 | G72: =VLOOKUP(A72,CCG_data_TRACCS!A:N,4,FALSE) -> 1914 | H72: =VLOOKUP(A72,CCG_data_TRACCS!A:N,5,FALSE) -> 3962 | I72: =VLOOKUP(A72,CCG_data_TRACCS!A:N,6,FALSE) -> 3663 | J72: 1.081627082 | M72: 5511.244205 | N72: 5267.078392 | O72: 5763.808169 | P72: 11408.33309 | Q72: 11055.83466 | R72: 11769.21017 | S72: 3278.112039 | T72: 11121.45561 | U72: 1.301791713 | V72: =VLOOKUP(Selections_data_CCG!$G$2,'CurrentData-all children'!A:R,13,FALSE) -> 7077.07289 | W72: =IF(Settings!$B$5="4SIMILAR", VLOOKUP(Selections_data_CCG!$G$2,'CurrentData-4SIMILAR-allchildre'!A:R,13,FALSE), VLOOKUP(Settings!$C$5,'CurrentData-all children'!A:R,13,FALSE)) -> 5510.027757 | X72: =VLOOKUP(Selections_data_CCG!$G$2,'CurrentData-all children'!A:R,16,FALSE) -> 16842.33626 | Y72: =IF(Settings!$B$5="4SIMILAR", VLOOKUP(Selections_data_CCG!$G$2,'CurrentData-4SIMILAR-allchildre'!A:R,16,FALSE), VLOOKUP(Settings!$C$5,'CurrentData-all children'!A:R,16,FALSE)) -> 14706.8643 | Z72: =VLOOKUP(Selections_data_CCG!$G$2,'CurrentData-all children'!A:R,10,FALSE) -> 1.48533414 | AA72: =IF(Settings!$B$5="4SIMILAR", VLOOKUP(Selections_data_CCG!$G$2,'CurrentData-4SIMILAR-allchildre'!A:R,10,FALSE), VLOOKUP(Settings!$C$5,'CurrentData-all children'!A:R,10,FALSE)) -> 1.437047856 | AB72: =IF(IF(G72=0,"",COUNTIF(G$12:G$222,"<>0")-(RANK(M72,$M$12:$M$222)+COUNTIF($M$12:M72,M72)-2))<=INT(0.05*COUNTIF(G$12:G$222,"<>0")),"TOP5", IF(IF(G72=0,"",COUNTIF(G$12:G$222,"<>0")-(RANK(M72,$M$12:$M$222)+COUNTIF($M$12:M72,M72)-2))<=INT(0.25*COUNTIF(G$12:G$222,"<>0")),"TOP25", "")) ->  | AC72: =IF(IF(H72=0,"",COUNTIF(H$12:H$222,"<>0")-(RANK(P72,$P$12:$P$222)+COUNTIF($P$12:P72,P72)-2))<=INT(0.05*COUNTIF(H$12:H$222,"<>0")),"TOP5", IF(IF(H72=0,"",COUNTIF(H$12:H$222,"<>0")-(RANK(P72,$P$12:$P$222)+COUNTIF($P$12:P72,P72)-2))<=INT(0.25*COUNTIF(H$12:H$222,"<>0")),"TOP25", "")) ->  | AD72: =IF(IF(J72="Suppressed","",COUNTIF(J$12:J$222,"<>Suppressed")-(RANK(J72,$J$12:$J$222)+COUNTIF(J$12:$J72,J72)-2))<=INT(0.05*COUNTIF(J$12:J$222,"<>Suppressed")),"TOP5", IF(IF(J72="Suppressed","",COUNTIF(J$12:J$222,"<>Suppressed")-(RANK(J72,$J$12:$J$222)+COUNTIF(J$12:$J72,J72)-2))<=INT(0.25*COUNTIF(J$12:J$222,"<>suppressed")),"TOP25", "")) -> TOP5
A73: 11M | B73: NHS Gloucestershire | C73: =IF(G73=0,"",COUNTIF(G$12:G$222,"<>0")-(RANK(M73,$M$12:$M$222)+COUNTIF($M$12:M73,M73)-2)) -> 105 | D73: =IF(H73=0,"",COUNTIF(P$12:P$222,"<>Suppressed")-(RANK(P73,$P$12:$P$222)+COUNTIF($P$12:P73,P73)-2)) -> 73 | E73: =IF(J73="Suppressed","",COUNTIF(J$12:J$222,"<>Suppressed")-(RANK(J73,$J$12:$J$222)+COUNTIF($J$12:J73,J73)-2)) -> 88 | F73: =VLOOKUP(A73,population!C:O,Settings!$B$3,FALSE) -> 109676.6 | G73: =VLOOKUP(A73,CCG_data_TRACCS!A:N,4,FALSE) -> 4704 | H73: =VLOOKUP(A73,CCG_data_TRACCS!A:N,5,FALSE) -> 12433 | I73: =VLOOKUP(A73,CCG_data_TRACCS!A:N,6,FALSE) -> 8923 | J73: 1.39336546 | M73: 4288.973218 | N73: 4167.273501 | O73: 4413.324867 | P73: 11336.05528 | Q73: 11137.65924 | R73: 11537.09825 | S73: 3300.629845 | T73: 11139.01352 | U73: 1.31259275 | V73: =VLOOKUP(Selections_data_CCG!$G$2,'CurrentData-all children'!A:R,13,FALSE) -> 7077.07289 | W73: =IF(Settings!$B$5="4SIMILAR", VLOOKUP(Selections_data_CCG!$G$2,'CurrentData-4SIMILAR-allchildre'!A:R,13,FALSE), VLOOKUP(Settings!$C$5,'CurrentData-all children'!A:R,13,FALSE)) -> 5510.027757 | X73: =VLOOKUP(Selections_data_CCG!$G$2,'CurrentData-all children'!A:R,16,FALSE) -> 16842.33626 | Y73: =IF(Settings!$B$5="4SIMILAR", VLOOKUP(Selections_data_CCG!$G$2,'CurrentData-4SIMILAR-allchildre'!A:R,16,FALSE), VLOOKUP(Settings!$C$5,'CurrentData-all children'!A:R,16,FALSE)) -> 14706.8643 | Z73: =VLOOKUP(Selections_data_CCG!$G$2,'CurrentData-all children'!A:R,10,FALSE) -> 1.48533414 | AA73: =IF(Settings!$B$5="4SIMILAR", VLOOKUP(Selections_data_CCG!$G$2,'CurrentData-4SIMILAR-allchildre'!A:R,10,FALSE), VLOOKUP(Settings!$C$5,'CurrentData-all children'!A:R,10,FALSE)) -> 1.437047856 | AB73: =IF(IF(G73=0,"",COUNTIF(G$12:G$222,"<>0")-(RANK(M73,$M$12:$M$222)+COUNTIF($M$12:M73,M73)-2))<=INT(0.05*COUNTIF(G$12:G$222,"<>0")),"TOP5", IF(IF(G73=0,"",COUNTIF(G$12:G$222,"<>0")-(RANK(M73,$M$12:$M$222)+COUNTIF($M$12:M73,M73)-2))<=INT(0.25*COUNTIF(G$12:G$222,"<>0")),"TOP25", "")) ->  | AC73: =IF(IF(H73=0,"",COUNTIF(H$12:H$222,"<>0")-(RANK(P73,$P$12:$P$222)+COUNTIF($P$12:P73,P73)-2))<=INT(0.05*COUNTIF(H$12:H$222,"<>0")),"TOP5", IF(IF(H73=0,"",COUNTIF(H$12:H$222,"<>0")-(RANK(P73,$P$12:$P$222)+COUNTIF($P$12:P73,P73)-2))<=INT(0.25*COUNTIF(H$12:H$222,"<>0")),"TOP25", "")) ->  | AD73: =IF(IF(J73="Suppressed","",COUNTIF(J$12:J$222,"<>Suppressed")-(RANK(J73,$J$12:$J$222)+COUNTIF(J$12:$J73,J73)-2))<=INT(0.05*COUNTIF(J$12:J$222,"<>Suppressed")),"TOP5", IF(IF(J73="Suppressed","",COUNTIF(J$12:J$222,"<>Suppressed")-(RANK(J73,$J$12:$J$222)+COUNTIF(J$12:$J73,J73)-2))<=INT(0.25*COUNTIF(J$12:J$222,"<>suppressed")),"TOP25", "")) -> 
A74: 06M | B74: NHS Great Yarmouth and Waveney | C74: =IF(G74=0,"",COUNTIF(G$12:G$222,"<>0")-(RANK(M74,$M$12:$M$222)+COUNTIF($M$12:M74,M74)-2)) -> 95 | D74: =IF(H74=0,"",COUNTIF(P$12:P$222,"<>Suppressed")-(RANK(P74,$P$12:$P$222)+COUNTIF($P$12:P74,P74)-2)) -> 180 | E74: =IF(J74="Suppressed","",COUNTIF(J$12:J$222,"<>Suppressed")-(RANK(J74,$J$12:$J$222)+COUNTIF($J$12:J74,J74)-2)) -> 153 | F74: =VLOOKUP(A74,population!C:O,Settings!$B$3,FALSE) -> 38865.4 | G74: =VLOOKUP(A74,CCG_data_TRACCS!A:N,4,FALSE) -> 1596 | H74: =VLOOKUP(A74,CCG_data_TRACCS!A:N,5,FALSE) -> 6192 | I74: =VLOOKUP(A74,CCG_data_TRACCS!A:N,6,FALSE) -> 3558 | J74: 1.740303541 | M74: 4106.480314 | N74: 3907.461415 | O74: 4313.008982 | P74: 15931.90859 | Q74: 15537.5244 | R74: 16333.77173 | S74: 3315.41496 | T74: 11151.48208 | U74: 1.314263626 | V74: =VLOOKUP(Selections_data_CCG!$G$2,'CurrentData-all children'!A:R,13,FALSE) -> 7077.07289 | W74: =IF(Settings!$B$5="4SIMILAR", VLOOKUP(Selections_data_CCG!$G$2,'CurrentData-4SIMILAR-allchildre'!A:R,13,FALSE), VLOOKUP(Settings!$C$5,'CurrentData-all children'!A:R,13,FALSE)) -> 5510.027757 | X74: =VLOOKUP(Selections_data_CCG!$G$2,'CurrentData-all children'!A:R,16,FALSE) -> 16842.33626 | Y74: =IF(Settings!$B$5="4SIMILAR", VLOOKUP(Selections_data_CCG!$G$2,'CurrentData-4SIMILAR-allchildre'!A:R,16,FALSE), VLOOKUP(Settings!$C$5,'CurrentData-all children'!A:R,16,FALSE)) -> 14706.8643 | Z74: =VLOOKUP(Selections_data_CCG!$G$2,'CurrentData-all children'!A:R,10,FALSE) -> 1.48533414 | AA74: =IF(Settings!$B$5="4SIMILAR", VLOOKUP(Selections_data_CCG!$G$2,'CurrentData-4SIMILAR-allchildre'!A:R,10,FALSE), VLOOKUP(Settings!$C$5,'CurrentData-all children'!A:R,10,FALSE)) -> 1.437047856 | AB74: =IF(IF(G74=0,"",COUNTIF(G$12:G$222,"<>0")-(RANK(M74,$M$12:$M$222)+COUNTIF($M$12:M74,M74)-2))<=INT(0.05*COUNTIF(G$12:G$222,"<>0")),"TOP5", IF(IF(G74=0,"",COUNTIF(G$12:G$222,"<>0")-(RANK(M74,$M$12:$M$222)+COUNTIF($M$12:M74,M74)-2))<=INT(0.25*COUNTIF(G$12:G$222,"<>0")),"TOP25", "")) ->  | AC74: =IF(IF(H74=0,"",COUNTIF(H$12:H$222,"<>0")-(RANK(P74,$P$12:$P$222)+COUNTIF($P$12:P74,P74)-2))<=INT(0.05*COUNTIF(H$12:H$222,"<>0")),"TOP5", IF(IF(H74=0,"",COUNTIF(H$12:H$222,"<>0")-(RANK(P74,$P$12:$P$222)+COUNTIF($P$12:P74,P74)-2))<=INT(0.25*COUNTIF(H$12:H$222,"<>0")),"TOP25", "")) ->  | AD74: =IF(IF(J74="Suppressed","",COUNTIF(J$12:J$222,"<>Suppressed")-(RANK(J74,$J$12:$J$222)+COUNTIF(J$12:$J74,J74)-2))<=INT(0.05*COUNTIF(J$12:J$222,"<>Suppressed")),"TOP5", IF(IF(J74="Suppressed","",COUNTIF(J$12:J$222,"<>Suppressed")-(RANK(J74,$J$12:$J$222)+COUNTIF(J$12:$J74,J74)-2))<=INT(0.25*COUNTIF(J$12:J$222,"<>suppressed")),"TOP25", "")) -> 
A75: 03A | B75: NHS Greater Huddersfield | C75: =IF(G75=0,"",COUNTIF(G$12:G$222,"<>0")-(RANK(M75,$M$12:$M$222)+COUNTIF($M$12:M75,M75)-2)) -> 140 | D75: =IF(H75=0,"",COUNTIF(P$12:P$222,"<>Suppressed")-(RANK(P75,$P$12:$P$222)+COUNTIF($P$12:P75,P75)-2)) -> 55 | E75: =IF(J75="Suppressed","",COUNTIF(J$12:J$222,"<>Suppressed")-(RANK(J75,$J$12:$J$222)+COUNTIF($J$12:J75,J75)-2)) -> 39 | F75: =VLOOKUP(A75,population!C:O,Settings!$B$3,FALSE) -> 45262.6 | G75: =VLOOKUP(A75,CCG_data_TRACCS!A:N,4,FALSE) -> 2361 | H75: =VLOOKUP(A75,CCG_data_TRACCS!A:N,5,FALSE) -> 4991 | I75: =VLOOKUP(A75,CCG_data_TRACCS!A:N,6,FALSE) -> 3975 | J75: 1.255597484 | M75: 5216.227084 | N75: 5007.921425 | O75: 5430.971576 | P75: 11026.76382 | Q75: 10722.94511 | R75: 11337.00755 | S75: 3345.447584 | T75: 11166.94584 | U75: 1.316964286 | V75: =VLOOKUP(Selections_data_CCG!$G$2,'CurrentData-all children'!A:R,13,FALSE) -> 7077.07289 | W75: =IF(Settings!$B$5="4SIMILAR", VLOOKUP(Selections_data_CCG!$G$2,'CurrentData-4SIMILAR-allchildre'!A:R,13,FALSE), VLOOKUP(Settings!$C$5,'CurrentData-all children'!A:R,13,FALSE)) -> 5510.027757 | X75: =VLOOKUP(Selections_data_CCG!$G$2,'CurrentData-all children'!A:R,16,FALSE) -> 16842.33626 | Y75: =IF(Settings!$B$5="4SIMILAR", VLOOKUP(Selections_data_CCG!$G$2,'CurrentData-4SIMILAR-allchildre'!A:R,16,FALSE), VLOOKUP(Settings!$C$5,'CurrentData-all children'!A:R,16,FALSE)) -> 14706.8643 | Z75: =VLOOKUP(Selections_data_CCG!$G$2,'CurrentData-all children'!A:R,10,FALSE) -> 1.48533414 | AA75: =IF(Settings!$B$5="4SIMILAR", VLOOKUP(Selections_data_CCG!$G$2,'CurrentData-4SIMILAR-allchildre'!A:R,10,FALSE), VLOOKUP(Settings!$C$5,'CurrentData-all children'!A:R,10,FALSE)) -> 1.437047856 | AB75: =IF(IF(G75=0,"",COUNTIF(G$12:G$222,"<>0")-(RANK(M75,$M$12:$M$222)+COUNTIF($M$12:M75,M75)-2))<=INT(0.05*COUNTIF(G$12:G$222,"<>0")),"TOP5", IF(IF(G75=0,"",COUNTIF(G$12:G$222,"<>0")-(RANK(M75,$M$12:$M$222)+COUNTIF($M$12:M75,M75)-2))<=INT(0.25*COUNTIF(G$12:G$222,"<>0")),"TOP25", "")) ->  | AC75: =IF(IF(H75=0,"",COUNTIF(H$12:H$222,"<>0")-(RANK(P75,$P$12:$P$222)+COUNTIF($P$12:P75,P75)-2))<=INT(0.05*COUNTIF(H$12:H$222,"<>0")),"TOP5", IF(IF(H75=0,"",COUNTIF(H$12:H$222,"<>0")-(RANK(P75,$P$12:$P$222)+COUNTIF($P$12:P75,P75)-2))<=INT(0.25*COUNTIF(H$12:H$222,"<>0")),"TOP25", "")) ->  | AD75: =IF(IF(J75="Suppressed","",COUNTIF(J$12:J$222,"<>Suppressed")-(RANK(J75,$J$12:$J$222)+COUNTIF(J$12:$J75,J75)-2))<=INT(0.05*COUNTIF(J$12:J$222,"<>Suppressed")),"TOP5", IF(IF(J75="Suppressed","",COUNTIF(J$12:J$222,"<>Suppressed")-(RANK(J75,$J$12:$J$222)+COUNTIF(J$12:$J75,J75)-2))<=INT(0.25*COUNTIF(J$12:J$222,"<>suppressed")),"TOP25", "")) -> TOP25
A76: 01E | B76: NHS Greater Preston | C76: =IF(G76=0,"",COUNTIF(G$12:G$222,"<>0")-(RANK(M76,$M$12:$M$222)+COUNTIF($M$12:M76,M76)-2)) -> 203 | D76: =IF(H76=0,"",COUNTIF(P$12:P$222,"<>Suppressed")-(RANK(P76,$P$12:$P$222)+COUNTIF($P$12:P76,P76)-2)) -> 167 | E76: =IF(J76="Suppressed","",COUNTIF(J$12:J$222,"<>Suppressed")-(RANK(J76,$J$12:$J$222)+COUNTIF($J$12:J76,J76)-2)) -> 22 | F76: =VLOOKUP(A76,population!C:O,Settings!$B$3,FALSE) -> 38669 | G76: =VLOOKUP(A76,CCG_data_TRACCS!A:N,4,FALSE) -> 2838 | H76: =VLOOKUP(A76,CCG_data_TRACCS!A:N,5,FALSE) -> 5664 | I76: =VLOOKUP(A76,CCG_data_TRACCS!A:N,6,FALSE) -> 4829 | J76: 1.172913647 | M76: 7339.212289 | N76: =IF(G76=0,0,IF(G76<389,CHIINV(0.5+95/200,2*G76)/2,G76*(1-1/(9*G76)-NORMSINV(0.5+95/200)/3/SQRT(G76))^3))/F76*100000 -> 7071.652037 | O76: =IF(G76=0,0,IF(G76<389,CHIINV(0.5-95/200,2*G76+2)/2,(G76+1)*(1-1/(9*(G76+1))+NORMSINV(0.5+95/200)/3/SQRT(G76+1))^3)/F76*100000) -> 7614.30474 | P76: 14647.39197 | Q76: =IF(H76=0,0,IF(H76<389,CHIINV(0.5+95/200,2*H76)/2,H76*(1-1/(9*H76)-NORMSINV(0.5+95/200)/3/SQRT(H76))^3))/F76*100000 -> 14268.38865 | R76: =IF(H76=0,0,IF(H76<389,CHIINV(0.5-95/200,2*H76+2)/2,(H76+1)*(1-1/(9*(H76+1))+NORMSINV(0.5+95/200)/3/SQRT(H76+1))^3)/F76*100000) -> 15033.91368 | S76: =VLOOKUP(ROW(S76)-11,C:R,11,FALSE) -> 3393.599311 | T76: =VLOOKUP(ROW(T76)-11,D:R,13,FALSE) -> 11170.70798 | U76: 1.321038251 | V76: =VLOOKUP(Selections_data_CCG!$G$2,'CurrentData-all children'!A:R,13,FALSE) -> 7077.07289 | W76: =IF(Settings!$B$5="4SIMILAR", VLOOKUP(Selections_data_CCG!$G$2,'CurrentData-4SIMILAR-allchildre'!A:R,13,FALSE), VLOOKUP(Settings!$C$5,'CurrentData-all children'!A:R,13,FALSE)) -> 5510.027757 | X76: =VLOOKUP(Selections_data_CCG!$G$2,'CurrentData-all children'!A:R,16,FALSE) -> 16842.33626 | Y76: =IF(Settings!$B$5="4SIMILAR", VLOOKUP(Selections_data_CCG!$G$2,'CurrentData-4SIMILAR-allchildre'!A:R,16,FALSE), VLOOKUP(Settings!$C$5,'CurrentData-all children'!A:R,16,FALSE)) -> 14706.8643 | Z76: =VLOOKUP(Selections_data_CCG!$G$2,'CurrentData-all children'!A:R,10,FALSE) -> 1.48533414 | AA76: =IF(Settings!$B$5="4SIMILAR", VLOOKUP(Selections_data_CCG!$G$2,'CurrentData-4SIMILAR-allchildre'!A:R,10,FALSE), VLOOKUP(Settings!$C$5,'CurrentData-all children'!A:R,10,FALSE)) -> 1.437047856 | AB76: =IF(IF(G76=0,"",COUNTIF(G$12:G$222,"<>0")-(RANK(M76,$M$12:$M$222)+COUNTIF($M$12:M76,M76)-2))<=INT(0.05*COUNTIF(G$12:G$222,"<>0")),"TOP5", IF(IF(G76=0,"",COUNTIF(G$12:G$222,"<>0")-(RANK(M76,$M$12:$M$222)+COUNTIF($M$12:M76,M76)-2))<=INT(0.25*COUNTIF(G$12:G$222,"<>0")),"TOP25", "")) ->  | AC76: =IF(IF(H76=0,"",COUNTIF(H$12:H$222,"<>0")-(RANK(P76,$P$12:$P$222)+COUNTIF($P$12:P76,P76)-2))<=INT(0.05*COUNTIF(H$12:H$222,"<>0")),"TOP5", IF(IF(H76=0,"",COUNTIF(H$12:H$222,"<>0")-(RANK(P76,$P$12:$P$222)+COUNTIF($P$12:P76,P76)-2))<=INT(0.25*COUNTIF(H$12:H$222,"<>0")),"TOP25", "")) ->  | AD76: =IF(IF(J76="Suppressed","",COUNTIF(J$12:J$222,"<>Suppressed")-(RANK(J76,$J$12:$J$222)+COUNTIF(J$12:$J76,J76)-2))<=INT(0.05*COUNTIF(J$12:J$222,"<>Suppressed")),"TOP5", IF(IF(J76="Suppressed","",COUNTIF(J$12:J$222,"<>Suppressed")-(RANK(J76,$J$12:$J$222)+COUNTIF(J$12:$J76,J76)-2))<=INT(0.25*COUNTIF(J$12:J$222,"<>suppressed")),"TOP25", "")) -> TOP25
A77: 08A | B77: NHS Greenwich | C77: =IF(G77=0,"",COUNTIF(G$12:G$222,"<>0")-(RANK(M77,$M$12:$M$222)+COUNTIF($M$12:M77,M77)-2)) -> 124 | D77: =IF(H77=0,"",COUNTIF(P$12:P$222,"<>Suppressed")-(RANK(P77,$P$12:$P$222)+COUNTIF($P$12:P77,P77)-2)) -> 134 | E77: =IF(J77="Suppressed","",COUNTIF(J$12:J$222,"<>Suppressed")-(RANK(J77,$J$12:$J$222)+COUNTIF($J$12:J77,J77)-2)) -> 98 | F77: =VLOOKUP(A77,population!C:O,Settings!$B$3,FALSE) -> 55221.2 | G77: =VLOOKUP(A77,CCG_data_TRACCS!A:N,4,FALSE) -> 2649 | H77: =VLOOKUP(A77,CCG_data_TRACCS!A:N,5,FALSE) -> 7298 | I77: =VLOOKUP(A77,CCG_data_TRACCS!A:N,6,FALSE) -> 5162 | J77: =IF(OR(I77=0,H77=0),"Suppressed",H77/I77) -> 1.413793103 | M77: =IF(G77=0,"Suppressed",G77/$F77*100000) -> 4797.07069 | N77: 4616.114599 | O77: 4983.302411 | P77: =IF(H77=0,"Suppressed",H77/$F77*100000) -> 13215.93881 | Q77: 12914.44684 | R77: 13522.69279 | S77: 3462.40911 | T77: 11171.09722 | U77: =VLOOKUP(ROW(U77)-11,E:R,6,FALSE) -> 1.321587053 | V77: =VLOOKUP(Selections_data_CCG!$G$2,'CurrentData-all children'!A:R,13,FALSE) -> 7077.07289 | W77: =IF(Settings!$B$5="4SIMILAR", VLOOKUP(Selections_data_CCG!$G$2,'CurrentData-4SIMILAR-allchildre'!A:R,13,FALSE), VLOOKUP(Settings!$C$5,'CurrentData-all children'!A:R,13,FALSE)) -> 5510.027757 | X77: =VLOOKUP(Selections_data_CCG!$G$2,'CurrentData-all children'!A:R,16,FALSE) -> 16842.33626 | Y77: =IF(Settings!$B$5="4SIMILAR", VLOOKUP(Selections_data_CCG!$G$2,'CurrentData-4SIMILAR-allchildre'!A:R,16,FALSE), VLOOKUP(Settings!$C$5,'CurrentData-all children'!A:R,16,FALSE)) -> 14706.8643 | Z77: =VLOOKUP(Selections_data_CCG!$G$2,'CurrentData-all children'!A:R,10,FALSE) -> 1.48533414 | AA77: =IF(Settings!$B$5="4SIMILAR", VLOOKUP(Selections_data_CCG!$G$2,'CurrentData-4SIMILAR-allchildre'!A:R,10,FALSE), VLOOKUP(Settings!$C$5,'CurrentData-all children'!A:R,10,FALSE)) -> 1.437047856 | AB77: =IF(IF(G77=0,"",COUNTIF(G$12:G$222,"<>0")-(RANK(M77,$M$12:$M$222)+COUNTIF($M$12:M77,M77)-2))<=INT(0.05*COUNTIF(G$12:G$222,"<>0")),"TOP5", IF(IF(G77=0,"",COUNTIF(G$12:G$222,"<>0")-(RANK(M77,$M$12:$M$222)+COUNTIF($M$12:M77,M77)-2))<=INT(0.25*COUNTIF(G$12:G$222,"<>0")),"TOP25", "")) ->  | AC77: =IF(IF(H77=0,"",COUNTIF(H$12:H$222,"<>0")-(RANK(P77,$P$12:$P$222)+COUNTIF($P$12:P77,P77)-2))<=INT(0.05*COUNTIF(H$12:H$222,"<>0")),"TOP5", IF(IF(H77=0,"",COUNTIF(H$12:H$222,"<>0")-(RANK(P77,$P$12:$P$222)+COUNTIF($P$12:P77,P77)-2))<=INT(0.25*COUNTIF(H$12:H$222,"<>0")),"TOP25", "")) ->  | AD77: =IF(IF(J77="Suppressed","",COUNTIF(J$12:J$222,"<>Suppressed")-(RANK(J77,$J$12:$J$222)+COUNTIF(J$12:$J77,J77)-2))<=INT(0.05*COUNTIF(J$12:J$222,"<>Suppressed")),"TOP5", IF(IF(J77="Suppressed","",COUNTIF(J$12:J$222,"<>Suppressed")-(RANK(J77,$J$12:$J$222)+COUNTIF(J$12:$J77,J77)-2))<=INT(0.25*COUNTIF(J$12:J$222,"<>suppressed")),"TOP25", "")) -> 
A78: 09N | B78: NHS Guildford and Waverley | C78: =IF(G78=0,"",COUNTIF(G$12:G$222,"<>0")-(RANK(M78,$M$12:$M$222)+COUNTIF($M$12:M78,M78)-2)) -> 79 | D78: =IF(H78=0,"",COUNTIF(P$12:P$222,"<>Suppressed")-(RANK(P78,$P$12:$P$222)+COUNTIF($P$12:P78,P78)-2)) -> 7 | E78: =IF(J78="Suppressed","",COUNTIF(J$12:J$222,"<>Suppressed")-(RANK(J78,$J$12:$J$222)+COUNTIF($J$12:J78,J78)-2)) -> 30 | F78: =VLOOKUP(A78,population!C:O,Settings!$B$3,FALSE) -> 39140.6 | G78: =VLOOKUP(A78,CCG_data_TRACCS!A:N,4,FALSE) -> 1458 | H78: =VLOOKUP(A78,CCG_data_TRACCS!A:N,5,FALSE) -> 3370 | I78: =VLOOKUP(A78,CCG_data_TRACCS!A:N,6,FALSE) -> 2772 | J78: 1.215728716 | M78: 3725.032319 | N78: 3536.257435 | O78: 3921.267037 | P78: 8609.985539 | Q78: 8321.718567 | R78: 8905.690118 | S78: 3466.27804 | T78: 11208.56417 | U78: 1.322707736 | V78: =VLOOKUP(Selections_data_CCG!$G$2,'CurrentData-all children'!A:R,13,FALSE) -> 7077.07289 | W78: =IF(Settings!$B$5="4SIMILAR", VLOOKUP(Selections_data_CCG!$G$2,'CurrentData-4SIMILAR-allchildre'!A:R,13,FALSE), VLOOKUP(Settings!$C$5,'CurrentData-all children'!A:R,13,FALSE)) -> 5510.027757 | X78: =VLOOKUP(Selections_data_CCG!$G$2,'CurrentData-all children'!A:R,16,FALSE) -> 16842.33626 | Y78: =IF(Settings!$B$5="4SIMILAR", VLOOKUP(Selections_data_CCG!$G$2,'CurrentData-4SIMILAR-allchildre'!A:R,16,FALSE), VLOOKUP(Settings!$C$5,'CurrentData-all children'!A:R,16,FALSE)) -> 14706.8643 | Z78: =VLOOKUP(Selections_data_CCG!$G$2,'CurrentData-all children'!A:R,10,FALSE) -> 1.48533414 | AA78: =IF(Settings!$B$5="4SIMILAR", VLOOKUP(Selections_data_CCG!$G$2,'CurrentData-4SIMILAR-allchildre'!A:R,10,FALSE), VLOOKUP(Settings!$C$5,'CurrentData-all children'!A:R,10,FALSE)) -> 1.437047856 | AB78: =IF(IF(G78=0,"",COUNTIF(G$12:G$222,"<>0")-(RANK(M78,$M$12:$M$222)+COUNTIF($M$12:M78,M78)-2))<=INT(0.05*COUNTIF(G$12:G$222,"<>0")),"TOP5", IF(IF(G78=0,"",COUNTIF(G$12:G$222,"<>0")-(RANK(M78,$M$12:$M$222)+COUNTIF($M$12:M78,M78)-2))<=INT(0.25*COUNTIF(G$12:G$222,"<>0")),"TOP25", "")) ->  | AC78: =IF(IF(H78=0,"",COUNTIF(H$12:H$222,"<>0")-(RANK(P78,$P$12:$P$222)+COUNTIF($P$12:P78,P78)-2))<=INT(0.05*COUNTIF(H$12:H$222,"<>0")),"TOP5", IF(IF(H78=0,"",COUNTIF(H$12:H$222,"<>0")-(RANK(P78,$P$12:$P$222)+COUNTIF($P$12:P78,P78)-2))<=INT(0.25*COUNTIF(H$12:H$222,"<>0")),"TOP25", "")) -> TOP5 | AD78: =IF(IF(J78="Suppressed","",COUNTIF(J$12:J$222,"<>Suppressed")-(RANK(J78,$J$12:$J$222)+COUNTIF(J$12:$J78,J78)-2))<=INT(0.05*COUNTIF(J$12:J$222,"<>Suppressed")),"TOP5", IF(IF(J78="Suppressed","",COUNTIF(J$12:J$222,"<>Suppressed")-(RANK(J78,$J$12:$J$222)+COUNTIF(J$12:$J78,J78)-2))<=INT(0.25*COUNTIF(J$12:J$222,"<>suppressed")),"TOP25", "")) -> TOP25
A79: 01F | B79: NHS Halton | C79: =IF(G79=0,"",COUNTIF(G$12:G$222,"<>0")-(RANK(M79,$M$12:$M$222)+COUNTIF($M$12:M79,M79)-2)) -> 185 | D79: =IF(H79=0,"",COUNTIF(P$12:P$222,"<>Suppressed")-(RANK(P79,$P$12:$P$222)+COUNTIF($P$12:P79,P79)-2)) -> 191 | E79: =IF(J79="Suppressed","",COUNTIF(J$12:J$222,"<>Suppressed")-(RANK(J79,$J$12:$J$222)+COUNTIF($J$12:J79,J79)-2)) -> 95 | F79: =VLOOKUP(A79,population!C:O,Settings!$B$3,FALSE) -> 24650 | G79: =VLOOKUP(A79,CCG_data_TRACCS!A:N,4,FALSE) -> 1534 | H79: =VLOOKUP(A79,CCG_data_TRACCS!A:N,5,FALSE) -> 4132 | I79: =VLOOKUP(A79,CCG_data_TRACCS!A:N,6,FALSE) -> 2939 | J79: 1.405920381 | M79: 6223.123732 | N79: 5915.56399 | O79: 6542.526018 | P79: 16762.67748 | Q79: 16255.42327 | R79: 17281.73494 | S79: 3473.93413 | T79: 11227.3186 | U79: 1.326422585 | V79: =VLOOKUP(Selections_data_CCG!$G$2,'CurrentData-all children'!A:R,13,FALSE) -> 7077.07289 | W79: =IF(Settings!$B$5="4SIMILAR", VLOOKUP(Selections_data_CCG!$G$2,'CurrentData-4SIMILAR-allchildre'!A:R,13,FALSE), VLOOKUP(Settings!$C$5,'CurrentData-all children'!A:R,13,FALSE)) -> 5510.027757 | X79: =VLOOKUP(Selections_data_CCG!$G$2,'CurrentData-all children'!A:R,16,FALSE) -> 16842.33626 | Y79: =IF(Settings!$B$5="4SIMILAR", VLOOKUP(Selections_data_CCG!$G$2,'CurrentData-4SIMILAR-allchildre'!A:R,16,FALSE), VLOOKUP(Settings!$C$5,'CurrentData-all children'!A:R,16,FALSE)) -> 14706.8643 | Z79: =VLOOKUP(Selections_data_CCG!$G$2,'CurrentData-all children'!A:R,10,FALSE) -> 1.48533414 | AA79: =IF(Settings!$B$5="4SIMILAR", VLOOKUP(Selections_data_CCG!$G$2,'CurrentData-4SIMILAR-allchildre'!A:R,10,FALSE), VLOOKUP(Settings!$C$5,'CurrentData-all children'!A:R,10,FALSE)) -> 1.437047856 | AB79: =IF(IF(G79=0,"",COUNTIF(G$12:G$222,"<>0")-(RANK(M79,$M$12:$M$222)+COUNTIF($M$12:M79,M79)-2))<=INT(0.05*COUNTIF(G$12:G$222,"<>0")),"TOP5", IF(IF(G79=0,"",COUNTIF(G$12:G$222,"<>0")-(RANK(M79,$M$12:$M$222)+COUNTIF($M$12:M79,M79)-2))<=INT(0.25*COUNTIF(G$12:G$222,"<>0")),"TOP25", "")) ->  | AC79: =IF(IF(H79=0,"",COUNTIF(H$12:H$222,"<>0")-(RANK(P79,$P$12:$P$222)+COUNTIF($P$12:P79,P79)-2))<=INT(0.05*COUNTIF(H$12:H$222,"<>0")),"TOP5", IF(IF(H79=0,"",COUNTIF(H$12:H$222,"<>0")-(RANK(P79,$P$12:$P$222)+COUNTIF($P$12:P79,P79)-2))<=INT(0.25*COUNTIF(H$12:H$222,"<>0")),"TOP25", "")) ->  | AD79: =IF(IF(J79="Suppressed","",COUNTIF(J$12:J$222,"<>Suppressed")-(RANK(J79,$J$12:$J$222)+COUNTIF(J$12:$J79,J79)-2))<=INT(0.05*COUNTIF(J$12:J$222,"<>Suppressed")),"TOP5", IF(IF(J79="Suppressed","",COUNTIF(J$12:J$222,"<>Suppressed")-(RANK(J79,$J$12:$J$222)+COUNTIF(J$12:$J79,J79)-2))<=INT(0.25*COUNTIF(J$12:J$222,"<>suppressed")),"TOP25", "")) -> 
A80: 03D | B80: NHS Hambleton, Richmondshire and Whitby | C80: =IF(G80=0,"",COUNTIF(G$12:G$222,"<>0")-(RANK(M80,$M$12:$M$222)+COUNTIF($M$12:M80,M80)-2)) -> 127 | D80: =IF(H80=0,"",COUNTIF(P$12:P$222,"<>Suppressed")-(RANK(P80,$P$12:$P$222)+COUNTIF($P$12:P80,P80)-2)) -> 117 | E80: =IF(J80="Suppressed","",COUNTIF(J$12:J$222,"<>Suppressed")-(RANK(J80,$J$12:$J$222)+COUNTIF($J$12:J80,J80)-2)) -> 65 | F80: =VLOOKUP(A80,population!C:O,Settings!$B$3,FALSE) -> 23113.8 | G80: =VLOOKUP(A80,CCG_data_TRACCS!A:N,4,FALSE) -> 1129 | H80: =VLOOKUP(A80,CCG_data_TRACCS!A:N,5,FALSE) -> 2901 | I80: =VLOOKUP(A80,CCG_data_TRACCS!A:N,6,FALSE) -> 2196 | J80: 1.321038251 | M80: 4884.527858 | N80: 4603.7249 | O80: 5177.978155 | P80: 12550.94359 | Q80: 12098.3332 | R80: 13016.15437 | S80: 3480.501827 | T80: 11261.04868 | U80: 1.334180989 | V80: =VLOOKUP(Selections_data_CCG!$G$2,'CurrentData-all children'!A:R,13,FALSE) -> 7077.07289 | W80: =IF(Settings!$B$5="4SIMILAR", VLOOKUP(Selections_data_CCG!$G$2,'CurrentData-4SIMILAR-allchildre'!A:R,13,FALSE), VLOOKUP(Settings!$C$5,'CurrentData-all children'!A:R,13,FALSE)) -> 5510.027757 | X80: =VLOOKUP(Selections_data_CCG!$G$2,'CurrentData-all children'!A:R,16,FALSE) -> 16842.33626 | Y80: =IF(Settings!$B$5="4SIMILAR", VLOOKUP(Selections_data_CCG!$G$2,'CurrentData-4SIMILAR-allchildre'!A:R,16,FALSE), VLOOKUP(Settings!$C$5,'CurrentData-all children'!A:R,16,FALSE)) -> 14706.8643 | Z80: =VLOOKUP(Selections_data_CCG!$G$2,'CurrentData-all children'!A:R,10,FALSE) -> 1.48533414 | AA80: =IF(Settings!$B$5="4SIMILAR", VLOOKUP(Selections_data_CCG!$G$2,'CurrentData-4SIMILAR-allchildre'!A:R,10,FALSE), VLOOKUP(Settings!$C$5,'CurrentData-all children'!A:R,10,FALSE)) -> 1.437047856 | AB80: =IF(IF(G80=0,"",COUNTIF(G$12:G$222,"<>0")-(RANK(M80,$M$12:$M$222)+COUNTIF($M$12:M80,M80)-2))<=INT(0.05*COUNTIF(G$12:G$222,"<>0")),"TOP5", IF(IF(G80=0,"",COUNTIF(G$12:G$222,"<>0")-(RANK(M80,$M$12:$M$222)+COUNTIF($M$12:M80,M80)-2))<=INT(0.25*COUNTIF(G$12:G$222,"<>0")),"TOP25", "")) ->  | AC80: =IF(IF(H80=0,"",COUNTIF(H$12:H$222,"<>0")-(RANK(P80,$P$12:$P$222)+COUNTIF($P$12:P80,P80)-2))<=INT(0.05*COUNTIF(H$12:H$222,"<>0")),"TOP5", IF(IF(H80=0,"",COUNTIF(H$12:H$222,"<>0")-(RANK(P80,$P$12:$P$222)+COUNTIF($P$12:P80,P80)-2))<=INT(0.25*COUNTIF(H$12:H$222,"<>0")),"TOP25", "")) ->  | AD80: =IF(IF(J80="Suppressed","",COUNTIF(J$12:J$222,"<>Suppressed")-(RANK(J80,$J$12:$J$222)+COUNTIF(J$12:$J80,J80)-2))<=INT(0.05*COUNTIF(J$12:J$222,"<>Suppressed")),"TOP5", IF(IF(J80="Suppressed","",COUNTIF(J$12:J$222,"<>Suppressed")-(RANK(J80,$J$12:$J$222)+COUNTIF(J$12:$J80,J80)-2))<=INT(0.25*COUNTIF(J$12:J$222,"<>suppressed")),"TOP25", "")) -> 
A81: 08C | B81: NHS Hammersmith and Fulham | C81: =IF(G81=0,"",COUNTIF(G$12:G$222,"<>0")-(RANK(M81,$M$12:$M$222)+COUNTIF($M$12:M81,M81)-2)) -> 19 | D81: =IF(H81=0,"",COUNTIF(P$12:P$222,"<>Suppressed")-(RANK(P81,$P$12:$P$222)+COUNTIF($P$12:P81,P81)-2)) -> 139 | E81: =IF(J81="Suppressed","",COUNTIF(J$12:J$222,"<>Suppressed")-(RANK(J81,$J$12:$J$222)+COUNTIF($J$12:J81,J81)-2)) -> 206 | F81: =VLOOKUP(A81,population!C:O,Settings!$B$3,FALSE) -> 32995.2 | G81: =VLOOKUP(A81,CCG_data_TRACCS!A:N,4,FALSE) -> 837 | H81: =VLOOKUP(A81,CCG_data_TRACCS!A:N,5,FALSE) -> 4400 | I81: =VLOOKUP(A81,CCG_data_TRACCS!A:N,6,FALSE) -> 1862 | J81: 2.363050483 | M81: 2536.732616 | N81: 2367.765062 | O81: 2714.573947 | P81: 13335.27301 | Q81: 12944.12578 | R81: 13735.23677 | S81: 3543.636475 | T81: 11267.83981 | U81: 1.334744081 | V81: =VLOOKUP(Selections_data_CCG!$G$2,'CurrentData-all children'!A:R,13,FALSE) -> 7077.07289 | W81: =IF(Settings!$B$5="4SIMILAR", VLOOKUP(Selections_data_CCG!$G$2,'CurrentData-4SIMILAR-allchildre'!A:R,13,FALSE), VLOOKUP(Settings!$C$5,'CurrentData-all children'!A:R,13,FALSE)) -> 5510.027757 | X81: =VLOOKUP(Selections_data_CCG!$G$2,'CurrentData-all children'!A:R,16,FALSE) -> 16842.33626 | Y81: =IF(Settings!$B$5="4SIMILAR", VLOOKUP(Selections_data_CCG!$G$2,'CurrentData-4SIMILAR-allchildre'!A:R,16,FALSE), VLOOKUP(Settings!$C$5,'CurrentData-all children'!A:R,16,FALSE)) -> 14706.8643 | Z81: =VLOOKUP(Selections_data_CCG!$G$2,'CurrentData-all children'!A:R,10,FALSE) -> 1.48533414 | AA81: =IF(Settings!$B$5="4SIMILAR", VLOOKUP(Selections_data_CCG!$G$2,'CurrentData-4SIMILAR-allchildre'!A:R,10,FALSE), VLOOKUP(Settings!$C$5,'CurrentData-all children'!A:R,10,FALSE)) -> 1.437047856 | AB81: =IF(IF(G81=0,"",COUNTIF(G$12:G$222,"<>0")-(RANK(M81,$M$12:$M$222)+COUNTIF($M$12:M81,M81)-2))<=INT(0.05*COUNTIF(G$12:G$222,"<>0")),"TOP5", IF(IF(G81=0,"",COUNTIF(G$12:G$222,"<>0")-(RANK(M81,$M$12:$M$222)+COUNTIF($M$12:M81,M81)-2))<=INT(0.25*COUNTIF(G$12:G$222,"<>0")),"TOP25", "")) -> TOP25 | AC81: =IF(IF(H81=0,"",COUNTIF(H$12:H$222,"<>0")-(RANK(P81,$P$12:$P$222)+COUNTIF($P$12:P81,P81)-2))<=INT(0.05*COUNTIF(H$12:H$222,"<>0")),"TOP5", IF(IF(H81=0,"",COUNTIF(H$12:H$222,"<>0")-(RANK(P81,$P$12:$P$222)+COUNTIF($P$12:P81,P81)-2))<=INT(0.25*COUNTIF(H$12:H$222,"<>0")),"TOP25", "")) ->  | AD81: =IF(IF(J81="Suppressed","",COUNTIF(J$12:J$222,"<>Suppressed")-(RANK(J81,$J$12:$J$222)+COUNTIF(J$12:$J81,J81)-2))<=INT(0.05*COUNTIF(J$12:J$222,"<>Suppressed")),"TOP5", IF(IF(J81="Suppressed","",COUNTIF(J$12:J$222,"<>Suppressed")-(RANK(J81,$J$12:$J$222)+COUNTIF(J$12:$J81,J81)-2))<=INT(0.25*COUNTIF(J$12:J$222,"<>suppressed")),"TOP25", "")) -> 
A82: 03Y | B82: NHS Hardwick | C82: =IF(G82=0,"",COUNTIF(G$12:G$222,"<>0")-(RANK(M82,$M$12:$M$222)+COUNTIF($M$12:M82,M82)-2)) -> 158 | D82: =IF(H82=0,"",COUNTIF(P$12:P$222,"<>Suppressed")-(RANK(P82,$P$12:$P$222)+COUNTIF($P$12:P82,P82)-2)) -> 133 | E82: =IF(J82="Suppressed","",COUNTIF(J$12:J$222,"<>Suppressed")-(RANK(J82,$J$12:$J$222)+COUNTIF($J$12:J82,J82)-2)) -> 61 | F82: =VLOOKUP(A82,population!C:O,Settings!$B$3,FALSE) -> 17635.4 | G82: =VLOOKUP(A82,CCG_data_TRACCS!A:N,4,FALSE) -> 988 | H82: =VLOOKUP(A82,CCG_data_TRACCS!A:N,5,FALSE) -> 2325 | I82: =VLOOKUP(A82,CCG_data_TRACCS!A:N,6,FALSE) -> 1786 | J82: 1.301791713 | M82: 5602.367964 | N82: 5258.432056 | O82: 5962.891333 | P82: 13183.71004 | Q82: 12653.21068 | R82: 13730.73603 | S82: 3549.785129 | T82: 11285.90971 | U82: 1.337542577 | V82: =VLOOKUP(Selections_data_CCG!$G$2,'CurrentData-all children'!A:R,13,FALSE) -> 7077.07289 | W82: =IF(Settings!$B$5="4SIMILAR", VLOOKUP(Selections_data_CCG!$G$2,'CurrentData-4SIMILAR-allchildre'!A:R,13,FALSE), VLOOKUP(Settings!$C$5,'CurrentData-all children'!A:R,13,FALSE)) -> 5510.027757 | X82: =VLOOKUP(Selections_data_CCG!$G$2,'CurrentData-all children'!A:R,16,FALSE) -> 16842.33626 | Y82: =IF(Settings!$B$5="4SIMILAR", VLOOKUP(Selections_data_CCG!$G$2,'CurrentData-4SIMILAR-allchildre'!A:R,16,FALSE), VLOOKUP(Settings!$C$5,'CurrentData-all children'!A:R,16,FALSE)) -> 14706.8643 | Z82: =VLOOKUP(Selections_data_CCG!$G$2,'CurrentData-all children'!A:R,10,FALSE) -> 1.48533414 | AA82: =IF(Settings!$B$5="4SIMILAR", VLOOKUP(Selections_data_CCG!$G$2,'CurrentData-4SIMILAR-allchildre'!A:R,10,FALSE), VLOOKUP(Settings!$C$5,'CurrentData-all children'!A:R,10,FALSE)) -> 1.437047856 | AB82: =IF(IF(G82=0,"",COUNTIF(G$12:G$222,"<>0")-(RANK(M82,$M$12:$M$222)+COUNTIF($M$12:M82,M82)-2))<=INT(0.05*COUNTIF(G$12:G$222,"<>0")),"TOP5", IF(IF(G82=0,"",COUNTIF(G$12:G$222,"<>0")-(RANK(M82,$M$12:$M$222)+COUNTIF($M$12:M82,M82)-2))<=INT(0.25*COUNTIF(G$12:G$222,"<>0")),"TOP25", "")) ->  | AC82: =IF(IF(H82=0,"",COUNTIF(H$12:H$222,"<>0")-(RANK(P82,$P$12:$P$222)+COUNTIF($P$12:P82,P82)-2))<=INT(0.05*COUNTIF(H$12:H$222,"<>0")),"TOP5", IF(IF(H82=0,"",COUNTIF(H$12:H$222,"<>0")-(RANK(P82,$P$12:$P$222)+COUNTIF($P$12:P82,P82)-2))<=INT(0.25*COUNTIF(H$12:H$222,"<>0")),"TOP25", "")) ->  | AD82: =IF(IF(J82="Suppressed","",COUNTIF(J$12:J$222,"<>Suppressed")-(RANK(J82,$J$12:$J$222)+COUNTIF(J$12:$J82,J82)-2))<=INT(0.05*COUNTIF(J$12:J$222,"<>Suppressed")),"TOP5", IF(IF(J82="Suppressed","",COUNTIF(J$12:J$222,"<>Suppressed")-(RANK(J82,$J$12:$J$222)+COUNTIF(J$12:$J82,J82)-2))<=INT(0.25*COUNTIF(J$12:J$222,"<>suppressed")),"TOP25", "")) -> 
A83: 08D | B83: NHS Haringey | C83: =IF(G83=0,"",COUNTIF(G$12:G$222,"<>0")-(RANK(M83,$M$12:$M$222)+COUNTIF($M$12:M83,M83)-2)) -> 51 | D83: =IF(H83=0,"",COUNTIF(P$12:P$222,"<>Suppressed")-(RANK(P83,$P$12:$P$222)+COUNTIF($P$12:P83,P83)-2)) -> 111 | E83: =IF(J83="Suppressed","",COUNTIF(J$12:J$222,"<>Suppressed")-(RANK(J83,$J$12:$J$222)+COUNTIF($J$12:J83,J83)-2)) -> 163 | F83: =VLOOKUP(A83,population!C:O,Settings!$B$3,FALSE) -> 55701.2 | G83: =VLOOKUP(A83,CCG_data_TRACCS!A:N,4,FALSE) -> 1741 | H83: =VLOOKUP(A83,CCG_data_TRACCS!A:N,5,FALSE) -> 6920 | I83: =VLOOKUP(A83,CCG_data_TRACCS!A:N,6,FALSE) -> 3747 | J83: 1.846810782 | M83: 3125.605912 | N83: 2980.493738 | O83: 3275.956158 | P83: 12423.43073 | Q83: 12132.42516 | R83: 12719.65353 | S83: 3581.547228 | T83: 11330.68687 | U83: 1.34034857 | V83: =VLOOKUP(Selections_data_CCG!$G$2,'CurrentData-all children'!A:R,13,FALSE) -> 7077.07289 | W83: =IF(Settings!$B$5="4SIMILAR", VLOOKUP(Selections_data_CCG!$G$2,'CurrentData-4SIMILAR-allchildre'!A:R,13,FALSE), VLOOKUP(Settings!$C$5,'CurrentData-all children'!A:R,13,FALSE)) -> 5510.027757 | X83: =VLOOKUP(Selections_data_CCG!$G$2,'CurrentData-all children'!A:R,16,FALSE) -> 16842.33626 | Y83: =IF(Settings!$B$5="4SIMILAR", VLOOKUP(Selections_data_CCG!$G$2,'CurrentData-4SIMILAR-allchildre'!A:R,16,FALSE), VLOOKUP(Settings!$C$5,'CurrentData-all children'!A:R,16,FALSE)) -> 14706.8643 | Z83: =VLOOKUP(Selections_data_CCG!$G$2,'CurrentData-all children'!A:R,10,FALSE) -> 1.48533414 | AA83: =IF(Settings!$B$5="4SIMILAR", VLOOKUP(Selections_data_CCG!$G$2,'CurrentData-4SIMILAR-allchildre'!A:R,10,FALSE), VLOOKUP(Settings!$C$5,'CurrentData-all children'!A:R,10,FALSE)) -> 1.437047856 | AB83: =IF(IF(G83=0,"",COUNTIF(G$12:G$222,"<>0")-(RANK(M83,$M$12:$M$222)+COUNTIF($M$12:M83,M83)-2))<=INT(0.05*COUNTIF(G$12:G$222,"<>0")),"TOP5", IF(IF(G83=0,"",COUNTIF(G$12:G$222,"<>0")-(RANK(M83,$M$12:$M$222)+COUNTIF($M$12:M83,M83)-2))<=INT(0.25*COUNTIF(G$12:G$222,"<>0")),"TOP25", "")) -> TOP25 | AC83: =IF(IF(H83=0,"",COUNTIF(H$12:H$222,"<>0")-(RANK(P83,$P$12:$P$222)+COUNTIF($P$12:P83,P83)-2))<=INT(0.05*COUNTIF(H$12:H$222,"<>0")),"TOP5", IF(IF(H83=0,"",COUNTIF(H$12:H$222,"<>0")-(RANK(P83,$P$12:$P$222)+COUNTIF($P$12:P83,P83)-2))<=INT(0.25*COUNTIF(H$12:H$222,"<>0")),"TOP25", "")) ->  | AD83: =IF(IF(J83="Suppressed","",COUNTIF(J$12:J$222,"<>Suppressed")-(RANK(J83,$J$12:$J$222)+COUNTIF(J$12:$J83,J83)-2))<=INT(0.05*COUNTIF(J$12:J$222,"<>Suppressed")),"TOP5", IF(IF(J83="Suppressed","",COUNTIF(J$12:J$222,"<>Suppressed")-(RANK(J83,$J$12:$J$222)+COUNTIF(J$12:$J83,J83)-2))<=INT(0.25*COUNTIF(J$12:J$222,"<>suppressed")),"TOP25", "")) -> 
A84: 03E | B84: NHS Harrogate and Rural District | C84: =IF(G84=0,"",COUNTIF(G$12:G$222,"<>0")-(RANK(M84,$M$12:$M$222)+COUNTIF($M$12:M84,M84)-2)) -> 169 | D84: =IF(H84=0,"",COUNTIF(P$12:P$222,"<>Suppressed")-(RANK(P84,$P$12:$P$222)+COUNTIF($P$12:P84,P84)-2)) -> 143 | E84: =IF(J84="Suppressed","",COUNTIF(J$12:J$222,"<>Suppressed")-(RANK(J84,$J$12:$J$222)+COUNTIF($J$12:J84,J84)-2)) -> 67 | F84: =VLOOKUP(A84,population!C:O,Settings!$B$3,FALSE) -> 27407.2 | G84: =VLOOKUP(A84,CCG_data_TRACCS!A:N,4,FALSE) -> 1613 | H84: =VLOOKUP(A84,CCG_data_TRACCS!A:N,5,FALSE) -> 3693 | I84: =VLOOKUP(A84,CCG_data_TRACCS!A:N,6,FALSE) -> 2792 | J84: 1.322707736 | M84: 5885.314808 | N84: 5601.573964 | O84: 6179.704581 | P84: 13474.56143 | Q84: 13043.44324 | R84: 13916.29863 | S84: 3611.164331 | T84: 11336.05528 | U84: 1.354935946 | V84: =VLOOKUP(Selections_data_CCG!$G$2,'CurrentData-all children'!A:R,13,FALSE) -> 7077.07289 | W84: =IF(Settings!$B$5="4SIMILAR", VLOOKUP(Selections_data_CCG!$G$2,'CurrentData-4SIMILAR-allchildre'!A:R,13,FALSE), VLOOKUP(Settings!$C$5,'CurrentData-all children'!A:R,13,FALSE)) -> 5510.027757 | X84: =VLOOKUP(Selections_data_CCG!$G$2,'CurrentData-all children'!A:R,16,FALSE) -> 16842.33626 | Y84: =IF(Settings!$B$5="4SIMILAR", VLOOKUP(Selections_data_CCG!$G$2,'CurrentData-4SIMILAR-allchildre'!A:R,16,FALSE), VLOOKUP(Settings!$C$5,'CurrentData-all children'!A:R,16,FALSE)) -> 14706.8643 | Z84: =VLOOKUP(Selections_data_CCG!$G$2,'CurrentData-all children'!A:R,10,FALSE) -> 1.48533414 | AA84: =IF(Settings!$B$5="4SIMILAR", VLOOKUP(Selections_data_CCG!$G$2,'CurrentData-4SIMILAR-allchildre'!A:R,10,FALSE), VLOOKUP(Settings!$C$5,'CurrentData-all children'!A:R,10,FALSE)) -> 1.437047856 | AB84: =IF(IF(G84=0,"",COUNTIF(G$12:G$222,"<>0")-(RANK(M84,$M$12:$M$222)+COUNTIF($M$12:M84,M84)-2))<=INT(0.05*COUNTIF(G$12:G$222,"<>0")),"TOP5", IF(IF(G84=0,"",COUNTIF(G$12:G$222,"<>0")-(RANK(M84,$M$12:$M$222)+COUNTIF($M$12:M84,M84)-2))<=INT(0.25*COUNTIF(G$12:G$222,"<>0")),"TOP25", "")) ->  | AC84: =IF(IF(H84=0,"",COUNTIF(H$12:H$222,"<>0")-(RANK(P84,$P$12:$P$222)+COUNTIF($P$12:P84,P84)-2))<=INT(0.05*COUNTIF(H$12:H$222,"<>0")),"TOP5", IF(IF(H84=0,"",COUNTIF(H$12:H$222,"<>0")-(RANK(P84,$P$12:$P$222)+COUNTIF($P$12:P84,P84)-2))<=INT(0.25*COUNTIF(H$12:H$222,"<>0")),"TOP25", "")) ->  | AD84: =IF(IF(J84="Suppressed","",COUNTIF(J$12:J$222,"<>Suppressed")-(RANK(J84,$J$12:$J$222)+COUNTIF(J$12:$J84,J84)-2))<=INT(0.05*COUNTIF(J$12:J$222,"<>Suppressed")),"TOP5", IF(IF(J84="Suppressed","",COUNTIF(J$12:J$222,"<>Suppressed")-(RANK(J84,$J$12:$J$222)+COUNTIF(J$12:$J84,J84)-2))<=INT(0.25*COUNTIF(J$12:J$222,"<>suppressed")),"TOP25", "")) -> 
A85: 08E | B85: NHS Harrow | C85: =IF(G85=0,"",COUNTIF(G$12:G$222,"<>0")-(RANK(M85,$M$12:$M$222)+COUNTIF($M$12:M85,M85)-2)) -> 84 | D85: =IF(H85=0,"",COUNTIF(P$12:P$222,"<>Suppressed")-(RANK(P85,$P$12:$P$222)+COUNTIF($P$12:P85,P85)-2)) -> 64 | E85: =IF(J85="Suppressed","",COUNTIF(J$12:J$222,"<>Suppressed")-(RANK(J85,$J$12:$J$222)+COUNTIF($J$12:J85,J85)-2)) -> 117 | F85: =VLOOKUP(A85,population!C:O,Settings!$B$3,FALSE) -> 47998.8 | G85: =VLOOKUP(A85,CCG_data_TRACCS!A:N,4,FALSE) -> 1871 | H85: =VLOOKUP(A85,CCG_data_TRACCS!A:N,5,FALSE) -> 5360 | I85: =VLOOKUP(A85,CCG_data_TRACCS!A:N,6,FALSE) -> 3539 | J85: 1.514552133 | M85: 3898.014117 | N85: 3723.368843 | O85: 4078.736308 | P85: 11166.94584 | Q85: 10869.97248 | R85: 11469.97696 | S85: 3621.584082 | T85: 11353.72431 | U85: 1.364097969 | V85: =VLOOKUP(Selections_data_CCG!$G$2,'CurrentData-all children'!A:R,13,FALSE) -> 7077.07289 | W85: =IF(Settings!$B$5="4SIMILAR", VLOOKUP(Selections_data_CCG!$G$2,'CurrentData-4SIMILAR-allchildre'!A:R,13,FALSE), VLOOKUP(Settings!$C$5,'CurrentData-all children'!A:R,13,FALSE)) -> 5510.027757 | X85: =VLOOKUP(Selections_data_CCG!$G$2,'CurrentData-all children'!A:R,16,FALSE) -> 16842.33626 | Y85: =IF(Settings!$B$5="4SIMILAR", VLOOKUP(Selections_data_CCG!$G$2,'CurrentData-4SIMILAR-allchildre'!A:R,16,FALSE), VLOOKUP(Settings!$C$5,'CurrentData-all children'!A:R,16,FALSE)) -> 14706.8643 | Z85: =VLOOKUP(Selections_data_CCG!$G$2,'CurrentData-all children'!A:R,10,FALSE) -> 1.48533414 | AA85: =IF(Settings!$B$5="4SIMILAR", VLOOKUP(Selections_data_CCG!$G$2,'CurrentData-4SIMILAR-allchildre'!A:R,10,FALSE), VLOOKUP(Settings!$C$5,'CurrentData-all children'!A:R,10,FALSE)) -> 1.437047856 | AB85: =IF(IF(G85=0,"",COUNTIF(G$12:G$222,"<>0")-(RANK(M85,$M$12:$M$222)+COUNTIF($M$12:M85,M85)-2))<=INT(0.05*COUNTIF(G$12:G$222,"<>0")),"TOP5", IF(IF(G85=0,"",COUNTIF(G$12:G$222,"<>0")-(RANK(M85,$M$12:$M$222)+COUNTIF($M$12:M85,M85)-2))<=INT(0.25*COUNTIF(G$12:G$222,"<>0")),"TOP25", "")) ->  | AC85: =IF(IF(H85=0,"",COUNTIF(H$12:H$222,"<>0")-(RANK(P85,$P$12:$P$222)+COUNTIF($P$12:P85,P85)-2))<=INT(0.05*COUNTIF(H$12:H$222,"<>0")),"TOP5", IF(IF(H85=0,"",COUNTIF(H$12:H$222,"<>0")-(RANK(P85,$P$12:$P$222)+COUNTIF($P$12:P85,P85)-2))<=INT(0.25*COUNTIF(H$12:H$222,"<>0")),"TOP25", "")) ->  | AD85: =IF(IF(J85="Suppressed","",COUNTIF(J$12:J$222,"<>Suppressed")-(RANK(J85,$J$12:$J$222)+COUNTIF(J$12:$J85,J85)-2))<=INT(0.05*COUNTIF(J$12:J$222,"<>Suppressed")),"TOP5", IF(IF(J85="Suppressed","",COUNTIF(J$12:J$222,"<>Suppressed")-(RANK(J85,$J$12:$J$222)+COUNTIF(J$12:$J85,J85)-2))<=INT(0.25*COUNTIF(J$12:J$222,"<>suppressed")),"TOP25", "")) -> 
A86: 00K | B86: NHS Hartlepool and Stockton-on-Tees | C86: =IF(G86=0,"",COUNTIF(G$12:G$222,"<>0")-(RANK(M86,$M$12:$M$222)+COUNTIF($M$12:M86,M86)-2)) -> 145 | D86: =IF(H86=0,"",COUNTIF(P$12:P$222,"<>Suppressed")-(RANK(P86,$P$12:$P$222)+COUNTIF($P$12:P86,P86)-2)) -> 176 | E86: =IF(J86="Suppressed","",COUNTIF(J$12:J$222,"<>Suppressed")-(RANK(J86,$J$12:$J$222)+COUNTIF($J$12:J86,J86)-2)) -> 111 | F86: =VLOOKUP(A86,population!C:O,Settings!$B$3,FALSE) -> 55072.8 | G86: =VLOOKUP(A86,CCG_data_TRACCS!A:N,4,FALSE) -> 2916 | H86: =VLOOKUP(A86,CCG_data_TRACCS!A:N,5,FALSE) -> 8581 | I86: =VLOOKUP(A86,CCG_data_TRACCS!A:N,6,FALSE) -> 5821 | J86: 1.474145336 | M86: 5294.809779 | N86: 5104.356349 | O86: 5490.551447 | P86: 15581.19435 | Q86: 15253.24687 | R86: 15914.41641 | S86: 3623.644913 | T86: 11408.33309 | U86: 1.366841587 | V86: =VLOOKUP(Selections_data_CCG!$G$2,'CurrentData-all children'!A:R,13,FALSE) -> 7077.07289 | W86: =IF(Settings!$B$5="4SIMILAR", VLOOKUP(Selections_data_CCG!$G$2,'CurrentData-4SIMILAR-allchildre'!A:R,13,FALSE), VLOOKUP(Settings!$C$5,'CurrentData-all children'!A:R,13,FALSE)) -> 5510.027757 | X86: =VLOOKUP(Selections_data_CCG!$G$2,'CurrentData-all children'!A:R,16,FALSE) -> 16842.33626 | Y86: =IF(Settings!$B$5="4SIMILAR", VLOOKUP(Selections_data_CCG!$G$2,'CurrentData-4SIMILAR-allchildre'!A:R,16,FALSE), VLOOKUP(Settings!$C$5,'CurrentData-all children'!A:R,16,FALSE)) -> 14706.8643 | Z86: =VLOOKUP(Selections_data_CCG!$G$2,'CurrentData-all children'!A:R,10,FALSE) -> 1.48533414 | AA86: =IF(Settings!$B$5="4SIMILAR", VLOOKUP(Selections_data_CCG!$G$2,'CurrentData-4SIMILAR-allchildre'!A:R,10,FALSE), VLOOKUP(Settings!$C$5,'CurrentData-all children'!A:R,10,FALSE)) -> 1.437047856 | AB86: =IF(IF(G86=0,"",COUNTIF(G$12:G$222,"<>0")-(RANK(M86,$M$12:$M$222)+COUNTIF($M$12:M86,M86)-2))<=INT(0.05*COUNTIF(G$12:G$222,"<>0")),"TOP5", IF(IF(G86=0,"",COUNTIF(G$12:G$222,"<>0")-(RANK(M86,$M$12:$M$222)+COUNTIF($M$12:M86,M86)-2))<=INT(0.25*COUNTIF(G$12:G$222,"<>0")),"TOP25", "")) ->  | AC86: =IF(IF(H86=0,"",COUNTIF(H$12:H$222,"<>0")-(RANK(P86,$P$12:$P$222)+COUNTIF($P$12:P86,P86)-2))<=INT(0.05*COUNTIF(H$12:H$222,"<>0")),"TOP5", IF(IF(H86=0,"",COUNTIF(H$12:H$222,"<>0")-(RANK(P86,$P$12:$P$222)+COUNTIF($P$12:P86,P86)-2))<=INT(0.25*COUNTIF(H$12:H$222,"<>0")),"TOP25", "")) ->  | AD86: =IF(IF(J86="Suppressed","",COUNTIF(J$12:J$222,"<>Suppressed")-(RANK(J86,$J$12:$J$222)+COUNTIF(J$12:$J86,J86)-2))<=INT(0.05*COUNTIF(J$12:J$222,"<>Suppressed")),"TOP5", IF(IF(J86="Suppressed","",COUNTIF(J$12:J$222,"<>Suppressed")-(RANK(J86,$J$12:$J$222)+COUNTIF(J$12:$J86,J86)-2))<=INT(0.25*COUNTIF(J$12:J$222,"<>suppressed")),"TOP25", "")) -> 
A87: 09P | B87: NHS Hastings and Rother | C87: =IF(G87=0,"",COUNTIF(G$12:G$222,"<>0")-(RANK(M87,$M$12:$M$222)+COUNTIF($M$12:M87,M87)-2)) -> 167 | D87: =IF(H87=0,"",COUNTIF(P$12:P$222,"<>Suppressed")-(RANK(P87,$P$12:$P$222)+COUNTIF($P$12:P87,P87)-2)) -> 60 | E87: =IF(J87="Suppressed","",COUNTIF(J$12:J$222,"<>Suppressed")-(RANK(J87,$J$12:$J$222)+COUNTIF($J$12:J87,J87)-2)) -> 3 | F87: =VLOOKUP(A87,population!C:O,Settings!$B$3,FALSE) -> 30440 | G87: =VLOOKUP(A87,CCG_data_TRACCS!A:N,4,FALSE) -> 1774 | H87: =VLOOKUP(A87,CCG_data_TRACCS!A:N,5,FALSE) -> 3382 | I87: =VLOOKUP(A87,CCG_data_TRACCS!A:N,6,FALSE) -> 3289 | J87: 1.028276072 | M87: 5827.858081 | N87: 5559.787539 | O87: 6105.512895 | P87: 11110.38108 | Q87: 10739.05446 | R87: 11491.27108 | S87: 3650.670094 | T87: 11434.55268 | U87: 1.36911816 | V87: =VLOOKUP(Selections_data_CCG!$G$2,'CurrentData-all children'!A:R,13,FALSE) -> 7077.07289 | W87: =IF(Settings!$B$5="4SIMILAR", VLOOKUP(Selections_data_CCG!$G$2,'CurrentData-4SIMILAR-allchildre'!A:R,13,FALSE), VLOOKUP(Settings!$C$5,'CurrentData-all children'!A:R,13,FALSE)) -> 5510.027757 | X87: =VLOOKUP(Selections_data_CCG!$G$2,'CurrentData-all children'!A:R,16,FALSE) -> 16842.33626 | Y87: =IF(Settings!$B$5="4SIMILAR", VLOOKUP(Selections_data_CCG!$G$2,'CurrentData-4SIMILAR-allchildre'!A:R,16,FALSE), VLOOKUP(Settings!$C$5,'CurrentData-all children'!A:R,16,FALSE)) -> 14706.8643 | Z87: =VLOOKUP(Selections_data_CCG!$G$2,'CurrentData-all children'!A:R,10,FALSE) -> 1.48533414 | AA87: =IF(Settings!$B$5="4SIMILAR", VLOOKUP(Selections_data_CCG!$G$2,'CurrentData-4SIMILAR-allchildre'!A:R,10,FALSE), VLOOKUP(Settings!$C$5,'CurrentData-all children'!A:R,10,FALSE)) -> 1.437047856 | AB87: =IF(IF(G87=0,"",COUNTIF(G$12:G$222,"<>0")-(RANK(M87,$M$12:$M$222)+COUNTIF($M$12:M87,M87)-2))<=INT(0.05*COUNTIF(G$12:G$222,"<>0")),"TOP5", IF(IF(G87=0,"",COUNTIF(G$12:G$222,"<>0")-(RANK(M87,$M$12:$M$222)+COUNTIF($M$12:M87,M87)-2))<=INT(0.25*COUNTIF(G$12:G$222,"<>0")),"TOP25", "")) ->  | AC87: =IF(IF(H87=0,"",COUNTIF(H$12:H$222,"<>0")-(RANK(P87,$P$12:$P$222)+COUNTIF($P$12:P87,P87)-2))<=INT(0.05*COUNTIF(H$12:H$222,"<>0")),"TOP5", IF(IF(H87=0,"",COUNTIF(H$12:H$222,"<>0")-(RANK(P87,$P$12:$P$222)+COUNTIF($P$12:P87,P87)-2))<=INT(0.25*COUNTIF(H$12:H$222,"<>0")),"TOP25", "")) ->  | AD87: =IF(IF(J87="Suppressed","",COUNTIF(J$12:J$222,"<>Suppressed")-(RANK(J87,$J$12:$J$222)+COUNTIF(J$12:$J87,J87)-2))<=INT(0.05*COUNTIF(J$12:J$222,"<>Suppressed")),"TOP5", IF(IF(J87="Suppressed","",COUNTIF(J$12:J$222,"<>Suppressed")-(RANK(J87,$J$12:$J$222)+COUNTIF(J$12:$J87,J87)-2))<=INT(0.25*COUNTIF(J$12:J$222,"<>suppressed")),"TOP25", "")) -> TOP5
A88: 08F | B88: NHS Havering | C88: =IF(G88=0,"",COUNTIF(G$12:G$222,"<>0")-(RANK(M88,$M$12:$M$222)+COUNTIF($M$12:M88,M88)-2)) -> 9 | D88: =IF(H88=0,"",COUNTIF(P$12:P$222,"<>Suppressed")-(RANK(P88,$P$12:$P$222)+COUNTIF($P$12:P88,P88)-2)) -> 46 | E88: =IF(J88="Suppressed","",COUNTIF(J$12:J$222,"<>Suppressed")-(RANK(J88,$J$12:$J$222)+COUNTIF($J$12:J88,J88)-2)) -> 178 | F88: =VLOOKUP(A88,population!C:O,Settings!$B$3,FALSE) -> 47299.2 | G88: =VLOOKUP(A88,CCG_data_TRACCS!A:N,4,FALSE) -> 1106 | H88: =VLOOKUP(A88,CCG_data_TRACCS!A:N,5,FALSE) -> 5143 | I88: =VLOOKUP(A88,CCG_data_TRACCS!A:N,6,FALSE) -> 2598 | J88: 1.979599692 | M88: 2338.305933 | N88: 2202.510979 | O88: 2480.281919 | P88: 10873.33401 | Q88: 10578.1727 | R88: 11174.64326 | S88: 3703.888944 | T88: 11439.47884 | U88: 1.372461472 | V88: =VLOOKUP(Selections_data_CCG!$G$2,'CurrentData-all children'!A:R,13,FALSE) -> 7077.07289 | W88: =IF(Settings!$B$5="4SIMILAR", VLOOKUP(Selections_data_CCG!$G$2,'CurrentData-4SIMILAR-allchildre'!A:R,13,FALSE), VLOOKUP(Settings!$C$5,'CurrentData-all children'!A:R,13,FALSE)) -> 5510.027757 | X88: =VLOOKUP(Selections_data_CCG!$G$2,'CurrentData-all children'!A:R,16,FALSE) -> 16842.33626 | Y88: =IF(Settings!$B$5="4SIMILAR", VLOOKUP(Selections_data_CCG!$G$2,'CurrentData-4SIMILAR-allchildre'!A:R,16,FALSE), VLOOKUP(Settings!$C$5,'CurrentData-all children'!A:R,16,FALSE)) -> 14706.8643 | Z88: =VLOOKUP(Selections_data_CCG!$G$2,'CurrentData-all children'!A:R,10,FALSE) -> 1.48533414 | AA88: =IF(Settings!$B$5="4SIMILAR", VLOOKUP(Selections_data_CCG!$G$2,'CurrentData-4SIMILAR-allchildre'!A:R,10,FALSE), VLOOKUP(Settings!$C$5,'CurrentData-all children'!A:R,10,FALSE)) -> 1.437047856 | AB88: =IF(IF(G88=0,"",COUNTIF(G$12:G$222,"<>0")-(RANK(M88,$M$12:$M$222)+COUNTIF($M$12:M88,M88)-2))<=INT(0.05*COUNTIF(G$12:G$222,"<>0")),"TOP5", IF(IF(G88=0,"",COUNTIF(G$12:G$222,"<>0")-(RANK(M88,$M$12:$M$222)+COUNTIF($M$12:M88,M88)-2))<=INT(0.25*COUNTIF(G$12:G$222,"<>0")),"TOP25", "")) -> TOP5 | AC88: =IF(IF(H88=0,"",COUNTIF(H$12:H$222,"<>0")-(RANK(P88,$P$12:$P$222)+COUNTIF($P$12:P88,P88)-2))<=INT(0.05*COUNTIF(H$12:H$222,"<>0")),"TOP5", IF(IF(H88=0,"",COUNTIF(H$12:H$222,"<>0")-(RANK(P88,$P$12:$P$222)+COUNTIF($P$12:P88,P88)-2))<=INT(0.25*COUNTIF(H$12:H$222,"<>0")),"TOP25", "")) -> TOP25 | AD88: =IF(IF(J88="Suppressed","",COUNTIF(J$12:J$222,"<>Suppressed")-(RANK(J88,$J$12:$J$222)+COUNTIF(J$12:$J88,J88)-2))<=INT(0.05*COUNTIF(J$12:J$222,"<>Suppressed")),"TOP5", IF(IF(J88="Suppressed","",COUNTIF(J$12:J$222,"<>Suppressed")-(RANK(J88,$J$12:$J$222)+COUNTIF(J$12:$J88,J88)-2))<=INT(0.25*COUNTIF(J$12:J$222,"<>suppressed")),"TOP25", "")) -> 
A89: 05F | B89: NHS Herefordshire | C89: =IF(G89=0,"",COUNTIF(G$12:G$222,"<>0")-(RANK(M89,$M$12:$M$222)+COUNTIF($M$12:M89,M89)-2)) -> 152 | D89: =IF(H89=0,"",COUNTIF(P$12:P$222,"<>Suppressed")-(RANK(P89,$P$12:$P$222)+COUNTIF($P$12:P89,P89)-2)) -> 196 | E89: =IF(J89="Suppressed","",COUNTIF(J$12:J$222,"<>Suppressed")-(RANK(J89,$J$12:$J$222)+COUNTIF($J$12:J89,J89)-2)) -> 17 | F89: =VLOOKUP(A89,population!C:O,Settings!$B$3,FALSE) -> 30372.4 | G89: =VLOOKUP(A89,CCG_data_TRACCS!A:N,4,FALSE) -> 1649 | H89: =VLOOKUP(A89,CCG_data_TRACCS!A:N,5,FALSE) -> 5122 | I89: =VLOOKUP(A89,CCG_data_TRACCS!A:N,6,FALSE) -> 4458 | J89: 1.148945716 | M89: 5429.271312 | N89: 5170.355201 | O89: 5697.795846 | P89: 16863.99494 | Q89: 16405.2835 | R89: 17332.28072 | S89: 3722.539582 | T89: 11459.7886 | U89: 1.380603575 | V89: =VLOOKUP(Selections_data_CCG!$G$2,'CurrentData-all children'!A:R,13,FALSE) -> 7077.07289 | W89: =IF(Settings!$B$5="4SIMILAR", VLOOKUP(Selections_data_CCG!$G$2,'CurrentData-4SIMILAR-allchildre'!A:R,13,FALSE), VLOOKUP(Settings!$C$5,'CurrentData-all children'!A:R,13,FALSE)) -> 5510.027757 | X89: =VLOOKUP(Selections_data_CCG!$G$2,'CurrentData-all children'!A:R,16,FALSE) -> 16842.33626 | Y89: =IF(Settings!$B$5="4SIMILAR", VLOOKUP(Selections_data_CCG!$G$2,'CurrentData-4SIMILAR-allchildre'!A:R,16,FALSE), VLOOKUP(Settings!$C$5,'CurrentData-all children'!A:R,16,FALSE)) -> 14706.8643 | Z89: =VLOOKUP(Selections_data_CCG!$G$2,'CurrentData-all children'!A:R,10,FALSE) -> 1.48533414 | AA89: =IF(Settings!$B$5="4SIMILAR", VLOOKUP(Selections_data_CCG!$G$2,'CurrentData-4SIMILAR-allchildre'!A:R,10,FALSE), VLOOKUP(Settings!$C$5,'CurrentData-all children'!A:R,10,FALSE)) -> 1.437047856 | AB89: =IF(IF(G89=0,"",COUNTIF(G$12:G$222,"<>0")-(RANK(M89,$M$12:$M$222)+COUNTIF($M$12:M89,M89)-2))<=INT(0.05*COUNTIF(G$12:G$222,"<>0")),"TOP5", IF(IF(G89=0,"",COUNTIF(G$12:G$222,"<>0")-(RANK(M89,$M$12:$M$222)+COUNTIF($M$12:M89,M89)-2))<=INT(0.25*COUNTIF(G$12:G$222,"<>0")),"TOP25", "")) ->  | AC89: =IF(IF(H89=0,"",COUNTIF(H$12:H$222,"<>0")-(RANK(P89,$P$12:$P$222)+COUNTIF($P$12:P89,P89)-2))<=INT(0.05*COUNTIF(H$12:H$222,"<>0")),"TOP5", IF(IF(H89=0,"",COUNTIF(H$12:H$222,"<>0")-(RANK(P89,$P$12:$P$222)+COUNTIF($P$12:P89,P89)-2))<=INT(0.25*COUNTIF(H$12:H$222,"<>0")),"TOP25", "")) ->  | AD89: =IF(IF(J89="Suppressed","",COUNTIF(J$12:J$222,"<>Suppressed")-(RANK(J89,$J$12:$J$222)+COUNTIF(J$12:$J89,J89)-2))<=INT(0.05*COUNTIF(J$12:J$222,"<>Suppressed")),"TOP5", IF(IF(J89="Suppressed","",COUNTIF(J$12:J$222,"<>Suppressed")-(RANK(J89,$J$12:$J$222)+COUNTIF(J$12:$J89,J89)-2))<=INT(0.25*COUNTIF(J$12:J$222,"<>suppressed")),"TOP25", "")) -> TOP25
A90: 06N | B90: NHS Herts Valleys | C90: =IF(G90=0,"",COUNTIF(G$12:G$222,"<>0")-(RANK(M90,$M$12:$M$222)+COUNTIF($M$12:M90,M90)-2)) -> 64 | D90: =IF(H90=0,"",COUNTIF(P$12:P$222,"<>Suppressed")-(RANK(P90,$P$12:$P$222)+COUNTIF($P$12:P90,P90)-2)) -> 6 | E90: =IF(J90="Suppressed","",COUNTIF(J$12:J$222,"<>Suppressed")-(RANK(J90,$J$12:$J$222)+COUNTIF($J$12:J90,J90)-2)) -> 42 | F90: =VLOOKUP(A90,population!C:O,Settings!$B$3,FALSE) -> 121179.6 | G90: =VLOOKUP(A90,CCG_data_TRACCS!A:N,4,FALSE) -> 4054 | H90: =VLOOKUP(A90,CCG_data_TRACCS!A:N,5,FALSE) -> 10319 | I90: =VLOOKUP(A90,CCG_data_TRACCS!A:N,6,FALSE) -> 8204 | J90: 1.257801073 | M90: 3345.447584 | N90: 3243.249411 | O90: 3450.046857 | P90: 8515.459698 | Q90: 8351.942642 | R90: 8681.373141 | S90: 3725.032319 | T90: 11467.20515 | U90: 1.381801414 | V90: =VLOOKUP(Selections_data_CCG!$G$2,'CurrentData-all children'!A:R,13,FALSE) -> 7077.07289 | W90: =IF(Settings!$B$5="4SIMILAR", VLOOKUP(Selections_data_CCG!$G$2,'CurrentData-4SIMILAR-allchildre'!A:R,13,FALSE), VLOOKUP(Settings!$C$5,'CurrentData-all children'!A:R,13,FALSE)) -> 5510.027757 | X90: =VLOOKUP(Selections_data_CCG!$G$2,'CurrentData-all children'!A:R,16,FALSE) -> 16842.33626 | Y90: =IF(Settings!$B$5="4SIMILAR", VLOOKUP(Selections_data_CCG!$G$2,'CurrentData-4SIMILAR-allchildre'!A:R,16,FALSE), VLOOKUP(Settings!$C$5,'CurrentData-all children'!A:R,16,FALSE)) -> 14706.8643 | Z90: =VLOOKUP(Selections_data_CCG!$G$2,'CurrentData-all children'!A:R,10,FALSE) -> 1.48533414 | AA90: =IF(Settings!$B$5="4SIMILAR", VLOOKUP(Selections_data_CCG!$G$2,'CurrentData-4SIMILAR-allchildre'!A:R,10,FALSE), VLOOKUP(Settings!$C$5,'CurrentData-all children'!A:R,10,FALSE)) -> 1.437047856 | AB90: =IF(IF(G90=0,"",COUNTIF(G$12:G$222,"<>0")-(RANK(M90,$M$12:$M$222)+COUNTIF($M$12:M90,M90)-2))<=INT(0.05*COUNTIF(G$12:G$222,"<>0")),"TOP5", IF(IF(G90=0,"",COUNTIF(G$12:G$222,"<>0")-(RANK(M90,$M$12:$M$222)+COUNTIF($M$12:M90,M90)-2))<=INT(0.25*COUNTIF(G$12:G$222,"<>0")),"TOP25", "")) ->  | AC90: =IF(IF(H90=0,"",COUNTIF(H$12:H$222,"<>0")-(RANK(P90,$P$12:$P$222)+COUNTIF($P$12:P90,P90)-2))<=INT(0.05*COUNTIF(H$12:H$222,"<>0")),"TOP5", IF(IF(H90=0,"",COUNTIF(H$12:H$222,"<>0")-(RANK(P90,$P$12:$P$222)+COUNTIF($P$12:P90,P90)-2))<=INT(0.25*COUNTIF(H$12:H$222,"<>0")),"TOP25", "")) -> TOP5 | AD90: =IF(IF(J90="Suppressed","",COUNTIF(J$12:J$222,"<>Suppressed")-(RANK(J90,$J$12:$J$222)+COUNTIF(J$12:$J90,J90)-2))<=INT(0.05*COUNTIF(J$12:J$222,"<>Suppressed")),"TOP5", IF(IF(J90="Suppressed","",COUNTIF(J$12:J$222,"<>Suppressed")-(RANK(J90,$J$12:$J$222)+COUNTIF(J$12:$J90,J90)-2))<=INT(0.25*COUNTIF(J$12:J$222,"<>suppressed")),"TOP25", "")) -> TOP25
A91: 01D | B91: NHS Heywood, Middleton and Rochdale | C91: =IF(G91=0,"",COUNTIF(G$12:G$222,"<>0")-(RANK(M91,$M$12:$M$222)+COUNTIF($M$12:M91,M91)-2)) -> 194 | D91: =IF(H91=0,"",COUNTIF(P$12:P$222,"<>Suppressed")-(RANK(P91,$P$12:$P$222)+COUNTIF($P$12:P91,P91)-2)) -> 203 | E91: =IF(J91="Suppressed","",COUNTIF(J$12:J$222,"<>Suppressed")-(RANK(J91,$J$12:$J$222)+COUNTIF($J$12:J91,J91)-2)) -> 115 | F91: =VLOOKUP(A91,population!C:O,Settings!$B$3,FALSE) -> 45471.2 | G91: =VLOOKUP(A91,CCG_data_TRACCS!A:N,4,FALSE) -> 3035 | H91: =VLOOKUP(A91,CCG_data_TRACCS!A:N,5,FALSE) -> 8263 | I91: =VLOOKUP(A91,CCG_data_TRACCS!A:N,6,FALSE) -> 5544 | J91: 1.490440115 | M91: 6674.554443 | N91: 6439.183289 | O91: 6916.329704 | P91: 18171.9418 | Q91: 17782.21399 | R91: 18568.0584 | S91: 3749.538035 | T91: 11469.9235 | U91: 1.383102225 | V91: =VLOOKUP(Selections_data_CCG!$G$2,'CurrentData-all children'!A:R,13,FALSE) -> 7077.07289 | W91: =IF(Settings!$B$5="4SIMILAR", VLOOKUP(Selections_data_CCG!$G$2,'CurrentData-4SIMILAR-allchildre'!A:R,13,FALSE), VLOOKUP(Settings!$C$5,'CurrentData-all children'!A:R,13,FALSE)) -> 5510.027757 | X91: =VLOOKUP(Selections_data_CCG!$G$2,'CurrentData-all children'!A:R,16,FALSE) -> 16842.33626 | Y91: =IF(Settings!$B$5="4SIMILAR", VLOOKUP(Selections_data_CCG!$G$2,'CurrentData-4SIMILAR-allchildre'!A:R,16,FALSE), VLOOKUP(Settings!$C$5,'CurrentData-all children'!A:R,16,FALSE)) -> 14706.8643 | Z91: =VLOOKUP(Selections_data_CCG!$G$2,'CurrentData-all children'!A:R,10,FALSE) -> 1.48533414 | AA91: =IF(Settings!$B$5="4SIMILAR", VLOOKUP(Selections_data_CCG!$G$2,'CurrentData-4SIMILAR-allchildre'!A:R,10,FALSE), VLOOKUP(Settings!$C$5,'CurrentData-all children'!A:R,10,FALSE)) -> 1.437047856 | AB91: =IF(IF(G91=0,"",COUNTIF(G$12:G$222,"<>0")-(RANK(M91,$M$12:$M$222)+COUNTIF($M$12:M91,M91)-2))<=INT(0.05*COUNTIF(G$12:G$222,"<>0")),"TOP5", IF(IF(G91=0,"",COUNTIF(G$12:G$222,"<>0")-(RANK(M91,$M$12:$M$222)+COUNTIF($M$12:M91,M91)-2))<=INT(0.25*COUNTIF(G$12:G$222,"<>0")),"TOP25", "")) ->  | AC91: =IF(IF(H91=0,"",COUNTIF(H$12:H$222,"<>0")-(RANK(P91,$P$12:$P$222)+COUNTIF($P$12:P91,P91)-2))<=INT(0.05*COUNTIF(H$12:H$222,"<>0")),"TOP5", IF(IF(H91=0,"",COUNTIF(H$12:H$222,"<>0")-(RANK(P91,$P$12:$P$222)+COUNTIF($P$12:P91,P91)-2))<=INT(0.25*COUNTIF(H$12:H$222,"<>0")),"TOP25", "")) ->  | AD91: =IF(IF(J91="Suppressed","",COUNTIF(J$12:J$222,"<>Suppressed")-(RANK(J91,$J$12:$J$222)+COUNTIF(J$12:$J91,J91)-2))<=INT(0.05*COUNTIF(J$12:J$222,"<>Suppressed")),"TOP5", IF(IF(J91="Suppressed","",COUNTIF(J$12:J$222,"<>Suppressed")-(RANK(J91,$J$12:$J$222)+COUNTIF(J$12:$J91,J91)-2))<=INT(0.25*COUNTIF(J$12:J$222,"<>suppressed")),"TOP25", "")) -> 
A92: 99K | B92: NHS High Weald Lewes Havens | C92: =IF(G92=0,"",COUNTIF(G$12:G$222,"<>0")-(RANK(M92,$M$12:$M$222)+COUNTIF($M$12:M92,M92)-2)) -> 42 | D92: =IF(H92=0,"",COUNTIF(P$12:P$222,"<>Suppressed")-(RANK(P92,$P$12:$P$222)+COUNTIF($P$12:P92,P92)-2)) -> 49 | E92: =IF(J92="Suppressed","",COUNTIF(J$12:J$222,"<>Suppressed")-(RANK(J92,$J$12:$J$222)+COUNTIF($J$12:J92,J92)-2)) -> 160 | F92: =VLOOKUP(A92,population!C:O,Settings!$B$3,FALSE) -> 29375.2 | G92: =VLOOKUP(A92,CCG_data_TRACCS!A:N,4,FALSE) -> 869 | H92: =VLOOKUP(A92,CCG_data_TRACCS!A:N,5,FALSE) -> 3213 | I92: =VLOOKUP(A92,CCG_data_TRACCS!A:N,6,FALSE) -> 1771 | J92: 1.814229249 | M92: 2958.277731 | N92: 2764.832063 | O92: 3161.68861 | P92: 10937.79787 | Q92: 10562.83054 | R92: 11322.67672 | S92: 3814.904151 | T92: 11503.56836 | U92: 1.384690873 | V92: =VLOOKUP(Selections_data_CCG!$G$2,'CurrentData-all children'!A:R,13,FALSE) -> 7077.07289 | W92: =IF(Settings!$B$5="4SIMILAR", VLOOKUP(Selections_data_CCG!$G$2,'CurrentData-4SIMILAR-allchildre'!A:R,13,FALSE), VLOOKUP(Settings!$C$5,'CurrentData-all children'!A:R,13,FALSE)) -> 5510.027757 | X92: =VLOOKUP(Selections_data_CCG!$G$2,'CurrentData-all children'!A:R,16,FALSE) -> 16842.33626 | Y92: =IF(Settings!$B$5="4SIMILAR", VLOOKUP(Selections_data_CCG!$G$2,'CurrentData-4SIMILAR-allchildre'!A:R,16,FALSE), VLOOKUP(Settings!$C$5,'CurrentData-all children'!A:R,16,FALSE)) -> 14706.8643 | Z92: =VLOOKUP(Selections_data_CCG!$G$2,'CurrentData-all children'!A:R,10,FALSE) -> 1.48533414 | AA92: =IF(Settings!$B$5="4SIMILAR", VLOOKUP(Selections_data_CCG!$G$2,'CurrentData-4SIMILAR-allchildre'!A:R,10,FALSE), VLOOKUP(Settings!$C$5,'CurrentData-all children'!A:R,10,FALSE)) -> 1.437047856 | AB92: =IF(IF(G92=0,"",COUNTIF(G$12:G$222,"<>0")-(RANK(M92,$M$12:$M$222)+COUNTIF($M$12:M92,M92)-2))<=INT(0.05*COUNTIF(G$12:G$222,"<>0")),"TOP5", IF(IF(G92=0,"",COUNTIF(G$12:G$222,"<>0")-(RANK(M92,$M$12:$M$222)+COUNTIF($M$12:M92,M92)-2))<=INT(0.25*COUNTIF(G$12:G$222,"<>0")),"TOP25", "")) -> TOP25 | AC92: =IF(IF(H92=0,"",COUNTIF(H$12:H$222,"<>0")-(RANK(P92,$P$12:$P$222)+COUNTIF($P$12:P92,P92)-2))<=INT(0.05*COUNTIF(H$12:H$222,"<>0")),"TOP5", IF(IF(H92=0,"",COUNTIF(H$12:H$222,"<>0")-(RANK(P92,$P$12:$P$222)+COUNTIF($P$12:P92,P92)-2))<=INT(0.25*COUNTIF(H$12:H$222,"<>0")),"TOP25", "")) -> TOP25 | AD92: =IF(IF(J92="Suppressed","",COUNTIF(J$12:J$222,"<>Suppressed")-(RANK(J92,$J$12:$J$222)+COUNTIF(J$12:$J92,J92)-2))<=INT(0.05*COUNTIF(J$12:J$222,"<>Suppressed")),"TOP5", IF(IF(J92="Suppressed","",COUNTIF(J$12:J$222,"<>Suppressed")-(RANK(J92,$J$12:$J$222)+COUNTIF(J$12:$J92,J92)-2))<=INT(0.25*COUNTIF(J$12:J$222,"<>suppressed")),"TOP25", "")) -> 
A93: 08G | B93: NHS Hillingdon | C93: =IF(G93=0,"",COUNTIF(G$12:G$222,"<>0")-(RANK(M93,$M$12:$M$222)+COUNTIF($M$12:M93,M93)-2)) -> 63 | D93: =IF(H93=0,"",COUNTIF(P$12:P$222,"<>Suppressed")-(RANK(P93,$P$12:$P$222)+COUNTIF($P$12:P93,P93)-2)) -> 27 | E93: =IF(J93="Suppressed","",COUNTIF(J$12:J$222,"<>Suppressed")-(RANK(J93,$J$12:$J$222)+COUNTIF($J$12:J93,J93)-2)) -> 122 | F93: =VLOOKUP(A93,population!C:O,Settings!$B$3,FALSE) -> 58152.6 | G93: =VLOOKUP(A93,CCG_data_TRACCS!A:N,4,FALSE) -> 1928 | H93: =VLOOKUP(A93,CCG_data_TRACCS!A:N,5,FALSE) -> 5779 | I93: =VLOOKUP(A93,CCG_data_TRACCS!A:N,6,FALSE) -> 3791 | J93: 1.524399894 | M93: 3315.41496 | N93: 3169.059705 | O93: 3466.78549 | P93: 9937.646812 | Q93: 9683.06362 | R93: 10197.2292 | S93: 3816.591572 | T93: 11509.26698 | U93: 1.384769539 | V93: =VLOOKUP(Selections_data_CCG!$G$2,'CurrentData-all children'!A:R,13,FALSE) -> 7077.07289 | W93: =IF(Settings!$B$5="4SIMILAR", VLOOKUP(Selections_data_CCG!$G$2,'CurrentData-4SIMILAR-allchildre'!A:R,13,FALSE), VLOOKUP(Settings!$C$5,'CurrentData-all children'!A:R,13,FALSE)) -> 5510.027757 | X93: =VLOOKUP(Selections_data_CCG!$G$2,'CurrentData-all children'!A:R,16,FALSE) -> 16842.33626 | Y93: =IF(Settings!$B$5="4SIMILAR", VLOOKUP(Selections_data_CCG!$G$2,'CurrentData-4SIMILAR-allchildre'!A:R,16,FALSE), VLOOKUP(Settings!$C$5,'CurrentData-all children'!A:R,16,FALSE)) -> 14706.8643 | Z93: =VLOOKUP(Selections_data_CCG!$G$2,'CurrentData-all children'!A:R,10,FALSE) -> 1.48533414 | AA93: =IF(Settings!$B$5="4SIMILAR", VLOOKUP(Selections_data_CCG!$G$2,'CurrentData-4SIMILAR-allchildre'!A:R,10,FALSE), VLOOKUP(Settings!$C$5,'CurrentData-all children'!A:R,10,FALSE)) -> 1.437047856 | AB93: =IF(IF(G93=0,"",COUNTIF(G$12:G$222,"<>0")-(RANK(M93,$M$12:$M$222)+COUNTIF($M$12:M93,M93)-2))<=INT(0.05*COUNTIF(G$12:G$222,"<>0")),"TOP5", IF(IF(G93=0,"",COUNTIF(G$12:G$222,"<>0")-(RANK(M93,$M$12:$M$222)+COUNTIF($M$12:M93,M93)-2))<=INT(0.25*COUNTIF(G$12:G$222,"<>0")),"TOP25", "")) ->  | AC93: =IF(IF(H93=0,"",COUNTIF(H$12:H$222,"<>0")-(RANK(P93,$P$12:$P$222)+COUNTIF($P$12:P93,P93)-2))<=INT(0.05*COUNTIF(H$12:H$222,"<>0")),"TOP5", IF(IF(H93=0,"",COUNTIF(H$12:H$222,"<>0")-(RANK(P93,$P$12:$P$222)+COUNTIF($P$12:P93,P93)-2))<=INT(0.25*COUNTIF(H$12:H$222,"<>0")),"TOP25", "")) -> TOP25 | AD93: =IF(IF(J93="Suppressed","",COUNTIF(J$12:J$222,"<>Suppressed")-(RANK(J93,$J$12:$J$222)+COUNTIF(J$12:$J93,J93)-2))<=INT(0.05*COUNTIF(J$12:J$222,"<>Suppressed")),"TOP5", IF(IF(J93="Suppressed","",COUNTIF(J$12:J$222,"<>Suppressed")-(RANK(J93,$J$12:$J$222)+COUNTIF(J$12:$J93,J93)-2))<=INT(0.25*COUNTIF(J$12:J$222,"<>suppressed")),"TOP25", "")) -> 
A94: 09X | B94: NHS Horsham and Mid Sussex | C94: =IF(G94=0,"",COUNTIF(G$12:G$222,"<>0")-(RANK(M94,$M$12:$M$222)+COUNTIF($M$12:M94,M94)-2)) -> 41 | D94: =IF(H94=0,"",COUNTIF(P$12:P$222,"<>Suppressed")-(RANK(P94,$P$12:$P$222)+COUNTIF($P$12:P94,P94)-2)) -> 14 | E94: =IF(J94="Suppressed","",COUNTIF(J$12:J$222,"<>Suppressed")-(RANK(J94,$J$12:$J$222)+COUNTIF($J$12:J94,J94)-2)) -> 124 | F94: =VLOOKUP(A94,population!C:O,Settings!$B$3,FALSE) -> 42201.4 | G94: =VLOOKUP(A94,CCG_data_TRACCS!A:N,4,FALSE) -> 1244 | H94: =VLOOKUP(A94,CCG_data_TRACCS!A:N,5,FALSE) -> 3931 | I94: =VLOOKUP(A94,CCG_data_TRACCS!A:N,6,FALSE) -> 2568 | J94: 1.53076324 | M94: 2947.769505 | N94: 2786.217584 | O94: 3116.245172 | P94: 9314.856853 | Q94: 9025.919557 | R94: 9610.689375 | S94: 3869.539479 | T94: 11566.81177 | U94: 1.387784779 | V94: =VLOOKUP(Selections_data_CCG!$G$2,'CurrentData-all children'!A:R,13,FALSE) -> 7077.07289 | W94: =IF(Settings!$B$5="4SIMILAR", VLOOKUP(Selections_data_CCG!$G$2,'CurrentData-4SIMILAR-allchildre'!A:R,13,FALSE), VLOOKUP(Settings!$C$5,'CurrentData-all children'!A:R,13,FALSE)) -> 5510.027757 | X94: =VLOOKUP(Selections_data_CCG!$G$2,'CurrentData-all children'!A:R,16,FALSE) -> 16842.33626 | Y94: =IF(Settings!$B$5="4SIMILAR", VLOOKUP(Selections_data_CCG!$G$2,'CurrentData-4SIMILAR-allchildre'!A:R,16,FALSE), VLOOKUP(Settings!$C$5,'CurrentData-all children'!A:R,16,FALSE)) -> 14706.8643 | Z94: =VLOOKUP(Selections_data_CCG!$G$2,'CurrentData-all children'!A:R,10,FALSE) -> 1.48533414 | AA94: =IF(Settings!$B$5="4SIMILAR", VLOOKUP(Selections_data_CCG!$G$2,'CurrentData-4SIMILAR-allchildre'!A:R,10,FALSE), VLOOKUP(Settings!$C$5,'CurrentData-all children'!A:R,10,FALSE)) -> 1.437047856 | AB94: =IF(IF(G94=0,"",COUNTIF(G$12:G$222,"<>0")-(RANK(M94,$M$12:$M$222)+COUNTIF($M$12:M94,M94)-2))<=INT(0.05*COUNTIF(G$12:G$222,"<>0")),"TOP5", IF(IF(G94=0,"",COUNTIF(G$12:G$222,"<>0")-(RANK(M94,$M$12:$M$222)+COUNTIF($M$12:M94,M94)-2))<=INT(0.25*COUNTIF(G$12:G$222,"<>0")),"TOP25", "")) -> TOP25 | AC94: =IF(IF(H94=0,"",COUNTIF(H$12:H$222,"<>0")-(RANK(P94,$P$12:$P$222)+COUNTIF($P$12:P94,P94)-2))<=INT(0.05*COUNTIF(H$12:H$222,"<>0")),"TOP5", IF(IF(H94=0,"",COUNTIF(H$12:H$222,"<>0")-(RANK(P94,$P$12:$P$222)+COUNTIF($P$12:P94,P94)-2))<=INT(0.25*COUNTIF(H$12:H$222,"<>0")),"TOP25", "")) -> TOP25 | AD94: =IF(IF(J94="Suppressed","",COUNTIF(J$12:J$222,"<>Suppressed")-(RANK(J94,$J$12:$J$222)+COUNTIF(J$12:$J94,J94)-2))<=INT(0.05*COUNTIF(J$12:J$222,"<>Suppressed")),"TOP5", IF(IF(J94="Suppressed","",COUNTIF(J$12:J$222,"<>Suppressed")-(RANK(J94,$J$12:$J$222)+COUNTIF(J$12:$J94,J94)-2))<=INT(0.25*COUNTIF(J$12:J$222,"<>suppressed")),"TOP25", "")) -> 
A95: 07Y | B95: NHS Hounslow | C95: =IF(G95=0,"",COUNTIF(G$12:G$222,"<>0")-(RANK(M95,$M$12:$M$222)+COUNTIF($M$12:M95,M95)-2)) -> 25 | D95: =IF(H95=0,"",COUNTIF(P$12:P$222,"<>Suppressed")-(RANK(P95,$P$12:$P$222)+COUNTIF($P$12:P95,P95)-2)) -> 105 | E95: =IF(J95="Suppressed","",COUNTIF(J$12:J$222,"<>Suppressed")-(RANK(J95,$J$12:$J$222)+COUNTIF($J$12:J95,J95)-2)) -> 198 | F95: =VLOOKUP(A95,population!C:O,Settings!$B$3,FALSE) -> 57924.2 | G95: =VLOOKUP(A95,CCG_data_TRACCS!A:N,4,FALSE) -> 1530 | H95: =VLOOKUP(A95,CCG_data_TRACCS!A:N,5,FALSE) -> 7138 | I95: =VLOOKUP(A95,CCG_data_TRACCS!A:N,6,FALSE) -> 3242 | J95: 2.201727329 | M95: 2641.383049 | N95: 2510.672013 | O95: 2777.133808 | P95: 12323.00144 | Q95: 12038.76468 | R95: 12612.25488 | S95: 3898.014117 | T95: 11619.40927 | U95: 1.388102609 | V95: =VLOOKUP(Selections_data_CCG!$G$2,'CurrentData-all children'!A:R,13,FALSE) -> 7077.07289 | W95: =IF(Settings!$B$5="4SIMILAR", VLOOKUP(Selections_data_CCG!$G$2,'CurrentData-4SIMILAR-allchildre'!A:R,13,FALSE), VLOOKUP(Settings!$C$5,'CurrentData-all children'!A:R,13,FALSE)) -> 5510.027757 | X95: =VLOOKUP(Selections_data_CCG!$G$2,'CurrentData-all children'!A:R,16,FALSE) -> 16842.33626 | Y95: =IF(Settings!$B$5="4SIMILAR", VLOOKUP(Selections_data_CCG!$G$2,'CurrentData-4SIMILAR-allchildre'!A:R,16,FALSE), VLOOKUP(Settings!$C$5,'CurrentData-all children'!A:R,16,FALSE)) -> 14706.8643 | Z95: =VLOOKUP(Selections_data_CCG!$G$2,'CurrentData-all children'!A:R,10,FALSE) -> 1.48533414 | AA95: =IF(Settings!$B$5="4SIMILAR", VLOOKUP(Selections_data_CCG!$G$2,'CurrentData-4SIMILAR-allchildre'!A:R,10,FALSE), VLOOKUP(Settings!$C$5,'CurrentData-all children'!A:R,10,FALSE)) -> 1.437047856 | AB95: =IF(IF(G95=0,"",COUNTIF(G$12:G$222,"<>0")-(RANK(M95,$M$12:$M$222)+COUNTIF($M$12:M95,M95)-2))<=INT(0.05*COUNTIF(G$12:G$222,"<>0")),"TOP5", IF(IF(G95=0,"",COUNTIF(G$12:G$222,"<>0")-(RANK(M95,$M$12:$M$222)+COUNTIF($M$12:M95,M95)-2))<=INT(0.25*COUNTIF(G$12:G$222,"<>0")),"TOP25", "")) -> TOP25 | AC95: =IF(IF(H95=0,"",COUNTIF(H$12:H$222,"<>0")-(RANK(P95,$P$12:$P$222)+COUNTIF($P$12:P95,P95)-2))<=INT(0.05*COUNTIF(H$12:H$222,"<>0")),"TOP5", IF(IF(H95=0,"",COUNTIF(H$12:H$222,"<>0")-(RANK(P95,$P$12:$P$222)+COUNTIF($P$12:P95,P95)-2))<=INT(0.25*COUNTIF(H$12:H$222,"<>0")),"TOP25", "")) ->  | AD95: =IF(IF(J95="Suppressed","",COUNTIF(J$12:J$222,"<>Suppressed")-(RANK(J95,$J$12:$J$222)+COUNTIF(J$12:$J95,J95)-2))<=INT(0.05*COUNTIF(J$12:J$222,"<>Suppressed")),"TOP5", IF(IF(J95="Suppressed","",COUNTIF(J$12:J$222,"<>Suppressed")-(RANK(J95,$J$12:$J$222)+COUNTIF(J$12:$J95,J95)-2))<=INT(0.25*COUNTIF(J$12:J$222,"<>suppressed")),"TOP25", "")) -> 
A96: 03F | B96: NHS Hull | C96: =IF(G96=0,"",COUNTIF(G$12:G$222,"<>0")-(RANK(M96,$M$12:$M$222)+COUNTIF($M$12:M96,M96)-2)) -> 164 | D96: =IF(H96=0,"",COUNTIF(P$12:P$222,"<>Suppressed")-(RANK(P96,$P$12:$P$222)+COUNTIF($P$12:P96,P96)-2)) -> 122 | E96: =IF(J96="Suppressed","",COUNTIF(J$12:J$222,"<>Suppressed")-(RANK(J96,$J$12:$J$222)+COUNTIF($J$12:J96,J96)-2)) -> 47 | F96: =VLOOKUP(A96,population!C:O,Settings!$B$3,FALSE) -> 54325.4 | G96: =VLOOKUP(A96,CCG_data_TRACCS!A:N,4,FALSE) -> 3098 | H96: =VLOOKUP(A96,CCG_data_TRACCS!A:N,5,FALSE) -> 6949 | I96: =VLOOKUP(A96,CCG_data_TRACCS!A:N,6,FALSE) -> 5471 | J96: 1.270151709 | M96: 5702.673151 | N96: 5503.611507 | O96: 5907.0948 | P96: 12791.43826 | Q96: 12492.4347 | R96: 13095.79112 | S96: 3936.238449 | T96: 11708.23117 | U96: 1.388215437 | V96: =VLOOKUP(Selections_data_CCG!$G$2,'CurrentData-all children'!A:R,13,FALSE) -> 7077.07289 | W96: =IF(Settings!$B$5="4SIMILAR", VLOOKUP(Selections_data_CCG!$G$2,'CurrentData-4SIMILAR-allchildre'!A:R,13,FALSE), VLOOKUP(Settings!$C$5,'CurrentData-all children'!A:R,13,FALSE)) -> 5510.027757 | X96: =VLOOKUP(Selections_data_CCG!$G$2,'CurrentData-all children'!A:R,16,FALSE) -> 16842.33626 | Y96: =IF(Settings!$B$5="4SIMILAR", VLOOKUP(Selections_data_CCG!$G$2,'CurrentData-4SIMILAR-allchildre'!A:R,16,FALSE), VLOOKUP(Settings!$C$5,'CurrentData-all children'!A:R,16,FALSE)) -> 14706.8643 | Z96: =VLOOKUP(Selections_data_CCG!$G$2,'CurrentData-all children'!A:R,10,FALSE) -> 1.48533414 | AA96: =IF(Settings!$B$5="4SIMILAR", VLOOKUP(Selections_data_CCG!$G$2,'CurrentData-4SIMILAR-allchildre'!A:R,10,FALSE), VLOOKUP(Settings!$C$5,'CurrentData-all children'!A:R,10,FALSE)) -> 1.437047856 | AB96: =IF(IF(G96=0,"",COUNTIF(G$12:G$222,"<>0")-(RANK(M96,$M$12:$M$222)+COUNTIF($M$12:M96,M96)-2))<=INT(0.05*COUNTIF(G$12:G$222,"<>0")),"TOP5", IF(IF(G96=0,"",COUNTIF(G$12:G$222,"<>0")-(RANK(M96,$M$12:$M$222)+COUNTIF($M$12:M96,M96)-2))<=INT(0.25*COUNTIF(G$12:G$222,"<>0")),"TOP25", "")) ->  | AC96: =IF(IF(H96=0,"",COUNTIF(H$12:H$222,"<>0")-(RANK(P96,$P$12:$P$222)+COUNTIF($P$12:P96,P96)-2))<=INT(0.05*COUNTIF(H$12:H$222,"<>0")),"TOP5", IF(IF(H96=0,"",COUNTIF(H$12:H$222,"<>0")-(RANK(P96,$P$12:$P$222)+COUNTIF($P$12:P96,P96)-2))<=INT(0.25*COUNTIF(H$12:H$222,"<>0")),"TOP25", "")) ->  | AD96: =IF(IF(J96="Suppressed","",COUNTIF(J$12:J$222,"<>Suppressed")-(RANK(J96,$J$12:$J$222)+COUNTIF(J$12:$J96,J96)-2))<=INT(0.05*COUNTIF(J$12:J$222,"<>Suppressed")),"TOP5", IF(IF(J96="Suppressed","",COUNTIF(J$12:J$222,"<>Suppressed")-(RANK(J96,$J$12:$J$222)+COUNTIF(J$12:$J96,J96)-2))<=INT(0.25*COUNTIF(J$12:J$222,"<>suppressed")),"TOP25", "")) -> TOP25
A97: 06L | B97: NHS Ipswich and East Suffolk | C97: =IF(G97=0,"",COUNTIF(G$12:G$222,"<>0")-(RANK(M97,$M$12:$M$222)+COUNTIF($M$12:M97,M97)-2)) -> 117 | D97: =IF(H97=0,"",COUNTIF(P$12:P$222,"<>Suppressed")-(RANK(P97,$P$12:$P$222)+COUNTIF($P$12:P97,P97)-2)) -> 36 | E97: =IF(J97="Suppressed","",COUNTIF(J$12:J$222,"<>Suppressed")-(RANK(J97,$J$12:$J$222)+COUNTIF($J$12:J97,J97)-2)) -> 45 | F97: =VLOOKUP(A97,population!C:O,Settings!$B$3,FALSE) -> 69863.8 | G97: =VLOOKUP(A97,CCG_data_TRACCS!A:N,4,FALSE) -> 3185 | H97: =VLOOKUP(A97,CCG_data_TRACCS!A:N,5,FALSE) -> 7434 | I97: =VLOOKUP(A97,CCG_data_TRACCS!A:N,6,FALSE) -> 5870 | J97: 1.266439523 | M97: 4558.870259 | N97: 4401.904495 | O97: 4720.003565 | P97: 10640.70377 | Q97: 10400.17805 | R97: 10885.3885 | S97: 3942.230304 | T97: 11762.44489 | U97: 1.38880279 | V97: =VLOOKUP(Selections_data_CCG!$G$2,'CurrentData-all children'!A:R,13,FALSE) -> 7077.07289 | W97: =IF(Settings!$B$5="4SIMILAR", VLOOKUP(Selections_data_CCG!$G$2,'CurrentData-4SIMILAR-allchildre'!A:R,13,FALSE), VLOOKUP(Settings!$C$5,'CurrentData-all children'!A:R,13,FALSE)) -> 5510.027757 | X97: =VLOOKUP(Selections_data_CCG!$G$2,'CurrentData-all children'!A:R,16,FALSE) -> 16842.33626 | Y97: =IF(Settings!$B$5="4SIMILAR", VLOOKUP(Selections_data_CCG!$G$2,'CurrentData-4SIMILAR-allchildre'!A:R,16,FALSE), VLOOKUP(Settings!$C$5,'CurrentData-all children'!A:R,16,FALSE)) -> 14706.8643 | Z97: =VLOOKUP(Selections_data_CCG!$G$2,'CurrentData-all children'!A:R,10,FALSE) -> 1.48533414 | AA97: =IF(Settings!$B$5="4SIMILAR", VLOOKUP(Selections_data_CCG!$G$2,'CurrentData-4SIMILAR-allchildre'!A:R,10,FALSE), VLOOKUP(Settings!$C$5,'CurrentData-all children'!A:R,10,FALSE)) -> 1.437047856 | AB97: =IF(IF(G97=0,"",COUNTIF(G$12:G$222,"<>0")-(RANK(M97,$M$12:$M$222)+COUNTIF($M$12:M97,M97)-2))<=INT(0.05*COUNTIF(G$12:G$222,"<>0")),"TOP5", IF(IF(G97=0,"",COUNTIF(G$12:G$222,"<>0")-(RANK(M97,$M$12:$M$222)+COUNTIF($M$12:M97,M97)-2))<=INT(0.25*COUNTIF(G$12:G$222,"<>0")),"TOP25", "")) ->  | AC97: =IF(IF(H97=0,"",COUNTIF(H$12:H$222,"<>0")-(RANK(P97,$P$12:$P$222)+COUNTIF($P$12:P97,P97)-2))<=INT(0.05*COUNTIF(H$12:H$222,"<>0")),"TOP5", IF(IF(H97=0,"",COUNTIF(H$12:H$222,"<>0")-(RANK(P97,$P$12:$P$222)+COUNTIF($P$12:P97,P97)-2))<=INT(0.25*COUNTIF(H$12:H$222,"<>0")),"TOP25", "")) -> TOP25 | AD97: =IF(IF(J97="Suppressed","",COUNTIF(J$12:J$222,"<>Suppressed")-(RANK(J97,$J$12:$J$222)+COUNTIF(J$12:$J97,J97)-2))<=INT(0.05*COUNTIF(J$12:J$222,"<>Suppressed")),"TOP5", IF(IF(J97="Suppressed","",COUNTIF(J$12:J$222,"<>Suppressed")-(RANK(J97,$J$12:$J$222)+COUNTIF(J$12:$J97,J97)-2))<=INT(0.25*COUNTIF(J$12:J$222,"<>suppressed")),"TOP25", "")) -> TOP25
A98: 10L | B98: NHS Isle of Wight | C98: =IF(G98=0,"",COUNTIF(G$12:G$222,"<>0")-(RANK(M98,$M$12:$M$222)+COUNTIF($M$12:M98,M98)-2)) -> 193 | D98: =IF(H98=0,"",COUNTIF(P$12:P$222,"<>Suppressed")-(RANK(P98,$P$12:$P$222)+COUNTIF($P$12:P98,P98)-2)) -> 190 | E98: =IF(J98="Suppressed","",COUNTIF(J$12:J$222,"<>Suppressed")-(RANK(J98,$J$12:$J$222)+COUNTIF($J$12:J98,J98)-2)) -> 92 | F98: =VLOOKUP(A98,population!C:O,Settings!$B$3,FALSE) -> 22143.8 | G98: =VLOOKUP(A98,CCG_data_TRACCS!A:N,4,FALSE) -> 1469 | H98: =VLOOKUP(A98,CCG_data_TRACCS!A:N,5,FALSE) -> 3691 | I98: =VLOOKUP(A98,CCG_data_TRACCS!A:N,6,FALSE) -> 2644 | J98: 1.395990923 | M98: 6633.911072 | N98: 6298.96666 | O98: 6982.040792 | P98: 16668.32251 | Q98: 16134.87673 | R98: 17214.91137 | S98: 3946.453408 | T98: 11809.38204 | U98: 1.390190013 | V98: =VLOOKUP(Selections_data_CCG!$G$2,'CurrentData-all children'!A:R,13,FALSE) -> 7077.07289 | W98: =IF(Settings!$B$5="4SIMILAR", VLOOKUP(Selections_data_CCG!$G$2,'CurrentData-4SIMILAR-allchildre'!A:R,13,FALSE), VLOOKUP(Settings!$C$5,'CurrentData-all children'!A:R,13,FALSE)) -> 5510.027757 | X98: =VLOOKUP(Selections_data_CCG!$G$2,'CurrentData-all children'!A:R,16,FALSE) -> 16842.33626 | Y98: =IF(Settings!$B$5="4SIMILAR", VLOOKUP(Selections_data_CCG!$G$2,'CurrentData-4SIMILAR-allchildre'!A:R,16,FALSE), VLOOKUP(Settings!$C$5,'CurrentData-all children'!A:R,16,FALSE)) -> 14706.8643 | Z98: =VLOOKUP(Selections_data_CCG!$G$2,'CurrentData-all children'!A:R,10,FALSE) -> 1.48533414 | AA98: =IF(Settings!$B$5="4SIMILAR", VLOOKUP(Selections_data_CCG!$G$2,'CurrentData-4SIMILAR-allchildre'!A:R,10,FALSE), VLOOKUP(Settings!$C$5,'CurrentData-all children'!A:R,10,FALSE)) -> 1.437047856 | AB98: =IF(IF(G98=0,"",COUNTIF(G$12:G$222,"<>0")-(RANK(M98,$M$12:$M$222)+COUNTIF($M$12:M98,M98)-2))<=INT(0.05*COUNTIF(G$12:G$222,"<>0")),"TOP5", IF(IF(G98=0,"",COUNTIF(G$12:G$222,"<>0")-(RANK(M98,$M$12:$M$222)+COUNTIF($M$12:M98,M98)-2))<=INT(0.25*COUNTIF(G$12:G$222,"<>0")),"TOP25", "")) ->  | AC98: =IF(IF(H98=0,"",COUNTIF(H$12:H$222,"<>0")-(RANK(P98,$P$12:$P$222)+COUNTIF($P$12:P98,P98)-2))<=INT(0.05*COUNTIF(H$12:H$222,"<>0")),"TOP5", IF(IF(H98=0,"",COUNTIF(H$12:H$222,"<>0")-(RANK(P98,$P$12:$P$222)+COUNTIF($P$12:P98,P98)-2))<=INT(0.25*COUNTIF(H$12:H$222,"<>0")),"TOP25", "")) ->  | AD98: =IF(IF(J98="Suppressed","",COUNTIF(J$12:J$222,"<>Suppressed")-(RANK(J98,$J$12:$J$222)+COUNTIF(J$12:$J98,J98)-2))<=INT(0.05*COUNTIF(J$12:J$222,"<>Suppressed")),"TOP5", IF(IF(J98="Suppressed","",COUNTIF(J$12:J$222,"<>Suppressed")-(RANK(J98,$J$12:$J$222)+COUNTIF(J$12:$J98,J98)-2))<=INT(0.25*COUNTIF(J$12:J$222,"<>suppressed")),"TOP25", "")) -> 
A99: 08H | B99: NHS Islington | C99: =IF(G99=0,"",COUNTIF(G$12:G$222,"<>0")-(RANK(M99,$M$12:$M$222)+COUNTIF($M$12:M99,M99)-2)) -> 69 | D99: =IF(H99=0,"",COUNTIF(P$12:P$222,"<>Suppressed")-(RANK(P99,$P$12:$P$222)+COUNTIF($P$12:P99,P99)-2)) -> 110 | E99: =IF(J99="Suppressed","",COUNTIF(J$12:J$222,"<>Suppressed")-(RANK(J99,$J$12:$J$222)+COUNTIF($J$12:J99,J99)-2)) -> 143 | F99: =VLOOKUP(A99,population!C:O,Settings!$B$3,FALSE) -> 35311 | G99: =VLOOKUP(A99,CCG_data_TRACCS!A:N,4,FALSE) -> 1229 | H99: =VLOOKUP(A99,CCG_data_TRACCS!A:N,5,FALSE) -> 4384 | I99: =VLOOKUP(A99,CCG_data_TRACCS!A:N,6,FALSE) -> 2656 | J99: 1.65060241 | M99: 3480.501827 | N99: 3288.609471 | O99: 3680.669464 | P99: 12415.39464 | Q99: 12050.57004 | R99: 12788.45762 | S99: 3949.203609 | T99: 11841.09755 | U99: 1.39336546 | V99: =VLOOKUP(Selections_data_CCG!$G$2,'CurrentData-all children'!A:R,13,FALSE) -> 7077.07289 | W99: =IF(Settings!$B$5="4SIMILAR", VLOOKUP(Selections_data_CCG!$G$2,'CurrentData-4SIMILAR-allchildre'!A:R,13,FALSE), VLOOKUP(Settings!$C$5,'CurrentData-all children'!A:R,13,FALSE)) -> 5510.027757 | X99: =VLOOKUP(Selections_data_CCG!$G$2,'CurrentData-all children'!A:R,16,FALSE) -> 16842.33626 | Y99: =IF(Settings!$B$5="4SIMILAR", VLOOKUP(Selections_data_CCG!$G$2,'CurrentData-4SIMILAR-allchildre'!A:R,16,FALSE), VLOOKUP(Settings!$C$5,'CurrentData-all children'!A:R,16,FALSE)) -> 14706.8643 | Z99: =VLOOKUP(Selections_data_CCG!$G$2,'CurrentData-all children'!A:R,10,FALSE) -> 1.48533414 | AA99: =IF(Settings!$B$5="4SIMILAR", VLOOKUP(Selections_data_CCG!$G$2,'CurrentData-4SIMILAR-allchildre'!A:R,10,FALSE), VLOOKUP(Settings!$C$5,'CurrentData-all children'!A:R,10,FALSE)) -> 1.437047856 | AB99: =IF(IF(G99=0,"",COUNTIF(G$12:G$222,"<>0")-(RANK(M99,$M$12:$M$222)+COUNTIF($M$12:M99,M99)-2))<=INT(0.05*COUNTIF(G$12:G$222,"<>0")),"TOP5", IF(IF(G99=0,"",COUNTIF(G$12:G$222,"<>0")-(RANK(M99,$M$12:$M$222)+COUNTIF($M$12:M99,M99)-2))<=INT(0.25*COUNTIF(G$12:G$222,"<>0")),"TOP25", "")) ->  | AC99: =IF(IF(H99=0,"",COUNTIF(H$12:H$222,"<>0")-(RANK(P99,$P$12:$P$222)+COUNTIF($P$12:P99,P99)-2))<=INT(0.05*COUNTIF(H$12:H$222,"<>0")),"TOP5", IF(IF(H99=0,"",COUNTIF(H$12:H$222,"<>0")-(RANK(P99,$P$12:$P$222)+COUNTIF($P$12:P99,P99)-2))<=INT(0.25*COUNTIF(H$12:H$222,"<>0")),"TOP25", "")) ->  | AD99: =IF(IF(J99="Suppressed","",COUNTIF(J$12:J$222,"<>Suppressed")-(RANK(J99,$J$12:$J$222)+COUNTIF(J$12:$J99,J99)-2))<=INT(0.05*COUNTIF(J$12:J$222,"<>Suppressed")),"TOP5", IF(IF(J99="Suppressed","",COUNTIF(J$12:J$222,"<>Suppressed")-(RANK(J99,$J$12:$J$222)+COUNTIF(J$12:$J99,J99)-2))<=INT(0.25*COUNTIF(J$12:J$222,"<>suppressed")),"TOP25", "")) -> 
A100: 11N | B100: NHS Kernow | C100: =IF(G100=0,"",COUNTIF(G$12:G$222,"<>0")-(RANK(M100,$M$12:$M$222)+COUNTIF($M$12:M100,M100)-2)) -> 118 | D100: =IF(H100=0,"",COUNTIF(P$12:P$222,"<>Suppressed")-(RANK(P100,$P$12:$P$222)+COUNTIF($P$12:P100,P100)-2)) -> 120 | E100: =IF(J100="Suppressed","",COUNTIF(J$12:J$222,"<>Suppressed")-(RANK(J100,$J$12:$J$222)+COUNTIF($J$12:J100,J100)-2)) -> 94 | F100: =VLOOKUP(A100,population!C:O,Settings!$B$3,FALSE) -> 91608.6 | G100: =VLOOKUP(A100,CCG_data_TRACCS!A:N,4,FALSE) -> 4227 | H100: =VLOOKUP(A100,CCG_data_TRACCS!A:N,5,FALSE) -> 11658 | I100: =VLOOKUP(A100,CCG_data_TRACCS!A:N,6,FALSE) -> 8296 | J100: 1.405255545 | M100: 4614.19561 | N100: 4476.131858 | O100: 4755.435188 | P100: 12725.87945 | Q100: 12495.90861 | R100: 12959.0196 | S100: 3963.209838 | T100: 11853.57707 | U100: 1.394437799 | V100: =VLOOKUP(Selections_data_CCG!$G$2,'CurrentData-all children'!A:R,13,FALSE) -> 7077.07289 | W100: =IF(Settings!$B$5="4SIMILAR", VLOOKUP(Selections_data_CCG!$G$2,'CurrentData-4SIMILAR-allchildre'!A:R,13,FALSE), VLOOKUP(Settings!$C$5,'CurrentData-all children'!A:R,13,FALSE)) -> 5510.027757 | X100: =VLOOKUP(Selections_data_CCG!$G$2,'CurrentData-all children'!A:R,16,FALSE) -> 16842.33626 | Y100: =IF(Settings!$B$5="4SIMILAR", VLOOKUP(Selections_data_CCG!$G$2,'CurrentData-4SIMILAR-allchildre'!A:R,16,FALSE), VLOOKUP(Settings!$C$5,'CurrentData-all children'!A:R,16,FALSE)) -> 14706.8643 | Z100: =VLOOKUP(Selections_data_CCG!$G$2,'CurrentData-all children'!A:R,10,FALSE) -> 1.48533414 | AA100: =IF(Settings!$B$5="4SIMILAR", VLOOKUP(Selections_data_CCG!$G$2,'CurrentData-4SIMILAR-allchildre'!A:R,10,FALSE), VLOOKUP(Settings!$C$5,'CurrentData-all children'!A:R,10,FALSE)) -> 1.437047856 | AB100: =IF(IF(G100=0,"",COUNTIF(G$12:G$222,"<>0")-(RANK(M100,$M$12:$M$222)+COUNTIF($M$12:M100,M100)-2))<=INT(0.05*COUNTIF(G$12:G$222,"<>0")),"TOP5", IF(IF(G100=0,"",COUNTIF(G$12:G$222,"<>0")-(RANK(M100,$M$12:$M$222)+COUNTIF($M$12:M100,M100)-2))<=INT(0.25*COUNTIF(G$12:G$222,"<>0")),"TOP25", "")) ->  | AC100: =IF(IF(H100=0,"",COUNTIF(H$12:H$222,"<>0")-(RANK(P100,$P$12:$P$222)+COUNTIF($P$12:P100,P100)-2))<=INT(0.05*COUNTIF(H$12:H$222,"<>0")),"TOP5", IF(IF(H100=0,"",COUNTIF(H$12:H$222,"<>0")-(RANK(P100,$P$12:$P$222)+COUNTIF($P$12:P100,P100)-2))<=INT(0.25*COUNTIF(H$12:H$222,"<>0")),"TOP25", "")) ->  | AD100: =IF(IF(J100="Suppressed","",COUNTIF(J$12:J$222,"<>Suppressed")-(RANK(J100,$J$12:$J$222)+COUNTIF(J$12:$J100,J100)-2))<=INT(0.05*COUNTIF(J$12:J$222,"<>Suppressed")),"TOP5", IF(IF(J100="Suppressed","",COUNTIF(J$12:J$222,"<>Suppressed")-(RANK(J100,$J$12:$J$222)+COUNTIF(J$12:$J100,J100)-2))<=INT(0.25*COUNTIF(J$12:J$222,"<>suppressed")),"TOP25", "")) -> 
A101: 08J | B101: NHS Kingston | C101: =IF(G101=0,"",COUNTIF(G$12:G$222,"<>0")-(RANK(M101,$M$12:$M$222)+COUNTIF($M$12:M101,M101)-2)) -> 33 | D101: =IF(H101=0,"",COUNTIF(P$12:P$222,"<>Suppressed")-(RANK(P101,$P$12:$P$222)+COUNTIF($P$12:P101,P101)-2)) -> 21 | E101: =IF(J101="Suppressed","",COUNTIF(J$12:J$222,"<>Suppressed")-(RANK(J101,$J$12:$J$222)+COUNTIF($J$12:J101,J101)-2)) -> 146 | F101: =VLOOKUP(A101,population!C:O,Settings!$B$3,FALSE) -> 36240 | G101: =VLOOKUP(A101,CCG_data_TRACCS!A:N,4,FALSE) -> 1002 | H101: =VLOOKUP(A101,CCG_data_TRACCS!A:N,5,FALSE) -> 3547 | I101: =VLOOKUP(A101,CCG_data_TRACCS!A:N,6,FALSE) -> 2139 | J101: 1.658251519 | M101: 2764.900662 | N101: 2596.331527 | O101: 2941.541126 | P101: 9787.527594 | Q101: 9468.048498 | R101: 10115.03842 | S101: 3970.226571 | T101: 11891.15992 | U101: 1.394570707 | V101: =VLOOKUP(Selections_data_CCG!$G$2,'CurrentData-all children'!A:R,13,FALSE) -> 7077.07289 | W101: =IF(Settings!$B$5="4SIMILAR", VLOOKUP(Selections_data_CCG!$G$2,'CurrentData-4SIMILAR-allchildre'!A:R,13,FALSE), VLOOKUP(Settings!$C$5,'CurrentData-all children'!A:R,13,FALSE)) -> 5510.027757 | X101: =VLOOKUP(Selections_data_CCG!$G$2,'CurrentData-all children'!A:R,16,FALSE) -> 16842.33626 | Y101: =IF(Settings!$B$5="4SIMILAR", VLOOKUP(Selections_data_CCG!$G$2,'CurrentData-4SIMILAR-allchildre'!A:R,16,FALSE), VLOOKUP(Settings!$C$5,'CurrentData-all children'!A:R,16,FALSE)) -> 14706.8643 | Z101: =VLOOKUP(Selections_data_CCG!$G$2,'CurrentData-all children'!A:R,10,FALSE) -> 1.48533414 | AA101: =IF(Settings!$B$5="4SIMILAR", VLOOKUP(Selections_data_CCG!$G$2,'CurrentData-4SIMILAR-allchildre'!A:R,10,FALSE), VLOOKUP(Settings!$C$5,'CurrentData-all children'!A:R,10,FALSE)) -> 1.437047856 | AB101: =IF(IF(G101=0,"",COUNTIF(G$12:G$222,"<>0")-(RANK(M101,$M$12:$M$222)+COUNTIF($M$12:M101,M101)-2))<=INT(0.05*COUNTIF(G$12:G$222,"<>0")),"TOP5", IF(IF(G101=0,"",COUNTIF(G$12:G$222,"<>0")-(RANK(M101,$M$12:$M$222)+COUNTIF($M$12:M101,M101)-2))<=INT(0.25*COUNTIF(G$12:G$222,"<>0")),"TOP25", "")) -> TOP25 | AC101: =IF(IF(H101=0,"",COUNTIF(H$12:H$222,"<>0")-(RANK(P101,$P$12:$P$222)+COUNTIF($P$12:P101,P101)-2))<=INT(0.05*COUNTIF(H$12:H$222,"<>0")),"TOP5", IF(IF(H101=0,"",COUNTIF(H$12:H$222,"<>0")-(RANK(P101,$P$12:$P$222)+COUNTIF($P$12:P101,P101)-2))<=INT(0.25*COUNTIF(H$12:H$222,"<>0")),"TOP25", "")) -> TOP25 | AD101: =IF(IF(J101="Suppressed","",COUNTIF(J$12:J$222,"<>Suppressed")-(RANK(J101,$J$12:$J$222)+COUNTIF(J$12:$J101,J101)-2))<=INT(0.05*COUNTIF(J$12:J$222,"<>Suppressed")),"TOP5", IF(IF(J101="Suppressed","",COUNTIF(J$12:J$222,"<>Suppressed")-(RANK(J101,$J$12:$J$222)+COUNTIF(J$12:$J101,J101)-2))<=INT(0.25*COUNTIF(J$12:J$222,"<>suppressed")),"TOP25", "")) -> 
A102: 01J | B102: NHS Knowsley | C102: =IF(G102=0,"",COUNTIF(G$12:G$222,"<>0")-(RANK(M102,$M$12:$M$222)+COUNTIF($M$12:M102,M102)-2)) -> 147 | D102: =IF(H102=0,"",COUNTIF(P$12:P$222,"<>Suppressed")-(RANK(P102,$P$12:$P$222)+COUNTIF($P$12:P102,P102)-2)) -> 209 | E102: =IF(J102="Suppressed","",COUNTIF(J$12:J$222,"<>Suppressed")-(RANK(J102,$J$12:$J$222)+COUNTIF($J$12:J102,J102)-2)) -> 176 | F102: =VLOOKUP(A102,population!C:O,Settings!$B$3,FALSE) -> 30002 | G102: =VLOOKUP(A102,CCG_data_TRACCS!A:N,4,FALSE) -> 1596 | H102: =VLOOKUP(A102,CCG_data_TRACCS!A:N,5,FALSE) -> 5968 | I102: =VLOOKUP(A102,CCG_data_TRACCS!A:N,6,FALSE) -> 3032 | J102: 1.968337731 | M102: 5319.645357 | N102: 5061.830908 | O102: 5587.188163 | P102: 19892.0072 | Q102: 19390.49529 | R102: 20403.20832 | S102: 4035.084246 | T102: 11891.93626 | U102: 1.395965071 | V102: =VLOOKUP(Selections_data_CCG!$G$2,'CurrentData-all children'!A:R,13,FALSE) -> 7077.07289 | W102: =IF(Settings!$B$5="4SIMILAR", VLOOKUP(Selections_data_CCG!$G$2,'CurrentData-4SIMILAR-allchildre'!A:R,13,FALSE), VLOOKUP(Settings!$C$5,'CurrentData-all children'!A:R,13,FALSE)) -> 5510.027757 | X102: =VLOOKUP(Selections_data_CCG!$G$2,'CurrentData-all children'!A:R,16,FALSE) -> 16842.33626 | Y102: =IF(Settings!$B$5="4SIMILAR", VLOOKUP(Selections_data_CCG!$G$2,'CurrentData-4SIMILAR-allchildre'!A:R,16,FALSE), VLOOKUP(Settings!$C$5,'CurrentData-all children'!A:R,16,FALSE)) -> 14706.8643 | Z102: =VLOOKUP(Selections_data_CCG!$G$2,'CurrentData-all children'!A:R,10,FALSE) -> 1.48533414 | AA102: =IF(Settings!$B$5="4SIMILAR", VLOOKUP(Selections_data_CCG!$G$2,'CurrentData-4SIMILAR-allchildre'!A:R,10,FALSE), VLOOKUP(Settings!$C$5,'CurrentData-all children'!A:R,10,FALSE)) -> 1.437047856 | AB102: =IF(IF(G102=0,"",COUNTIF(G$12:G$222,"<>0")-(RANK(M102,$M$12:$M$222)+COUNTIF($M$12:M102,M102)-2))<=INT(0.05*COUNTIF(G$12:G$222,"<>0")),"TOP5", IF(IF(G102=0,"",COUNTIF(G$12:G$222,"<>0")-(RANK(M102,$M$12:$M$222)+COUNTIF($M$12:M102,M102)-2))<=INT(0.25*COUNTIF(G$12:G$222,"<>0")),"TOP25", "")) ->  | AC102: =IF(IF(H102=0,"",COUNTIF(H$12:H$222,"<>0")-(RANK(P102,$P$12:$P$222)+COUNTIF($P$12:P102,P102)-2))<=INT(0.05*COUNTIF(H$12:H$222,"<>0")),"TOP5", IF(IF(H102=0,"",COUNTIF(H$12:H$222,"<>0")-(RANK(P102,$P$12:$P$222)+COUNTIF($P$12:P102,P102)-2))<=INT(0.25*COUNTIF(H$12:H$222,"<>0")),"TOP25", "")) ->  | AD102: =IF(IF(J102="Suppressed","",COUNTIF(J$12:J$222,"<>Suppressed")-(RANK(J102,$J$12:$J$222)+COUNTIF(J$12:$J102,J102)-2))<=INT(0.05*COUNTIF(J$12:J$222,"<>Suppressed")),"TOP5", IF(IF(J102="Suppressed","",COUNTIF(J$12:J$222,"<>Suppressed")-(RANK(J102,$J$12:$J$222)+COUNTIF(J$12:$J102,J102)-2))<=INT(0.25*COUNTIF(J$12:J$222,"<>suppressed")),"TOP25", "")) -> 
A103: 08K | B103: NHS Lambeth | C103: =IF(G103=0,"",COUNTIF(G$12:G$222,"<>0")-(RANK(M103,$M$12:$M$222)+COUNTIF($M$12:M103,M103)-2)) -> 54 | D103: =IF(H103=0,"",COUNTIF(P$12:P$222,"<>Suppressed")-(RANK(P103,$P$12:$P$222)+COUNTIF($P$12:P103,P103)-2)) -> 95 | E103: =IF(J103="Suppressed","",COUNTIF(J$12:J$222,"<>Suppressed")-(RANK(J103,$J$12:$J$222)+COUNTIF($J$12:J103,J103)-2)) -> 151 | F103: =VLOOKUP(A103,population!C:O,Settings!$B$3,FALSE) -> 60759 | G103: =VLOOKUP(A103,CCG_data_TRACCS!A:N,4,FALSE) -> 1922 | H103: =VLOOKUP(A103,CCG_data_TRACCS!A:N,5,FALSE) -> 7315 | I103: =VLOOKUP(A103,CCG_data_TRACCS!A:N,6,FALSE) -> 4233 | J103: 1.728088826 | M103: 3163.317369 | N103: 3023.460944 | O103: 3307.973984 | P103: 12039.36865 | Q103: 11765.035 | R103: 12318.4847 | S103: 4038.293659 | T103: 11913.76201 | U103: 1.395990923 | V103: =VLOOKUP(Selections_data_CCG!$G$2,'CurrentData-all children'!A:R,13,FALSE) -> 7077.07289 | W103: =IF(Settings!$B$5="4SIMILAR", VLOOKUP(Selections_data_CCG!$G$2,'CurrentData-4SIMILAR-allchildre'!A:R,13,FALSE), VLOOKUP(Settings!$C$5,'CurrentData-all children'!A:R,13,FALSE)) -> 5510.027757 | X103: =VLOOKUP(Selections_data_CCG!$G$2,'CurrentData-all children'!A:R,16,FALSE) -> 16842.33626 | Y103: =IF(Settings!$B$5="4SIMILAR", VLOOKUP(Selections_data_CCG!$G$2,'CurrentData-4SIMILAR-allchildre'!A:R,16,FALSE), VLOOKUP(Settings!$C$5,'CurrentData-all children'!A:R,16,FALSE)) -> 14706.8643 | Z103: =VLOOKUP(Selections_data_CCG!$G$2,'CurrentData-all children'!A:R,10,FALSE) -> 1.48533414 | AA103: =IF(Settings!$B$5="4SIMILAR", VLOOKUP(Selections_data_CCG!$G$2,'CurrentData-4SIMILAR-allchildre'!A:R,10,FALSE), VLOOKUP(Settings!$C$5,'CurrentData-all children'!A:R,10,FALSE)) -> 1.437047856 | AB103: =IF(IF(G103=0,"",COUNTIF(G$12:G$222,"<>0")-(RANK(M103,$M$12:$M$222)+COUNTIF($M$12:M103,M103)-2))<=INT(0.05*COUNTIF(G$12:G$222,"<>0")),"TOP5", IF(IF(G103=0,"",COUNTIF(G$12:G$222,"<>0")-(RANK(M103,$M$12:$M$222)+COUNTIF($M$12:M103,M103)-2))<=INT(0.25*COUNTIF(G$12:G$222,"<>0")),"TOP25", "")) ->  | AC103: =IF(IF(H103=0,"",COUNTIF(H$12:H$222,"<>0")-(RANK(P103,$P$12:$P$222)+COUNTIF($P$12:P103,P103)-2))<=INT(0.05*COUNTIF(H$12:H$222,"<>0")),"TOP5", IF(IF(H103=0,"",COUNTIF(H$12:H$222,"<>0")-(RANK(P103,$P$12:$P$222)+COUNTIF($P$12:P103,P103)-2))<=INT(0.25*COUNTIF(H$12:H$222,"<>0")),"TOP25", "")) ->  | AD103: =IF(IF(J103="Suppressed","",COUNTIF(J$12:J$222,"<>Suppressed")-(RANK(J103,$J$12:$J$222)+COUNTIF(J$12:$J103,J103)-2))<=INT(0.05*COUNTIF(J$12:J$222,"<>Suppressed")),"TOP5", IF(IF(J103="Suppressed","",COUNTIF(J$12:J$222,"<>Suppressed")-(RANK(J103,$J$12:$J$222)+COUNTIF(J$12:$J103,J103)-2))<=INT(0.25*COUNTIF(J$12:J$222,"<>suppressed")),"TOP25", "")) -> 
A104: 01K | B104: NHS Lancashire North | C104: =IF(G104=0,"",COUNTIF(G$12:G$222,"<>0")-(RANK(M104,$M$12:$M$222)+COUNTIF($M$12:M104,M104)-2)) -> 200 | D104: =IF(H104=0,"",COUNTIF(P$12:P$222,"<>Suppressed")-(RANK(P104,$P$12:$P$222)+COUNTIF($P$12:P104,P104)-2)) -> 186 | E104: =IF(J104="Suppressed","",COUNTIF(J$12:J$222,"<>Suppressed")-(RANK(J104,$J$12:$J$222)+COUNTIF($J$12:J104,J104)-2)) -> 80 | F104: =VLOOKUP(A104,population!C:O,Settings!$B$3,FALSE) -> 25928.8 | G104: =VLOOKUP(A104,CCG_data_TRACCS!A:N,4,FALSE) -> 1794 | H104: =VLOOKUP(A104,CCG_data_TRACCS!A:N,5,FALSE) -> 4289 | I104: =VLOOKUP(A104,CCG_data_TRACCS!A:N,6,FALSE) -> 3101 | J104: 1.383102225 | M104: 6918.947271 | N104: 6602.44697 | O104: 7246.698858 | P104: 16541.45198 | Q104: 16050.07013 | R104: 17044.05386 | S104: 4051.552376 | T104: 11923.10854 | U104: 1.398859265 | V104: =VLOOKUP(Selections_data_CCG!$G$2,'CurrentData-all children'!A:R,13,FALSE) -> 7077.07289 | W104: =IF(Settings!$B$5="4SIMILAR", VLOOKUP(Selections_data_CCG!$G$2,'CurrentData-4SIMILAR-allchildre'!A:R,13,FALSE), VLOOKUP(Settings!$C$5,'CurrentData-all children'!A:R,13,FALSE)) -> 5510.027757 | X104: =VLOOKUP(Selections_data_CCG!$G$2,'CurrentData-all children'!A:R,16,FALSE) -> 16842.33626 | Y104: =IF(Settings!$B$5="4SIMILAR", VLOOKUP(Selections_data_CCG!$G$2,'CurrentData-4SIMILAR-allchildre'!A:R,16,FALSE), VLOOKUP(Settings!$C$5,'CurrentData-all children'!A:R,16,FALSE)) -> 14706.8643 | Z104: =VLOOKUP(Selections_data_CCG!$G$2,'CurrentData-all children'!A:R,10,FALSE) -> 1.48533414 | AA104: =IF(Settings!$B$5="4SIMILAR", VLOOKUP(Selections_data_CCG!$G$2,'CurrentData-4SIMILAR-allchildre'!A:R,10,FALSE), VLOOKUP(Settings!$C$5,'CurrentData-all children'!A:R,10,FALSE)) -> 1.437047856 | AB104: =IF(IF(G104=0,"",COUNTIF(G$12:G$222,"<>0")-(RANK(M104,$M$12:$M$222)+COUNTIF($M$12:M104,M104)-2))<=INT(0.05*COUNTIF(G$12:G$222,"<>0")),"TOP5", IF(IF(G104=0,"",COUNTIF(G$12:G$222,"<>0")-(RANK(M104,$M$12:$M$222)+COUNTIF($M$12:M104,M104)-2))<=INT(0.25*COUNTIF(G$12:G$222,"<>0")),"TOP25", "")) ->  | AC104: =IF(IF(H104=0,"",COUNTIF(H$12:H$222,"<>0")-(RANK(P104,$P$12:$P$222)+COUNTIF($P$12:P104,P104)-2))<=INT(0.05*COUNTIF(H$12:H$222,"<>0")),"TOP5", IF(IF(H104=0,"",COUNTIF(H$12:H$222,"<>0")-(RANK(P104,$P$12:$P$222)+COUNTIF($P$12:P104,P104)-2))<=INT(0.25*COUNTIF(H$12:H$222,"<>0")),"TOP25", "")) ->  | AD104: =IF(IF(J104="Suppressed","",COUNTIF(J$12:J$222,"<>Suppressed")-(RANK(J104,$J$12:$J$222)+COUNTIF(J$12:$J104,J104)-2))<=INT(0.05*COUNTIF(J$12:J$222,"<>Suppressed")),"TOP5", IF(IF(J104="Suppressed","",COUNTIF(J$12:J$222,"<>Suppressed")-(RANK(J104,$J$12:$J$222)+COUNTIF(J$12:$J104,J104)-2))<=INT(0.25*COUNTIF(J$12:J$222,"<>suppressed")),"TOP25", "")) -> 
A105: 02V | B105: NHS Leeds North | C105: =IF(G105=0,"",COUNTIF(G$12:G$222,"<>0")-(RANK(M105,$M$12:$M$222)+COUNTIF($M$12:M105,M105)-2)) -> 39 | D105: =IF(H105=0,"",COUNTIF(P$12:P$222,"<>Suppressed")-(RANK(P105,$P$12:$P$222)+COUNTIF($P$12:P105,P105)-2)) -> 58 | E105: =IF(J105="Suppressed","",COUNTIF(J$12:J$222,"<>Suppressed")-(RANK(J105,$J$12:$J$222)+COUNTIF($J$12:J105,J105)-2)) -> 158 | F105: =VLOOKUP(A105,population!C:O,Settings!$B$3,FALSE) -> 37280.6 | G105: =VLOOKUP(A105,CCG_data_TRACCS!A:N,4,FALSE) -> 1072 | H105: =VLOOKUP(A105,CCG_data_TRACCS!A:N,5,FALSE) -> 4129 | I105: =VLOOKUP(A105,CCG_data_TRACCS!A:N,6,FALSE) -> 2292 | J105: 1.801483421 | M105: 2875.490201 | N105: 2705.910992 | O105: 3052.912728 | P105: 11075.46552 | Q105: 10740.19083 | R105: 11418.54456 | S105: 4095.020781 | T105: 11971.60654 | U105: 1.405255545 | V105: =VLOOKUP(Selections_data_CCG!$G$2,'CurrentData-all children'!A:R,13,FALSE) -> 7077.07289 | W105: =IF(Settings!$B$5="4SIMILAR", VLOOKUP(Selections_data_CCG!$G$2,'CurrentData-4SIMILAR-allchildre'!A:R,13,FALSE), VLOOKUP(Settings!$C$5,'CurrentData-all children'!A:R,13,FALSE)) -> 5510.027757 | X105: =VLOOKUP(Selections_data_CCG!$G$2,'CurrentData-all children'!A:R,16,FALSE) -> 16842.33626 | Y105: =IF(Settings!$B$5="4SIMILAR", VLOOKUP(Selections_data_CCG!$G$2,'CurrentData-4SIMILAR-allchildre'!A:R,16,FALSE), VLOOKUP(Settings!$C$5,'CurrentData-all children'!A:R,16,FALSE)) -> 14706.8643 | Z105: =VLOOKUP(Selections_data_CCG!$G$2,'CurrentData-all children'!A:R,10,FALSE) -> 1.48533414 | AA105: =IF(Settings!$B$5="4SIMILAR", VLOOKUP(Selections_data_CCG!$G$2,'CurrentData-4SIMILAR-allchildre'!A:R,10,FALSE), VLOOKUP(Settings!$C$5,'CurrentData-all children'!A:R,10,FALSE)) -> 1.437047856 | AB105: =IF(IF(G105=0,"",COUNTIF(G$12:G$222,"<>0")-(RANK(M105,$M$12:$M$222)+COUNTIF($M$12:M105,M105)-2))<=INT(0.05*COUNTIF(G$12:G$222,"<>0")),"TOP5", IF(IF(G105=0,"",COUNTIF(G$12:G$222,"<>0")-(RANK(M105,$M$12:$M$222)+COUNTIF($M$12:M105,M105)-2))<=INT(0.25*COUNTIF(G$12:G$222,"<>0")),"TOP25", "")) -> TOP25 | AC105: =IF(IF(H105=0,"",COUNTIF(H$12:H$222,"<>0")-(RANK(P105,$P$12:$P$222)+COUNTIF($P$12:P105,P105)-2))<=INT(0.05*COUNTIF(H$12:H$222,"<>0")),"TOP5", IF(IF(H105=0,"",COUNTIF(H$12:H$222,"<>0")-(RANK(P105,$P$12:$P$222)+COUNTIF($P$12:P105,P105)-2))<=INT(0.25*COUNTIF(H$12:H$222,"<>0")),"TOP25", "")) ->  | AD105: =IF(IF(J105="Suppressed","",COUNTIF(J$12:J$222,"<>Suppressed")-(RANK(J105,$J$12:$J$222)+COUNTIF(J$12:$J105,J105)-2))<=INT(0.05*COUNTIF(J$12:J$222,"<>Suppressed")),"TOP5", IF(IF(J105="Suppressed","",COUNTIF(J$12:J$222,"<>Suppressed")-(RANK(J105,$J$12:$J$222)+COUNTIF(J$12:$J105,J105)-2))<=INT(0.25*COUNTIF(J$12:J$222,"<>suppressed")),"TOP25", "")) -> 
A106: 03G | B106: NHS Leeds South and East | C106: =IF(G106=0,"",COUNTIF(G$12:G$222,"<>0")-(RANK(M106,$M$12:$M$222)+COUNTIF($M$12:M106,M106)-2)) -> 44 | D106: =IF(H106=0,"",COUNTIF(P$12:P$222,"<>Suppressed")-(RANK(P106,$P$12:$P$222)+COUNTIF($P$12:P106,P106)-2)) -> 155 | E106: =IF(J106="Suppressed","",COUNTIF(J$12:J$222,"<>Suppressed")-(RANK(J106,$J$12:$J$222)+COUNTIF($J$12:J106,J106)-2)) -> 187 | F106: =VLOOKUP(A106,population!C:O,Settings!$B$3,FALSE) -> 52813.2 | G106: =VLOOKUP(A106,CCG_data_TRACCS!A:N,4,FALSE) -> 1568 | H106: =VLOOKUP(A106,CCG_data_TRACCS!A:N,5,FALSE) -> 7419 | I106: =VLOOKUP(A106,CCG_data_TRACCS!A:N,6,FALSE) -> 3560 | J106: 2.083988764 | M106: 2968.954731 | N106: 2823.802436 | O106: 3119.633896 | P106: 14047.62446 | Q106: 13729.76864 | R106: 14370.98204 | S106: 4106.480314 | T106: 12039.36865 | U106: 1.405920381 | V106: =VLOOKUP(Selections_data_CCG!$G$2,'CurrentData-all children'!A:R,13,FALSE) -> 7077.07289 | W106: =IF(Settings!$B$5="4SIMILAR", VLOOKUP(Selections_data_CCG!$G$2,'CurrentData-4SIMILAR-allchildre'!A:R,13,FALSE), VLOOKUP(Settings!$C$5,'CurrentData-all children'!A:R,13,FALSE)) -> 5510.027757 | X106: =VLOOKUP(Selections_data_CCG!$G$2,'CurrentData-all children'!A:R,16,FALSE) -> 16842.33626 | Y106: =IF(Settings!$B$5="4SIMILAR", VLOOKUP(Selections_data_CCG!$G$2,'CurrentData-4SIMILAR-allchildre'!A:R,16,FALSE), VLOOKUP(Settings!$C$5,'CurrentData-all children'!A:R,16,FALSE)) -> 14706.8643 | Z106: =VLOOKUP(Selections_data_CCG!$G$2,'CurrentData-all children'!A:R,10,FALSE) -> 1.48533414 | AA106: =IF(Settings!$B$5="4SIMILAR", VLOOKUP(Selections_data_CCG!$G$2,'CurrentData-4SIMILAR-allchildre'!A:R,10,FALSE), VLOOKUP(Settings!$C$5,'CurrentData-all children'!A:R,10,FALSE)) -> 1.437047856 | AB106: =IF(IF(G106=0,"",COUNTIF(G$12:G$222,"<>0")-(RANK(M106,$M$12:$M$222)+COUNTIF($M$12:M106,M106)-2))<=INT(0.05*COUNTIF(G$12:G$222,"<>0")),"TOP5", IF(IF(G106=0,"",COUNTIF(G$12:G$222,"<>0")-(RANK(M106,$M$12:$M$222)+COUNTIF($M$12:M106,M106)-2))<=INT(0.25*COUNTIF(G$12:G$222,"<>0")),"TOP25", "")) -> TOP25 | AC106: =IF(IF(H106=0,"",COUNTIF(H$12:H$222,"<>0")-(RANK(P106,$P$12:$P$222)+COUNTIF($P$12:P106,P106)-2))<=INT(0.05*COUNTIF(H$12:H$222,"<>0")),"TOP5", IF(IF(H106=0,"",COUNTIF(H$12:H$222,"<>0")-(RANK(P106,$P$12:$P$222)+COUNTIF($P$12:P106,P106)-2))<=INT(0.25*COUNTIF(H$12:H$222,"<>0")),"TOP25", "")) ->  | AD106: =IF(IF(J106="Suppressed","",COUNTIF(J$12:J$222,"<>Suppressed")-(RANK(J106,$J$12:$J$222)+COUNTIF(J$12:$J106,J106)-2))<=INT(0.05*COUNTIF(J$12:J$222,"<>Suppressed")),"TOP5", IF(IF(J106="Suppressed","",COUNTIF(J$12:J$222,"<>Suppressed")-(RANK(J106,$J$12:$J$222)+COUNTIF(J$12:$J106,J106)-2))<=INT(0.25*COUNTIF(J$12:J$222,"<>suppressed")),"TOP25", "")) -> 
A107: 03C | B107: NHS Leeds West | C107: =IF(G107=0,"",COUNTIF(G$12:G$222,"<>0")-(RANK(M107,$M$12:$M$222)+COUNTIF($M$12:M107,M107)-2)) -> 30 | D107: =IF(H107=0,"",COUNTIF(P$12:P$222,"<>Suppressed")-(RANK(P107,$P$12:$P$222)+COUNTIF($P$12:P107,P107)-2)) -> 131 | E107: =IF(J107="Suppressed","",COUNTIF(J$12:J$222,"<>Suppressed")-(RANK(J107,$J$12:$J$222)+COUNTIF($J$12:J107,J107)-2)) -> 192 | F107: =VLOOKUP(A107,population!C:O,Settings!$B$3,FALSE) -> 57133.8 | G107: =VLOOKUP(A107,CCG_data_TRACCS!A:N,4,FALSE) -> 1565 | H107: =VLOOKUP(A107,CCG_data_TRACCS!A:N,5,FALSE) -> 7518 | I107: =VLOOKUP(A107,CCG_data_TRACCS!A:N,6,FALSE) -> 3499 | J107: 2.14861389 | M107: 2739.184161 | N107: 2605.138661 | O107: 2878.338616 | P107: 13158.58564 | Q107: 12862.80192 | R107: 13459.45492 | S107: 4130.266089 | T107: 12135.40686 | U107: 1.409330741 | V107: =VLOOKUP(Selections_data_CCG!$G$2,'CurrentData-all children'!A:R,13,FALSE) -> 7077.07289 | W107: =IF(Settings!$B$5="4SIMILAR", VLOOKUP(Selections_data_CCG!$G$2,'CurrentData-4SIMILAR-allchildre'!A:R,13,FALSE), VLOOKUP(Settings!$C$5,'CurrentData-all children'!A:R,13,FALSE)) -> 5510.027757 | X107: =VLOOKUP(Selections_data_CCG!$G$2,'CurrentData-all children'!A:R,16,FALSE) -> 16842.33626 | Y107: =IF(Settings!$B$5="4SIMILAR", VLOOKUP(Selections_data_CCG!$G$2,'CurrentData-4SIMILAR-allchildre'!A:R,16,FALSE), VLOOKUP(Settings!$C$5,'CurrentData-all children'!A:R,16,FALSE)) -> 14706.8643 | Z107: =VLOOKUP(Selections_data_CCG!$G$2,'CurrentData-all children'!A:R,10,FALSE) -> 1.48533414 | AA107: =IF(Settings!$B$5="4SIMILAR", VLOOKUP(Selections_data_CCG!$G$2,'CurrentData-4SIMILAR-allchildre'!A:R,10,FALSE), VLOOKUP(Settings!$C$5,'CurrentData-all children'!A:R,10,FALSE)) -> 1.437047856 | AB107: =IF(IF(G107=0,"",COUNTIF(G$12:G$222,"<>0")-(RANK(M107,$M$12:$M$222)+COUNTIF($M$12:M107,M107)-2))<=INT(0.05*COUNTIF(G$12:G$222,"<>0")),"TOP5", IF(IF(G107=0,"",COUNTIF(G$12:G$222,"<>0")-(RANK(M107,$M$12:$M$222)+COUNTIF($M$12:M107,M107)-2))<=INT(0.25*COUNTIF(G$12:G$222,"<>0")),"TOP25", "")) -> TOP25 | AC107: =IF(IF(H107=0,"",COUNTIF(H$12:H$222,"<>0")-(RANK(P107,$P$12:$P$222)+COUNTIF($P$12:P107,P107)-2))<=INT(0.05*COUNTIF(H$12:H$222,"<>0")),"TOP5", IF(IF(H107=0,"",COUNTIF(H$12:H$222,"<>0")-(RANK(P107,$P$12:$P$222)+COUNTIF($P$12:P107,P107)-2))<=INT(0.25*COUNTIF(H$12:H$222,"<>0")),"TOP25", "")) ->  | AD107: =IF(IF(J107="Suppressed","",COUNTIF(J$12:J$222,"<>Suppressed")-(RANK(J107,$J$12:$J$222)+COUNTIF(J$12:$J107,J107)-2))<=INT(0.05*COUNTIF(J$12:J$222,"<>Suppressed")),"TOP5", IF(IF(J107="Suppressed","",COUNTIF(J$12:J$222,"<>Suppressed")-(RANK(J107,$J$12:$J$222)+COUNTIF(J$12:$J107,J107)-2))<=INT(0.25*COUNTIF(J$12:J$222,"<>suppressed")),"TOP25", "")) -> 
A108: 04C | B108: NHS Leicester City | C108: =IF(G108=0,"",COUNTIF(G$12:G$222,"<>0")-(RANK(M108,$M$12:$M$222)+COUNTIF($M$12:M108,M108)-2)) -> 15 | D108: =IF(H108=0,"",COUNTIF(P$12:P$222,"<>Suppressed")-(RANK(P108,$P$12:$P$222)+COUNTIF($P$12:P108,P108)-2)) -> 140 | E108: =IF(J108="Suppressed","",COUNTIF(J$12:J$222,"<>Suppressed")-(RANK(J108,$J$12:$J$222)+COUNTIF($J$12:J108,J108)-2)) -> 209 | F108: =VLOOKUP(A108,population!C:O,Settings!$B$3,FALSE) -> 75739.4 | G108: =VLOOKUP(A108,CCG_data_TRACCS!A:N,4,FALSE) -> 1841 | H108: =VLOOKUP(A108,CCG_data_TRACCS!A:N,5,FALSE) -> 10108 | I108: =VLOOKUP(A108,CCG_data_TRACCS!A:N,6,FALSE) -> 3970 | J108: 2.546095718 | M108: 2430.703174 | N108: 2320.925193 | O108: 2544.332558 | P108: 13345.76192 | Q108: 13086.84352 | R108: 13608.51455 | S108: 4161.736387 | T108: 12137.61866 | U108: 1.409424084 | V108: =VLOOKUP(Selections_data_CCG!$G$2,'CurrentData-all children'!A:R,13,FALSE) -> 7077.07289 | W108: =IF(Settings!$B$5="4SIMILAR", VLOOKUP(Selections_data_CCG!$G$2,'CurrentData-4SIMILAR-allchildre'!A:R,13,FALSE), VLOOKUP(Settings!$C$5,'CurrentData-all children'!A:R,13,FALSE)) -> 5510.027757 | X108: =VLOOKUP(Selections_data_CCG!$G$2,'CurrentData-all children'!A:R,16,FALSE) -> 16842.33626 | Y108: =IF(Settings!$B$5="4SIMILAR", VLOOKUP(Selections_data_CCG!$G$2,'CurrentData-4SIMILAR-allchildre'!A:R,16,FALSE), VLOOKUP(Settings!$C$5,'CurrentData-all children'!A:R,16,FALSE)) -> 14706.8643 | Z108: =VLOOKUP(Selections_data_CCG!$G$2,'CurrentData-all children'!A:R,10,FALSE) -> 1.48533414 | AA108: =IF(Settings!$B$5="4SIMILAR", VLOOKUP(Selections_data_CCG!$G$2,'CurrentData-4SIMILAR-allchildre'!A:R,10,FALSE), VLOOKUP(Settings!$C$5,'CurrentData-all children'!A:R,10,FALSE)) -> 1.437047856 | AB108: =IF(IF(G108=0,"",COUNTIF(G$12:G$222,"<>0")-(RANK(M108,$M$12:$M$222)+COUNTIF($M$12:M108,M108)-2))<=INT(0.05*COUNTIF(G$12:G$222,"<>0")),"TOP5", IF(IF(G108=0,"",COUNTIF(G$12:G$222,"<>0")-(RANK(M108,$M$12:$M$222)+COUNTIF($M$12:M108,M108)-2))<=INT(0.25*COUNTIF(G$12:G$222,"<>0")),"TOP25", "")) -> TOP25 | AC108: =IF(IF(H108=0,"",COUNTIF(H$12:H$222,"<>0")-(RANK(P108,$P$12:$P$222)+COUNTIF($P$12:P108,P108)-2))<=INT(0.05*COUNTIF(H$12:H$222,"<>0")),"TOP5", IF(IF(H108=0,"",COUNTIF(H$12:H$222,"<>0")-(RANK(P108,$P$12:$P$222)+COUNTIF($P$12:P108,P108)-2))<=INT(0.25*COUNTIF(H$12:H$222,"<>0")),"TOP25", "")) ->  | AD108: =IF(IF(J108="Suppressed","",COUNTIF(J$12:J$222,"<>Suppressed")-(RANK(J108,$J$12:$J$222)+COUNTIF(J$12:$J108,J108)-2))<=INT(0.05*COUNTIF(J$12:J$222,"<>Suppressed")),"TOP5", IF(IF(J108="Suppressed","",COUNTIF(J$12:J$222,"<>Suppressed")-(RANK(J108,$J$12:$J$222)+COUNTIF(J$12:$J108,J108)-2))<=INT(0.25*COUNTIF(J$12:J$222,"<>suppressed")),"TOP25", "")) -> 
A109: 08L | B109: NHS Lewisham | C109: =IF(G109=0,"",COUNTIF(G$12:G$222,"<>0")-(RANK(M109,$M$12:$M$222)+COUNTIF($M$12:M109,M109)-2)) -> 66 | D109: =IF(H109=0,"",COUNTIF(P$12:P$222,"<>Suppressed")-(RANK(P109,$P$12:$P$222)+COUNTIF($P$12:P109,P109)-2)) -> 132 | E109: =IF(J109="Suppressed","",COUNTIF(J$12:J$222,"<>Suppressed")-(RANK(J109,$J$12:$J$222)+COUNTIF($J$12:J109,J109)-2)) -> 162 | F109: =VLOOKUP(A109,population!C:O,Settings!$B$3,FALSE) -> 58312 | G109: =VLOOKUP(A109,CCG_data_TRACCS!A:N,4,FALSE) -> 2019 | H109: =VLOOKUP(A109,CCG_data_TRACCS!A:N,5,FALSE) -> 7684 | I109: =VLOOKUP(A109,CCG_data_TRACCS!A:N,6,FALSE) -> 4176 | J109: 1.840038314 | M109: 3462.40911 | N109: 3313.010992 | O109: 3616.80793 | P109: 13177.39059 | Q109: 12884.38326 | R109: 13475.38053 | S109: 4163.84884 | T109: 12143.93817 | U109: =VLOOKUP(ROW(U109)-11,E:R,6,FALSE) -> 1.413793103 | V109: =VLOOKUP(Selections_data_CCG!$G$2,'CurrentData-all children'!A:R,13,FALSE) -> 7077.07289 | W109: =IF(Settings!$B$5="4SIMILAR", VLOOKUP(Selections_data_CCG!$G$2,'CurrentData-4SIMILAR-allchildre'!A:R,13,FALSE), VLOOKUP(Settings!$C$5,'CurrentData-all children'!A:R,13,FALSE)) -> 5510.027757 | X109: =VLOOKUP(Selections_data_CCG!$G$2,'CurrentData-all children'!A:R,16,FALSE) -> 16842.33626 | Y109: =IF(Settings!$B$5="4SIMILAR", VLOOKUP(Selections_data_CCG!$G$2,'CurrentData-4SIMILAR-allchildre'!A:R,16,FALSE), VLOOKUP(Settings!$C$5,'CurrentData-all children'!A:R,16,FALSE)) -> 14706.8643 | Z109: =VLOOKUP(Selections_data_CCG!$G$2,'CurrentData-all children'!A:R,10,FALSE) -> 1.48533414 | AA109: =IF(Settings!$B$5="4SIMILAR", VLOOKUP(Selections_data_CCG!$G$2,'CurrentData-4SIMILAR-allchildre'!A:R,10,FALSE), VLOOKUP(Settings!$C$5,'CurrentData-all children'!A:R,10,FALSE)) -> 1.437047856 | AB109: =IF(IF(G109=0,"",COUNTIF(G$12:G$222,"<>0")-(RANK(M109,$M$12:$M$222)+COUNTIF($M$12:M109,M109)-2))<=INT(0.05*COUNTIF(G$12:G$222,"<>0")),"TOP5", IF(IF(G109=0,"",COUNTIF(G$12:G$222,"<>0")-(RANK(M109,$M$12:$M$222)+COUNTIF($M$12:M109,M109)-2))<=INT(0.25*COUNTIF(G$12:G$222,"<>0")),"TOP25", "")) ->  | AC109: =IF(IF(H109=0,"",COUNTIF(H$12:H$222,"<>0")-(RANK(P109,$P$12:$P$222)+COUNTIF($P$12:P109,P109)-2))<=INT(0.05*COUNTIF(H$12:H$222,"<>0")),"TOP5", IF(IF(H109=0,"",COUNTIF(H$12:H$222,"<>0")-(RANK(P109,$P$12:$P$222)+COUNTIF($P$12:P109,P109)-2))<=INT(0.25*COUNTIF(H$12:H$222,"<>0")),"TOP25", "")) ->  | AD109: =IF(IF(J109="Suppressed","",COUNTIF(J$12:J$222,"<>Suppressed")-(RANK(J109,$J$12:$J$222)+COUNTIF(J$12:$J109,J109)-2))<=INT(0.05*COUNTIF(J$12:J$222,"<>Suppressed")),"TOP5", IF(IF(J109="Suppressed","",COUNTIF(J$12:J$222,"<>Suppressed")-(RANK(J109,$J$12:$J$222)+COUNTIF(J$12:$J109,J109)-2))<=INT(0.25*COUNTIF(J$12:J$222,"<>suppressed")),"TOP25", "")) -> 
A110: 03T | B110: NHS Lincolnshire East | C110: =IF(G110=0,"",COUNTIF(G$12:G$222,"<>0")-(RANK(M110,$M$12:$M$222)+COUNTIF($M$12:M110,M110)-2)) -> 108 | D110: =IF(H110=0,"",COUNTIF(P$12:P$222,"<>Suppressed")-(RANK(P110,$P$12:$P$222)+COUNTIF($P$12:P110,P110)-2)) -> 91 | E110: =IF(J110="Suppressed","",COUNTIF(J$12:J$222,"<>Suppressed")-(RANK(J110,$J$12:$J$222)+COUNTIF($J$12:J110,J110)-2)) -> 91 | F110: =VLOOKUP(A110,population!C:O,Settings!$B$3,FALSE) -> 38984.4 | G110: =VLOOKUP(A110,CCG_data_TRACCS!A:N,4,FALSE) -> 1694 | H110: =VLOOKUP(A110,CCG_data_TRACCS!A:N,5,FALSE) -> 4636 | I110: =VLOOKUP(A110,CCG_data_TRACCS!A:N,6,FALSE) -> 3321 | J110: 1.395965071 | M110: 4345.327875 | N110: 4140.841584 | O110: 4557.299183 | P110: 11891.93626 | Q110: 11552.05429 | R110: 12239.2793 | S110: 4164.111172 | T110: 12178.35742 | U110: 1.42070005 | V110: =VLOOKUP(Selections_data_CCG!$G$2,'CurrentData-all children'!A:R,13,FALSE) -> 7077.07289 | W110: =IF(Settings!$B$5="4SIMILAR", VLOOKUP(Selections_data_CCG!$G$2,'CurrentData-4SIMILAR-allchildre'!A:R,13,FALSE), VLOOKUP(Settings!$C$5,'CurrentData-all children'!A:R,13,FALSE)) -> 5510.027757 | X110: =VLOOKUP(Selections_data_CCG!$G$2,'CurrentData-all children'!A:R,16,FALSE) -> 16842.33626 | Y110: =IF(Settings!$B$5="4SIMILAR", VLOOKUP(Selections_data_CCG!$G$2,'CurrentData-4SIMILAR-allchildre'!A:R,16,FALSE), VLOOKUP(Settings!$C$5,'CurrentData-all children'!A:R,16,FALSE)) -> 14706.8643 | Z110: =VLOOKUP(Selections_data_CCG!$G$2,'CurrentData-all children'!A:R,10,FALSE) -> 1.48533414 | AA110: =IF(Settings!$B$5="4SIMILAR", VLOOKUP(Selections_data_CCG!$G$2,'CurrentData-4SIMILAR-allchildre'!A:R,10,FALSE), VLOOKUP(Settings!$C$5,'CurrentData-all children'!A:R,10,FALSE)) -> 1.437047856 | AB110: =IF(IF(G110=0,"",COUNTIF(G$12:G$222,"<>0")-(RANK(M110,$M$12:$M$222)+COUNTIF($M$12:M110,M110)-2))<=INT(0.05*COUNTIF(G$12:G$222,"<>0")),"TOP5", IF(IF(G110=0,"",COUNTIF(G$12:G$222,"<>0")-(RANK(M110,$M$12:$M$222)+COUNTIF($M$12:M110,M110)-2))<=INT(0.25*COUNTIF(G$12:G$222,"<>0")),"TOP25", "")) ->  | AC110: =IF(IF(H110=0,"",COUNTIF(H$12:H$222,"<>0")-(RANK(P110,$P$12:$P$222)+COUNTIF($P$12:P110,P110)-2))<=INT(0.05*COUNTIF(H$12:H$222,"<>0")),"TOP5", IF(IF(H110=0,"",COUNTIF(H$12:H$222,"<>0")-(RANK(P110,$P$12:$P$222)+COUNTIF($P$12:P110,P110)-2))<=INT(0.25*COUNTIF(H$12:H$222,"<>0")),"TOP25", "")) ->  | AD110: =IF(IF(J110="Suppressed","",COUNTIF(J$12:J$222,"<>Suppressed")-(RANK(J110,$J$12:$J$222)+COUNTIF(J$12:$J110,J110)-2))<=INT(0.05*COUNTIF(J$12:J$222,"<>Suppressed")),"TOP5", IF(IF(J110="Suppressed","",COUNTIF(J$12:J$222,"<>Suppressed")-(RANK(J110,$J$12:$J$222)+COUNTIF(J$12:$J110,J110)-2))<=INT(0.25*COUNTIF(J$12:J$222,"<>suppressed")),"TOP25", "")) -> 
A111: 04D | B111: NHS Lincolnshire West | C111: =IF(G111=0,"",COUNTIF(G$12:G$222,"<>0")-(RANK(M111,$M$12:$M$222)+COUNTIF($M$12:M111,M111)-2)) -> 85 | D111: =IF(H111=0,"",COUNTIF(P$12:P$222,"<>Suppressed")-(RANK(P111,$P$12:$P$222)+COUNTIF($P$12:P111,P111)-2)) -> 57 | E111: =IF(J111="Suppressed","",COUNTIF(J$12:J$222,"<>Suppressed")-(RANK(J111,$J$12:$J$222)+COUNTIF($J$12:J111,J111)-2)) -> 90 | F111: =VLOOKUP(A111,population!C:O,Settings!$B$3,FALSE) -> 39911.2 | G111: =VLOOKUP(A111,CCG_data_TRACCS!A:N,4,FALSE) -> 1571 | H111: =VLOOKUP(A111,CCG_data_TRACCS!A:N,5,FALSE) -> 4418 | I111: =VLOOKUP(A111,CCG_data_TRACCS!A:N,6,FALSE) -> 3168 | J111: 1.394570707 | M111: 3936.238449 | N111: 3743.977168 | O111: 4135.813202 | P111: 11069.57446 | Q111: 10745.54142 | R111: 11400.89618 | S111: 4183.80118 | T111: 12213.97349 | U111: 1.433170555 | V111: =VLOOKUP(Selections_data_CCG!$G$2,'CurrentData-all children'!A:R,13,FALSE) -> 7077.07289 | W111: =IF(Settings!$B$5="4SIMILAR", VLOOKUP(Selections_data_CCG!$G$2,'CurrentData-4SIMILAR-allchildre'!A:R,13,FALSE), VLOOKUP(Settings!$C$5,'CurrentData-all children'!A:R,13,FALSE)) -> 5510.027757 | X111: =VLOOKUP(Selections_data_CCG!$G$2,'CurrentData-all children'!A:R,16,FALSE) -> 16842.33626 | Y111: =IF(Settings!$B$5="4SIMILAR", VLOOKUP(Selections_data_CCG!$G$2,'CurrentData-4SIMILAR-allchildre'!A:R,16,FALSE), VLOOKUP(Settings!$C$5,'CurrentData-all children'!A:R,16,FALSE)) -> 14706.8643 | Z111: =VLOOKUP(Selections_data_CCG!$G$2,'CurrentData-all children'!A:R,10,FALSE) -> 1.48533414 | AA111: =IF(Settings!$B$5="4SIMILAR", VLOOKUP(Selections_data_CCG!$G$2,'CurrentData-4SIMILAR-allchildre'!A:R,10,FALSE), VLOOKUP(Settings!$C$5,'CurrentData-all children'!A:R,10,FALSE)) -> 1.437047856 | AB111: =IF(IF(G111=0,"",COUNTIF(G$12:G$222,"<>0")-(RANK(M111,$M$12:$M$222)+COUNTIF($M$12:M111,M111)-2))<=INT(0.05*COUNTIF(G$12:G$222,"<>0")),"TOP5", IF(IF(G111=0,"",COUNTIF(G$12:G$222,"<>0")-(RANK(M111,$M$12:$M$222)+COUNTIF($M$12:M111,M111)-2))<=INT(0.25*COUNTIF(G$12:G$222,"<>0")),"TOP25", "")) ->  | AC111: =IF(IF(H111=0,"",COUNTIF(H$12:H$222,"<>0")-(RANK(P111,$P$12:$P$222)+COUNTIF($P$12:P111,P111)-2))<=INT(0.05*COUNTIF(H$12:H$222,"<>0")),"TOP5", IF(IF(H111=0,"",COUNTIF(H$12:H$222,"<>0")-(RANK(P111,$P$12:$P$222)+COUNTIF($P$12:P111,P111)-2))<=INT(0.25*COUNTIF(H$12:H$222,"<>0")),"TOP25", "")) ->  | AD111: =IF(IF(J111="Suppressed","",COUNTIF(J$12:J$222,"<>Suppressed")-(RANK(J111,$J$12:$J$222)+COUNTIF(J$12:$J111,J111)-2))<=INT(0.05*COUNTIF(J$12:J$222,"<>Suppressed")),"TOP5", IF(IF(J111="Suppressed","",COUNTIF(J$12:J$222,"<>Suppressed")-(RANK(J111,$J$12:$J$222)+COUNTIF(J$12:$J111,J111)-2))<=INT(0.25*COUNTIF(J$12:J$222,"<>suppressed")),"TOP25", "")) -> 
A112: 99A | B112: NHS Liverpool | C112: =IF(G112=0,"",COUNTIF(G$12:G$222,"<>0")-(RANK(M112,$M$12:$M$222)+COUNTIF($M$12:M112,M112)-2)) -> 58 | D112: =IF(H112=0,"",COUNTIF(P$12:P$222,"<>Suppressed")-(RANK(P112,$P$12:$P$222)+COUNTIF($P$12:P112,P112)-2)) -> 183 | E112: =IF(J112="Suppressed","",COUNTIF(J$12:J$222,"<>Suppressed")-(RANK(J112,$J$12:$J$222)+COUNTIF($J$12:J112,J112)-2)) -> 196 | F112: =VLOOKUP(A112,population!C:O,Settings!$B$3,FALSE) -> 83753 | G112: =VLOOKUP(A112,CCG_data_TRACCS!A:N,4,FALSE) -> 2722 | H112: =VLOOKUP(A112,CCG_data_TRACCS!A:N,5,FALSE) -> 13634 | I112: =VLOOKUP(A112,CCG_data_TRACCS!A:N,6,FALSE) -> 6228 | J112: 2.189145793 | M112: 3250.032835 | N112: 3129.073977 | O112: 3374.469789 | P112: 16278.81986 | Q112: 16006.70285 | R112: 16554.40264 | S112: 4197.761194 | T112: 12223.19778 | U112: 1.437786697 | V112: =VLOOKUP(Selections_data_CCG!$G$2,'CurrentData-all children'!A:R,13,FALSE) -> 7077.07289 | W112: =IF(Settings!$B$5="4SIMILAR", VLOOKUP(Selections_data_CCG!$G$2,'CurrentData-4SIMILAR-allchildre'!A:R,13,FALSE), VLOOKUP(Settings!$C$5,'CurrentData-all children'!A:R,13,FALSE)) -> 5510.027757 | X112: =VLOOKUP(Selections_data_CCG!$G$2,'CurrentData-all children'!A:R,16,FALSE) -> 16842.33626 | Y112: =IF(Settings!$B$5="4SIMILAR", VLOOKUP(Selections_data_CCG!$G$2,'CurrentData-4SIMILAR-allchildre'!A:R,16,FALSE), VLOOKUP(Settings!$C$5,'CurrentData-all children'!A:R,16,FALSE)) -> 14706.8643 | Z112: =VLOOKUP(Selections_data_CCG!$G$2,'CurrentData-all children'!A:R,10,FALSE) -> 1.48533414 | AA112: =IF(Settings!$B$5="4SIMILAR", VLOOKUP(Selections_data_CCG!$G$2,'CurrentData-4SIMILAR-allchildre'!A:R,10,FALSE), VLOOKUP(Settings!$C$5,'CurrentData-all children'!A:R,10,FALSE)) -> 1.437047856 | AB112: =IF(IF(G112=0,"",COUNTIF(G$12:G$222,"<>0")-(RANK(M112,$M$12:$M$222)+COUNTIF($M$12:M112,M112)-2))<=INT(0.05*COUNTIF(G$12:G$222,"<>0")),"TOP5", IF(IF(G112=0,"",COUNTIF(G$12:G$222,"<>0")-(RANK(M112,$M$12:$M$222)+COUNTIF($M$12:M112,M112)-2))<=INT(0.25*COUNTIF(G$12:G$222,"<>0")),"TOP25", "")) ->  | AC112: =IF(IF(H112=0,"",COUNTIF(H$12:H$222,"<>0")-(RANK(P112,$P$12:$P$222)+COUNTIF($P$12:P112,P112)-2))<=INT(0.05*COUNTIF(H$12:H$222,"<>0")),"TOP5", IF(IF(H112=0,"",COUNTIF(H$12:H$222,"<>0")-(RANK(P112,$P$12:$P$222)+COUNTIF($P$12:P112,P112)-2))<=INT(0.25*COUNTIF(H$12:H$222,"<>0")),"TOP25", "")) ->  | AD112: =IF(IF(J112="Suppressed","",COUNTIF(J$12:J$222,"<>Suppressed")-(RANK(J112,$J$12:$J$222)+COUNTIF(J$12:$J112,J112)-2))<=INT(0.05*COUNTIF(J$12:J$222,"<>Suppressed")),"TOP5", IF(IF(J112="Suppressed","",COUNTIF(J$12:J$222,"<>Suppressed")-(RANK(J112,$J$12:$J$222)+COUNTIF(J$12:$J112,J112)-2))<=INT(0.25*COUNTIF(J$12:J$222,"<>suppressed")),"TOP25", "")) -> 
